Workbook

Sheet Letter (hidden)
A1: clean
A2: Important!!
A3: If you accidentally stumbled into this page do not change any information on this page.
A5: Contact Name | B5: Contact Name
A6: Company Name | B6: Co Name
A7: Address | B7: Address
A8: =B8&", "&C8&" "&D8 -> City, State, Zip, | B8: City, State, Zip
A9: Dear | B9: Dear
A10: Rep Name | B10: Rep Name
A11: Contact Phone | B11: Contact Phone
B12: SAP ID
B13: Cust Grp 3
A14: Date | B14: Date
A24: Please do not change cell A25.
A25: 2023-08-01 | B25: Quote Date
A36: Equipment Type | B36: Sweeper
A37: Country | B37: USA

Sheet CRM Mapping (hidden)

Sheet Log (hidden)
A1: Date | B1: UpdatedBy | C1: Description
A2: 2019-08-23 | B2: Pao Leepalao | C2: show user ID instead of full name on approve box
A3: 2019-08-23 | B3: Pao Leepalao | C3: date stamp when it's approved (yellow and red)
A4: 2019-08-23 | B4: Pao Leepalao | C4: revision date on all machine tabs
A5: 2019-08-23 | B5: Pao Leepalao | C5: change log (date, name, what changed) - hide tab
A6: 2019-08-23 | B6: Pao Leepalao | C6: fix T6 quick ship hide/show blank qty issue
A7: 2019-08-23 | B7: Jeannie Smallish | C7: T300/SS300: removed drain hose/cap
A8: 2019-08-23 | B8: Jeannie Smallish | C8: T20/M20/M30/S30/800/T16 quick ship: update built-in values
A9: 2019-08-23 | B9: Jeannie Smallish | C9: T16: update preconfigured machines
A10: 2019-08-23 | B10: Jeannie Smallish | C10: T20/S30: prices correction
A11: 2019-09-16 | B11: Jeannie Smallish | C11: corrected column issue on Extractors
A12: 2019-09-16 | B12: Jeannie Smallish | C12: Add new machine S10_Quick_Ship
A13: 2019-09-16 | B13: Pao Leepalao | C13: Discount/Service rates for S10_Quick_Ship
A14: 2019-09-16 | B14: Pao Leepalao | C14: Update leasing contact for Tennant
A15: 2019-10-02 | B15: Pao Leepalao | C15: Update finance rates - US Bank
A16: 2019-10-02 | B16: Pao Leepalao | C16: Add governance approval process
A17: 2019-11-08 | B17: Pao Leepalao | C17: Fix GT formatting issue
A18: 2019-12-04 | B18: Pao/Jeannie | C18: New 2020 price increase
A19: 2019-12-04 | B19: Pao Leepalao | C19: Only positive allow in custom solution

Sheet Start_Here
A1: Distributor | C1: Please fill out as much buyer information as you can. Overkey addresses and contacts for proper display on the machine sheets. | O1: Alabama | P1: Discount | Q1: ALL OTHER COUNTIES
O2: Arkansas | P2: =TTDiscountLow -> 0
A3: Buyer Information | O3: Arizona | P3: =TTDiscountHigh -> 5
B4: CRM Address Information | F4: Who is Buying the Machine? (Bill-To for Machine Aquisition Info) (Please Verify) | I4: Select One | O4: British Columbia | Q4: DALE
B5: Company | C5: =Letter!$A$6 -> Company Name | F5: Company | H5: Company Name | O5: Canada | Q5: ESCAMBIA
B6: Address | C6: =Address -> Address | F6: Address | H6: Address | O6: California | Q6: GENEVA
B7: City, State Zip | C7: =CityStateZip -> City, State, Zip, | F7: City, State Zip | H7: City, State Zip | O7: Colorado | Q7: HENRY
B8: Name | C8: =ContactName -> Contact Name | F8: Name | H8: Contact Name | O8: Connecticut | Q8: HOUSTON
B9: Phone | C9: =Letter!$A$11 -> Contact Phone | F9: Phone | H9: Contact Phone | O9: District of Columbia | Q9: LEE
O10: Delaware | Q10: RUSSELL
B11: Where is the Machine Being Shipped? (Ship-To Info) (Please Verify) | D11: Select One | F11: Where is the Machine Being Used? (Machine Use Location - Specific) (Please Verify) | I11: Select One | O11: Florida
B12: Company | C12: Company Name | F12: Company | H12: Company Name | O12: Georgia
B13: Address | C13: Address | F13: Address | H13: Address | O13: Hawaii
B14: City, State Zip | C14: City, State Zip | F14: City, State Zip | H14: City, State Zip | O14: Iowa
B15: Name | C15: Contact Name | F15: Name | H15: Contact Name | O15: Idaho
B16: Phone | C16: Contact Phone | F16: Phone | H16: Contact Phone | O16: Illinois
O17: Indiana
B18: Who Owns the Machine? (Sold-To Info) (Please Verify) | D18: Select One | F18: Who Pays for Service on the Machine? (Service Bill-To Info) (Please Verify) | I18: Select One | O18: Kansas
B19: Company | C19: Company Name | F19: Company | H19: Company Name | O19: Kentucky
B20: Address | C20: Address | F20: Address | H20: Address | O20: Louisiana
B21: City, State Zip | C21: City, State Zip | F21: City, State Zip | H21: City, State Zip | O21: Massachusetts
B22: Name | C22: Contact Name | F22: Name | H22: Contact Name | O22: Maryland
B23: Phone | C23: Contact Phone | F23: Phone | H23: Contact Phone | O23: Maine
O24: Michigan
B25: Customer Number | C25: =Letter!$A$12 -> 0 | F25: Select Market | H25: TennantTrue Details | O25: Minnesota
B26: Authorized Buyer's Name | F26: Internal use only | H26: State | O26: Missouri
B27: Buyer's Phone # | O27: Mississippi
B28: Requested Delivery Date | F28: Quote Service | H28: County | O28: Montana
B29: Cust Grp 3 | C29: =Letter!$A$13 -> 0 | F29: Yes | O29: North Carolina
H30: National Account | O30: North Dakota
B31: Shipping / Carrier Instructions: | O31: Nebraska
H32: TennantTrue Discount (%) | O32: New Hampshire
O33: New Jersey
O34: New Mexico
B35: Seller Info | O35: Nevada
B36: Letter/Quote | E36: Terms and Conditions | O36: New York
B37: Company | C37: Tennant Sales and Service Company | E37: Ask your local sales rep for estimated lead times. Verify when placing order | O37: Ohio
B38: Address | C38: 10400 Clean Street | E38: All orders subject to acceptance by Tennant Sales and Service Company, Minneapolis, Minnesota | O38: Oklahoma
C39: Eden Prairie, MN 55344 | E39: Prices subject to change without notice. Subject to any applicable taxes. | O39: Ontario
E40: Terms: Net 30 days. Payable in Canadian Funds | O40: Oregon
B41: Name | C41: =RepName -> Rep Name | E41: Freight: Accessories, parts, supplies, detergents, and floor coatings orders delivered DDP | O41: Pennsylvania
E42: shipping point Frt PPD. Machine orders delivered DDP shipping point Frt PPD and add. | O42: Prince Edward Isle
B43: Phone | C43: 800-553-8033 | E43: Returned Merchandise is subject to a restocking fee. | O43: Rhode Island
B44: Fax | C44: 763-513-2116 | E44: All orders are subject to Tennant’s General Terms and Conditions available at http://www.tennantco.com/terms. | O44: Quebec
E45: Printed General Terms and Conditions are also available upon request. | O45: South Carolina
O46: South Dakota
B47: Footer | O47: Tennessee
B48: Line 1 | C48: TENNANT · 10400 Clean Street · Eden Prairie, MN 55344 · | O48: Texas
B49: Line 2 | C49: PHONE:800-553-8033 · FAX:763-513-2116 | O49: Utah
O50: Virginia
O51: Vermont
O52: Washington
O53: West Virginia
O54: Wisconsin
O55: Wyoming
C57: Battery Surcharge | D57: Price
C58: 36 Volt Machines | D58: 0
C59: 24 Volt Machines | D59: 0
C60: Small 24 Volt Machines | D60: 0

Sheet Cover_Letter
A1: =Letter!$A$25 -> 2023-08-01
A4: =Start_Here!C37 -> Tennant Sales and Service Company
A5: =Start_Here!C38 -> 10400 Clean Street
A6: =Start_Here!C39 -> Eden Prairie, MN 55344
A7: =Start_Here!C40 -> 0
A9: =Start_Here!$C$22 -> Contact Name
A10: =Start_Here!$C$19 -> Company Name
A11: =Start_Here!$C$20 -> Address
A12: =Start_Here!$C$21 -> City, State Zip
A14: =Salutation -> Dear
A16: Thank you for your interest in Nobles maintenance equipment. We are pleased to send you the attached quotation and literature on the products you are considering.
A18: A variety of lease and finance programs are available that will allow you to maximize the cost savings and productivity advantages that Nobles provides.
A20: I will be in contact with you, but in the meantime, feel free to call my sales office listed below, should you need to--your questions are invited and your orders will be given prompt attention.
A22: Yours Truly,
A26: =Start_Here!$C$41 -> Rep Name
A27: =Start_Here!C37 -> Tennant Sales and Service Company
A28: =Start_Here!C38 -> 10400 Clean Street
A29: =Start_Here!$C$39 -> Eden Prairie, MN 55344
A30: =Start_Here!$C$43 -> 800-553-8033
A32: attachment
A35: =Start_Here!C48 -> TENNANT · 10400 Clean Street · Eden Prairie, MN 55344 ·
A36: =Start_Here!C49 -> PHONE:800-553-8033 · FAX:763-513-2116

Sheet TennantTrue Summary_ (hidden)
O8: Choose the best plan for you
B9: Prepared for: | K9: Prepared On:
B10: =Start_Here!$C$22 -> Contact Name | K10: =Letter!$A$25 -> 2023-08-01
B11: =Start_Here!$C$19 -> Company Name
B12: =Start_Here!$C$20 -> Address
B13: =Start_Here!$C$21 -> City, State Zip
C16: Machine 1 | E16: Term | I16: Service Hours
C18: Used Machine? | E18: Gold | F18: Silver | G18: Pay As You Go | H18: Block of Time - Weekly | I18: Block of Time - Bi-Weekly | K18: On Demand
C19: Monthly Rate
C20: Annually
C21: Pre Pay 12 mo
C22: Per Visit
C23: Hourly Labor Rate | E23: See Below
C24: Site Visit Charge
C28: Machine 2 | E28: Term | I28: Service Hours
C30: Used Machine? | E30: Gold | F30: Silver | G30: Pay As You Go | H30: Block of Time - Weekly | I30: Block of Time - Bi-Weekly | K30: On Demand
C31: Monthly Rate
C32: Annually
C33: Pre Pay 36 mo
C34: Per Visit
C35: Hourly Labor Rate | E35: See Below
C36: Site Visit Charge
C40: Machine 3 | E40: Term | I40: Service Hours
C42: Used Machine? | E42: Gold | F42: Silver | G42: Pay As You Go | H42: Block of Time - Weekly | I42: Block of Time - Bi-Weekly | K42: On Demand
C43: Monthly Rate
C44: Annually
C45: Pre Pay 36 mo
C46: Per Visit
C47: Hourly Labor Rate | E47: See Below
C48: Site Visit Charge
B50: **All rates and fees above reflect service for one (1) unit with the exception of Block of Time service.
B52: ** Breakdown service calls for Silver customers include a Site Visit Charge and will be billed at the current "Pay As You Go" Hourly Labor Rate. Parts will be billed at list price.
B57: Tennant Company Sales Representative: | G57: =Start_Here!$C$41 -> Rep Name
B59: Customer
B60: Accepted By*:
B61: Print Name:
B62: Title:
B63: Date:
C64: *Acceptance is contingent upon customer review and approval of the Master Usage Agreement and the Usage Schedule / Equipment Schedule.
C66: **This quote is good for 60 days from the above date.

Sheet DualTech_ReadySpace_Strive
A1: DualTech_ReadySpace_Strive | C1: =Start_Here!$C19 -> Company Name
A2: =SUM(G88) -> 0 | C2: =Start_Here!$C20 -> Address
C3: =Start_Here!$C21 -> City, State Zip
C4: =Start_Here!$C22 -> Contact Name
C5: =Start_Here!$C$41 -> Rep Name
C6: =Start_Here!$C$37 -> Tennant Sales and Service Company
C7: =Start_Here!$C$38 -> 10400 Clean Street
C8: =Start_Here!$C$39 -> Eden Prairie, MN 55344
C9: =Start_Here!$C$43 -> 800-553-8033 | E9: Quote Date : | G9: =Letter!$A$25 -> 2023-08-01
C11: =Help!C2 -> CAN Date Rev - 5/6/2025
C12: BUILT-IN “NOBLES VALUE” INCLUDES:
B14: ReadySpace® cleaning technology and deep extraction | D14: Standard (4) 6V 240 AH battery pack
B15: 560mm/22" cleaning path | D15: Battery Tray
B16: 72 l/21-gal. solution and recovery tanks | D16: 19 Amp Off-board charger
B17: One set of ReadySpace® rollers & extraction brushes | D17: Rugged DuramerTM Tank Construction
B18: Battery Discharger Indicator | D18: Operators video
B19: Hour meter | D19: Operators manual
B20: Carton with stackable skid | D20: CRI certified, Bronze Cleaning Performance
C22: NOBLES WARRANTY
C23: 3 YEARS OR 2500 HOURS ON ALL COMPONENTS, 3 YEARS LABOR
C24: 90 DAYS TRAVEL, 10 YEARS ON DURAMERTM TANKS
E27: Quote Request Information
G28: Fax (quote only)
G29: Mail (quote,lit, specs)
G30: Fax + Mail
E32: Primary Use
G33: Inside
G34: Outside
C37: Description | D37: Reference# | E37: CAD 2025 Price Each | F37: Qty | G37: Extended Price
F38: *
B39: Pre-Configured Machines (Note 1) | E39: CANADA Price | F39: =SUM(F40:F41) -> 0
C40: Strive ReadySpace Walk-Behind w/ Wet 240AH Battery and Charger | D40: MV-STRV-0001 | E40: 28057 | G40: =F40*E40 -> 0 | H40: =IFERROR(IFERROR(VLOOKUP(D40,Surcharge!A:B,2,FALSE)*F40, VLOOKUP(D40 & "",Surcharge!A:B,2,FALSE)*F40), "") -> 0
C41: Strive ReadySpace Walk-Behind w/ AGM 200AH Battery and Charger | D41: MV-STRV-0002 | E41: 28855 | G41: =F41*E41 -> 0 | H41: =IFERROR(IFERROR(VLOOKUP(D41,Surcharge!A:B,2,FALSE)*F41, VLOOKUP(D41 & "",Surcharge!A:B,2,FALSE)*F41), "") -> 0
B42: All Pre-Configured Machines are packaged in a Skid w/Carton for shipment via LTL carriers. No additional options can be added or changed. | F42: =SUM(F40:F41) -> 0 | H42: =IFERROR(IFERROR(VLOOKUP(D42,Surcharge!A:B,2,FALSE)*F42, VLOOKUP(D42 & "",Surcharge!A:B,2,FALSE)*F42), "") -> 
H43: =IFERROR(IFERROR(VLOOKUP(D43,Surcharge!A:B,2,FALSE)*F43, VLOOKUP(D43 & "",Surcharge!A:B,2,FALSE)*F43), "") -> 
B44: Base Configuration | F44: =SUM(F45,F48,F53) -> 0 | H44: =IFERROR(IFERROR(VLOOKUP(D44,Surcharge!A:B,2,FALSE)*F44, VLOOKUP(D44 & "",Surcharge!A:B,2,FALSE)*F44), "") -> 
C45: Cleaning Type | F45: =SUM(F46) -> 0 | H45: =IFERROR(IFERROR(VLOOKUP(D45,Surcharge!A:B,2,FALSE)*F45, VLOOKUP(D45 & "",Surcharge!A:B,2,FALSE)*F45), "") -> 
C46: Strive Walk-Behind Dual Technolgy Carpet Maintainer 560mm / 22" | D46: Strive-560 | E46: 28057 | G46: =F46*E46 -> 0 | H46: =IFERROR(IFERROR(VLOOKUP(D46,Surcharge!A:B,2,FALSE)*F46, VLOOKUP(D46 & "",Surcharge!A:B,2,FALSE)*F46), "") -> 0
H47: =IFERROR(IFERROR(VLOOKUP(D47,Surcharge!A:B,2,FALSE)*F47, VLOOKUP(D47 & "",Surcharge!A:B,2,FALSE)*F47), "") -> 
C48: Battery Type | F48: =SUM(F49:F51) -> 0 | H48: =IFERROR(IFERROR(VLOOKUP(D48,Surcharge!A:B,2,FALSE)*F48, VLOOKUP(D48 & "",Surcharge!A:B,2,FALSE)*F48), "") -> 
C49: Wet 240AH C/20 (kit of 4 Batteries) | D49: 9012452 | E49: N/C | G49: =IF(F49=0," ","N/C") ->  | H49: =IFERROR(IFERROR(VLOOKUP(D49,Surcharge!A:B,2,FALSE)*F49, VLOOKUP(D49 & "",Surcharge!A:B,2,FALSE)*F49), "") -> 
C50: Sealed/MF AGM 200AH C/20 (kit of 4 Batteries) | D50: 9012454 | E50: 798 | G50: =F50*E50 -> 0 | H50: =IFERROR(IFERROR(VLOOKUP(D50,Surcharge!A:B,2,FALSE)*F50, VLOOKUP(D50 & "",Surcharge!A:B,2,FALSE)*F50), "") -> 
C51: Without Battery | E51: -1333 | G51: =F51*E51 -> 0 | H51: =IFERROR(IFERROR(VLOOKUP(D51,Surcharge!A:B,2,FALSE)*F51, VLOOKUP(D51 & "",Surcharge!A:B,2,FALSE)*F51), "") -> 
H52: =IFERROR(IFERROR(VLOOKUP(D52,Surcharge!A:B,2,FALSE)*F52, VLOOKUP(D52 & "",Surcharge!A:B,2,FALSE)*F52), "") -> 
C53: Charger | F53: =SUM(F54:F56) -> 0 | H53: =IFERROR(IFERROR(VLOOKUP(D53,Surcharge!A:B,2,FALSE)*F53, VLOOKUP(D53 & "",Surcharge!A:B,2,FALSE)*F53), "") -> 
C54: 19A 120V-240V AC 50/60Hz 1Ph | D54: 1029256 | E54: N/C | G54: =IF(F54=0," ","N/C") ->  | H54: =IFERROR(IFERROR(VLOOKUP(D54,Surcharge!A:B,2,FALSE)*F54, VLOOKUP(D54 & "",Surcharge!A:B,2,FALSE)*F54), "") -> 
C55: 19A 120V-240V AC 50/60Hz 1Ph (for sealed batteries) | D55: 1058164 | E55: N/C | G55: =IF(F55=0," ","N/C") ->  | H55: =IFERROR(IFERROR(VLOOKUP(D55,Surcharge!A:B,2,FALSE)*F55, VLOOKUP(D55 & "",Surcharge!A:B,2,FALSE)*F55), "") -> 
C56: Without Charger | E56: -1004 | G56: =F56*E56 -> 0 | H56: =IFERROR(IFERROR(VLOOKUP(D56,Surcharge!A:B,2,FALSE)*F56, VLOOKUP(D56 & "",Surcharge!A:B,2,FALSE)*F56), "") -> 
H57: =IFERROR(IFERROR(VLOOKUP(D57,Surcharge!A:B,2,FALSE)*F57, VLOOKUP(D57 & "",Surcharge!A:B,2,FALSE)*F57), "") -> 
B58: Support | D58: Reference Number | F58: =SUM(F59:F64) -> 0 | H58: =IFERROR(IFERROR(VLOOKUP(D58,Surcharge!A:B,2,FALSE)*F58, VLOOKUP(D58 & "",Surcharge!A:B,2,FALSE)*F58), "") -> 
C59: Strive Operator Manual (English/Spanish/French) | D59: 9003506 | E59: N/C | G59: =IF(F59=0," ","N/C") ->  | H59: =IFERROR(IFERROR(VLOOKUP(D59,Surcharge!A:B,2,FALSE)*F59, VLOOKUP(D59 & "",Surcharge!A:B,2,FALSE)*F59), "") -> 
C60: Additional Operator Manual | D60: see above | E60: 70 | G60: =F60*E60 -> 0 | H60: =IFERROR(IFERROR(VLOOKUP(D60,Surcharge!A:B,2,FALSE)*F60, VLOOKUP(D60 & "",Surcharge!A:B,2,FALSE)*F60), "") -> 
C61: Parts Manual (English) | D61: 9003507 | E61: 29 | G61: =F61*E61 -> 0 | H61: =IFERROR(IFERROR(VLOOKUP(D61,Surcharge!A:B,2,FALSE)*F61, VLOOKUP(D61 & "",Surcharge!A:B,2,FALSE)*F61), "") -> 
H62: =IFERROR(IFERROR(VLOOKUP(D62,Surcharge!A:B,2,FALSE)*F62, VLOOKUP(D62 & "",Surcharge!A:B,2,FALSE)*F62), "") -> 
C63: Packaging | F63: =SUM(F64:F64) -> 0 | H63: =IFERROR(IFERROR(VLOOKUP(D63,Surcharge!A:B,2,FALSE)*F63, VLOOKUP(D63 & "",Surcharge!A:B,2,FALSE)*F63), "") -> 
C64: Skid w/Carton, Stackable | D64: 9012455 | E64: N/C | G64: =IF(F64=0," ","N/C") ->  | H64: =IFERROR(IFERROR(VLOOKUP(D64,Surcharge!A:B,2,FALSE)*F64, VLOOKUP(D64 & "",Surcharge!A:B,2,FALSE)*F64), "") -> 
H65: =IFERROR(IFERROR(VLOOKUP(D65,Surcharge!A:B,2,FALSE)*F65, VLOOKUP(D65 & "",Surcharge!A:B,2,FALSE)*F65), "") -> 
B67: Custom Solution--write in description, qty, price, and PN if applicable | F67: =SUM(F68) -> 0
E68: Insert Prices Here | F68: =SUM(F69:F72) -> 0
D69: Custom | F69: =IF(E69 <> "", 1, 0) -> 0 | G69: =F69*E69 -> 0
D70: Custom | F70: =IF(E70 <> "", 1, 0) -> 0 | G70: =F70*E70 -> 0
D71: Custom | F71: 0 | G71: =F71*E71 -> 0
D72: Custom | F72: 0 | G72: =F72*E72 -> 0
E73: =ROUND(SUM(G40:G72), 0) -> 0 | F73: =SUM(E74) -> 0
D74: Machine Subtotal | E74: =ROUND(SUM(G40:G72), 0) -> 0 | F74: =F73 -> 0
B75: Discounts | F75: =SUM(F76) -> 0
F76: =SUM(F77:F81) -> 0
D77: Applicable Currency Adj % | F77: =IF(E77 <> "", 1, 0) -> 0 | G77: =IF(F77*(E77*0.01)*E73 < 0, F77*(E77*0.01)*E73, -(F77*(E77*0.01)*E73)) -> 0
D78: Discount % | F78: =IF(E78 <> "", 1, 0) -> 0 | G78: =IF(F78*(E78*0.01)*(E73+G77) < 0, F78*(E78*0.01)*(E73+G77), -(F78*(E78*0.01)*(E73+G77))) -> 0
D79: Discount $ | F79: 0 | G79: =IF(F79*E79 < 0, F79*E79, -(F79*E79)) -> 0
D80: Discount $ | F80: =IF(E80 <> "", 1, 0) -> 0 | G80: =IF(F80*E80 < 0, F80*E80, -(F80*E80)) -> 0
D81: Discount $ | F81: 0 | G81: =IF(F81*E81 < 0, F81*E81, -(F81*E81)) -> 0
D82: Discount Total | E82: =SUM(G77:G81) -> 0 | F82: =SUM(E82) -> 0
F83: =#REF! -> 
F84: =F83 -> 
C85: Prepaid and Add | D85: Freight | F85: =IF(E85 <> "", 1, 0) -> 0 | G85: =F85*E85 -> 0
C86: Subject to all applicable taxes | D86: Tax | F86: 0 | G86: =F86*E86 -> 0
F87: =SUM(F88) -> 0
D88: MACHINE TOTAL* | F88: =SUM(G88) -> 0 | G88: =SUM(G40:G86) -> 0 | N88: This goes to "My Documents"
G89: =SUM(G88) -> 0
C94: Wells Fargo - Leasing Calculation Option: | D94: Option 1 | F94: Option 2 | J94: =Financing!A38 -> Rates 2025 - Rev.2/4/2025
D95: Monthly Payment | E95: Cost Per Day | F95: Monthly Payment | G95: Cost Per Day | J95: =Financing!A39 -> “Blank Payment Amounts Indicate The Financing Option Or Purchase Options Selected Are Not
C96: Purchase Option: | D96: $1 Buyout Lease | F96: None | J96: =Financing!A40 -> Applicable Or The Machine Total Is Below The Minimum Amount For The Selected Vendor”
C97: 24 Months | D97: 0 | E97: 0 | F97: 0 | G97: 0 | J97: =Financing!A41 -> "Quoted monthly payments are estimates only and are based on a certain level of credit rating.
C98: 36 Months | D98: 0 | E98: 0 | F98: 0 | G98: 0 | J98: =Financing!A42 -> Actual monthly payments may be higher depending on your credit rating."
C99: 48 Months | D99: 0 | E99: 0 | F99: 0 | G99: 0 | J99: =Financing!A43 -> “Financing rates do not include Pre-Paid Service”
C100: 60 Months | D100: 0 | E100: 0 | F100: 0 | G100: 0 | I100: =Financing!A44 -> 0
D102: Benefits of Equipment Financing:
D103: • Spreads out investment over time. | F103: • Keep current with latest technology.
D104: • Preserve capital. | F104: • Service and parts bundling available.
D105: • Low monthly payment. | F105: • Pay for labor savings as you go.
B107: TennantTrue | D107: 0 | E107: 0
C109: Is customer interested in service program? | D109: Yes | E109: *State/County selection required for TennantTrue service options
C111: If not, why?
C113: Term: | D113: 36 | G113: AB Brushes | H113: No
C114: Monthly machine usage (hrs): | D114: < 30/mo. (Avg. 1hr./day)
C116: TennantTrue: | D116: Gold Contract | F116: Silver Contract
C117: Per Visit | F117: 392
C118: Monthly | D118: 120 | F118: 67
C119: Annually | F119: 785
C120: Pre-Pay Full Term | D120: 4162 | F120: 2305
C121: Hourly Labor Rate
C122: Site Visit
C124: * Verify customer current pricing prior to quote.
C125: **All rates and fees above reflect service for one (1) unit with the exception of Block of Time service.
C126: *Block of Time is available in 1 Year Term only and is priced as such no matter the term selection on this template.
B130: Quote Special Instructions:
B134: =Start_Here!E36 -> Terms and Conditions
B135: =Start_Here!E37 -> Ask your local sales rep for estimated lead times. Verify when placing order
B136: =Start_Here!E38 -> All orders subject to acceptance by Tennant Sales and Service Company, Minneapolis, Minnesota
B137: =Start_Here!E39 -> Prices subject to change without notice. Subject to any applicable taxes.
B138: =Start_Here!E40 -> Terms: Net 30 days. Payable in Canadian Funds
B139: =Start_Here!E41 -> Freight: Accessories, parts, supplies, detergents, and floor coatings orders delivered DDP
B140: =Start_Here!E42 -> shipping point Frt PPD. Machine orders delivered DDP shipping point Frt PPD and add.
B141: =Start_Here!E43 -> Returned Merchandise is subject to a restocking fee.
B142: =Start_Here!E44 -> All orders are subject to Tennant’s General Terms and Conditions available at http://www.tennantco.com/terms.
B143: =Start_Here!E45 -> Printed General Terms and Conditions are also available upon request.
B144: =Start_Here!E46 -> 0
B145: =Start_Here!E47 -> 0
B146: =Start_Here!E48 -> 0
E147: Quote Date : | G147: =Letter!$A$25 -> 2023-08-01
B148: Order Placement Information: To place your order, fill in PO# and customer signatures,
B149: call or fax to the numbers listed below. Customer Purchase Order is required.
B150: If information is missing, orders will be entered and held until all information is received.
C152: Customer Number | E152: Cust Grp 3
C153: =Start_Here!$C$25 -> 0 | E153: =Start_Here!$C$29 -> 0
C154: =Start_Here!$B$18 -> Who Owns the Machine? (Sold-To Info) (Please Verify)
A155: Company | C155: =Start_Here!$C$19 -> Company Name
A156: Address | C156: =Start_Here!$C$20 -> Address
C157: =Start_Here!$C$21 -> City, State Zip
A158: Name | C158: =Start_Here!$C$22 -> Contact Name
A159: Phone | C159: =Start_Here!$C$23 -> Contact Phone
C160: =Start_Here!$B$11 -> Where is the Machine Being Shipped? (Ship-To Info) (Please Verify)
A161: Company | C161: =Start_Here!$C$12 -> Company Name
A162: Address | C162: =Start_Here!$C$13 -> Address
C163: =Start_Here!$C$14 -> City, State Zip
A164: Name | C164: =Start_Here!$C$15 -> Contact Name
A165: Phone | C165: =Start_Here!$C$16 -> Contact Phone
C166: =Start_Here!$B$31 -> Shipping / Carrier Instructions: | E166: Order Special Instructions:
C167: =Start_Here!$C$32 -> 0
C169: Customer Purchase Order No.
C170: (please attach copy)
C173: Tax Exempt | E173: Yes
E174: No
C175: If Yes, attach a copy of your exemption certificate.
C177: Requested Delivery Date
C178: =Start_Here!$C$28 -> 0
C180: =Start_Here!$C$26 -> 0 | E180: =Start_Here!$C$27 -> 0
C181: Authorized Buyer (please print) | E181: Phone Number
C184: Authorized Buyer Signature
C186: =Start_Here!$C$41 -> Rep Name
C187: Tennant Representative
D189: Specialized Maintenance Equipment
C190: =Start_Here!$C$51 -> 0
D191: =Start_Here!$C$52 -> 0
B194: Notes
B196: 1 | C196: Pre-Configured Machines cannot have options changed or added. All units are packaged on a Skid w/Carton and will ship
C197: via LTL Carrier. When ordering, provide the reference number listed above. Price does not include freight or tax.
C198: Availability of units and lead time may vary.
B200: 2 | C200: Shipping Weights and Dimensions | D200: Skid w/ Carton
C202: Weight (w/ 240AH Battery) | D202: 670 lbs / 304 Kg
C203: Length | D203: 67" / 1,702mm
C204: Width | D204: 33" / 838mm
C205: Height | D205: 48" / 1,219mm

Sheet DualTech_ReadySpace_StriveRider
A1: DualTech_ReadySpace_StriveRider | C1: =Start_Here!$C19 -> Company Name
A2: =SUM(G93) -> 0 | C2: =Start_Here!$C20 -> Address
C3: =Start_Here!$C21 -> City, State Zip
C4: =Start_Here!$C22 -> Contact Name
C5: =Start_Here!$C$41 -> Rep Name
C6: =Start_Here!$C$37 -> Tennant Sales and Service Company
C7: =Start_Here!$C$38 -> 10400 Clean Street
C8: =Start_Here!$C$39 -> Eden Prairie, MN 55344
C9: =Start_Here!$C$43 -> 800-553-8033 | E9: Quote Date : | G9: =Letter!$A$25 -> 2023-08-01
C11: =Help!C2 -> CAN Date Rev - 5/6/2025
C12: BUILT-IN “NOBLES VALUE” INCLUDES:
B14: ReadySpace® cleaning technology and deep extraction | D14: Standard (4) 6V 360AH battery pack
B15: 700mm/28" cleaning path | D15: Battery Tray
B16: 121 l/32-gal. solution & 106 l/28-gal. recovery tanks | D16: 25 Amp Off-board charger
B17: Hygenic® fully cleanable solution/recovery tanks | D17: One set of ReadySpace® rollers & extraction brushes
B18: Solution tank empty indicator | D18: Rugged DuramerTM Tank Construction
B19: Recovery tank full indicator | D19: Vacuum fan in-line air filter
B20: Touch Panel Controls | D20: Virtual DVD manual
C21: Featuring on-board diagnostics | D21: Operators manual
C22: One-button operation | D22: CRI certified, Bronze Cleaning Performance
B23: E-stop, hour meter and horn
C25: NOBLES WARRANTY
C26: 3 YEARS OR 1500 HOURS ON ALL COMPONENTS, 3 YEARS LABOR
C27: 90 DAYS TRAVEL, 10 YEARS ON DURAMERTM TANKS
E30: Quote Request Information
G31: Fax (quote only)
G32: Mail (quote,lit, specs)
G33: Fax + Mail
E35: Primary Use
G36: Inside
G37: Outside
C40: Description | D40: Reference# | E40: Price Each | F40: Qty | G40: Extended Price
B41: Base Configuration | F41: =SUM(F42,F45,F51) -> 0
C42: Cleaning Type | E42: CANADA Price | F42: =SUM(F43) -> 0
C43: Strive Rider Dual Technolgy Carpet Maintainer 700mm/28" | D43: Strive-700 | E43: 40421 | G43: =F43*E43 -> 0 | H43: =IFERROR(IFERROR(VLOOKUP(D43,Surcharge!A:B,2,FALSE)*F43, VLOOKUP(D43 & "",Surcharge!A:B,2,FALSE)*F43), "") -> 0
F44: =SUM(F43) -> 0 | H44: =IFERROR(IFERROR(VLOOKUP(D44,Surcharge!A:B,2,FALSE)*F44, VLOOKUP(D44 & "",Surcharge!A:B,2,FALSE)*F44), "") -> 
C45: Battery Type | F45: =SUM(F46:F49) -> 0 | H45: =IFERROR(IFERROR(VLOOKUP(D45,Surcharge!A:B,2,FALSE)*F45, VLOOKUP(D45 & "",Surcharge!A:B,2,FALSE)*F45), "") -> 
C46: Wet 360AH C/20 (kit of 4 batteries) | D46: 9000815 | E46: N/C | G46: =IF(F46=0," ","N/C") ->  | H46: =IFERROR(IFERROR(VLOOKUP(D46,Surcharge!A:B,2,FALSE)*F46, VLOOKUP(D46 & "",Surcharge!A:B,2,FALSE)*F46), "") -> 
C47: Without Battery | E47: -922 | G47: =F47*E47 -> 0 | H47: =IFERROR(IFERROR(VLOOKUP(D47,Surcharge!A:B,2,FALSE)*F47, VLOOKUP(D47 & "",Surcharge!A:B,2,FALSE)*F47), "") -> 
H48: =IFERROR(IFERROR(VLOOKUP(D48,Surcharge!A:B,2,FALSE)*F48, VLOOKUP(D48 & "",Surcharge!A:B,2,FALSE)*F48), "") -> 
C49: Manual Battery Watering Kit (See Note 1) | D49: 9009619 | E49: 876 | G49: =F49*E49 -> 0 | H49: =IFERROR(IFERROR(VLOOKUP(D49,Surcharge!A:B,2,FALSE)*F49, VLOOKUP(D49 & "",Surcharge!A:B,2,FALSE)*F49), "") -> 
H50: =IFERROR(IFERROR(VLOOKUP(D50,Surcharge!A:B,2,FALSE)*F50, VLOOKUP(D50 & "",Surcharge!A:B,2,FALSE)*F50), "") -> 
C51: Charger | D51: Reference Number | F51: =SUM(F52:F53) -> 0 | H51: =IFERROR(IFERROR(VLOOKUP(D51,Surcharge!A:B,2,FALSE)*F51, VLOOKUP(D51 & "",Surcharge!A:B,2,FALSE)*F51), "") -> 
C52: 25A 100-240V AC 50/60Hz 1Ph | D52: 1043663 | E52: N/C | G52: =IF(F52=0," ","N/C") ->  | H52: =IFERROR(IFERROR(VLOOKUP(D52,Surcharge!A:B,2,FALSE)*F52, VLOOKUP(D52 & "",Surcharge!A:B,2,FALSE)*F52), "") -> 
C53: Without Charger | E53: -525 | G53: =F53*E53 -> 0 | H53: =IFERROR(IFERROR(VLOOKUP(D53,Surcharge!A:B,2,FALSE)*F53, VLOOKUP(D53 & "",Surcharge!A:B,2,FALSE)*F53), "") -> 
H54: =IFERROR(IFERROR(VLOOKUP(D54,Surcharge!A:B,2,FALSE)*F54, VLOOKUP(D54 & "",Surcharge!A:B,2,FALSE)*F54), "") -> 
B55: Machine Protection & Safety | D55: Reference Number | F55: =SUM(F56:F58) -> 0 | H55: =IFERROR(IFERROR(VLOOKUP(D55,Surcharge!A:B,2,FALSE)*F55, VLOOKUP(D55 & "",Surcharge!A:B,2,FALSE)*F55), "") -> 
C56: Seat Belt | D56: 9018587 | E56: 135 | G56: =F56*E56 -> 0 | H56: =IFERROR(IFERROR(VLOOKUP(D56,Surcharge!A:B,2,FALSE)*F56, VLOOKUP(D56 & "",Surcharge!A:B,2,FALSE)*F56), "") -> 
C57: Strobe Light on Tank | D57: 9000580 | E57: 1100 | G57: =F57*E57 -> 0 | H57: =IFERROR(IFERROR(VLOOKUP(D57,Surcharge!A:B,2,FALSE)*F57, VLOOKUP(D57 & "",Surcharge!A:B,2,FALSE)*F57), "") -> 
C58: Utility Basket (small storage) | D58: 1018315 | E58: 346 | G58: =F58*E58 -> 0 | H58: =IFERROR(IFERROR(VLOOKUP(D58,Surcharge!A:B,2,FALSE)*F58, VLOOKUP(D58 & "",Surcharge!A:B,2,FALSE)*F58), "") -> 
H59: =IFERROR(IFERROR(VLOOKUP(D59,Surcharge!A:B,2,FALSE)*F59, VLOOKUP(D59 & "",Surcharge!A:B,2,FALSE)*F59), "") -> 
B60: Support | D60: Reference Number | F60: =SUM(F61:F69) -> 0 | H60: =IFERROR(IFERROR(VLOOKUP(D60,Surcharge!A:B,2,FALSE)*F60, VLOOKUP(D60 & "",Surcharge!A:B,2,FALSE)*F60), "") -> 
C61: Strive Rider Operator Manual (English) | D61: 1032130 | E61: N/C | G61: =IF(F61=0," ","N/C") ->  | H61: =IFERROR(IFERROR(VLOOKUP(D61,Surcharge!A:B,2,FALSE)*F61, VLOOKUP(D61 & "",Surcharge!A:B,2,FALSE)*F61), "") -> 
C62: Strive Rider Operator Manual (Spanish) | D62: 1032132 | E62: N/C | G62: =IF(F62=0," ","N/C") ->  | H62: =IFERROR(IFERROR(VLOOKUP(D62,Surcharge!A:B,2,FALSE)*F62, VLOOKUP(D62 & "",Surcharge!A:B,2,FALSE)*F62), "") -> 
C63: Strive Rider Operator Manual (French) (Note 2) | D63: 1032133 | E63: N/C | G63: =IF(F63=0," ","N/C") ->  | H63: =IFERROR(IFERROR(VLOOKUP(D63,Surcharge!A:B,2,FALSE)*F63, VLOOKUP(D63 & "",Surcharge!A:B,2,FALSE)*F63), "") -> 
C64: Additional Operator Manual | D64: see above | E64: 238 | G64: =F64*E64 -> 0 | H64: =IFERROR(IFERROR(VLOOKUP(D64,Surcharge!A:B,2,FALSE)*F64, VLOOKUP(D64 & "",Surcharge!A:B,2,FALSE)*F64), "") -> 
C65: Strive Rider Parts Manual | D65: 1032134 | E65: 29 | G65: =F65*E65 -> 0 | H65: =IFERROR(IFERROR(VLOOKUP(D65,Surcharge!A:B,2,FALSE)*F65, VLOOKUP(D65 & "",Surcharge!A:B,2,FALSE)*F65), "") -> 
C66: Service Manual | D66: 1032139 | E66: N/C | G66: =IF(F66=0," ","N/C") ->  | H66: =IFERROR(IFERROR(VLOOKUP(D66,Surcharge!A:B,2,FALSE)*F66, VLOOKUP(D66 & "",Surcharge!A:B,2,FALSE)*F66), "") -> 
H67: =IFERROR(IFERROR(VLOOKUP(D67,Surcharge!A:B,2,FALSE)*F67, VLOOKUP(D67 & "",Surcharge!A:B,2,FALSE)*F67), "") -> 
C68: Packaging | F68: =SUM(F69:F69) -> 0 | H68: =IFERROR(IFERROR(VLOOKUP(D68,Surcharge!A:B,2,FALSE)*F68, VLOOKUP(D68 & "",Surcharge!A:B,2,FALSE)*F68), "") -> 
C69: Skid w/Carton, Non-Stackable | D69: 9002882 | E69: N/C | G69: =IF(F69=0," ","N/C") ->  | H69: =IFERROR(IFERROR(VLOOKUP(D69,Surcharge!A:B,2,FALSE)*F69, VLOOKUP(D69 & "",Surcharge!A:B,2,FALSE)*F69), "") -> 
H70: =IFERROR(IFERROR(VLOOKUP(D70,Surcharge!A:B,2,FALSE)*F70, VLOOKUP(D70 & "",Surcharge!A:B,2,FALSE)*F70), "") -> 
B72: Custom Solution--write in description, qty, price, and PN if applicable | F72: =SUM(F73) -> 0
E73: Insert Prices Here | F73: =SUM(F74:F77) -> 0
D74: Custom | F74: =IF(E74 <> "", 1, 0) -> 0 | G74: =F74*E74 -> 0
D75: Custom | F75: =IF(E75 <> "", 1, 0) -> 0 | G75: =F75*E75 -> 0
D76: Custom | F76: 0 | G76: =F76*E76 -> 0
D77: Custom | F77: 0 | G77: =F77*E77 -> 0
E78: =ROUND(SUM(G43:G77), 0) -> 0 | F78: =SUM(E79) -> 0
D79: Machine Subtotal | E79: =ROUND(SUM(G43:G77), 0) -> 0 | F79: =F78 -> 0
B80: Discounts | F80: =SUM(F81) -> 0
F81: =SUM(F83:F86) -> 0
D82: Applicable Currency Adj % | F82: =IF(E82 <> "", 1, 0) -> 0 | G82: =IF(F82*(E82*0.01)*E78 < 0, F82*(E82*0.01)*E78, -(F82*(E82*0.01)*E78)) -> 0
D83: Discount % | F83: =IF(E83 <> "", 1, 0) -> 0 | G83: =IF(F83*(E83*0.01)*(E78+G82) < 0, F83*(E83*0.01)*(E78+G82), -(F83*(E83*0.01)*(E78+G82))) -> 0
D84: Discount $ | F84: 0 | G84: =IF(F84*E84 < 0, F84*E84, -(F84*E84)) -> 0
D85: Discount $ | F85: 0 | G85: =IF(F85*E85 < 0, F85*E85, -(F85*E85)) -> 0
D86: Discount $ | F86: 0 | G86: =IF(F86*E86 < 0, F86*E86, -(F86*E86)) -> 0
D87: Discount Total | E87: =SUM(G82:G86) -> 0 | F87: =SUM(E87) -> 0
F88: =#REF! -> 
F89: =F88 -> 
C90: Prepaid and Add | D90: Freight | F90: =IF(E90 <> "", 1, 0) -> 0 | G90: =F90*E90 -> 0
C91: Subject to all applicable taxes | D91: Tax | F91: 0 | G91: 0
F92: =SUM(F93) -> 0
D93: MACHINE TOTAL* | F93: =SUM(G93) -> 0 | G93: =SUM(G43:G91) -> 0 | N93: This goes to "My Documents"
G94: =SUM(G93) -> 0
C99: Wells Fargo - Leasing Calculation Option: | D99: Option 1 | F99: Option 2 | J99: =Financing!A38 -> Rates 2025 - Rev.2/4/2025
D100: Monthly Payment | E100: Cost Per Day | F100: Monthly Payment | G100: Cost Per Day | J100: =Financing!A39 -> “Blank Payment Amounts Indicate The Financing Option Or Purchase Options Selected Are Not
C101: Purchase Option: | D101: $1 Buyout Lease | F101: None | J101: =Financing!A40 -> Applicable Or The Machine Total Is Below The Minimum Amount For The Selected Vendor”
C102: 24 Months | D102: 0 | E102: 0 | F102: 0 | G102: 0 | J102: =Financing!A41 -> "Quoted monthly payments are estimates only and are based on a certain level of credit rating.
C103: 36 Months | D103: 0 | E103: 0 | F103: 0 | G103: 0 | J103: =Financing!A42 -> Actual monthly payments may be higher depending on your credit rating."
C104: 48 Months | D104: 0 | E104: 0 | F104: 0 | G104: 0 | J104: =Financing!A43 -> “Financing rates do not include Pre-Paid Service”
C105: 60 Months | D105: 0 | E105: 0 | F105: 0 | G105: 0 | I105: =Financing!A44 -> 0
D107: Benefits of Equipment Financing:
D108: • Spreads out investment over time. | F108: • Keep current with latest technology.
D109: • Preserve capital. | F109: • Service and parts bundling available.
D110: • Low monthly payment. | F110: • Pay for labor savings as you go.
B112: TennantTrue | D112: 0 | E112: 0
C114: Is customer interested in service program? | D114: Yes | E114: *State/County selection required for TennantTrue service options
C116: If not, why?
C118: Term: | D118: 36 | G118: AB Brushes | H118: No
C119: Monthly machine usage (hrs): | D119: < 30/mo. (Avg. 1hr./day)
C121: TennantTrue: | D121: Gold Contract | F121: Silver Contract
C122: Per Visit | F122: 501
C123: Monthly | D123: 164 | F123: 88
C124: Annually | F124: 1035
C125: Pre-Pay Full Term | D125: 5682 | F125: 3042
C126: Hourly Labor Rate
C127: Site Visit
C129: * Verify customer current pricing prior to quote.
C130: **All rates and fees above reflect service for one (1) unit with the exception of Block of Time service.
C131: *Block of Time is available in 1 Year Term only and is priced as such no matter the term selection on this template.
B135: Quote Special Instructions:
B139: =Start_Here!E36 -> Terms and Conditions
B140: =Start_Here!E37 -> Ask your local sales rep for estimated lead times. Verify when placing order
B141: =Start_Here!E38 -> All orders subject to acceptance by Tennant Sales and Service Company, Minneapolis, Minnesota
B142: =Start_Here!E39 -> Prices subject to change without notice. Subject to any applicable taxes.
B143: =Start_Here!E40 -> Terms: Net 30 days. Payable in Canadian Funds
B144: =Start_Here!E41 -> Freight: Accessories, parts, supplies, detergents, and floor coatings orders delivered DDP
B145: =Start_Here!E42 -> shipping point Frt PPD. Machine orders delivered DDP shipping point Frt PPD and add.
B146: =Start_Here!E43 -> Returned Merchandise is subject to a restocking fee.
B147: =Start_Here!E44 -> All orders are subject to Tennant’s General Terms and Conditions available at http://www.tennantco.com/terms.
B148: =Start_Here!E45 -> Printed General Terms and Conditions are also available upon request.
B149: =Start_Here!E46 -> 0
B150: =Start_Here!E47 -> 0
B151: =Start_Here!E48 -> 0
E152: Quote Date : | G152: =Letter!$A$25 -> 2023-08-01
B153: Order Placement Information: To place your order, fill in PO# and customer signatures,
B154: call or fax to the numbers listed below. Customer Purchase Order is required.
B155: If information is missing, orders will be entered and held until all information is received.
C157: Customer Number | E157: Cust Grp 3
C158: =Start_Here!$C$25 -> 0 | E158: =Start_Here!$C$29 -> 0
C159: =Start_Here!$B$18 -> Who Owns the Machine? (Sold-To Info) (Please Verify)
A160: Company | C160: =Start_Here!$C$19 -> Company Name
A161: Address | C161: =Start_Here!$C$20 -> Address
C162: =Start_Here!$C$21 -> City, State Zip
A163: Name | C163: =Start_Here!$C$22 -> Contact Name
A164: Phone | C164: =Start_Here!$C$23 -> Contact Phone
C166: =Start_Here!$B$11 -> Where is the Machine Being Shipped? (Ship-To Info) (Please Verify)
A167: Company | C167: =Start_Here!$C$12 -> Company Name
A168: Address | C168: =Start_Here!$C$13 -> Address
C169: =Start_Here!$C$14 -> City, State Zip
A170: Name | C170: =Start_Here!$C$15 -> Contact Name
A171: Phone | C171: =Start_Here!$C$16 -> Contact Phone
C173: =Start_Here!$B$31 -> Shipping / Carrier Instructions: | E173: Order Special Instructions:
C174: =Start_Here!$C$32 -> 0
C176: Customer Purchase Order No.
C177: (please attach copy)
C180: Tax Exempt | E180: Yes
E181: No
C182: If Yes, attach a copy of your exemption certificate.
C184: Requested Delivery Date
C185: =Start_Here!$C$28 -> 0
C187: =Start_Here!$C$26 -> 0 | E187: =Start_Here!$C$27 -> 0
C188: Authorized Buyer (please print) | E188: Phone Number
C191: Authorized Buyer Signature
C193: =Start_Here!$C$41 -> Rep Name
C194: Tennant Representative
D196: Specialized Maintenance Equipment
C197: =Start_Here!$C$51 -> 0
D198: =Start_Here!$C$52 -> 0
B201: Notes
B203: 1 | C203: Only available as factory-installed when batteries are ordered with machine.
B205: 2 | C205: A French and English manual will be supplied for all units shipping into Quebec, Canada at no charge. An additional manual
C206: can be ordered (for a total of 3 manuals) for an additional charge as stated under 'Additional Operator Manual'.
B208: 3 | C208: Shipping Weights and Dimensions | D208: Skid w/Carton
C210: Weight (w/360AH Battery) | D210: 650 lbs / 295 Kg
C211: Length | D211: 68" / 1,727mm
C212: Width | D212: 33" / 838mm
C213: Height | D213: 48" / 1,219mm

Sheet Cord_Electric
A1: Cord_Electric | C1: =Start_Here!$C19 -> Company Name
A2: =SUM(G52) -> 0 | C2: =Start_Here!$C20 -> Address
C3: =Start_Here!$C21 -> City, State Zip
C4: =Start_Here!$C22 -> Contact Name
C5: =Start_Here!$C$41 -> Rep Name
C6: =Start_Here!$C$37 -> Tennant Sales and Service Company
C7: =Start_Here!$C$38 -> 10400 Clean Street
C8: =Start_Here!$C$39 -> Eden Prairie, MN 55344
C9: =Start_Here!$C$43 -> 800-553-8033 | E9: Quote Date : | G9: =Letter!$A$25 -> 2023-08-01
C11: =Help!C2 -> CAN Date Rev - 5/6/2025
C13: New Machine Warranty
C14: 36 MONTHS OR 2500 HOURS ON PARTS | G14: Fax (quote only)
C15: 36 MONTHS – LABOR | G15: Mail (quote,lit, specs)
C16: 90 DAYS – TRAVEL ON BATTERY UNITS ONLY | G16: Fax + Mail
C17: 10 YEARS ON ROTOMOLDED PARTS
C18: BATTERIES ARE PRORATED OVER 12 MONTHS
G19: Inside
G20: Outside
C23: Description | D23: Reference# | E23: Canada Price Each | F23: Qty | G23: Extended Price
F24: =SUM(F25) -> 0
C25: Strive® Compact - Cord Electric 5-gal. ReadySpace® Interim Carpet Cleaner | D25: 9004202 | E25: 8181 | G25: =F25*E25 -> 0 | H25: =IFERROR(IFERROR(VLOOKUP(D25,Surcharge!A:B,2,FALSE)*F25, VLOOKUP(D25 & "",Surcharge!A:B,2,FALSE)*F25), "") ->  | P25: =VLOOKUP(D25,'MPF SAP Canada Pre-Configured'!C:E,3,FALSE) -> 8181
C26: 15" cleaning path. Complete package includes removable, Hygenic® fully cleanable 5 gallon (19 liter) solution/recovery tanks, Insta-Adjust™ handle, two ReadySpace® rollers, 50-ft (15-m) "safety yellow" power cord and multi-language operator manual. CRI certified, Bronze Cleaning Performance. | F26: =SUM(F25) -> 0 | H26: =IFERROR(IFERROR(VLOOKUP(D26,Surcharge!A:B,2,FALSE)*F26, VLOOKUP(D26 & "",Surcharge!A:B,2,FALSE)*F26), "") -> 
C27: Boxed Dimensions: 34" L x 22" W x 37" H (860 mm x 560 mm x 940 mm). * | F27: =SUM(F26) -> 0 | H27: =IFERROR(IFERROR(VLOOKUP(D27,Surcharge!A:B,2,FALSE)*F27, VLOOKUP(D27 & "",Surcharge!A:B,2,FALSE)*F27), "") -> 
C28: Shipping Weight: 154 lbs. (70 kg) | F28: =SUM(F27) -> 0 | H28: =IFERROR(IFERROR(VLOOKUP(D28,Surcharge!A:B,2,FALSE)*F28, VLOOKUP(D28 & "",Surcharge!A:B,2,FALSE)*F28), "") -> 
H29: =IFERROR(IFERROR(VLOOKUP(D29,Surcharge!A:B,2,FALSE)*F29, VLOOKUP(D29 & "",Surcharge!A:B,2,FALSE)*F29), "") -> 
F30: =SUM(F31) -> 0 | H30: =IFERROR(IFERROR(VLOOKUP(D30,Surcharge!A:B,2,FALSE)*F30, VLOOKUP(D30 & "",Surcharge!A:B,2,FALSE)*F30), "") -> 
C31: Speed Ex™ - Cord Electric 5-gal. Extractor | D31: 9004201 | E31: 6484 | G31: =F31*E31 -> 0 | H31: =IFERROR(IFERROR(VLOOKUP(D31,Surcharge!A:B,2,FALSE)*F31, VLOOKUP(D31 & "",Surcharge!A:B,2,FALSE)*F31), "") ->  | P31: =VLOOKUP(D31,'MPF SAP Canada Pre-Configured'!C:E,3,FALSE) -> 6484
C32: 15" cleaning path. Complete package includes removable, Hygenic® fully cleanable 5 gallon (19 liter) solution/recovery tanks, Insta-Adjust™ handle, one double-tuft reverse pattern chevron brush, 50-ft (15-m) "safety yellow" power cord and multi-language operator manual. CRI certified, Silver Cleaning Performance. | F32: =SUM(F31) -> 0 | H32: =IFERROR(IFERROR(VLOOKUP(D32,Surcharge!A:B,2,FALSE)*F32, VLOOKUP(D32 & "",Surcharge!A:B,2,FALSE)*F32), "") -> 
C33: Boxed Dimensions: 34" L x 22" W x 37" H (860 mm x 560 mm x 940 mm). * | F33: =SUM(F32) -> 0 | H33: =IFERROR(IFERROR(VLOOKUP(D33,Surcharge!A:B,2,FALSE)*F33, VLOOKUP(D33 & "",Surcharge!A:B,2,FALSE)*F33), "") -> 
C34: Shipping Weight: 138 lbs. (63 kg) | F34: =SUM(F33) -> 0 | H34: =IFERROR(IFERROR(VLOOKUP(D34,Surcharge!A:B,2,FALSE)*F34, VLOOKUP(D34 & "",Surcharge!A:B,2,FALSE)*F34), "") -> 
E37: =ROUND(SUM(G25:G36), 0) -> 0 | F37: =SUM(E38) -> 0
D38: Machine Subtotal | E38: =ROUND(SUM(G25:G36), 0) -> 0 | F38: =F37 -> 0
B39: Discounts | F39: =SUM(F40) -> 0
F40: =SUM(F42:F45) -> 0
D41: Applicable Currency Adj % | F41: =IF(E41 <> "", 1, 0) -> 0 | G41: =IF(F41*(E41*0.01)*E37 < 0, F41*(E41*0.01)*E37, -(F41*(E41*0.01)*E37)) -> 0
D42: Discount % | F42: =IF(E42 <> "", 1, 0) -> 0 | G42: =IF(F42*(E42*0.01)*(E37+G41) < 0, F42*(E42*0.01)*(E37+G41), -(F42*(E42*0.01)*(E37+G41))) -> 0
D43: Discount $ | F43: 0 | G43: =IF(F43*E43 < 0, F43*E43, -(F43*E43)) -> 0
D44: Discount $ | F44: 0 | G44: =IF(F44*E44 < 0, F44*E44, -(F44*E44)) -> 0
D45: Discount $ | F45: 0 | G45: =IF(F45*E45 < 0, F45*E45, -(F45*E45)) -> 0
D46: Discount Total | E46: =SUM(G41:G45) -> 0 | F46: =SUM(E46) -> 0
F47: =#REF! -> 
F48: =F47 -> 
C49: Prepaid and Add | D49: Freight | F49: =IF(E49 <> "", 1, 0) -> 0 | G49: =F49*E49 -> 0
C50: Subject to all applicable taxes | D50: Tax | F50: 0 | G50: 0
F51: =SUM(F52) -> 0
D52: MACHINE TOTAL* | F52: =SUM(G52) -> 0 | G52: =SUM(G25:G50) -> 0 | N52: This goes to "My Documents"
G53: =SUM(G52) -> 0
C58: Wells Fargo - Leasing Calculation Option: | D58: Option 1 | F58: Option 2 | J58: =Financing!A38 -> Rates 2025 - Rev.2/4/2025
D59: Monthly Payment | E59: Cost Per Day | F59: Monthly Payment | G59: Cost Per Day | J59: =Financing!A39 -> “Blank Payment Amounts Indicate The Financing Option Or Purchase Options Selected Are Not
C60: Purchase Option: | D60: $1 Buyout Lease | F60: None | J60: =Financing!A40 -> Applicable Or The Machine Total Is Below The Minimum Amount For The Selected Vendor”
C61: 24 Months | D61: 0 | E61: 0 | F61: 0 | G61: 0 | J61: =Financing!A41 -> "Quoted monthly payments are estimates only and are based on a certain level of credit rating.
C62: 36 Months | D62: 0 | E62: 0 | F62: 0 | G62: 0 | J62: =Financing!A42 -> Actual monthly payments may be higher depending on your credit rating."
C63: 48 Months | D63: 0 | E63: 0 | F63: 0 | G63: 0 | J63: =Financing!A43 -> “Financing rates do not include Pre-Paid Service”
C64: 60 Months | D64: 0 | E64: 0 | F64: 0 | G64: 0 | I64: =Financing!A44 -> 0
D66: Benefits of Equipment Financing:
D67: • Spreads out investment over time. | F67: • Keep current with latest technology.
D68: • Preserve capital. | F68: • Service and parts bundling available.
D69: • Low monthly payment. | F69: • Pay for labor savings as you go.
B71: TennantTrue | D71: 0 | E71: 0
C73: Is customer interested in service program? | D73: Yes | E73: *State/County selection required for TennantTrue service options
C75: If not, why?
C77: Term: | D77: 36 | G77: AB Brushes | H77: No
C78: Monthly machine usage (hrs): | D78: < 30/mo. (Avg. 1hr./day)
C80: TennantTrue: | D80: Gold Contract | F80: Silver Contract
C81: Per Visit
C82: Monthly
C83: Annually
C84: Pre-Pay Full Term
C85: Hourly Labor Rate
C86: Site Visit
C88: * Verify customer current pricing prior to quote.
C89: **All rates and fees above reflect service for one (1) unit with the exception of Block of Time service.
C90: *Block of Time is available in 1 Year Term only and is priced as such no matter the term selection on this template.
B94: Quote Special Instructions:
B98: =Start_Here!E36 -> Terms and Conditions
B99: =Start_Here!E37 -> Ask your local sales rep for estimated lead times. Verify when placing order
B100: =Start_Here!E38 -> All orders subject to acceptance by Tennant Sales and Service Company, Minneapolis, Minnesota
B101: =Start_Here!E39 -> Prices subject to change without notice. Subject to any applicable taxes.
B102: =Start_Here!E40 -> Terms: Net 30 days. Payable in Canadian Funds
B103: =Start_Here!E41 -> Freight: Accessories, parts, supplies, detergents, and floor coatings orders delivered DDP
B104: =Start_Here!E42 -> shipping point Frt PPD. Machine orders delivered DDP shipping point Frt PPD and add.
B105: =Start_Here!E43 -> Returned Merchandise is subject to a restocking fee.
B106: =Start_Here!E44 -> All orders are subject to Tennant’s General Terms and Conditions available at http://www.tennantco.com/terms.
B107: =Start_Here!E45 -> Printed General Terms and Conditions are also available upon request.
B108: =Start_Here!E46 -> 0
B109: =Start_Here!E47 -> 0
B110: =Start_Here!E48 -> 0
E111: Quote Date : | G111: =Letter!$A$25 -> 2023-08-01
B112: Order Placement Information: To place your order, fill in PO# and customer signatures,
B113: call or fax to the numbers listed below. Customer Purchase Order is required.
B114: If information is missing, orders will be entered and held until all information is received.
C116: Customer Number | E116: Cust Grp 3
C117: =Start_Here!$C$25 -> 0 | E117: =Start_Here!$C$29 -> 0
C118: =Start_Here!$B$18 -> Who Owns the Machine? (Sold-To Info) (Please Verify)
A119: Company | C119: =Start_Here!$C$19 -> Company Name
A120: Address | C120: =Start_Here!$C$20 -> Address
C121: =Start_Here!$C$21 -> City, State Zip
A122: Name | C122: =Start_Here!$C$22 -> Contact Name
A123: Phone | C123: =Start_Here!$C$23 -> Contact Phone
C125: =Start_Here!$B$11 -> Where is the Machine Being Shipped? (Ship-To Info) (Please Verify)
A126: Company | C126: =Start_Here!$C$12 -> Company Name
A127: Address | C127: =Start_Here!$C$13 -> Address
C128: =Start_Here!$C$14 -> City, State Zip
A129: Name | C129: =Start_Here!$C$15 -> Contact Name
A130: Phone | C130: =Start_Here!$C$16 -> Contact Phone
C132: =Start_Here!$B$31 -> Shipping / Carrier Instructions: | E132: Order Special Instructions:
C133: =Start_Here!$C$32 -> 0
C135: Customer Purchase Order No.
C136: (please attach copy)
C139: Tax Exempt | E139: Yes
E140: No
C141: If Yes, attach a copy of your exemption certificate.
C143: Requested Delivery Date
C144: =Start_Here!$C$28 -> 0
C146: =Start_Here!$C$26 -> 0 | E146: =Start_Here!$C$27 -> 0
C147: Authorized Buyer (please print) | E147: Phone Number
C150: Authorized Buyer Signature
C152: =Start_Here!$C$41 -> Rep Name
C153: Tennant Representative
D155: Specialized Maintenance Equipment
C156: =Start_Here!$C$51 -> 0
D157: =Start_Here!$C$52 -> 0
B160: Notes
B162: 1 | C162: Only available as factory-installed when batteries are ordered with machine.
B164: 2 | C164: A French and English manual will be supplied for all units shipping into Quebec, Canada at no charge. An additional manual
C165: can be ordered (for a total of 3 manuals) for an additional charge as stated under 'Additional Operator Manual'.
B167: 3 | C167: Skid w/Carton, Non-Stackable is the default packaging method and will be added to the configuration unless otherwise specified.
B169: 4 | C169: Shipping Weights and Dimensions | D169: Skid w/Carton
C171: Weight (w/360AH Battery) | D171: 650 lbs / 295 Kg
C172: Length | D172: 68" / 1,727mm
C173: Width | D173: 33" / 838mm
C174: Height | D174: 48" / 1,219mm

Sheet Carpet_Extractors
A1: Carpet_Extractors | C1: =Start_Here!$C19 -> Company Name
A2: =SUM(G81) -> 0 | C2: =Start_Here!$C20 -> Address
C3: =Start_Here!$C21 -> City, State Zip
C4: =Start_Here!$C22 -> Contact Name
C5: =Start_Here!$C$41 -> Rep Name
C6: =Start_Here!$C$37 -> Tennant Sales and Service Company
C7: =Start_Here!$C$38 -> 10400 Clean Street
C8: =Start_Here!$C$39 -> Eden Prairie, MN 55344
C9: =Start_Here!$C$43 -> 800-553-8033 | E9: Quote Date : | G9: =Letter!$A$25 -> 2023-08-01
C11: =Help!C2 -> CAN Date Rev - 5/6/2025
G14: Fax (quote only)
G15: Mail (quote,lit, specs)
C16: New Machine Warranty | G16: Fax + Mail
C17: 36 MONTHS OR 2500 HOURS ON PARTS
C18: 36 MONTHS – LABOR
C19: 90 DAYS – TRAVEL ON BATTERY UNITS ONLY | G19: Inside
C20: 10 YEARS ON ROTOMOLDED PARTS | G20: Outside
C21: BATTERIES ARE PRORATED OVER 12 MONTHS
C22: EC2 & EH5
C23: 2 Years Parts
C24: 1 Year Labor, 90 days Travel
C26: Description | D26: Reference# | E26: CAD Price Each | F26: Qty | G26: Extended Price
F27: =SUM(F28) -> 0
C28: Falcon™ Ultra Battery | D28: 608351 | E28: 21383 | G28: =F28*E28 -> 0 | H28: =IFERROR(IFERROR(VLOOKUP(D28,Surcharge!A:B,2,FALSE)*F28, VLOOKUP(D28 & "",Surcharge!A:B,2,FALSE)*F28), "") -> 0 | P28: =VLOOKUP(D28,'MPF SAP Canada Pre-Configured'!C:E,3,FALSE) -> 19984
C29: 17 gal., 22" (559mm) cleaning path, 100 psi, 81" (2057mm) waterlift, two 12 volt, 215 amp hours batteries and 24 volt automatic charger. | F29: =SUM(F28) -> 0 | H29: =IFERROR(IFERROR(VLOOKUP(D29,Surcharge!A:B,2,FALSE)*F29, VLOOKUP(D29 & "",Surcharge!A:B,2,FALSE)*F29), "") -> 
C30: Boxed dimensions: 54L x 30W x 42H (1372mm x 762mm x 1067mm) | F30: =SUM(F29) -> 0 | H30: =IFERROR(IFERROR(VLOOKUP(D30,Surcharge!A:B,2,FALSE)*F30, VLOOKUP(D30 & "",Surcharge!A:B,2,FALSE)*F30), "") -> 
C31: Shipping Weight: 235 lbs. / Cu. Ft.: 39.97 | F31: =SUM(F30) -> 0 | H31: =IFERROR(IFERROR(VLOOKUP(D31,Surcharge!A:B,2,FALSE)*F31, VLOOKUP(D31 & "",Surcharge!A:B,2,FALSE)*F31), "") -> 
F32: =SUM(F33) -> 0 | H32: =IFERROR(IFERROR(VLOOKUP(D32,Surcharge!A:B,2,FALSE)*F32, VLOOKUP(D32 & "",Surcharge!A:B,2,FALSE)*F32), "") -> 
C33: Falcon™ Ultra Battery - Same as above without batteries. Order batteries separately. | D33: 609255 | E33: 19328 | G33: =F33*E33 -> 0 | H33: =IFERROR(IFERROR(VLOOKUP(D33,Surcharge!A:B,2,FALSE)*F33, VLOOKUP(D33 & "",Surcharge!A:B,2,FALSE)*F33), "") ->  | P33: =VLOOKUP(D33,'MPF SAP Canada Pre-Configured'!C:E,3,FALSE) -> 18667
H34: =IFERROR(IFERROR(VLOOKUP(D34,Surcharge!A:B,2,FALSE)*F34, VLOOKUP(D34 & "",Surcharge!A:B,2,FALSE)*F34), "") -> 
F35: =SUM(F36) -> 0 | H35: =IFERROR(IFERROR(VLOOKUP(D35,Surcharge!A:B,2,FALSE)*F35, VLOOKUP(D35 & "",Surcharge!A:B,2,FALSE)*F35), "") -> 
C36: Falcon™ 2800 Plus ** | D36: 609260 | E36: 19662 | G36: =F36*E36 -> 0 | H36: =IFERROR(IFERROR(VLOOKUP(D36,Surcharge!A:B,2,FALSE)*F36, VLOOKUP(D36 & "",Surcharge!A:B,2,FALSE)*F36), "") ->  | P36: =VLOOKUP(D36,'MPF SAP Canada Pre-Configured'!C:E,3,FALSE) -> 18375
C37: 28-gal., 22" (559mm) cleaning path, 100 psi, 137" (3480mm) waterlift, detachable 75-ft. (23m) power cord. Interim/Restorative cleaning modes. | F37: =SUM(F36) -> 0 | H37: =IFERROR(IFERROR(VLOOKUP(D37,Surcharge!A:B,2,FALSE)*F37, VLOOKUP(D37 & "",Surcharge!A:B,2,FALSE)*F37), "") -> 
C38: Boxed dimensions: 54L x 24W x 46H. (1372mm x 610mm x 1168mm) | F38: =SUM(F37) -> 0 | H38: =IFERROR(IFERROR(VLOOKUP(D38,Surcharge!A:B,2,FALSE)*F38, VLOOKUP(D38 & "",Surcharge!A:B,2,FALSE)*F38), "") -> 
C39: Shipping Weight: 295 lbs. / Cu. Ft.: 34.5 | F39: =SUM(F38) -> 0 | H39: =IFERROR(IFERROR(VLOOKUP(D39,Surcharge!A:B,2,FALSE)*F39, VLOOKUP(D39 & "",Surcharge!A:B,2,FALSE)*F39), "") -> 
H40: =IFERROR(IFERROR(VLOOKUP(D40,Surcharge!A:B,2,FALSE)*F40, VLOOKUP(D40 & "",Surcharge!A:B,2,FALSE)*F40), "") -> 
F41: =SUM(F42) -> 0 | H41: =IFERROR(IFERROR(VLOOKUP(D41,Surcharge!A:B,2,FALSE)*F41, VLOOKUP(D41 & "",Surcharge!A:B,2,FALSE)*F41), "") -> 
C42: EX-SC-1020 - Self-Contained Extractor | D42: 9007486 | E42: 7126 | G42: =F42*E42 -> 0 | H42: =IFERROR(IFERROR(VLOOKUP(D42,Surcharge!A:B,2,FALSE)*F42, VLOOKUP(D42 & "",Surcharge!A:B,2,FALSE)*F42), "") ->  | P42: =VLOOKUP(D42,'MPF SAP Canada Pre-Configured'!C:E,3,FALSE) -> 6659
C43: Patented 10-gal. Expansion cavity, 20" (508mm) cleaning path, 100 psi, 137" (3480mm) waterlift. U.S. Patent #4,956,891. ETL US/C* CRI certified, Bronze Cleaning Performance. | F43: =SUM(F42) -> 0 | H43: =IFERROR(IFERROR(VLOOKUP(D43,Surcharge!A:B,2,FALSE)*F43, VLOOKUP(D43 & "",Surcharge!A:B,2,FALSE)*F43), "") -> 
C44: Boxed dimensions: 41L x 22W x 45H (1041mm x 559mm x 1143mm) | F44: =SUM(F43) -> 0 | H44: =IFERROR(IFERROR(VLOOKUP(D44,Surcharge!A:B,2,FALSE)*F44, VLOOKUP(D44 & "",Surcharge!A:B,2,FALSE)*F44), "") -> 
C45: Shipping Weight: 142 lbs. / Cu. Ft.: 23.5 | F45: =SUM(F44) -> 0 | H45: =IFERROR(IFERROR(VLOOKUP(D45,Surcharge!A:B,2,FALSE)*F45, VLOOKUP(D45 & "",Surcharge!A:B,2,FALSE)*F45), "") -> 
H46: =IFERROR(IFERROR(VLOOKUP(D46,Surcharge!A:B,2,FALSE)*F46, VLOOKUP(D46 & "",Surcharge!A:B,2,FALSE)*F46), "") -> 
F47: =SUM(F48) -> 0 | H47: =IFERROR(IFERROR(VLOOKUP(D47,Surcharge!A:B,2,FALSE)*F47, VLOOKUP(D47 & "",Surcharge!A:B,2,FALSE)*F47), "") -> 
C48: EH5 Heated Canister Extractor | D48: 9011454 | E48: 13208 | G48: =F48*E48 -> 0 | H48: =IFERROR(IFERROR(VLOOKUP(D48,Surcharge!A:B,2,FALSE)*F48, VLOOKUP(D48 & "",Surcharge!A:B,2,FALSE)*F48), "") ->  | P48: =VLOOKUP(D48,'MPF SAP Canada Pre-Configured'!C:E,3,FALSE) -> 11983
C49: 15 gal. capacity, 50-500 psi, Heated, 13" (330mm) High Airflow Titanium Carpet wand with 2 Unijets, 15-ft. (4.5m) vacuum and solution hoses.2-40 ft(12.2m) Hospital Grade safety yellow electrical cords. Hand tool sold separately. CRI certified - Gold Cleaning Performance with High Airflow Titanium wand. | F49: =SUM(F48) -> 0 | H49: =IFERROR(IFERROR(VLOOKUP(D49,Surcharge!A:B,2,FALSE)*F49, VLOOKUP(D49 & "",Surcharge!A:B,2,FALSE)*F49), "") -> 
C50: ETL-certified to UL & CSA Standards. | F50: =SUM(F49) -> 0 | H50: =IFERROR(IFERROR(VLOOKUP(D50,Surcharge!A:B,2,FALSE)*F50, VLOOKUP(D50 & "",Surcharge!A:B,2,FALSE)*F50), "") -> 
C51: Boxed Dimensions: 28.5in x 38in x 55in 724mm x 965mm x 1397mm | F51: =SUM(F50) -> 0 | H51: =IFERROR(IFERROR(VLOOKUP(D51,Surcharge!A:B,2,FALSE)*F51, VLOOKUP(D51 & "",Surcharge!A:B,2,FALSE)*F51), "") -> 
C52: Shipping Weight: 185lb/84kg | F52: =SUM(F51) -> 0 | H52: =IFERROR(IFERROR(VLOOKUP(D52,Surcharge!A:B,2,FALSE)*F52, VLOOKUP(D52 & "",Surcharge!A:B,2,FALSE)*F52), "") -> 
H53: =IFERROR(IFERROR(VLOOKUP(D53,Surcharge!A:B,2,FALSE)*F53, VLOOKUP(D53 & "",Surcharge!A:B,2,FALSE)*F53), "") -> 
H54: =IFERROR(IFERROR(VLOOKUP(D54,Surcharge!A:B,2,FALSE)*F54, VLOOKUP(D54 & "",Surcharge!A:B,2,FALSE)*F54), "") -> 
C55: EC2 Canister Extractor | F55: =SUM(F60:F62) -> 0 | H55: =IFERROR(IFERROR(VLOOKUP(D55,Surcharge!A:B,2,FALSE)*F55, VLOOKUP(D55 & "",Surcharge!A:B,2,FALSE)*F55), "") -> 
C56: 15 gal. capacity, 200 psi, 13" (330mm) Stainless Steel or Titanium Carpet wand with 2 Unijets, 15-ft. (4.5m) vacuum and solution hoses, 40 ft(12.2m) Hospital Grade safety yellow electrical cords. Hand tool sold separately. CRI certified, Gold Cleaning Performance when used with titanium wand. Hand tool sold separately. CRI certified, Gold Cleaning Performance | F56: =SUM(F55) -> 0 | H56: =IFERROR(IFERROR(VLOOKUP(D56,Surcharge!A:B,2,FALSE)*F56, VLOOKUP(D56 & "",Surcharge!A:B,2,FALSE)*F56), "") -> 
C57: ETL-certified to UL & CSA Standards. | F57: =SUM(F56) -> 0 | H57: =IFERROR(IFERROR(VLOOKUP(D57,Surcharge!A:B,2,FALSE)*F57, VLOOKUP(D57 & "",Surcharge!A:B,2,FALSE)*F57), "") -> 
C58: Boxed Dimensions: 28.5in x 38in x 55in 724mm x 965mm x 1397mm | F58: =SUM(F57) -> 0 | H58: =IFERROR(IFERROR(VLOOKUP(D58,Surcharge!A:B,2,FALSE)*F58, VLOOKUP(D58 & "",Surcharge!A:B,2,FALSE)*F58), "") -> 
C59: Shipping Weight: 152lb/69kg | F59: =SUM(F58) -> 0 | H59: =IFERROR(IFERROR(VLOOKUP(D59,Surcharge!A:B,2,FALSE)*F59, VLOOKUP(D59 & "",Surcharge!A:B,2,FALSE)*F59), "") -> 
F60: =SUM(F61:F62) -> 0 | H60: =IFERROR(IFERROR(VLOOKUP(D60,Surcharge!A:B,2,FALSE)*F60, VLOOKUP(D60 & "",Surcharge!A:B,2,FALSE)*F60), "") -> 
C61: EC2, 200 psi (15.2 bar) Canister Extractor w/ Stainless Steel carpet wand and vacuum and solution hoses | D61: 9011638 | E61: 7954 | G61: =F61*E61 -> 0 | H61: =IFERROR(IFERROR(VLOOKUP(D61,Surcharge!A:B,2,FALSE)*F61, VLOOKUP(D61 & "",Surcharge!A:B,2,FALSE)*F61), "") ->  | P61: =VLOOKUP(D61,'MPF SAP Canada Pre-Configured'!C:E,3,FALSE) -> 7216
C62: EC2, 200 psi (15.2 bar) Canister Extractor w/ High Airflow Titanium carpet wand and vacuum and solution hoses | D62: 9012278 | E62: 8562 | G62: =F62*E62 -> 0 | H62: =IFERROR(IFERROR(VLOOKUP(D62,Surcharge!A:B,2,FALSE)*F62, VLOOKUP(D62 & "",Surcharge!A:B,2,FALSE)*F62), "") ->  | P62: =VLOOKUP(D62,'MPF SAP Canada Pre-Configured'!C:E,3,FALSE) -> 7767
H63: =IFERROR(IFERROR(VLOOKUP(D63,Surcharge!A:B,2,FALSE)*F63, VLOOKUP(D63 & "",Surcharge!A:B,2,FALSE)*F63), "") -> 
E66: =ROUND(SUM(G28:G65), 0) -> 0 | F66: =SUM(E67) -> 0
D67: Machine Subtotal | E67: =ROUND(SUM(G28:G65), 0) -> 0 | F67: =F66 -> 0
B68: Discounts | F68: =SUM(F69) -> 0
F69: =SUM(F71:F74) -> 0
D70: Applicable Currency Adj % | F70: =IF(E70 <> "", 1, 0) -> 0 | G70: =IF(F70*(E70*0.01)*E66 < 0, F70*(E70*0.01)*E66, -(F70*(E70*0.01)*E66)) -> 0
D71: Discount % | F71: =IF(E71 <> "", 1, 0) -> 0 | G71: =IF(F71*(E71*0.01)*(E66+G70) < 0, F71*(E71*0.01)*(E66+G70), -(F71*(E71*0.01)*(E66+G70))) -> 0
D72: Discount $ | F72: 0 | G72: =IF(F72*E72 < 0, F72*E72, -(F72*E72)) -> 0
D73: Discount $ | F73: 0 | G73: =IF(F73*E73 < 0, F73*E73, -(F73*E73)) -> 0
D74: Discount $ | F74: 0 | G74: =IF(F74*E74 < 0, F74*E74, -(F74*E74)) -> 0
D75: Discount Total | E75: =SUM(G70:G74) -> 0 | F75: =SUM(E75) -> 0
F76: =#REF! -> 
F77: =F76 -> 
C78: Prepaid and Add | D78: Freight | F78: =IF(E78 <> "", 1, 0) -> 0 | G78: =F78*E78 -> 0
C79: Subject to all applicable taxes | D79: Tax | F79: 0 | G79: 0
F80: =SUM(F81) -> 0
D81: MACHINE TOTAL* | F81: =SUM(G81) -> 0 | G81: =SUM(G28:G79) -> 0 | N81: This goes to "My Documents"
G82: =SUM(G81) -> 0
C87: Wells Fargo - Leasing Calculation Option: | D87: Option 1 | F87: Option 2 | J87: =Financing!A38 -> Rates 2025 - Rev.2/4/2025
D88: Monthly Payment | E88: Cost Per Day | F88: Monthly Payment | G88: Cost Per Day | J88: =Financing!A39 -> “Blank Payment Amounts Indicate The Financing Option Or Purchase Options Selected Are Not
C89: Purchase Option: | D89: $1 Buyout Lease | F89: None | J89: =Financing!A40 -> Applicable Or The Machine Total Is Below The Minimum Amount For The Selected Vendor”
C90: 24 Months | D90: 0 | E90: 0 | F90: 0 | G90: 0 | J90: =Financing!A41 -> "Quoted monthly payments are estimates only and are based on a certain level of credit rating.
C91: 36 Months | D91: 0 | E91: 0 | F91: 0 | G91: 0 | J91: =Financing!A42 -> Actual monthly payments may be higher depending on your credit rating."
C92: 48 Months | D92: 0 | E92: 0 | F92: 0 | G92: 0 | J92: =Financing!A43 -> “Financing rates do not include Pre-Paid Service”
C93: 60 Months | D93: 0 | E93: 0 | F93: 0 | G93: 0 | I93: =Financing!A44 -> 0
D95: Benefits of Equipment Financing:
D96: • Spreads out investment over time. | F96: • Keep current with latest technology.
D97: • Preserve capital. | F97: • Service and parts bundling available.
D98: • Low monthly payment. | F98: • Pay for labor savings as you go.
B100: TennantTrue | D100: 0 | E100: 0
C102: Is customer interested in service program? | D102: Yes | E102: *State/County selection required for TennantTrue service options
C104: If not, why?
C106: Term: | D106: 36 | G106: AB Brushes | H106: No
C107: Monthly machine usage (hrs): | D107: < 30/mo. (Avg. 1hr./day)
C109: TennantTrue: | D109: Gold Contract | F109: Silver Contract
C110: Per Visit | F110: 336
C111: Monthly | D111: 112 | F111: 56
C112: Annually | F112: 659
C113: Pre-Pay Full Term | D113: 3882 | F113: 1936
C114: Hourly Labor Rate
C115: Site Visit
C117: * Verify customer current pricing prior to quote.
C118: **All rates and fees above reflect service for one (1) unit with the exception of Block of Time service.
C119: *Block of Time is available in 1 Year Term only and is priced as such no matter the term selection on this template.
B123: Quote Special Instructions:
B127: =Start_Here!E36 -> Terms and Conditions
B128: =Start_Here!E37 -> Ask your local sales rep for estimated lead times. Verify when placing order
B129: =Start_Here!E38 -> All orders subject to acceptance by Tennant Sales and Service Company, Minneapolis, Minnesota
B130: =Start_Here!E39 -> Prices subject to change without notice. Subject to any applicable taxes.
B131: =Start_Here!E40 -> Terms: Net 30 days. Payable in Canadian Funds
B132: =Start_Here!E41 -> Freight: Accessories, parts, supplies, detergents, and floor coatings orders delivered DDP
B133: =Start_Here!E42 -> shipping point Frt PPD. Machine orders delivered DDP shipping point Frt PPD and add.
B134: =Start_Here!E43 -> Returned Merchandise is subject to a restocking fee.
B135: =Start_Here!E44 -> All orders are subject to Tennant’s General Terms and Conditions available at http://www.tennantco.com/terms.
B136: =Start_Here!E45 -> Printed General Terms and Conditions are also available upon request.
B137: =Start_Here!E46 -> 0
B138: =Start_Here!E47 -> 0
B139: =Start_Here!E48 -> 0
E140: Quote Date : | G140: =Letter!$A$25 -> 2023-08-01
B141: Order Placement Information: To place your order, fill in PO# and customer signatures,
B142: call or fax to the numbers listed below. Customer Purchase Order is required.
B143: If information is missing, orders will be entered and held until all information is received.
C145: Customer Number | E145: Cust Grp 3
C146: =Start_Here!$C$25 -> 0 | E146: =Start_Here!$C$29 -> 0
C147: =Start_Here!$B$18 -> Who Owns the Machine? (Sold-To Info) (Please Verify)
A148: Company | C148: =Start_Here!$C$19 -> Company Name
A149: Address | C149: =Start_Here!$C$20 -> Address
C150: =Start_Here!$C$21 -> City, State Zip
A151: Name | C151: =Start_Here!$C$22 -> Contact Name
A152: Phone | C152: =Start_Here!$C$23 -> Contact Phone
C154: =Start_Here!$B$11 -> Where is the Machine Being Shipped? (Ship-To Info) (Please Verify)
A155: Company | C155: =Start_Here!$C$12 -> Company Name
A156: Address | C156: =Start_Here!$C$13 -> Address
C157: =Start_Here!$C$14 -> City, State Zip
A158: Name | C158: =Start_Here!$C$15 -> Contact Name
A159: Phone | C159: =Start_Here!$C$16 -> Contact Phone
C161: =Start_Here!$B$31 -> Shipping / Carrier Instructions: | E161: Order Special Instructions:
C162: =Start_Here!$C$32 -> 0
C164: Customer Purchase Order No.
C165: (please attach copy)
C168: Tax Exempt | E168: Yes
E169: No
C170: If Yes, attach a copy of your exemption certificate.
C172: Requested Delivery Date
C173: =Start_Here!$C$28 -> 0
C175: =Start_Here!$C$26 -> 0 | E175: =Start_Here!$C$27 -> 0
C176: Authorized Buyer (please print) | E176: Phone Number
C179: Authorized Buyer Signature
C181: =Start_Here!$C$41 -> Rep Name
C182: Tennant Representative
D184: Specialized Maintenance Equipment
C185: =Start_Here!$C$51 -> 0
D186: =Start_Here!$C$52 -> 0
B189: Notes
B191: 1 | C191: Only available as factory-installed when batteries are ordered with machine.
B193: 2 | C193: A French and English manual will be supplied for all units shipping into Quebec, Canada at no charge. An additional manual
C194: can be ordered (for a total of 3 manuals) for an additional charge as stated under 'Additional Operator Manual'.
B196: 3 | C196: Skid w/Carton, Non-Stackable is the default packaging method and will be added to the configuration unless otherwise specified.
B198: 4 | C198: Shipping Weights and Dimensions | D198: Skid w/Carton
C200: Weight (w/360AH Battery) | D200: 650 lbs / 295 Kg
C201: Length | D201: 68" / 1,727mm
C202: Width | D202: 33" / 838mm
C203: Height | D203: 48" / 1,219mm

Sheet Specialty
A1: Specialty | C1: =Start_Here!$C19 -> Company Name
A2: =SUM(G66) -> 0 | C2: =Start_Here!$C20 -> Address
C3: =Start_Here!$C21 -> City, State Zip
C4: =Start_Here!$C22 -> Contact Name
C5: =Start_Here!$C$41 -> Rep Name
C6: =Start_Here!$C$37 -> Tennant Sales and Service Company
C7: =Start_Here!$C$38 -> 10400 Clean Street
C8: =Start_Here!$C$39 -> Eden Prairie, MN 55344
C9: =Start_Here!$C$43 -> 800-553-8033 | E9: Quote Date : | G9: =Letter!$A$25 -> 2023-08-01
C11: =Help!C2 -> CAN Date Rev - 5/6/2025
C13: New Machine Warranty
C14: Q12
C15: 2 YEARS PARTS or 2500 hrs
C16: 1 YEAR LABOR
C17: 90 DAYS TRAVEL | G17: Fax (quote only)
C18: BLOWER | G18: Mail (quote,lit, specs)
C19: 12 MONTHS ON PARTS & LABOR | G19: Fax + Mail
C20: ASC 15
C21: 36 MONTHS
C22: 36 MONTHS – LABOR | G22: Inside
C23: NO TRAVEL | G23: Outside
C26: Description | D26: Reference# | E26: Canada Price Each | F26: Qty | G26: Extended Price
C28: Q12 Multi-Surface Cleaner | F28: =SUM(F34:F35) -> 0
C29: 15 gal (57 L) capacity, variable 400-1200 psi (27.6 to 83 bar), Hard Surface Turbo Tool option, 25 ft (8 m) vacuum and solution hoses, and two 40 ft (12 m) hospital grade safety yellow electrical cords. | F29: =SUM(F28) -> 0
C30: ETL (US/C) certified to UL & CSA Standards. | F30: =SUM(F29) -> 0
C31: Boxed Dimensions: 28.5 in x 38 in x 55 in (724 mm x 965 mm x 1397 mm) | F31: =SUM(F30) -> 0
C32: Shipping Weight: 205 lb (93 kg) | F32: =SUM(F31) -> 0
C34: Q12, 400-1200 psi (27.6 to 83 bar) Multi-Surface Cleaner w/ vacuum and solution hoses. | D34: 1072856 | E34: 16728 | G34: =F34*E34 -> 0 | Q34: =VLOOKUP(D34,'MPF SAP Canada Pre-Configured'!C:E,3,FALSE) -> 15633
C35: Q12, 400-1200 psi (27.6 to 83 bar) Multi-Surface Cleaner w/ hard surface turbo tool, vacuum, and solution hoses. | D35: 9011458 | E35: 20401 | G35: =F35*E35 -> 0 | Q35: =VLOOKUP(D35,'MPF SAP Canada Pre-Configured'!C:E,3,FALSE) -> 19066
F37: =SUM(F38) -> 0 | H37: =IFERROR(IFERROR(VLOOKUP(D37,Surcharge!A:B,2,FALSE)*F37, VLOOKUP(D37 & "",Surcharge!A:B,2,FALSE)*F37), "") -> 
C38: ASC-15 All Surface Cleaner | D38: 9007449 | E38: 9698 | G38: =F38*E38 -> 0 | H38: =IFERROR(IFERROR(VLOOKUP(D38,Surcharge!A:B,2,FALSE)*F38, VLOOKUP(D38 & "",Surcharge!A:B,2,FALSE)*F38), "") ->  | Q38: =VLOOKUP(D38,'MPF SAP Canada Pre-Configured'!C:E,3,FALSE) -> 9063
C39: 15-gal. (57L) solution capacity 19-gal. (72L) recovery capacity. Includes double-bend telescopic aluminum wand, 25-ft. (7.6m) recovery hose, scrub brush, standard 6-ft. (1.8m) to 25-ft. (7.6m) expandable blower hose, 25-ft. (7.6m) high pressure hose with variable pressure gun, floor squeegee tool, hand squeegee tool, blower tool, gulper floor drain tool, fill hose and metering tip packet with 3 different dilution ratio tips. | F39: =SUM(F38) -> 0 | H39: =IFERROR(IFERROR(VLOOKUP(D39,Surcharge!A:B,2,FALSE)*F39, VLOOKUP(D39 & "",Surcharge!A:B,2,FALSE)*F39), "") -> 
C40: Boxed dimensions: 45L x 22.25W x 42H (1143mm x 565mm x 1067mm) | F40: =SUM(F39) -> 0 | H40: =IFERROR(IFERROR(VLOOKUP(D40,Surcharge!A:B,2,FALSE)*F40, VLOOKUP(D40 & "",Surcharge!A:B,2,FALSE)*F40), "") -> 
C41: Shipping Weight: 190 lbs. (86 kg) / Cu. Ft.: 19 (Cu.M. .54) | F41: =SUM(F40) -> 0 | H41: =IFERROR(IFERROR(VLOOKUP(D41,Surcharge!A:B,2,FALSE)*F41, VLOOKUP(D41 & "",Surcharge!A:B,2,FALSE)*F41), "") -> 
H42: =IFERROR(IFERROR(VLOOKUP(D42,Surcharge!A:B,2,FALSE)*F42, VLOOKUP(D42 & "",Surcharge!A:B,2,FALSE)*F42), "") -> 
H43: =IFERROR(IFERROR(VLOOKUP(D43,Surcharge!A:B,2,FALSE)*F43, VLOOKUP(D43 & "",Surcharge!A:B,2,FALSE)*F43), "") -> 
C44: Blower - Three-speed Air Mover | D44: 9014819 | E44: 587 | G44: =F44*E44 -> 0 | H44: =IFERROR(IFERROR(VLOOKUP(D44,Surcharge!A:B,2,FALSE)*F44, VLOOKUP(D44 & "",Surcharge!A:B,2,FALSE)*F44), "") ->  | Q44: =VLOOKUP(D44,'MPF SAP Canada Pre-Configured'!C:E,3,FALSE) -> 587
C45: 1/2 Horsepower, 120V, Three speeds, Stackable | F45: =SUM(F44) -> 0 | H45: =IFERROR(IFERROR(VLOOKUP(D45,Surcharge!A:B,2,FALSE)*F45, VLOOKUP(D45 & "",Surcharge!A:B,2,FALSE)*F45), "") -> 
C46: ETL-certified to UL & CSA Standards. | F46: =SUM(F45) -> 0 | H46: =IFERROR(IFERROR(VLOOKUP(D46,Surcharge!A:B,2,FALSE)*F46, VLOOKUP(D46 & "",Surcharge!A:B,2,FALSE)*F46), "") -> 
C47: Boxed dimensions: 17.25L x 14.75W x 18.25H (438mm x 375mmx 464mm) | F47: =SUM(F46) -> 0 | H47: =IFERROR(IFERROR(VLOOKUP(D47,Surcharge!A:B,2,FALSE)*F47, VLOOKUP(D47 & "",Surcharge!A:B,2,FALSE)*F47), "") -> 
C48: Shipping Weight: 24 lbs. | F48: =SUM(F47) -> 0 | H48: =IFERROR(IFERROR(VLOOKUP(D48,Surcharge!A:B,2,FALSE)*F48, VLOOKUP(D48 & "",Surcharge!A:B,2,FALSE)*F48), "") -> 
E51: =ROUND(SUM(G27:G50), 0) -> 0 | F51: =SUM(E52) -> 0
D52: Machine Subtotal | E52: =ROUND(SUM(G27:G50), 0) -> 0 | F52: =F51 -> 0
B53: Discounts | F53: =SUM(F54) -> 0
F54: =SUM(F56:F59) -> 0
D55: Applicable Currency Adj % | F55: =IF(E55 <> "", 1, 0) -> 0 | G55: =IF(F55*(E55*0.01)*E51 < 0, F55*(E55*0.01)*E51, -(F55*(E55*0.01)*E51)) -> 0
D56: Discount % | F56: =IF(E56 <> "", 1, 0) -> 0 | G56: =IF(F56*(E56*0.01)*(E51+G55) < 0, F56*(E56*0.01)*(E51+G55), -(F56*(E56*0.01)*(E51+G55))) -> 0
D57: Discount $ | F57: 0 | G57: =IF(F57*E57 < 0, F57*E57, -(F57*E57)) -> 0
D58: Discount $ | F58: 0 | G58: =IF(F58*E58 < 0, F58*E58, -(F58*E58)) -> 0
D59: Discount $ | F59: 0 | G59: =IF(F59*E59 < 0, F59*E59, -(F59*E59)) -> 0
D60: Discount Total | E60: =SUM(G55:G59) -> 0 | F60: =SUM(E60) -> 0
F61: =#REF! -> 
F62: =F61 -> 
C63: Prepaid and Add | D63: Freight | F63: =IF(E63 <> "", 1, 0) -> 0 | G63: =F63*E63 -> 0
C64: Subject to all applicable taxes | D64: Tax | F64: 0 | G64: 0
F65: =SUM(F66) -> 0
D66: MACHINE TOTAL* | F66: =SUM(G66) -> 0 | G66: =SUM(G27:G64) -> 0 | N66: This goes to "My Documents"
G67: =SUM(G66) -> 0
C72: Wells Fargo - Leasing Calculation Option: | D72: Option 1 | F72: Option 2 | J72: =Financing!A38 -> Rates 2025 - Rev.2/4/2025
D73: Monthly Payment | E73: Cost Per Day | F73: Monthly Payment | G73: Cost Per Day | J73: =Financing!A39 -> “Blank Payment Amounts Indicate The Financing Option Or Purchase Options Selected Are Not
C74: Purchase Option: | D74: $1 Buyout Lease | F74: None | J74: =Financing!A40 -> Applicable Or The Machine Total Is Below The Minimum Amount For The Selected Vendor”
C75: 24 Months | D75: 0 | E75: 0 | F75: 0 | G75: 0 | J75: =Financing!A41 -> "Quoted monthly payments are estimates only and are based on a certain level of credit rating.
C76: 36 Months | D76: 0 | E76: 0 | F76: 0 | G76: 0 | J76: =Financing!A42 -> Actual monthly payments may be higher depending on your credit rating."
C77: 48 Months | D77: 0 | E77: 0 | F77: 0 | G77: 0 | J77: =Financing!A43 -> “Financing rates do not include Pre-Paid Service”
C78: 60 Months | D78: 0 | E78: 0 | F78: 0 | G78: 0 | I78: =Financing!A44 -> 0
D80: Benefits of Equipment Financing:
D81: • Spreads out investment over time. | F81: • Keep current with latest technology.
D82: • Preserve capital. | F82: • Service and parts bundling available.
D83: • Low monthly payment. | F83: • Pay for labor savings as you go.
B85: TennantTrue | D85: 0 | E85: 0
C87: Is customer interested in service program? | D87: Yes | E87: *State/County selection required for TennantTrue service options
C89: If not, why?
C91: Term: | D91: 36 | G91: AB Brushes | H91: No
C92: Monthly machine usage (hrs): | D92: < 30/mo. (Avg. 1hr./day)
C94: TennantTrue: | D94: Gold Contract | F94: Silver Contract
C95: Per Visit
C96: Monthly
C97: Annually
C98: Pre-Pay Full Term
C99: Hourly Labor Rate
C100: Site Visit
C102: * Verify customer current pricing prior to quote.
C103: **All rates and fees above reflect service for one (1) unit with the exception of Block of Time service.
C104: *Block of Time is available in 1 Year Term only and is priced as such no matter the term selection on this template.
B108: Quote Special Instructions:
B112: =Start_Here!E36 -> Terms and Conditions
B113: =Start_Here!E37 -> Ask your local sales rep for estimated lead times. Verify when placing order
B114: =Start_Here!E38 -> All orders subject to acceptance by Tennant Sales and Service Company, Minneapolis, Minnesota
B115: =Start_Here!E39 -> Prices subject to change without notice. Subject to any applicable taxes.
B116: =Start_Here!E40 -> Terms: Net 30 days. Payable in Canadian Funds
B117: =Start_Here!E41 -> Freight: Accessories, parts, supplies, detergents, and floor coatings orders delivered DDP
B118: =Start_Here!E42 -> shipping point Frt PPD. Machine orders delivered DDP shipping point Frt PPD and add.
B119: =Start_Here!E43 -> Returned Merchandise is subject to a restocking fee.
B120: =Start_Here!E44 -> All orders are subject to Tennant’s General Terms and Conditions available at http://www.tennantco.com/terms.
B121: =Start_Here!E45 -> Printed General Terms and Conditions are also available upon request.
B122: =Start_Here!E46 -> 0
B123: =Start_Here!E47 -> 0
B124: =Start_Here!E48 -> 0
E125: Quote Date : | G125: =Letter!$A$25 -> 2023-08-01
B126: Order Placement Information: To place your order, fill in PO# and customer signatures,
B127: call or fax to the numbers listed below. Customer Purchase Order is required.
B128: If information is missing, orders will be entered and held until all information is received.
C130: Customer Number | E130: Cust Grp 3
C131: =Start_Here!$C$25 -> 0 | E131: =Start_Here!$C$29 -> 0
C132: =Start_Here!$B$18 -> Who Owns the Machine? (Sold-To Info) (Please Verify)
A133: Company | C133: =Start_Here!$C$19 -> Company Name
A134: Address | C134: =Start_Here!$C$20 -> Address
C135: =Start_Here!$C$21 -> City, State Zip
A136: Name | C136: =Start_Here!$C$22 -> Contact Name
A137: Phone | C137: =Start_Here!$C$23 -> Contact Phone
C139: =Start_Here!$B$11 -> Where is the Machine Being Shipped? (Ship-To Info) (Please Verify)
A140: Company | C140: =Start_Here!$C$12 -> Company Name
A141: Address | C141: =Start_Here!$C$13 -> Address
C142: =Start_Here!$C$14 -> City, State Zip
A143: Name | C143: =Start_Here!$C$15 -> Contact Name
A144: Phone | C144: =Start_Here!$C$16 -> Contact Phone
C146: =Start_Here!$B$31 -> Shipping / Carrier Instructions: | E146: Order Special Instructions:
C147: =Start_Here!$C$32 -> 0
C149: Customer Purchase Order No.
C150: (please attach copy)
C153: Tax Exempt | E153: Yes
E154: No
C155: If Yes, attach a copy of your exemption certificate.
C157: Requested Delivery Date
C158: =Start_Here!$C$28 -> 0
C160: =Start_Here!$C$26 -> 0 | E160: =Start_Here!$C$27 -> 0
C161: Authorized Buyer (please print) | E161: Phone Number
C164: Authorized Buyer Signature
C166: =Start_Here!$C$41 -> Rep Name
C167: Tennant Representative
D169: Specialized Maintenance Equipment
C170: =Start_Here!$C$51 -> 0
D171: =Start_Here!$C$52 -> 0
B174: Notes
B176: 1 | C176: Only available as factory-installed when batteries are ordered with machine.
B178: 2 | C178: A French and English manual will be supplied for all units shipping into Quebec, Canada at no charge. An additional manual
C179: can be ordered (for a total of 3 manuals) for an additional charge as stated under 'Additional Operator Manual'.
B181: 3 | C181: Skid w/Carton, Non-Stackable is the default packaging method and will be added to the configuration unless otherwise specified.
B183: 4 | C183: Shipping Weights and Dimensions | D183: Skid w/Carton
C185: Weight (w/360AH Battery) | D185: 650 lbs / 295 Kg
C186: Length | D186: 68" / 1,727mm
C187: Width | D187: 33" / 838mm
C188: Height | D188: 48" / 1,219mm

Sheet Vacuums
A1: Vacuums | C1: =Start_Here!$C19 -> Company Name
A2: =SUM(G181) -> 0 | C2: =Start_Here!$C20 -> Address
C3: =Start_Here!$C21 -> City, State Zip
C4: =Start_Here!$C22 -> Contact Name
C5: =Start_Here!$C$41 -> Rep Name
C6: =Start_Here!$C$37 -> Tennant Sales and Service Company
C7: =Start_Here!$C$38 -> 10400 Clean Street
C8: =Start_Here!$C$39 -> Eden Prairie, MN 55344
C9: =Start_Here!$C$43 -> 800-553-8033 | E9: Quote Date : | G9: =Letter!$A$25 -> 2023-08-01
C11: =Help!C2 -> CAN Date Rev - 5/6/2025
C13: New Machine Warranty
C14: 12 MONTHS ON PARTS | G14: Fax (quote only)
C15: 12 MONTHS - LABOR | G15: Mail (quote,lit, specs)
C16: NO TRAVEL | G16: Fax + Mail
C17: Battery Pro-rated 12 months
G19: Inside
G20: Outside
C26: Description | D26: Reference# | E26: Canada Price Each | F26: Qty | G26: Extended Price
F27: =SUM(F28) -> 0
C28: V-WA-30 30" (762mm) Wide Area Vacuum | D28: 1068029 | E28: 6042 | G28: =F28*E28 -> 0 | H28: =IFERROR(IFERROR(VLOOKUP(D28,Surcharge!A:B,2,FALSE)*F28, VLOOKUP(D28 & "",Surcharge!A:B,2,FALSE)*F28), "") ->  | P28: =VLOOKUP(D28,'MPF SAP Canada Pre-Configured'!C:E,3,FALSE) -> 5646
C29: Certified CRI Bronze Cleaning Performance. Comes standard with HEPA filtration, and spare bag and 75 ft. (23m) safety-yellow power cord. ETL US/C | F29: =SUM(F28) -> 0 | H29: =IFERROR(IFERROR(VLOOKUP(D29,Surcharge!A:B,2,FALSE)*F29, VLOOKUP(D29 & "",Surcharge!A:B,2,FALSE)*F29), "") -> 
C30: Boxed Dimensions: 18"L x 32.25 "W x 43.25 "H (457mm x 819mm x 196mm) * | F30: =SUM(F29) -> 0 | H30: =IFERROR(IFERROR(VLOOKUP(D30,Surcharge!A:B,2,FALSE)*F30, VLOOKUP(D30 & "",Surcharge!A:B,2,FALSE)*F30), "") -> 
C31: Shipping Weight: 100 lbs. (45.36kg) | F31: =SUM(F30) -> 0 | H31: =IFERROR(IFERROR(VLOOKUP(D31,Surcharge!A:B,2,FALSE)*F31, VLOOKUP(D31 & "",Surcharge!A:B,2,FALSE)*F31), "") -> 
C32: Made in the USA with Globally sourced components | F32: =SUM(F31) -> 0 | H32: =IFERROR(IFERROR(VLOOKUP(D32,Surcharge!A:B,2,FALSE)*F32, VLOOKUP(D32 & "",Surcharge!A:B,2,FALSE)*F32), "") -> 
H33: =IFERROR(IFERROR(VLOOKUP(D33,Surcharge!A:B,2,FALSE)*F33, VLOOKUP(D33 & "",Surcharge!A:B,2,FALSE)*F33), "") -> 
H34: =IFERROR(IFERROR(VLOOKUP(D34,Surcharge!A:B,2,FALSE)*F34, VLOOKUP(D34 & "",Surcharge!A:B,2,FALSE)*F34), "") -> 
C35: Independence Battery Light Weight Upright Commercial Vacuum | D35: 1236915 | E35: 1421 | G35: =F35*E35 -> 0 | H35: =IFERROR(IFERROR(VLOOKUP(D35,Surcharge!A:B,2,FALSE)*F35, VLOOKUP(D35 & "",Surcharge!A:B,2,FALSE)*F35), "") ->  | P35: =VLOOKUP(D35,'MPF SAP Canada Pre-Configured'!C:E,3,FALSE) -> 1328
C36: Certified CRI Bronze Cleaning Performance. 44 VDC / 2.9 Ah lithium ion powered vacuum. Runtime 50 minutes. Weighs only 11 lbs (4.99 kg). Comes standard with HEPA filtration, spare belt and bag. Comes with battery and charger, UL certified. | F36: =SUM(F35) -> 0 | H36: =IFERROR(IFERROR(VLOOKUP(D36,Surcharge!A:B,2,FALSE)*F36, VLOOKUP(D36 & "",Surcharge!A:B,2,FALSE)*F36), "") -> 
F37: =SUM(F36) -> 0 | H37: =IFERROR(IFERROR(VLOOKUP(D37,Surcharge!A:B,2,FALSE)*F37, VLOOKUP(D37 & "",Surcharge!A:B,2,FALSE)*F37), "") -> 
C38: Boxed Dimensions: 35"L x 15"W x 7 "H (889mm x 381mm x 178mm) | F38: 0 | H38: =IFERROR(IFERROR(VLOOKUP(D38,Surcharge!A:B,2,FALSE)*F38, VLOOKUP(D38 & "",Surcharge!A:B,2,FALSE)*F38), "") -> 
C39: Shipping Weight: 17 lbs. (7.7kg) | F39: 0 | H39: =IFERROR(IFERROR(VLOOKUP(D39,Surcharge!A:B,2,FALSE)*F39, VLOOKUP(D39 & "",Surcharge!A:B,2,FALSE)*F39), "") -> 
C40: Made in the USA with Globally sourced components | F40: 0 | H40: =IFERROR(IFERROR(VLOOKUP(D40,Surcharge!A:B,2,FALSE)*F40, VLOOKUP(D40 & "",Surcharge!A:B,2,FALSE)*F40), "") -> 
H41: =IFERROR(IFERROR(VLOOKUP(D41,Surcharge!A:B,2,FALSE)*F41, VLOOKUP(D41 & "",Surcharge!A:B,2,FALSE)*F41), "") -> 
F42: =SUM(F43) -> 0 | H42: =IFERROR(IFERROR(VLOOKUP(D42,Surcharge!A:B,2,FALSE)*F42, VLOOKUP(D42 & "",Surcharge!A:B,2,FALSE)*F42), "") -> 
C43: V-SMU-14 - 14" (356mm) Single Motor Vacuum | D43: 1060829 | E43: 866 | G43: =F43*E43 -> 0 | H43: =IFERROR(IFERROR(VLOOKUP(D43,Surcharge!A:B,2,FALSE)*F43, VLOOKUP(D43 & "",Surcharge!A:B,2,FALSE)*F43), "") ->  | P43: =VLOOKUP(D43,'MPF SAP Canada Pre-Configured'!C:E,3,FALSE) -> 866
C44: Certified CRI Silver Cleaning Performance. 1.5-gallon (5.5-liter) bag capacity. Comes standard with 3-stage HEPA filtration, easy access crevice tool and dusting brush , 4:1 stretch hose, telescopic aluminum wand, spare belt and bag and 50 ft. (15m) safety-yellow power cord. ETL US/C | F44: =SUM(F43) -> 0 | H44: =IFERROR(IFERROR(VLOOKUP(D44,Surcharge!A:B,2,FALSE)*F44, VLOOKUP(D44 & "",Surcharge!A:B,2,FALSE)*F44), "") -> 
C45: Boxed Dimensions: 42.75"L x 17.25"W x 9.75"H (1090mm x 440mm x 250mm) * | F45: =SUM(F44) -> 0 | H45: =IFERROR(IFERROR(VLOOKUP(D45,Surcharge!A:B,2,FALSE)*F45, VLOOKUP(D45 & "",Surcharge!A:B,2,FALSE)*F45), "") -> 
C46: Shipping Weight: 21.75 lbs. (9.9 kg) | F46: =SUM(F45) -> 0 | H46: =IFERROR(IFERROR(VLOOKUP(D46,Surcharge!A:B,2,FALSE)*F46, VLOOKUP(D46 & "",Surcharge!A:B,2,FALSE)*F46), "") -> 
H47: =IFERROR(IFERROR(VLOOKUP(D47,Surcharge!A:B,2,FALSE)*F47, VLOOKUP(D47 & "",Surcharge!A:B,2,FALSE)*F47), "") -> 
F48: =SUM(F49) -> 0 | H48: =IFERROR(IFERROR(VLOOKUP(D48,Surcharge!A:B,2,FALSE)*F48, VLOOKUP(D48 & "",Surcharge!A:B,2,FALSE)*F48), "") -> 
C49: V-DMU-14 - 14" (356mm) Dual Motor Vacuum | D49: 1068027 | E49: 1131 | G49: =F49*E49 -> 0 | H49: =IFERROR(IFERROR(VLOOKUP(D49,Surcharge!A:B,2,FALSE)*F49, VLOOKUP(D49 & "",Surcharge!A:B,2,FALSE)*F49), "") ->  | P49: =VLOOKUP(D49,'MPF SAP Canada Pre-Configured'!C:E,3,FALSE) -> 1131
C50: Certified CRI Silver Cleaning Performance. 1.5-gallon (5.5-liter) bag capacity. Comes standard with 3-stage HEPA filtration, easy access crevice tool and dusting brush , 4:1 stretch hose, telescopic aluminum wand, spare bag and 50 ft. (15m) safety-yellow power cord. ETL US/C | F50: =SUM(F49) -> 0 | H50: =IFERROR(IFERROR(VLOOKUP(D50,Surcharge!A:B,2,FALSE)*F50, VLOOKUP(D50 & "",Surcharge!A:B,2,FALSE)*F50), "") -> 
C51: Boxed Dimensions: 42.75"L x 17.25"W x 9.75"H (1090mm x 440mm x 250mm) * | F51: =SUM(F50) -> 0 | H51: =IFERROR(IFERROR(VLOOKUP(D51,Surcharge!A:B,2,FALSE)*F51, VLOOKUP(D51 & "",Surcharge!A:B,2,FALSE)*F51), "") -> 
C52: Shipping Weight: 22.75 lbs. (9.9 kg) | F52: =SUM(F51) -> 0 | H52: =IFERROR(IFERROR(VLOOKUP(D52,Surcharge!A:B,2,FALSE)*F52, VLOOKUP(D52 & "",Surcharge!A:B,2,FALSE)*F52), "") -> 
H53: =IFERROR(IFERROR(VLOOKUP(D53,Surcharge!A:B,2,FALSE)*F53, VLOOKUP(D53 & "",Surcharge!A:B,2,FALSE)*F53), "") -> 
H54: =IFERROR(IFERROR(VLOOKUP(D54,Surcharge!A:B,2,FALSE)*F54, VLOOKUP(D54 & "",Surcharge!A:B,2,FALSE)*F54), "") -> 
C55: DENALI-16 Premium Dry Canister Vacuum Cleaner | D55: 1252619 | E55: 810 | G55: =F55*E55 -> 0 | P55: =VLOOKUP(D55,'MPF SAP Canada Pre-Configured'!C:E,3,FALSE) -> 764
C56: CRI certified Bronze with optional high performance tool. 4.2 gallon (16 liter) capacity with multi-stage filtration including cloth filter, fleece bag and downstream HEPA cartridge. Comes standard with speed regulator, full bag indicator, chrome telescopic tube, wand with air flow regulator, floor tool, flat lance, round brush and small tool, 6.5 ft (2 m) hose, 40 ft (12m) detachable safety-yellow power cord. UL / CSA | F56: =SUM(F55) -> 0
F57: =SUM(F56) -> 0
C58: Boxed Dimensions: 16 x 17 x 20 in (400 x 435 x 515 mm) | F58: 0
C59: Shipping Weight: 20 lb / 9 kg | F59: 0
C62: DENALI-12 Standard Dry Canister Vacuum Cleaner | D62: 1252617 | E62: 659 | G62: =F62*E62 -> 0 | P62: =VLOOKUP(D62,'MPF SAP Canada Pre-Configured'!C:E,3,FALSE) -> 621
C63: CRI certified Bronze with optional high performance tool. 3.2 gallon (12 liter) capacity with multi-stage filtration including cloth filter, fleece bag and downstream foam filter. Comes standard with chrome tube, wand with air flow regulator, floor tool, flat lance, round brush and small tool, 6.5 ft (2.5 m) hose, 40 ft (12m) detachable safety-yellow power cord. UL / CSA | F63: =SUM(F62) -> 0
F64: =SUM(F63) -> 0
C65: Boxed Dimensions: 15.5 x 15.5 x 20 in (395 x 395 x 510 mm) | F65: 0
C66: Shipping Weight: 19.4 lb / 8.8 kg | F66: 0
C69: DENALI-10 Compact Dry Canister Vacuum Cleaner | D69: 1244294 | E69: 476 | G69: =F69*E69 -> 0 | P69: =VLOOKUP(D69,'MPF SAP Canada Pre-Configured'!C:E,3,FALSE) -> 449
C70: 2.6 gallon (10 liter) capacity, comes standard with paper bag, floor tool/crevice tool/dusting brush, 2-piece wand, 5 ft (1.9 m) hose and 26 ft (8 m) yellow power cord. Intertek ETL (US-Can) | F70: =SUM(F69) -> 0
F71: =SUM(F70) -> 0
C72: Boxed Dimensions: 13.2 x 13 x 13 in (335 x 330 x 330 mm). | F72: 0
C73: Shipping Weight: 15 lb / 6.7kg | F73: 0
F75: =SUM(F76) -> 0 | H75: =IFERROR(IFERROR(VLOOKUP(D75,Surcharge!A:B,2,FALSE)*F75, VLOOKUP(D75 & "",Surcharge!A:B,2,FALSE)*F75), "") -> 
C76: Nobles Aspen 6 Backpack Vacuum - Base Kit | D76: 9013476 | E76: 1058 | G76: =F76*E76 -> 0 | H76: =IFERROR(IFERROR(VLOOKUP(D76,Surcharge!A:B,2,FALSE)*F76, VLOOKUP(D76 & "",Surcharge!A:B,2,FALSE)*F76), "") ->  | P76: =VLOOKUP(D76,'MPF SAP Canada Pre-Configured'!C:E,3,FALSE) -> 1058
C77: Ergonomic Commercial Backpack Vacuum - 10 amp vac motor, 6 qt. (5.7 litre) capacity, comes standard with 4-stage HEPA filtration, Deuter branded hiking harness, 14" (356 mm) hard floor tool, 14" (356mm) carpet floor tool, 15-ft (5m) crush proof 4:1 stretch hose and lightweight, two-piece aluminum wand, dust brush, crevice and upholstery tool. 50 ft. (15m) safety-yellow power cord. UL-CSA. CRI certified Gold with optional Hi-performance tool. | F77: =SUM(F76) -> 0 | H77: =IFERROR(IFERROR(VLOOKUP(D77,Surcharge!A:B,2,FALSE)*F77, VLOOKUP(D77 & "",Surcharge!A:B,2,FALSE)*F77), "") -> 
F78: =SUM(F77) -> 0 | H78: =IFERROR(IFERROR(VLOOKUP(D78,Surcharge!A:B,2,FALSE)*F78, VLOOKUP(D78 & "",Surcharge!A:B,2,FALSE)*F78), "") -> 
C79: Vacuum Boxed Dimensions: 26.8"L x 15.2"W x 14.2"H (680mm x 385mm x 360mm) | F79: 0 | H79: =IFERROR(IFERROR(VLOOKUP(D79,Surcharge!A:B,2,FALSE)*F79, VLOOKUP(D79 & "",Surcharge!A:B,2,FALSE)*F79), "") -> 
C80: Tools Boxed Dimensions: 32"L x 11" W x 4.5"H (813mm x 279mm x 114mm) | F80: 0 | H80: =IFERROR(IFERROR(VLOOKUP(D80,Surcharge!A:B,2,FALSE)*F80, VLOOKUP(D80 & "",Surcharge!A:B,2,FALSE)*F80), "") -> 
C81: Shipping Weight: vacuum 21.2 lbs. (9.6 kg) + tools 3.6 lbs (1.6 kg) = total 24.8 lbs (11.2 kg) | F81: 0 | H81: =IFERROR(IFERROR(VLOOKUP(D81,Surcharge!A:B,2,FALSE)*F81, VLOOKUP(D81 & "",Surcharge!A:B,2,FALSE)*F81), "") -> 
C82: *3 Total boxes will come with the order (in addition to the two above there will be a small accessory box. | F82: 0 | H82: =IFERROR(IFERROR(VLOOKUP(D82,Surcharge!A:B,2,FALSE)*F82, VLOOKUP(D82 & "",Surcharge!A:B,2,FALSE)*F82), "") -> 
F83: =SUM(F84) -> 0 | H83: =IFERROR(IFERROR(VLOOKUP(D83,Surcharge!A:B,2,FALSE)*F83, VLOOKUP(D83 & "",Surcharge!A:B,2,FALSE)*F83), "") -> 
C84: Nobles Aspen 6 Backpack Vacuum - Standard Kit | D84: 9013477 | E84: 1092 | G84: =F84*E84 -> 0 | H84: =IFERROR(IFERROR(VLOOKUP(D84,Surcharge!A:B,2,FALSE)*F84, VLOOKUP(D84 & "",Surcharge!A:B,2,FALSE)*F84), "") ->  | P84: =VLOOKUP(D84,'MPF SAP Canada Pre-Configured'!C:E,3,FALSE) -> 1092
C85: Ergonomic Commercial Backpack Vacuum - 10 amp vac motor, 6 qt. (5.7 litre) capacity, comes standard with 4-stage HEPA filtration, Deuter branded hiking harness, 14" (356 mm) hard floor tool, 14" (356mm) carpet floor tool, 15-ft (5m) crush proof 4:1 stretch hose and robust one-piece chrome telescoping wand, dust brush, crevice and upholstery tool. 50 ft. (15m) safety-yellow power cord. UL-CSA. CRI certified Gold with optional Hi-performance tool. | F85: =SUM(F84) -> 0 | H85: =IFERROR(IFERROR(VLOOKUP(D85,Surcharge!A:B,2,FALSE)*F85, VLOOKUP(D85 & "",Surcharge!A:B,2,FALSE)*F85), "") -> 
F86: =SUM(F85) -> 0 | H86: =IFERROR(IFERROR(VLOOKUP(D86,Surcharge!A:B,2,FALSE)*F86, VLOOKUP(D86 & "",Surcharge!A:B,2,FALSE)*F86), "") -> 
C87: Vacuum Boxed Dimensions: 26.8"L x 15.2"W x 14.2"H (680mm x 385mm x 360mm) | F87: 0 | H87: =IFERROR(IFERROR(VLOOKUP(D87,Surcharge!A:B,2,FALSE)*F87, VLOOKUP(D87 & "",Surcharge!A:B,2,FALSE)*F87), "") -> 
C88: Tools Boxed Dimensions: 44.5"L x 7.5" W x 3.5"H (1130mm x 191mm x 89mm) | F88: 0 | H88: =IFERROR(IFERROR(VLOOKUP(D88,Surcharge!A:B,2,FALSE)*F88, VLOOKUP(D88 & "",Surcharge!A:B,2,FALSE)*F88), "") -> 
C89: Shipping Weight: vacuum 21.2 lbs. (9.6 kg) + tools 4.8 lbs (2.2 kg) = total 26 lbs (11.8 kg) | F89: 0 | H89: =IFERROR(IFERROR(VLOOKUP(D89,Surcharge!A:B,2,FALSE)*F89, VLOOKUP(D89 & "",Surcharge!A:B,2,FALSE)*F89), "") -> 
C90: *3 Total boxes will come with the order (in addition to the two above there will be a small accessory box. | F90: 0 | H90: =IFERROR(IFERROR(VLOOKUP(D90,Surcharge!A:B,2,FALSE)*F90, VLOOKUP(D90 & "",Surcharge!A:B,2,FALSE)*F90), "") -> 
F91: =SUM(F92) -> 0 | H91: =IFERROR(IFERROR(VLOOKUP(D91,Surcharge!A:B,2,FALSE)*F91, VLOOKUP(D91 & "",Surcharge!A:B,2,FALSE)*F91), "") -> 
C92: Nobles Aspen 6 Backpack Vacuum - Premium Kit (Sidewinder Tools) | D92: 9013478 | E92: 1248 | G92: =F92*E92 -> 0 | H92: =IFERROR(IFERROR(VLOOKUP(D92,Surcharge!A:B,2,FALSE)*F92, VLOOKUP(D92 & "",Surcharge!A:B,2,FALSE)*F92), "") ->  | P92: =VLOOKUP(D92,'MPF SAP Canada Pre-Configured'!C:E,3,FALSE) -> 1248
C93: Ergonomic Commercial Backpack Vacuum - 10 amp vac motor, 6 qt. (5.7 litre) capacity, comes standard with 4-stage HEPA filtration, Deuter branded hiking harness, 18" (457 mm) Sidewinder branded hard floor tool, 18" (457 mm) Sidewinder branded carpet floor tool, 15-ft (5m) crush proof 4:1 stretch hose and two-piece anodized aluminum wand, dust brush, crevice and upholstery tool. 50 ft. (15m) safety-yellow power cord. UL-CSA. CRI certified Gold with optional Hi-performance tool. | F93: =SUM(F92) -> 0 | H93: =IFERROR(IFERROR(VLOOKUP(D93,Surcharge!A:B,2,FALSE)*F93, VLOOKUP(D93 & "",Surcharge!A:B,2,FALSE)*F93), "") -> 
F94: =SUM(F93) -> 0 | H94: =IFERROR(IFERROR(VLOOKUP(D94,Surcharge!A:B,2,FALSE)*F94, VLOOKUP(D94 & "",Surcharge!A:B,2,FALSE)*F94), "") -> 
C95: Vacuum Boxed Dimensions: 26.8"L x 15.2"W x 14.2"H (680mm x 385mm x 360mm) | F95: 0 | H95: =IFERROR(IFERROR(VLOOKUP(D95,Surcharge!A:B,2,FALSE)*F95, VLOOKUP(D95 & "",Surcharge!A:B,2,FALSE)*F95), "") -> 
C96: Tools Boxed Dimensions: 32"L x 11" W x 4.5"H (813mm x 279mm x 114mm) | F96: 0 | H96: =IFERROR(IFERROR(VLOOKUP(D96,Surcharge!A:B,2,FALSE)*F96, VLOOKUP(D96 & "",Surcharge!A:B,2,FALSE)*F96), "") -> 
C97: Shipping Weight: vacuum 21.2 lbs. (9.6 kg) + tools 3.4 lbs (1.5 kg) = total 24.6 lbs (11.2 kg) | F97: 0 | H97: =IFERROR(IFERROR(VLOOKUP(D97,Surcharge!A:B,2,FALSE)*F97, VLOOKUP(D97 & "",Surcharge!A:B,2,FALSE)*F97), "") -> 
C98: *3 Total boxes will come with the order (in addition to the two above there will be a small accessory box. | F98: 0 | H98: =IFERROR(IFERROR(VLOOKUP(D98,Surcharge!A:B,2,FALSE)*F98, VLOOKUP(D98 & "",Surcharge!A:B,2,FALSE)*F98), "") -> 
H99: =IFERROR(IFERROR(VLOOKUP(D99,Surcharge!A:B,2,FALSE)*F99, VLOOKUP(D99 & "",Surcharge!A:B,2,FALSE)*F99), "") -> 
C100: Aspen 6B Battery Backpack Vacuum - Base Kit | D100: 9017568 | E100: 2722 | G100: =F100*E100 -> 0 | H100: =IFERROR(IFERROR(VLOOKUP(D100,Surcharge!A:B,2,FALSE)*F100, VLOOKUP(D100 & "",Surcharge!A:B,2,FALSE)*F100), "") ->  | P100: =VLOOKUP(D100,'MPF SAP Canada Pre-Configured'!C:E,3,FALSE) -> 2722
C101: Ergonomic Commercial Backpack Vacuum - 36 VDC / 10.4 Ah lithium ion powered battery vacuum. Runtime 55 minutes. 6 qt. (5.7 liter) capacity, comes standard with 4-stage HEPA filtration, Deuter branded hiking harness, 14" (356 mm) hard floor tool, 14" (356mm) carpet floor tool, 15-ft (5m) crush proof 4:1 stretch hose and lightweight, two-piece aluminum wand, dust brush, crevice and upholstery tool. ETL certified. CRI certified Silver with optional Hi-performance tool. Battery and charger included in price, battery ships separately. | F101: =SUM(F100) -> 0 | H101: =IFERROR(IFERROR(VLOOKUP(D101,Surcharge!A:B,2,FALSE)*F101, VLOOKUP(D101 & "",Surcharge!A:B,2,FALSE)*F101), "") -> 
F102: =SUM(F101) -> 0 | H102: =IFERROR(IFERROR(VLOOKUP(D102,Surcharge!A:B,2,FALSE)*F102, VLOOKUP(D102 & "",Surcharge!A:B,2,FALSE)*F102), "") -> 
C103: Vacuum Boxed Dimensions: 33.25"L x 16"W x 15"H (844.6mm x 406mm x 381mm) | F103: 0 | H103: =IFERROR(IFERROR(VLOOKUP(D103,Surcharge!A:B,2,FALSE)*F103, VLOOKUP(D103 & "",Surcharge!A:B,2,FALSE)*F103), "") -> 
C104: Tools Boxed Dimensions: 32"L x 11" W x 4.5"H (813mm x 279mm x 114mm) | F104: 0 | H104: =IFERROR(IFERROR(VLOOKUP(D104,Surcharge!A:B,2,FALSE)*F104, VLOOKUP(D104 & "",Surcharge!A:B,2,FALSE)*F104), "") -> 
C105: Battery Box Dimensions: 13.5"L x 4.5"W x 6.25"H (343mm x 114mm x 159mm) | F105: 0 | H105: =IFERROR(IFERROR(VLOOKUP(D105,Surcharge!A:B,2,FALSE)*F105, VLOOKUP(D105 & "",Surcharge!A:B,2,FALSE)*F105), "") -> 
C106: Shipping Weight: vacuum 23 lbs. (10.4 kg) + tools 3.6 lbs (1.6 kg) + battery box 6.2 lbs (2.8 kg) = total 32.8 lbs (14.8 kg) | F106: 0 | H106: =IFERROR(IFERROR(VLOOKUP(D106,Surcharge!A:B,2,FALSE)*F106, VLOOKUP(D106 & "",Surcharge!A:B,2,FALSE)*F106), "") -> 
C107: *4 Total boxes will come with the order (in addition to the three above there will be a small accessory box). | F107: 0 | H107: =IFERROR(IFERROR(VLOOKUP(D107,Surcharge!A:B,2,FALSE)*F107, VLOOKUP(D107 & "",Surcharge!A:B,2,FALSE)*F107), "") -> 
H108: =IFERROR(IFERROR(VLOOKUP(D108,Surcharge!A:B,2,FALSE)*F108, VLOOKUP(D108 & "",Surcharge!A:B,2,FALSE)*F108), "") -> 
C109: Aspen 6B Battery Backpack Vacuum - Standard Kit | D109: 9017569 | E109: 2815 | G109: =F109*E109 -> 0 | H109: =IFERROR(IFERROR(VLOOKUP(D109,Surcharge!A:B,2,FALSE)*F109, VLOOKUP(D109 & "",Surcharge!A:B,2,FALSE)*F109), "") ->  | P109: =VLOOKUP(D109,'MPF SAP Canada Pre-Configured'!C:E,3,FALSE) -> 2815
C110: Ergonomic Commercial Backpack Vacuum - 36 VDC / 10.4 Ah lithium ion battery powered vacuum. Runtime 55 minutes. 6 qt. (5.7 liter) capacity, comes standard with 4-stage HEPA filtration, Deuter branded hiking harness, 14" (356 mm) hard floor tool, 14" (356mm) carpet floor tool, 15-ft (5m) crush proof 4:1 stretch hose and chrome telescoping wand, dust brush, crevice and upholstery tool. ETL certified. CRI certified Silver with optional Hi-performance tool. Battery and charger included in price, battery ships separately. | F110: =SUM(F109) -> 0 | H110: =IFERROR(IFERROR(VLOOKUP(D110,Surcharge!A:B,2,FALSE)*F110, VLOOKUP(D110 & "",Surcharge!A:B,2,FALSE)*F110), "") -> 
F111: =SUM(F110) -> 0 | H111: =IFERROR(IFERROR(VLOOKUP(D111,Surcharge!A:B,2,FALSE)*F111, VLOOKUP(D111 & "",Surcharge!A:B,2,FALSE)*F111), "") -> 
C112: Vacuum Boxed Dimensions: 33.25"L x 16"W x 15"H (844.6mm x 406mm x 381mm) | F112: 0 | H112: =IFERROR(IFERROR(VLOOKUP(D112,Surcharge!A:B,2,FALSE)*F112, VLOOKUP(D112 & "",Surcharge!A:B,2,FALSE)*F112), "") -> 
C113: Tools Boxed Dimensions: 44.5"L x 7.5" W x 3.5"H (1130mm x 191mm x 89mm) | F113: 0 | H113: =IFERROR(IFERROR(VLOOKUP(D113,Surcharge!A:B,2,FALSE)*F113, VLOOKUP(D113 & "",Surcharge!A:B,2,FALSE)*F113), "") -> 
C114: Battery Box Dimensions: 13.5"L x 4.5"W x 6.25"H (343mm x 114mm x 159mm) | F114: 0 | H114: =IFERROR(IFERROR(VLOOKUP(D114,Surcharge!A:B,2,FALSE)*F114, VLOOKUP(D114 & "",Surcharge!A:B,2,FALSE)*F114), "") -> 
C115: Shipping Weight: vacuum 23 lbs. (10.4 kg) + tools 3.6 lbs (1.6 kg) + battery box 6.2 lbs (2.8 kg) = total 32.8 lbs (14.8 kg) | F115: 0 | H115: =IFERROR(IFERROR(VLOOKUP(D115,Surcharge!A:B,2,FALSE)*F115, VLOOKUP(D115 & "",Surcharge!A:B,2,FALSE)*F115), "") -> 
C116: *4 Total boxes will come with the order (in addition to the three above there will be a small accessory box). | F116: 0 | H116: =IFERROR(IFERROR(VLOOKUP(D116,Surcharge!A:B,2,FALSE)*F116, VLOOKUP(D116 & "",Surcharge!A:B,2,FALSE)*F116), "") -> 
H117: =IFERROR(IFERROR(VLOOKUP(D117,Surcharge!A:B,2,FALSE)*F117, VLOOKUP(D117 & "",Surcharge!A:B,2,FALSE)*F117), "") -> 
C118: Aspen 6B Battery Backpack Vacuum - Premium Kit (Sidewinder Tools) | D118: 9017572 | E118: 3001 | G118: =F118*E118 -> 0 | H118: =IFERROR(IFERROR(VLOOKUP(D118,Surcharge!A:B,2,FALSE)*F118, VLOOKUP(D118 & "",Surcharge!A:B,2,FALSE)*F118), "") ->  | P118: =VLOOKUP(D118,'MPF SAP Canada Pre-Configured'!C:E,3,FALSE) -> 3001
C119: Ergonomic Commercial Backpack Vacuum - 36 VDC / 10.4 Ah lithium ion powered vacuum. Runtime 55 minutes. 6 qt. (5.7 litre) capacity, comes standard with 4-stage HEPA filtration, Deuter branded hiking harness, 18" (457 mm) Sidewinder branded hard floor tool, 18" (457 mm) Sidewinder branded carpet floor tool, 15-ft (5m) crush proof 4:1 stretch hose and two-piece anodized aluminum wand, dust brush, crevice and upholstery tool. ETL certified. CRI certified Silver with optional Hi-performance tool. Battery and charger included in price, battery ships separately. | F119: =SUM(F118) -> 0 | H119: =IFERROR(IFERROR(VLOOKUP(D119,Surcharge!A:B,2,FALSE)*F119, VLOOKUP(D119 & "",Surcharge!A:B,2,FALSE)*F119), "") -> 
F120: =SUM(F119) -> 0 | H120: =IFERROR(IFERROR(VLOOKUP(D120,Surcharge!A:B,2,FALSE)*F120, VLOOKUP(D120 & "",Surcharge!A:B,2,FALSE)*F120), "") -> 
C121: Vacuum Boxed Dimensions: 33.25"L x 16"W x 15"H (844.6mm x 406mm x 381mm) | F121: 0 | H121: =IFERROR(IFERROR(VLOOKUP(D121,Surcharge!A:B,2,FALSE)*F121, VLOOKUP(D121 & "",Surcharge!A:B,2,FALSE)*F121), "") -> 
C122: Tools Boxed Dimensions: 32"L x 11" W x 4.5"H (813mm x 279mm x 114mm) | F122: 0 | H122: =IFERROR(IFERROR(VLOOKUP(D122,Surcharge!A:B,2,FALSE)*F122, VLOOKUP(D122 & "",Surcharge!A:B,2,FALSE)*F122), "") -> 
C123: Battery Box Dimensions: 13.5"L x 4.5"W x 6.25"H (343mm x 114mm x 159mm) | F123: 0 | H123: =IFERROR(IFERROR(VLOOKUP(D123,Surcharge!A:B,2,FALSE)*F123, VLOOKUP(D123 & "",Surcharge!A:B,2,FALSE)*F123), "") -> 
C124: Shipping Weight: vacuum 23 lbs. (10.4 kg) + tools 3.4 lbs (1.5 kg) + battery box 6.2 lbs (2.8 kg) = total 32.6 lbs (14.7 kg) | F124: 0 | H124: =IFERROR(IFERROR(VLOOKUP(D124,Surcharge!A:B,2,FALSE)*F124, VLOOKUP(D124 & "",Surcharge!A:B,2,FALSE)*F124), "") -> 
C125: *4 Total boxes will come with the order (in addition to the three above there will be a small accessory box). | F125: 0 | H125: =IFERROR(IFERROR(VLOOKUP(D125,Surcharge!A:B,2,FALSE)*F125, VLOOKUP(D125 & "",Surcharge!A:B,2,FALSE)*F125), "") -> 
H127: =IFERROR(IFERROR(VLOOKUP(D127,Surcharge!A:B,2,FALSE)*F127, VLOOKUP(D127 & "",Surcharge!A:B,2,FALSE)*F127), "") -> 
B128: Wet/Dry Vacuums | F128: =SUM(F130,F137,F144,F152) -> 0 | H128: =IFERROR(IFERROR(VLOOKUP(D128,Surcharge!A:B,2,FALSE)*F128, VLOOKUP(D128 & "",Surcharge!A:B,2,FALSE)*F128), "") -> 
C130: V-WD-24P 24-gal. Wet/Dry Vacuum with Pump & Front Mount Squeegee | D130: 9019349 | E130: 3222 | G130: =F130*E130 -> 0 | P130: =VLOOKUP(D130,'MPF SAP Canada Pre-Configured'!C:E,3,FALSE) -> 3128
C131: 22.7 gallon gross volume tank capacity/14.5 gallon water volume tank capacity. 100" (2530 mm) waterlift with powerful submersible pump and front mount squeegee. Includes 16-ft. (5 m) vacuum hose, a 40-ft. (12 m) power cord, 2-pc. Aluminum/plastic wand, wand with air flor regulator and wet floor tool. Options include: dual filtration system, dust floor tool, flat lance, round brush and adaptor. | F131: =SUM(F130) -> 0
D132: Dual Filtration System sold as option | F132: =SUM(F131) -> 0
C133: Boxed dimensions: 24L x 19W x 37H (620mm x 495mm x 950mm) | F133: 0
C134: Shipping Weight: 87 lbs. (39.5 kg) | F134: 0
H135: =IFERROR(IFERROR(VLOOKUP(D135,Surcharge!A:B,2,FALSE)*F135, VLOOKUP(D135 & "",Surcharge!A:B,2,FALSE)*F135), "") -> 
H136: =IFERROR(IFERROR(VLOOKUP(D136,Surcharge!A:B,2,FALSE)*F136, VLOOKUP(D136 & "",Surcharge!A:B,2,FALSE)*F136), "") -> 
C137: V-WD-24P 24-gal. Wet/Dry Vacuum with Pump | D137: 1244346 | E137: 2595 | G137: =F137*E137 -> 0 | H137: =IFERROR(IFERROR(VLOOKUP(D137,Surcharge!A:B,2,FALSE)*F137, VLOOKUP(D137 & "",Surcharge!A:B,2,FALSE)*F137), "") ->  | P137: =VLOOKUP(D137,'MPF SAP Canada Pre-Configured'!C:E,3,FALSE) -> 2519
C138: 22.7 gallon gross volume tank capacity/14.5 gallon water volume tank capacity. 100" (2530 mm) waterlift with powerful submersible pump. Includes 16-ft. (5 m) vacuum hose, a 40-ft. (12 m) power cord, 2-pc. Aluminum/plastic wand, wand with air flor regulator and wet floor tool. Options include: front mount squeegee kit, dual filtration system, dust floor tool, flat lance, round brush and adaptor. | D138: Squeegee sold as option | F138: =SUM(F137) -> 0 | H138: =IFERROR(IFERROR(VLOOKUP(D138,Surcharge!A:B,2,FALSE)*F138, VLOOKUP(D138 & "",Surcharge!A:B,2,FALSE)*F138), "") -> 
D139: Dual Filtration System sold as option | F139: =SUM(F138) -> 0 | H139: =IFERROR(IFERROR(VLOOKUP(D139,Surcharge!A:B,2,FALSE)*F139, VLOOKUP(D139 & "",Surcharge!A:B,2,FALSE)*F139), "") -> 
C140: Boxed dimensions: 24L x 19W x 37H (620mm x 495mm x 950mm) | F140: 0 | H140: =IFERROR(IFERROR(VLOOKUP(D140,Surcharge!A:B,2,FALSE)*F140, VLOOKUP(D140 & "",Surcharge!A:B,2,FALSE)*F140), "") -> 
C141: Shipping Weight: 65 lbs. (29.6 kg) | F141: 0 | H141: =IFERROR(IFERROR(VLOOKUP(D141,Surcharge!A:B,2,FALSE)*F141, VLOOKUP(D141 & "",Surcharge!A:B,2,FALSE)*F141), "") -> 
H142: =IFERROR(IFERROR(VLOOKUP(D142,Surcharge!A:B,2,FALSE)*F142, VLOOKUP(D142 & "",Surcharge!A:B,2,FALSE)*F142), "") -> 
C144: V-WD-24 24-gal. Wet/Dry Vacuum with front mount squeegee | D144: 9019348 | E144: 1939 | G144: =F144*E144 -> 0 | P144: =VLOOKUP(D144,'MPF SAP Canada Pre-Configured'!C:E,3,FALSE) -> 1882
C145: 24 gallon gross volume tank capacity/15.59 gallon water volume tank capacity.100" (2530 mm) waterlift with front mount squeegee. Includes 16-ft. (5 m) vacuum hose, a 40-ft. (12 m) power cord, 2-pc. Aluminum/plastic wand, wand with air flor regulator, cloth filter, paper bag, dust floor tool, wet floor tool, flat lance, round brush and adaptor. Options include: carpet brush tool and upstream HEPA filter. | F145: =SUM(F144) -> 0
F146: =SUM(F145) -> 0
C147: Boxed dimensions: 24L x 19W x 37H (620mm x 495mm x 950mm) | F147: 0
C148: Shipping Weight: 79 lbs. (35.8 kg) | F148: 0
H150: =IFERROR(IFERROR(VLOOKUP(D150,Surcharge!A:B,2,FALSE)*F150, VLOOKUP(D150 & "",Surcharge!A:B,2,FALSE)*F150), "") -> 
C151: V-WD-24 24-gal. Wet/Dry Vacuum | F151: =SUM(F152) -> 0 | H151: =IFERROR(IFERROR(VLOOKUP(D151,Surcharge!A:B,2,FALSE)*F151, VLOOKUP(D151 & "",Surcharge!A:B,2,FALSE)*F151), "") -> 
C152: 24 gallon gross volume tank capacity/15.59 gallon water volume tank capacity. 100" (2530 mm) waterlift. Includes 16-ft. (5 m) vacuum hose, a 40-ft. (12 m) power cord, 2-pc. Aluminum/plastic wand, wand with air flor regulator, cloth filter, paper bag, dust floor tool, wet floor tool, flat lance, round brush and adaptor. Options include: front mount squeegee kit, carpet brush tool and upstream HEPA filter. | D152: 1245656 | E152: 1312 | G152: =F152*E152 -> 0 | H152: =IFERROR(IFERROR(VLOOKUP(D152,Surcharge!A:B,2,FALSE)*F152, VLOOKUP(D152 & "",Surcharge!A:B,2,FALSE)*F152), "") ->  | P152: =VLOOKUP(D152,'MPF SAP Canada Pre-Configured'!C:E,3,FALSE) -> 1273
D153: Squeegee sold as option | F153: =SUM(F152) -> 0 | H153: =IFERROR(IFERROR(VLOOKUP(D153,Surcharge!A:B,2,FALSE)*F153, VLOOKUP(D153 & "",Surcharge!A:B,2,FALSE)*F153), "") -> 
C154: Boxed dimensions: 24L x 19W x 37H (620mm x 495mm x 950mm) | F154: =SUM(F153) -> 0 | H154: =IFERROR(IFERROR(VLOOKUP(D154,Surcharge!A:B,2,FALSE)*F154, VLOOKUP(D154 & "",Surcharge!A:B,2,FALSE)*F154), "") -> 
C155: Shipping Weight: 59 lbs. (26.8 kg) | F155: 0
H156: =IFERROR(IFERROR(VLOOKUP(D156,Surcharge!A:B,2,FALSE)*F156, VLOOKUP(D156 & "",Surcharge!A:B,2,FALSE)*F156), "") -> 
C158: V-WD-9 9-gal. Wet/Dry Vacuum | D158: 1244345 | E158: 829 | G158: =F158*E158 -> 0 | H158: =IFERROR(IFERROR(VLOOKUP(D158,Surcharge!A:B,2,FALSE)*F158, VLOOKUP(D158 & "",Surcharge!A:B,2,FALSE)*F158), "") ->  | P158: =VLOOKUP(D158,'MPF SAP Canada Pre-Configured'!C:E,3,FALSE) -> 804
C159: 9 gallon gross volume tank capacity/6.6 gallon water volume tank capacity. 100" (2530 mm) waterlift. Includes 8-ft. (2.5 m) vacuum hose, a 28-ft. (8.5 m) power cord, 2-pc. Aluminum/plastic wand, wand with air flor regulator, cloth filter, paper bag, dust floor tool, wet floor tool, flat lance, round brush and adaptor. Options include: carpet brush tool and upstream HEPA filter. | F159: =SUM(F158) -> 0 | H159: =IFERROR(IFERROR(VLOOKUP(D159,Surcharge!A:B,2,FALSE)*F159, VLOOKUP(D159 & "",Surcharge!A:B,2,FALSE)*F159), "") -> 
F160: =SUM(F159) -> 0 | H160: =IFERROR(IFERROR(VLOOKUP(D160,Surcharge!A:B,2,FALSE)*F160, VLOOKUP(D160 & "",Surcharge!A:B,2,FALSE)*F160), "") -> 
C161: Boxed dimensions: 17L x 17W x 32H (420mm x 420mm x 820mm) | F161: =SUM(F160) -> 0 | H161: =IFERROR(IFERROR(VLOOKUP(D161,Surcharge!A:B,2,FALSE)*F161, VLOOKUP(D161 & "",Surcharge!A:B,2,FALSE)*F161), "") -> 
C162: Shipping Weight: 31 lbs. (13.9 kg) | F162: =SUM(F161) -> 0 | H162: =IFERROR(IFERROR(VLOOKUP(D162,Surcharge!A:B,2,FALSE)*F162, VLOOKUP(D162 & "",Surcharge!A:B,2,FALSE)*F162), "") -> 
H163: =IFERROR(IFERROR(VLOOKUP(D163,Surcharge!A:B,2,FALSE)*F163, VLOOKUP(D163 & "",Surcharge!A:B,2,FALSE)*F163), "") -> 
E166: =ROUND(SUM(G28:G164), 0) -> 0 | F166: =SUM(E167) -> 0
D167: Machine Subtotal | E167: =ROUND(SUM(G28:G164), 0) -> 0 | F167: =F166 -> 0
B168: Discounts | F168: =SUM(F169) -> 0
F169: =SUM(F171:F174) -> 0
D170: Applicable Currency Adj % | F170: =IF(E170 <> "", 1, 0) -> 0 | G170: =IF(F170*(E170*0.01)*E166 < 0, F170*(E170*0.01)*E166, -(F170*(E170*0.01)*E166)) -> 0
D171: Discount % | F171: =IF(E171 <> "", 1, 0) -> 0 | G171: =IF(F171*(E171*0.01)*(E166+G170) < 0, F171*(E171*0.01)*(E166+G170), -(F171*(E171*0.01)*(E166+G170))) -> 0
D172: Discount $ | F172: 0 | G172: =IF(F172*E172 < 0, F172*E172, -(F172*E172)) -> 0
D173: Discount $ | F173: 0 | G173: =IF(F173*E173 < 0, F173*E173, -(F173*E173)) -> 0
D174: Discount $ | F174: 0 | G174: =IF(F174*E174 < 0, F174*E174, -(F174*E174)) -> 0
D175: Discount Total | E175: =SUM(G170:G174) -> 0 | F175: =SUM(E175) -> 0
F176: =#REF! -> 
F177: =F176 -> 
C178: Prepaid and Add | D178: Freight | F178: =IF(E178 <> "", 1, 0) -> 0 | G178: =F178*E178 -> 0
C179: Subject to all applicable taxes | D179: Tax | F179: 0 | G179: 0
F180: =SUM(F181) -> 0
D181: MACHINE TOTAL* | F181: =SUM(G181) -> 0 | G181: =SUM(G28:G179) -> 0 | N181: This goes to "My Documents"
G182: =SUM(G181) -> 0
C187: Wells Fargo - Leasing Calculation Option: | D187: Option 1 | F187: Option 2 | J187: =Financing!A38 -> Rates 2025 - Rev.2/4/2025
D188: Monthly Payment | E188: Cost Per Day | F188: Monthly Payment | G188: Cost Per Day | J188: =Financing!A39 -> “Blank Payment Amounts Indicate The Financing Option Or Purchase Options Selected Are Not
C189: Purchase Option: | D189: $1 Buyout Lease | F189: None | J189: =Financing!A40 -> Applicable Or The Machine Total Is Below The Minimum Amount For The Selected Vendor”
C190: 24 Months | D190: 0 | E190: 0 | F190: 0 | G190: 0 | J190: =Financing!A41 -> "Quoted monthly payments are estimates only and are based on a certain level of credit rating.
C191: 36 Months | D191: 0 | E191: 0 | F191: 0 | G191: 0 | J191: =Financing!A42 -> Actual monthly payments may be higher depending on your credit rating."
C192: 48 Months | D192: 0 | E192: 0 | F192: 0 | G192: 0 | J192: =Financing!A43 -> “Financing rates do not include Pre-Paid Service”
C193: 60 Months | D193: 0 | E193: 0 | F193: 0 | G193: 0
D195: Benefits of Equipment Financing:
D196: • Spreads out investment over time. | F196: • Keep current with latest technology.
D197: • Preserve capital. | F197: • Service and parts bundling available.
D198: • Low monthly payment. | F198: • Pay for labor savings as you go.
B200: TennantTrue | D200: 0 | E200: 0
C202: Is customer interested in service program? | D202: Yes | E202: *State/County selection required for TennantTrue service options
C204: If not, why?
C206: Term: | D206: 36 | G206: AB Brushes | H206: No
C207: Monthly machine usage (hrs): | D207: < 30/mo. (Avg. 1hr./day)
C209: TennantTrue: | D209: Gold Contract | F209: Silver Contract
C210: Per Visit
C211: Monthly
C212: Annually
C213: Pre-Pay Full Term
C214: Hourly Labor Rate
C215: Site Visit
C217: * Verify customer current pricing prior to quote.
C218: **All rates and fees above reflect service for one (1) unit with the exception of Block of Time service.
C219: *Block of Time is available in 1 Year Term only and is priced as such no matter the term selection on this template.
B223: Quote Special Instructions:
B227: =Start_Here!E36 -> Terms and Conditions
B228: =Start_Here!E37 -> Ask your local sales rep for estimated lead times. Verify when placing order
B229: =Start_Here!E38 -> All orders subject to acceptance by Tennant Sales and Service Company, Minneapolis, Minnesota
B230: =Start_Here!E39 -> Prices subject to change without notice. Subject to any applicable taxes.
B231: =Start_Here!E40 -> Terms: Net 30 days. Payable in Canadian Funds
B232: =Start_Here!E41 -> Freight: Accessories, parts, supplies, detergents, and floor coatings orders delivered DDP
B233: =Start_Here!E42 -> shipping point Frt PPD. Machine orders delivered DDP shipping point Frt PPD and add.
B234: =Start_Here!E43 -> Returned Merchandise is subject to a restocking fee.
B235: =Start_Here!E44 -> All orders are subject to Tennant’s General Terms and Conditions available at http://www.tennantco.com/terms.
B236: =Start_Here!E45 -> Printed General Terms and Conditions are also available upon request.
B237: =Start_Here!E46 -> 0
... 47 more rows

Sheet Floor_Machine
A1: Floor_Machine | C1: =Start_Here!$C19 -> Company Name
A2: =SUM(G55) -> 0 | C2: =Start_Here!$C20 -> Address
C3: =Start_Here!$C21 -> City, State Zip
C4: =Start_Here!$C22 -> Contact Name
C5: =Start_Here!$C$41 -> Rep Name
C6: =Start_Here!$C$37 -> Tennant Sales and Service Company
C7: =Start_Here!$C$38 -> 10400 Clean Street
C8: =Start_Here!$C$39 -> Eden Prairie, MN 55344
C9: =Start_Here!$C$43 -> 800-553-8033 | E9: Quote Date : | G9: =Letter!$A$25 -> 2023-08-01
C11: =Help!C2 -> CAN Date Rev - 5/6/2025
C13: New Machine Warranty
C14: FM 20SS, FM20DS
C15: 36 MONTHS or 2500 HOURS ON PARTS
C16: 36 MONTHS – LABOR | G16: Fax (quote only)
C17: NO TRAVEL | G17: Mail (quote,lit, specs)
C18: 10 YEARS ON ROTOMOLDED PLASTIC PARTS | G18: Fax + Mail
G21: Inside
G22: Outside
C25: Description | D25: Reference# | E25: Canada Price Each | F25: Qty | G25: Extended Price
F26: =SUM(F27) -> 0 | H26: =IFERROR(IFERROR(VLOOKUP(D26,Surcharge!A:B,2,FALSE)*F26, VLOOKUP(D26 & "",Surcharge!A:B,2,FALSE)*F26), "") -> 
C27: FM-20-SS - 20" Heavy Duty 20" (508mm) Floor Machine | D27: 9007336 | E27: 2556 | G27: =F27*E27 -> 0 | H27: =IFERROR(IFERROR(VLOOKUP(D27,Surcharge!A:B,2,FALSE)*F27, VLOOKUP(D27 & "",Surcharge!A:B,2,FALSE)*F27), "") ->  | P27: =VLOOKUP(D27,'MPF SAP Canada Pre-Configured'!C:E,3,FALSE) -> 2388
C28: 175 rpm floor machine (1.50 hp). Includes pad driver. CSA US/C* | F28: =SUM(F27) -> 0 | H28: =IFERROR(IFERROR(VLOOKUP(D28,Surcharge!A:B,2,FALSE)*F28, VLOOKUP(D28 & "",Surcharge!A:B,2,FALSE)*F28), "") -> 
C29: Boxed dimensions: 25L x 22W x 51H (635mm x 559mm x 1295mm) | F29: =SUM(F28) -> 0 | H29: =IFERROR(IFERROR(VLOOKUP(D29,Surcharge!A:B,2,FALSE)*F29, VLOOKUP(D29 & "",Surcharge!A:B,2,FALSE)*F29), "") -> 
C30: Shipping Weight: 110 lbs. (50 kg) / Cu. Ft.: 16.25 (Cu. M. .46) | F30: =SUM(F29) -> 0 | H30: =IFERROR(IFERROR(VLOOKUP(D30,Surcharge!A:B,2,FALSE)*F30, VLOOKUP(D30 & "",Surcharge!A:B,2,FALSE)*F30), "") -> 
H31: =IFERROR(IFERROR(VLOOKUP(D31,Surcharge!A:B,2,FALSE)*F31, VLOOKUP(D31 & "",Surcharge!A:B,2,FALSE)*F31), "") -> 
F32: =SUM(F33) -> 0 | H32: =IFERROR(IFERROR(VLOOKUP(D32,Surcharge!A:B,2,FALSE)*F32, VLOOKUP(D32 & "",Surcharge!A:B,2,FALSE)*F32), "") -> 
C33: FM-20-DS - 20" Heavy Duty Dual Speed 20" (508mm) Floor Machine | D33: 9007334 | E33: 3972 | G33: =F33*E33 -> 0 | H33: =IFERROR(IFERROR(VLOOKUP(D33,Surcharge!A:B,2,FALSE)*F33, VLOOKUP(D33 & "",Surcharge!A:B,2,FALSE)*F33), "") ->  | P33: =VLOOKUP(D33,'MPF SAP Canada Pre-Configured'!C:E,3,FALSE) -> 3712
C34: 185/330 rpm floor machine (1.50 hp). Includes pad driver. CSA US/C* | F34: =SUM(F33) -> 0 | H34: =IFERROR(IFERROR(VLOOKUP(D34,Surcharge!A:B,2,FALSE)*F34, VLOOKUP(D34 & "",Surcharge!A:B,2,FALSE)*F34), "") -> 
C35: Boxed dimensions: 25L x 22W x 51H (635mm x 559mm x 1295mm) | F35: =SUM(F34) -> 0 | H35: =IFERROR(IFERROR(VLOOKUP(D35,Surcharge!A:B,2,FALSE)*F35, VLOOKUP(D35 & "",Surcharge!A:B,2,FALSE)*F35), "") -> 
C36: Shipping Weight: 96 lbs. (44 kg) / Cu. Ft.: 16.25 (Cu. M. .46) | F36: =SUM(F35) -> 0 | H36: =IFERROR(IFERROR(VLOOKUP(D36,Surcharge!A:B,2,FALSE)*F36, VLOOKUP(D36 & "",Surcharge!A:B,2,FALSE)*F36), "") -> 
H37: =IFERROR(IFERROR(VLOOKUP(D37,Surcharge!A:B,2,FALSE)*F37, VLOOKUP(D37 & "",Surcharge!A:B,2,FALSE)*F37), "") -> 
E40: =ROUND(SUM(G26:G39), 0) -> 0 | F40: =SUM(E41) -> 0
D41: Machine Subtotal | E41: =ROUND(SUM(G26:G39), 0) -> 0 | F41: =F40 -> 0
B42: Discounts | F42: =SUM(F43) -> 0
F43: =SUM(F45:F48) -> 0
D44: Applicable Currency Adj % | F44: =IF(E44 <> "", 1, 0) -> 0 | G44: =IF(F44*(E44*0.01)*E40 < 0, F44*(E44*0.01)*E40, -(F44*(E44*0.01)*E40)) -> 0
D45: Discount % | F45: =IF(E45 <> "", 1, 0) -> 0 | G45: =IF(F45*(E45*0.01)*(E40+G44) < 0, F45*(E45*0.01)*(E40+G44), -(F45*(E45*0.01)*(E40+G44))) -> 0
D46: Discount $ | F46: 0 | G46: =IF(F46*E46 < 0, F46*E46, -(F46*E46)) -> 0
D47: Discount $ | F47: 0 | G47: =IF(F47*E47 < 0, F47*E47, -(F47*E47)) -> 0
D48: Discount $ | F48: 0 | G48: =IF(F48*E48 < 0, F48*E48, -(F48*E48)) -> 0
D49: Discount Total | E49: =SUM(G44:G48) -> 0 | F49: =SUM(E49) -> 0
F50: =#REF! -> 
F51: =F50 -> 
C52: Prepaid and Add | D52: Freight | F52: =IF(E52 <> "", 1, 0) -> 0 | G52: =F52*E52 -> 0
C53: Subject to all applicable taxes | D53: Tax | F53: 0 | G53: 0
F54: =SUM(F55) -> 0
D55: MACHINE TOTAL* | F55: =SUM(G55) -> 0 | G55: =SUM(G26:G53) -> 0 | N55: This goes to "My Documents"
G56: =SUM(G55) -> 0
C61: Wells Fargo - Leasing Calculation Option: | D61: Option 1 | F61: Option 2 | J61: =Financing!A38 -> Rates 2025 - Rev.2/4/2025
D62: Monthly Payment | E62: Cost Per Day | F62: Monthly Payment | G62: Cost Per Day | J62: =Financing!A39 -> “Blank Payment Amounts Indicate The Financing Option Or Purchase Options Selected Are Not
C63: Purchase Option: | D63: $1 Buyout Lease | F63: None | J63: =Financing!A40 -> Applicable Or The Machine Total Is Below The Minimum Amount For The Selected Vendor”
C64: 24 Months | D64: 0 | E64: 0 | F64: 0 | G64: 0 | J64: =Financing!A41 -> "Quoted monthly payments are estimates only and are based on a certain level of credit rating.
C65: 36 Months | D65: 0 | E65: 0 | F65: 0 | G65: 0 | J65: =Financing!A42 -> Actual monthly payments may be higher depending on your credit rating."
C66: 48 Months | D66: 0 | E66: 0 | F66: 0 | G66: 0 | J66: =Financing!A43 -> “Financing rates do not include Pre-Paid Service”
C67: 60 Months | D67: 0 | E67: 0 | F67: 0 | G67: 0
D69: Benefits of Equipment Financing:
D70: • Spreads out investment over time. | F70: • Keep current with latest technology.
D71: • Preserve capital. | F71: • Service and parts bundling available.
D72: • Low monthly payment. | F72: • Pay for labor savings as you go.
B74: TennantTrue | D74: 0 | E74: 0
C76: Is customer interested in service program? | D76: Yes | E76: *State/County selection required for TennantTrue service options
C78: If not, why?
C80: Term: | D80: 36 | G80: AB Brushes | H80: No
C81: Monthly machine usage (hrs): | D81: < 30/mo. (Avg. 1hr./day)
C83: TennantTrue: | D83: Gold Contract | F83: Silver Contract
C84: Per Visit
C85: Monthly
C86: Annually
C87: Pre-Pay Full Term
C88: Hourly Labor Rate
C89: Site Visit
C91: * Verify customer current pricing prior to quote.
C92: **All rates and fees above reflect service for one (1) unit with the exception of Block of Time service.
C93: *Block of Time is available in 1 Year Term only and is priced as such no matter the term selection on this template.
B97: Quote Special Instructions:
B101: =Start_Here!E36 -> Terms and Conditions
B102: =Start_Here!E37 -> Ask your local sales rep for estimated lead times. Verify when placing order
B103: =Start_Here!E38 -> All orders subject to acceptance by Tennant Sales and Service Company, Minneapolis, Minnesota
B104: =Start_Here!E39 -> Prices subject to change without notice. Subject to any applicable taxes.
B105: =Start_Here!E40 -> Terms: Net 30 days. Payable in Canadian Funds
B106: =Start_Here!E41 -> Freight: Accessories, parts, supplies, detergents, and floor coatings orders delivered DDP
B107: =Start_Here!E42 -> shipping point Frt PPD. Machine orders delivered DDP shipping point Frt PPD and add.
B108: =Start_Here!E43 -> Returned Merchandise is subject to a restocking fee.
B109: =Start_Here!E44 -> All orders are subject to Tennant’s General Terms and Conditions available at http://www.tennantco.com/terms.
B110: =Start_Here!E45 -> Printed General Terms and Conditions are also available upon request.
B111: =Start_Here!E46 -> 0
B112: =Start_Here!E47 -> 0
B113: =Start_Here!E48 -> 0
E114: Quote Date : | G114: =Letter!$A$25 -> 2023-08-01
B115: Order Placement Information: To place your order, fill in PO# and customer signatures,
B116: call or fax to the numbers listed below. Customer Purchase Order is required.
B117: If information is missing, orders will be entered and held until all information is received.
C119: Customer Number | E119: Cust Grp 3
C120: =Start_Here!$C$25 -> 0 | E120: =Start_Here!$C$29 -> 0
C121: =Start_Here!$B$18 -> Who Owns the Machine? (Sold-To Info) (Please Verify)
A122: Company | C122: =Start_Here!$C$19 -> Company Name
A123: Address | C123: =Start_Here!$C$20 -> Address
C124: =Start_Here!$C$21 -> City, State Zip
A125: Name | C125: =Start_Here!$C$22 -> Contact Name
A126: Phone | C126: =Start_Here!$C$23 -> Contact Phone
C128: =Start_Here!$B$11 -> Where is the Machine Being Shipped? (Ship-To Info) (Please Verify)
A129: Company | C129: =Start_Here!$C$12 -> Company Name
A130: Address | C130: =Start_Here!$C$13 -> Address
C131: =Start_Here!$C$14 -> City, State Zip
A132: Name | C132: =Start_Here!$C$15 -> Contact Name
A133: Phone | C133: =Start_Here!$C$16 -> Contact Phone
C135: =Start_Here!$B$31 -> Shipping / Carrier Instructions: | E135: Order Special Instructions:
C136: =Start_Here!$C$32 -> 0
C138: Customer Purchase Order No.
C139: (please attach copy)
C142: Tax Exempt | E142: Yes
E143: No
C144: If Yes, attach a copy of your exemption certificate.
C146: Requested Delivery Date
C147: =Start_Here!$C$28 -> 0
C149: =Start_Here!$C$26 -> 0 | E149: =Start_Here!$C$27 -> 0
C150: Authorized Buyer (please print) | E150: Phone Number
C153: Authorized Buyer Signature
C155: =Start_Here!$C$41 -> Rep Name
C156: Tennant Representative
D158: Specialized Maintenance Equipment
C159: =Start_Here!$C$51 -> 0
D160: =Start_Here!$C$52 -> 0
B163: Notes
B165: 1 | C165: Only available as factory-installed when batteries are ordered with machine.
B167: 2 | C167: A French and English manual will be supplied for all units shipping into Quebec, Canada at no charge. An additional manual
C168: can be ordered (for a total of 3 manuals) for an additional charge as stated under 'Additional Operator Manual'.
B170: 3 | C170: Skid w/Carton, Non-Stackable is the default packaging method and will be added to the configuration unless otherwise specified.
B172: 4 | C172: Shipping Weights and Dimensions | D172: Skid w/Carton
C174: Weight (w/360AH Battery) | D174: 650 lbs / 295 Kg
C175: Length | D175: 68" / 1,727mm
C176: Width | D176: 33" / 838mm
C177: Height | D177: 48" / 1,219mm

Sheet Burnishers
A1: Burnishers | C1: =Start_Here!$C19 -> Company Name
A2: =SUM(G46) -> 0 | C2: =Start_Here!$C20 -> Address
C3: =Start_Here!$C21 -> City, State Zip
C4: =Start_Here!$C22 -> Contact Name
C5: =Start_Here!$C$41 -> Rep Name
C6: =Start_Here!$C$37 -> Tennant Sales and Service Company
C7: =Start_Here!$C$38 -> 10400 Clean Street
C8: =Start_Here!$C$39 -> Eden Prairie, MN 55344
C9: =Start_Here!$C$43 -> 800-553-8033 | E9: Quote Date : | G9: =Letter!$A$25 -> 2023-08-01
C11: =Help!C2 -> CAN Date Rev - 5/6/2025
C13: New Machine Warranty | G13: Fax (quote only)
C14: 36 MONTHS or 2500 HOURS ON PARTS | G14: Mail (quote,lit, specs)
C15: 36 MONTHS – LABOR | G15: Fax + Mail
C16: 90 DAYS - TRAVEL ON BATTERY UNITS ONLY
C17: 10 YEARS ON ROTOMOLDED PLASTIC PARTS
C18: BATTERIES ARE PRORATED OVER 1 YEAR | G18: Inside
G19: Outside
C22: Description | D22: Reference# | E22: Canada Price Each | F22: Qty | G22: Extended Price
F23: =SUM(F24) -> 0
C24: BR-2000-DC Dust Control Burnisher* - 2000 rpm 20" (508mm) | D24: 9007349 | E24: 5528 | G24: =F24*E24 -> 0 | H24: =IFERROR(IFERROR(VLOOKUP(D24,Surcharge!A:B,2,FALSE)*F24, VLOOKUP(D24 & "",Surcharge!A:B,2,FALSE)*F24), "") ->  | P24: =VLOOKUP(D24,'MPF SAP Canada Pre-Configured'!C:E,3,FALSE) -> 5166
C25: Complete package includes flexible pad driver, 75-ft. (23m) power cord, cloth filter bag and 1 pad. CSA US/C* | F25: =SUM(F24) -> 0 | H25: =IFERROR(IFERROR(VLOOKUP(D25,Surcharge!A:B,2,FALSE)*F25, VLOOKUP(D25 & "",Surcharge!A:B,2,FALSE)*F25), "") -> 
C26: Boxed dimensions: 34L x 27W x 51H (864mm x 686mm x 1295mm) | F26: =SUM(F25) -> 0 | H26: =IFERROR(IFERROR(VLOOKUP(D26,Surcharge!A:B,2,FALSE)*F26, VLOOKUP(D26 & "",Surcharge!A:B,2,FALSE)*F26), "") -> 
C27: Shipping Weight: 93 lbs. (42 kg) / Cu. Ft.: 27.093 (Cu. M. .76) | F27: =SUM(F26) -> 0 | H27: =IFERROR(IFERROR(VLOOKUP(D27,Surcharge!A:B,2,FALSE)*F27, VLOOKUP(D27 & "",Surcharge!A:B,2,FALSE)*F27), "") -> 
H28: =IFERROR(IFERROR(VLOOKUP(D28,Surcharge!A:B,2,FALSE)*F28, VLOOKUP(D28 & "",Surcharge!A:B,2,FALSE)*F28), "") -> 
E31: =ROUND(SUM(G24:G30), 0) -> 0 | F31: =SUM(E32) -> 0
D32: Machine Subtotal | E32: =ROUND(SUM(G24:G30), 0) -> 0 | F32: =F31 -> 0
B33: Discounts | F33: =SUM(F34) -> 0
F34: =SUM(F36:F39) -> 0
D35: Applicable Currency Adj % | F35: =IF(E35 <> "", 1, 0) -> 0 | G35: =IF(F35*(E35*0.01)*E31 < 0, F35*(E35*0.01)*E31, -(F35*(E35*0.01)*E31)) -> 0
D36: Discount % | F36: =IF(E36 <> "", 1, 0) -> 0 | G36: =IF(F36*(E36*0.01)*(E31+G35) < 0, F36*(E36*0.01)*(E31+G35), -(F36*(E36*0.01)*(E31+G35))) -> 0
D37: Discount $ | F37: 0 | G37: =IF(F37*E37 < 0, F37*E37, -(F37*E37)) -> 0
D38: Discount $ | F38: 0 | G38: =IF(F38*E38 < 0, F38*E38, -(F38*E38)) -> 0
D39: Discount $ | F39: 0 | G39: =IF(F39*E39 < 0, F39*E39, -(F39*E39)) -> 0
D40: Discount Total | E40: =SUM(G35:G39) -> 0 | F40: =SUM(E40) -> 0
F41: =#REF! -> 
F42: =F41 -> 
C43: Prepaid and Add | D43: Freight | F43: =IF(E43 <> "", 1, 0) -> 0 | G43: =F43*E43 -> 0
C44: Subject to all applicable taxes | D44: Tax | F44: 0 | G44: 0
F45: =SUM(F46) -> 0
D46: MACHINE TOTAL* | F46: =SUM(G46) -> 0 | G46: =SUM(G24:G44) -> 0 | N46: This goes to "My Documents"
G47: =SUM(G46) -> 0
C52: Wells Fargo - Leasing Calculation Option: | D52: Option 1 | F52: Option 2 | J52: =Financing!A38 -> Rates 2025 - Rev.2/4/2025
D53: Monthly Payment | E53: Cost Per Day | F53: Monthly Payment | G53: Cost Per Day | J53: =Financing!A39 -> “Blank Payment Amounts Indicate The Financing Option Or Purchase Options Selected Are Not
C54: Purchase Option: | D54: $1 Buyout Lease | F54: None | J54: =Financing!A40 -> Applicable Or The Machine Total Is Below The Minimum Amount For The Selected Vendor”
C55: 24 Months | D55: 0 | E55: 0 | F55: 0 | G55: 0 | J55: =Financing!A41 -> "Quoted monthly payments are estimates only and are based on a certain level of credit rating.
C56: 36 Months | D56: 0 | E56: 0 | F56: 0 | G56: 0 | J56: =Financing!A42 -> Actual monthly payments may be higher depending on your credit rating."
C57: 48 Months | D57: 0 | E57: 0 | F57: 0 | G57: 0 | J57: =Financing!A43 -> “Financing rates do not include Pre-Paid Service”
C58: 60 Months | D58: 0 | E58: 0 | F58: 0 | G58: 0
D60: Benefits of Equipment Financing:
D61: • Spreads out investment over time. | F61: • Keep current with latest technology.
D62: • Preserve capital. | F62: • Service and parts bundling available.
D63: • Low monthly payment. | F63: • Pay for labor savings as you go.
B65: TennantTrue | D65: 0 | E65: 0
C67: Is customer interested in service program? | D67: Yes | E67: *State/County selection required for TennantTrue service options
C69: If not, why?
C71: Term: | D71: 36 | G71: AB Brushes | H71: No
C72: Monthly machine usage (hrs): | D72: < 30/mo. (Avg. 1hr./day)
C74: TennantTrue: | D74: Gold Contract | F74: Silver Contract
C75: Per Visit
C76: Monthly
C77: Annually
C78: Pre-Pay Full Term
C79: Hourly Labor Rate
C80: Site Visit
C82: * Verify customer current pricing prior to quote.
C83: **All rates and fees above reflect service for one (1) unit with the exception of Block of Time service.
C84: *Block of Time is available in 1 Year Term only and is priced as such no matter the term selection on this template.
B88: Quote Special Instructions:
B92: =Start_Here!E36 -> Terms and Conditions
B93: =Start_Here!E37 -> Ask your local sales rep for estimated lead times. Verify when placing order
B94: =Start_Here!E38 -> All orders subject to acceptance by Tennant Sales and Service Company, Minneapolis, Minnesota
B95: =Start_Here!E39 -> Prices subject to change without notice. Subject to any applicable taxes.
B96: =Start_Here!E40 -> Terms: Net 30 days. Payable in Canadian Funds
B97: =Start_Here!E41 -> Freight: Accessories, parts, supplies, detergents, and floor coatings orders delivered DDP
B98: =Start_Here!E42 -> shipping point Frt PPD. Machine orders delivered DDP shipping point Frt PPD and add.
B99: =Start_Here!E43 -> Returned Merchandise is subject to a restocking fee.
B100: =Start_Here!E44 -> All orders are subject to Tennant’s General Terms and Conditions available at http://www.tennantco.com/terms.
B101: =Start_Here!E45 -> Printed General Terms and Conditions are also available upon request.
B102: =Start_Here!E46 -> 0
B103: =Start_Here!E47 -> 0
B104: =Start_Here!E48 -> 0
E105: Quote Date : | G105: =Letter!$A$25 -> 2023-08-01
B106: Order Placement Information: To place your order, fill in PO# and customer signatures,
B107: call or fax to the numbers listed below. Customer Purchase Order is required.
B108: If information is missing, orders will be entered and held until all information is received.
C110: Customer Number | E110: Cust Grp 3
C111: =Start_Here!$C$25 -> 0 | E111: =Start_Here!$C$29 -> 0
C112: =Start_Here!$B$18 -> Who Owns the Machine? (Sold-To Info) (Please Verify)
A113: Company | C113: =Start_Here!$C$19 -> Company Name
A114: Address | C114: =Start_Here!$C$20 -> Address
C115: =Start_Here!$C$21 -> City, State Zip
A116: Name | C116: =Start_Here!$C$22 -> Contact Name
A117: Phone | C117: =Start_Here!$C$23 -> Contact Phone
C119: =Start_Here!$B$11 -> Where is the Machine Being Shipped? (Ship-To Info) (Please Verify)
A120: Company | C120: =Start_Here!$C$12 -> Company Name
A121: Address | C121: =Start_Here!$C$13 -> Address
C122: =Start_Here!$C$14 -> City, State Zip
A123: Name | C123: =Start_Here!$C$15 -> Contact Name
A124: Phone | C124: =Start_Here!$C$16 -> Contact Phone
C126: =Start_Here!$B$31 -> Shipping / Carrier Instructions: | E126: Order Special Instructions:
C127: =Start_Here!$C$32 -> 0
C129: Customer Purchase Order No.
C130: (please attach copy)
C133: Tax Exempt | E133: Yes
E134: No
C135: If Yes, attach a copy of your exemption certificate.
C137: Requested Delivery Date
C138: =Start_Here!$C$28 -> 0
C140: =Start_Here!$C$26 -> 0 | E140: =Start_Here!$C$27 -> 0
C141: Authorized Buyer (please print) | E141: Phone Number
C144: Authorized Buyer Signature
C146: =Start_Here!$C$41 -> Rep Name
C147: Tennant Representative
D149: Specialized Maintenance Equipment
C150: =Start_Here!$C$51 -> 0
D151: =Start_Here!$C$52 -> 0
B154: Notes
B156: 1 | C156: Only available as factory-installed when batteries are ordered with machine.
B158: 2 | C158: A French and English manual will be supplied for all units shipping into Quebec, Canada at no charge. An additional manual
C159: can be ordered (for a total of 3 manuals) for an additional charge as stated under 'Additional Operator Manual'.
B161: 3 | C161: Skid w/Carton, Non-Stackable is the default packaging method and will be added to the configuration unless otherwise specified.
B163: 4 | C163: Shipping Weights and Dimensions | D163: Skid w/Carton
C165: Weight (w/360AH Battery) | D165: 650 lbs / 295 Kg
C166: Length | D166: 68" / 1,727mm
C167: Width | D167: 33" / 838mm
C168: Height | D168: 48" / 1,219mm

Sheet SpeedGleam5
A1: SpeedGleam5 | C1: =Start_Here!$C19 -> Company Name
A2: =SUM(G100) -> 0 | C2: =Start_Here!$C20 -> Address
C3: =Start_Here!$C21 -> City, State Zip
C4: =Start_Here!$C22 -> Contact Name
C5: =Start_Here!$C$41 -> Rep Name
C6: =Start_Here!$C$37 -> Tennant Sales and Service Company
C7: =Start_Here!$C$38 -> 10400 Clean Street
C8: =Start_Here!$C$39 -> Eden Prairie, MN 55344
C9: =Start_Here!$C$43 -> 800-553-8033 | E9: Quote Date : | G9: =Letter!$A$25 -> 2023-08-01
C11: =Help!C2 -> CAN Date Rev - 5/6/2025
B12: BUILT-IN “NOBLES VALUE” INCLUDES:
B14: 510mm/20" Burnishing Path | D14: On Board Charger
B15: Push or Self-Propel Available | D15: 3m/15 ft power cord
B16: Passive Dust Control | D16: Standard (3) 12V 185 AH Battery Pack for Pad/Brush Assist
B17: Tooless Felt Dust skirt | D17: Standard (3) 12V 225 AH Battery Pack for Self Propel Unit
B18: Pad RPM - 2100 | D18: Battery Tray
B19: Mechanical Set and Forget TM Down Pressure | D19: On-Board Trouble Shooting Guide
B20: True Free Floating Head | D20: ETL Listed for the US and Canada
B21: Rugged DuramerTM Tank Construction | D21: 64 dBa
B22: Two-Way Gas Assist Shock for Tank Open/Close | D22: Emergency Stop
B23: Anti-Static Straps | D23: Key Switch
B24: Clamshell Tank Design | D24: Hour Meter
B25: Jacking Points/Shipping Tie Downs | D25: Operators manual
B26: Unit shipped with 1 burnishing pad and 1 paper dust bag
B28: NOBLES WARRANTY
B29: 3 YEARS OR 2000 HOURS - PARTS
B30: 1 YEAR - BATTERY CHARGERS
B31: 2 YEARS - LABOR
B32: 6 MONTHS - TRAVEL
B33: 10 YEARS ON DURAMERTM TANKS
G34: Fax (quote only)
G35: Mail (quote,lit, specs)
G36: Fax + Mail
E38: Primary Use
G39: Inside
G40: Outside
C43: Description | D43: Reference # | E43: Price Each | F43: Qty | G43: Extended Price
B44: Base Configuration | E44: CANADA | F44: =SUM(F45,F48,F52,F59,F62) -> 0
C45: Cleaning Type | F45: =SUM(F46) -> 0 | L45: =SUM(F45) -> 0 | M45: Surcharge Qty
C46: SpeedGleam 5 Battery Walk-Behind Burnisher 510mm/20" (Note 1) | D46: SG5-510 | E46: 15642 | G46: =F46*E46 -> 0 | H46: =IFERROR(IFERROR(VLOOKUP(D46,Surcharge!A:B,2,FALSE)*F46, VLOOKUP(D46 & "",Surcharge!A:B,2,FALSE)*F46), "") -> 
H47: =IFERROR(IFERROR(VLOOKUP(D47,Surcharge!A:B,2,FALSE)*F47, VLOOKUP(D47 & "",Surcharge!A:B,2,FALSE)*F47), "") -> 
C48: Drive Type | F48: =SUM(F49:F50) -> 0 | H48: =IFERROR(IFERROR(VLOOKUP(D48,Surcharge!A:B,2,FALSE)*F48, VLOOKUP(D48 & "",Surcharge!A:B,2,FALSE)*F48), "") -> 
C49: Pad Assist | D49: Pad-SG5 | E49: N/C | G49: =IF(F49=0," ","N/C") ->  | H49: =IFERROR(IFERROR(VLOOKUP(D49,Surcharge!A:B,2,FALSE)*F49, VLOOKUP(D49 & "",Surcharge!A:B,2,FALSE)*F49), "") -> 
C50: Self Propel | D50: Self-SG5 | E50: 3619 | G50: =F50*E50 -> 0 | H50: =IFERROR(IFERROR(VLOOKUP(D50,Surcharge!A:B,2,FALSE)*F50, VLOOKUP(D50 & "",Surcharge!A:B,2,FALSE)*F50), "") -> 
H51: =IFERROR(IFERROR(VLOOKUP(D51,Surcharge!A:B,2,FALSE)*F51, VLOOKUP(D51 & "",Surcharge!A:B,2,FALSE)*F51), "") -> 
C52: Battery Type | F52: =SUM(F53:F57) -> 0 | H52: =IFERROR(IFERROR(VLOOKUP(D52,Surcharge!A:B,2,FALSE)*F52, VLOOKUP(D52 & "",Surcharge!A:B,2,FALSE)*F52), "") -> 
C53: Wet 185AH C/20 (kit of 3 batteries) | D53: 9012670 | E53: N/C | G53: =IF(F53=0," ","N/C") ->  | H53: =IFERROR(IFERROR(VLOOKUP(D53,Surcharge!A:B,2,FALSE)*F53, VLOOKUP(D53 & "",Surcharge!A:B,2,FALSE)*F53), "") -> 
C54: Wet 225AH C/20 (kit of 3 batteries) (Note 2) | D54: 9012671 | E54: 619 | G54: =F54*E54 -> 0 | H54: =IFERROR(IFERROR(VLOOKUP(D54,Surcharge!A:B,2,FALSE)*F54, VLOOKUP(D54 & "",Surcharge!A:B,2,FALSE)*F54), "") -> 
C55: Sealed/MF AGM 234AH C/20 (kit of 3 batteries) | D55: 9012672 | E55: 3963 | G55: =F55*E55 -> 0 | H55: =IFERROR(IFERROR(VLOOKUP(D55,Surcharge!A:B,2,FALSE)*F55, VLOOKUP(D55 & "",Surcharge!A:B,2,FALSE)*F55), "") -> 
H56: =IFERROR(IFERROR(VLOOKUP(D56,Surcharge!A:B,2,FALSE)*F56, VLOOKUP(D56 & "",Surcharge!A:B,2,FALSE)*F56), "") -> 
C57: Manual Battery Watering Kit (Note 3) | D57: 9009620 | E57: 1194 | G57: =F57*E57 -> 0 | H57: =IFERROR(IFERROR(VLOOKUP(D57,Surcharge!A:B,2,FALSE)*F57, VLOOKUP(D57 & "",Surcharge!A:B,2,FALSE)*F57), "") -> 
H58: =IFERROR(IFERROR(VLOOKUP(D58,Surcharge!A:B,2,FALSE)*F58, VLOOKUP(D58 & "",Surcharge!A:B,2,FALSE)*F58), "") -> 
C59: Charger | D59: Reference Number | F59: =SUM(F60:F60) -> 0 | H59: =IFERROR(IFERROR(VLOOKUP(D59,Surcharge!A:B,2,FALSE)*F59, VLOOKUP(D59 & "",Surcharge!A:B,2,FALSE)*F59), "") -> 
C60: 25A 85-265V AC 50/60Hz 1Ph On-Board for 185AH and 225AH | D60: 9012668 | E60: N/C | G60: =IF(F60=0," ","N/C") ->  | H60: =IFERROR(IFERROR(VLOOKUP(D60,Surcharge!A:B,2,FALSE)*F60, VLOOKUP(D60 & "",Surcharge!A:B,2,FALSE)*F60), "") -> 
H61: =IFERROR(IFERROR(VLOOKUP(D61,Surcharge!A:B,2,FALSE)*F61, VLOOKUP(D61 & "",Surcharge!A:B,2,FALSE)*F61), "") -> 
C62: Down Pressure | F62: =SUM(F63:F64) -> 0 | H62: =IFERROR(IFERROR(VLOOKUP(D62,Surcharge!A:B,2,FALSE)*F62, VLOOKUP(D62 & "",Surcharge!A:B,2,FALSE)*F62), "") -> 
C63: Automated Down Pressure | D63: 9012641 | E63: 949 | G63: =F63*E63 -> 0 | H63: =IFERROR(IFERROR(VLOOKUP(D63,Surcharge!A:B,2,FALSE)*F63, VLOOKUP(D63 & "",Surcharge!A:B,2,FALSE)*F63), "") -> 
C64: Mechanical Set and Forget TM Down Pressure (Note 1) | D64: 9012640 | E64: N/C | G64: =IF(F64=0," ","N/C") ->  | H64: =IFERROR(IFERROR(VLOOKUP(D64,Surcharge!A:B,2,FALSE)*F64, VLOOKUP(D64 & "",Surcharge!A:B,2,FALSE)*F64), "") -> 
H65: =IFERROR(IFERROR(VLOOKUP(D65,Surcharge!A:B,2,FALSE)*F65, VLOOKUP(D65 & "",Surcharge!A:B,2,FALSE)*F65), "") -> 
B66: Cleaning Performance | F66: =SUM(F67:F69) -> 0 | H66: =IFERROR(IFERROR(VLOOKUP(D66,Surcharge!A:B,2,FALSE)*F66, VLOOKUP(D66 & "",Surcharge!A:B,2,FALSE)*F66), "") -> 
C67: Dust Control System, Active - HEPA Filtration to 99.97% @ .3 microns | D67: 9012657 | E67: 816 | G67: =F67*E67 -> 0 | H67: =IFERROR(IFERROR(VLOOKUP(D67,Surcharge!A:B,2,FALSE)*F67, VLOOKUP(D67 & "",Surcharge!A:B,2,FALSE)*F67), "") -> 
C68: Dust Control System, Passive - 95% @ .3 microns | D68: PASSIVE | E68: N/C | G68: =IF(F68=0," ","N/C") ->  | H68: =IFERROR(IFERROR(VLOOKUP(D68,Surcharge!A:B,2,FALSE)*F68, VLOOKUP(D68 & "",Surcharge!A:B,2,FALSE)*F68), "") -> 
C69: Dust Control Filter, Paper Filter Bag | D69: 1210869 | E69: N/C | G69: =IF(F69=0," ","N/C") ->  | H69: =IFERROR(IFERROR(VLOOKUP(D69,Surcharge!A:B,2,FALSE)*F69, VLOOKUP(D69 & "",Surcharge!A:B,2,FALSE)*F69), "") -> 
H70: =IFERROR(IFERROR(VLOOKUP(D70,Surcharge!A:B,2,FALSE)*F70, VLOOKUP(D70 & "",Surcharge!A:B,2,FALSE)*F70), "") -> 
B71: Support (Note 4) | F71: =SUM(F72:F75) -> 0 | H71: =IFERROR(IFERROR(VLOOKUP(D71,Surcharge!A:B,2,FALSE)*F71, VLOOKUP(D71 & "",Surcharge!A:B,2,FALSE)*F71), "") -> 
C72: SpeedGleam 5 Operator Manual - English | D72: 9011615 | E72: N/C | G72: =IF(F72=0," ","N/C") ->  | H72: =IFERROR(IFERROR(VLOOKUP(D72,Surcharge!A:B,2,FALSE)*F72, VLOOKUP(D72 & "",Surcharge!A:B,2,FALSE)*F72), "") -> 
C73: SpeedGleam 5 Operator Manual - French | D73: 9011618 | E73: N/C | G73: =IF(F73=0," ","N/C") ->  | H73: =IFERROR(IFERROR(VLOOKUP(D73,Surcharge!A:B,2,FALSE)*F73, VLOOKUP(D73 & "",Surcharge!A:B,2,FALSE)*F73), "") -> 
H74: =IFERROR(IFERROR(VLOOKUP(D74,Surcharge!A:B,2,FALSE)*F74, VLOOKUP(D74 & "",Surcharge!A:B,2,FALSE)*F74), "") -> 
C75: Packaging | F75: =SUM(F76:F76) -> 0 | H75: =IFERROR(IFERROR(VLOOKUP(D75,Surcharge!A:B,2,FALSE)*F75, VLOOKUP(D75 & "",Surcharge!A:B,2,FALSE)*F75), "") -> 
C76: Skid w/Carton, Stackable | D76: 9012678 | E76: N/C | G76: =IF(F76=0," ","N/C") ->  | H76: =IFERROR(IFERROR(VLOOKUP(D76,Surcharge!A:B,2,FALSE)*F76, VLOOKUP(D76 & "",Surcharge!A:B,2,FALSE)*F76), "") -> 
H77: =IFERROR(IFERROR(VLOOKUP(D77,Surcharge!A:B,2,FALSE)*F77, VLOOKUP(D77 & "",Surcharge!A:B,2,FALSE)*F77), "") -> 
B79: Custom Solution--write in description, qty, price, and PN if applicable | F79: =SUM(F80) -> 0
E80: Insert Prices Here | F80: =SUM(F81:F84) -> 0
D81: Custom | F81: =IF(E81 <> "", 1, 0) -> 0 | G81: =F81*E81 -> 0
D82: Custom | F82: =IF(E82 <> "", 1, 0) -> 0 | G82: =F82*E82 -> 0
D83: Custom | F83: 0 | G83: =F83*E83 -> 0
D84: Custom | F84: 0 | G84: =F84*E84 -> 0
E85: =ROUND(SUM(G46:G84), 0) -> 0 | F85: =SUM(E86) -> 0
D86: Machine Subtotal | E86: =ROUND(SUM(G46:G84), 0) -> 0 | F86: =F85 -> 0
B87: Discounts | F87: =SUM(F88) -> 0
F88: =SUM(F90:F93) -> 0
D89: Applicable Currency Adj % | F89: =IF(E89 <> "", 1, 0) -> 0 | G89: =IF(F89*(E89*0.01)*E85 < 0, F89*(E89*0.01)*E85, -(F89*(E89*0.01)*E85)) -> 0
D90: Discount % | F90: =IF(E90 <> "", 1, 0) -> 0 | G90: =IF(F90*(E90*0.01)*(E85+G89) < 0, F90*(E90*0.01)*(E85+G89), -(F90*(E90*0.01)*(E85+G89))) -> 0
D91: Discount $ | F91: 0 | G91: =IF(F91*E91 < 0, F91*E91, -(F91*E91)) -> 0
D92: Discount $ | F92: 0 | G92: =IF(F92*E92 < 0, F92*E92, -(F92*E92)) -> 0
D93: Discount $ | F93: 0 | G93: =IF(F93*E93 < 0, F93*E93, -(F93*E93)) -> 0
D94: Discount Total | E94: =SUM(G89:G93) -> 0 | F94: =SUM(E94) -> 0
F95: =#REF! -> 
F96: =F95 -> 
C97: Prepaid and Add | D97: Freight | F97: =IF(E97 <> "", 1, 0) -> 0 | G97: =F97*E97 -> 0
C98: Subject to all applicable taxes | D98: Tax | F98: 0 | G98: 0
F99: =SUM(F100) -> 0
D100: MACHINE TOTAL* | F100: =SUM(G100) -> 0 | G100: =SUM(G46:G98) -> 0 | N100: This goes to "My Documents"
G101: =SUM(G100) -> 0
C106: Wells Fargo - Leasing Calculation Option: | D106: Option 1 | F106: Option 2 | J106: =Financing!A38 -> Rates 2025 - Rev.2/4/2025
D107: Monthly Payment | E107: Cost Per Day | F107: Monthly Payment | G107: Cost Per Day | J107: =Financing!A39 -> “Blank Payment Amounts Indicate The Financing Option Or Purchase Options Selected Are Not
C108: Purchase Option: | D108: $1 Buyout Lease | F108: None | J108: =Financing!A40 -> Applicable Or The Machine Total Is Below The Minimum Amount For The Selected Vendor”
C109: 24 Months | D109: 0 | E109: 0 | F109: 0 | G109: 0 | J109: =Financing!A41 -> "Quoted monthly payments are estimates only and are based on a certain level of credit rating.
C110: 36 Months | D110: 0 | E110: 0 | F110: 0 | G110: 0 | J110: =Financing!A42 -> Actual monthly payments may be higher depending on your credit rating."
C111: 48 Months | D111: 0 | E111: 0 | F111: 0 | G111: 0 | J111: =Financing!A43 -> “Financing rates do not include Pre-Paid Service”
C112: 60 Months | D112: 0 | E112: 0 | F112: 0 | G112: 0 | I112: =Financing!A44 -> 0
D114: Benefits of Equipment Financing:
D115: • Spreads out investment over time. | F115: • Keep current with latest technology.
D116: • Preserve capital. | F116: • Service and parts bundling available.
D117: • Low monthly payment. | F117: • Pay for labor savings as you go.
B119: TennantTrue | D119: 0 | E119: 0
C121: Is customer interested in service program? | D121: Yes | E121: *State/County selection required for TennantTrue service options
C123: If not, why?
C125: Term: | D125: 36 | G125: AB Brushes | H125: No
C126: Monthly machine usage (hrs): | D126: < 30/mo. (Avg. 1hr./day)
C128: TennantTrue: | D128: Gold Contract | F128: Silver Contract
C129: Per Visit | F129: 336
C130: Monthly | D130: 112 | F130: 56
C131: Annually | F131: 659
C132: Pre-Pay Full Term | D132: 3882 | F132: 1936
C133: Hourly Labor Rate
C134: Site Visit
C136: * Verify customer current pricing prior to quote.
C137: **All rates and fees above reflect service for one (1) unit with the exception of Block of Time service.
C138: *Block of Time is available in 1 Year Term only and is priced as such no matter the term selection on this template.
B142: Quote Special Instructions:
B146: =Start_Here!E36 -> Terms and Conditions
B147: =Start_Here!E37 -> Ask your local sales rep for estimated lead times. Verify when placing order
B148: =Start_Here!E38 -> All orders subject to acceptance by Tennant Sales and Service Company, Minneapolis, Minnesota
B149: =Start_Here!E39 -> Prices subject to change without notice. Subject to any applicable taxes.
B150: =Start_Here!E40 -> Terms: Net 30 days. Payable in Canadian Funds
B151: =Start_Here!E41 -> Freight: Accessories, parts, supplies, detergents, and floor coatings orders delivered DDP
B152: =Start_Here!E42 -> shipping point Frt PPD. Machine orders delivered DDP shipping point Frt PPD and add.
B153: =Start_Here!E43 -> Returned Merchandise is subject to a restocking fee.
B154: =Start_Here!E44 -> All orders are subject to Tennant’s General Terms and Conditions available at http://www.tennantco.com/terms.
B155: =Start_Here!E45 -> Printed General Terms and Conditions are also available upon request.
B156: =Start_Here!E46 -> 0
B157: =Start_Here!E47 -> 0
B158: =Start_Here!E48 -> 0
E159: Quote Date : | G159: =Letter!$A$25 -> 2023-08-01
B160: Order Placement Information: To place your order, fill in PO# and customer signatures,
B161: call or fax to the numbers listed below. Customer Purchase Order is required.
B162: If information is missing, orders will be entered and held until all information is received.
C164: Customer Number | E164: Cust Grp 3
C165: =Start_Here!$C$25 -> 0 | E165: =Start_Here!$C$29 -> 0
C166: =Start_Here!$B$18 -> Who Owns the Machine? (Sold-To Info) (Please Verify)
A167: Company | C167: =Start_Here!$C$19 -> Company Name
A168: Address | C168: =Start_Here!$C$20 -> Address
C169: =Start_Here!$C$21 -> City, State Zip
A170: Name | C170: =Start_Here!$C$22 -> Contact Name
A171: Phone | C171: =Start_Here!$C$23 -> Contact Phone
C173: =Start_Here!$B$11 -> Where is the Machine Being Shipped? (Ship-To Info) (Please Verify)
A174: Company | C174: =Start_Here!$C$12 -> Company Name
A175: Address | C175: =Start_Here!$C$13 -> Address
C176: =Start_Here!$C$14 -> City, State Zip
A177: Name | C177: =Start_Here!$C$15 -> Contact Name
A178: Phone | C178: =Start_Here!$C$16 -> Contact Phone
C180: =Start_Here!$B$31 -> Shipping / Carrier Instructions: | E180: Order Special Instructions:
C181: =Start_Here!$C$32 -> 0
C183: Customer Purchase Order No.
C184: (please attach copy)
C187: Tax Exempt | E187: Yes
E188: No
C189: If Yes, attach a copy of your exemption certificate.
C191: Requested Delivery Date
C192: =Start_Here!$C$28 -> 0
C194: =Start_Here!$C$26 -> 0 | E194: =Start_Here!$C$27 -> 0
C195: Authorized Buyer (please print) | E195: Phone Number
C198: Authorized Buyer Signature
C200: =Start_Here!$C$41 -> Rep Name
C201: Tennant Representative
D203: Specialized Maintenance Equipment
C204: =Start_Here!$C$51 -> 0
D205: =Start_Here!$C$52 -> 0
B208: Notes
B210: 1 | C210: When pad/brush assist unit is chosen, only mechanical Set and ForgetTM downpressure is available.
B212: 2 | C212: 225AH Battery is standard with Self Propel and will be included at No Charge when that option is selected.
B214: 3 | C214: Factory installed pricing. Only available on wet batteries, not sealed.
B216: 4 | C216: A French and English manual will be supplied for all units shipping into Quebec, Canada at no charge. Additional manuals
C217: can be ordered at Nobles.com at no charge and service manuals on My Account at no charge.
B219: 5 | C219: Shipping Weights and Dimensions | E219: Skid w/Carton
C221: Weight - Pad Drive w/185AH Battery | E221: 587 lbs / 267 Kg
C222: Weight - Self Propel w/225AH Battery | E222: 652 lbs / 296 Kg
C223: Length | E223: 60" / 1524 mm
C224: Width | E224: 31" / 788 mm
C225: Height | E225: 50" / 1270 mm

Sheet MPF SAP Canada Pre-Configured (hidden)
A1: Master Price File Canada (Canadian MPF) - PreConfigured Machines
A3: Download Date: | C3: 2022-11-01
A4: Price Adj Effective Date: | C4: 2023-01-01
A5: Table name = | C5: MPF_Table_Canada_PreConfigured
A7: Product Hierarchy | B7: Description | C7: Material | D7: Material Description | E7: 2023 List
A8: 301003 | B8: CS5 | C8: 1251580 | D8: SCRUBBER [CS5 BATTERY NAM] | E8: 4224
A9: 301004135 | B9: CS16 | C9: LPTB03328 | D9: SCRUBBER [CS16 BATTERY NA] | E9: 5944
A10: 302404 | B10: S8 | C10: 9001401 | D10: SWEEPER, 28INCH, 12VDC, GEL, TJ | E10: 7569
A11: 302506 | B11: S9 (Battery Sweeper) | C11: 1069648 | D11: SWEEPER, 90CM, 12V [S9 NA, W/O B,W/ C] | E11: 6792
A12: 302508 | B12: S6 | C12: 1251268 | D12: SWEEPER [S6 NA EX W/ BATT, CORD] | E12: 4606
A13: 302509 | B13: Scout 6 | C13: 1251270 | D13: SWEEPER [SCOUT 6 W/ BATT, CORD] | E13: 4606
A14: 302510 | B14: S7 | C14: 1251272 | D14: SWEEPER [S7 NA W/ BATT, CORD] | E14: 9206
A15: 302511 | B15: Scout 7 | C15: 1251274 | D15: SWEEPER [SCOUT 7 W BATT, CORD] | E15: 9206
A16: 302601 | B16: SS10 | C16: 9003573 | D16: SWEEPER, NA, FI [S10] | E16: 17231
A17: 304053 | B17: S20 | C17: MS20-1781 | D17: MODEL S20 SWEEPER | E17: 52297
A18: 304053 | B18: S20 | C18: MS20-5902 | D18: MODEL S20 SWEEPER | E18: 45502
A19: 304215 | B19: S30 | C19: MS30-3567 | D19: MODEL S30 RIDER SWEEPER | E19: 29211
A20: 304215 | B20: S30 | C20: MS30-1766 | D20: MODEL S30 RIDER SWEEPER | E20: 44940
A21: 306200 | B21: T1 | C21: 9004191 | D21: SCRUBBER, 38CM, 11L, 120VAC [T1] | E21: 6663
A22: 306200 | B22: T1 | C22: 9004191-H | D22: SCRUBBER, 38CM, 11L, 120VAC [T1] | E22: 6663
A23: 306201 | B23: Speed Scrub 15" (3gal, Cord Elec Cyli | C23: 9004200-H | D23: SCRUBBER, 38CM, 11L, 120VAC [SS-15"] | E23: 6663
A24: 306201 | B24: Speed Scrub 15" (3gal, Cord Elec Cyli | C24: 9004200 | D24: SCRUBBER, 38CM, 11L, 120VAC [SS-15] | E24: 6663
A25: 306202 | B25: T1B | C25: 9008635 | D25: SCRUBBER, 38CM, 11L, 12VDC [T1B NA, AGM] | E25: 8611
A26: 306202 | B26: T1B | C26: 9016537 | D26: SCRUBBER, 38CM, 11L, 12VDC [T1B AGM IRIS | E26: 10176
A27: 306202 | B27: T1B | C27: 9008638 | D27: SCRUBBER, 38CM, 11L, 12VDC [T1B NA, Li] | E27: 11109
A28: 306203 | B28: SPEEDSCRUB BATT 15" | C28: 9008640 | D28: SCRUBBER, 2 GAL, Li BATT [NOB SS15] | E28: 11109
A29: 306203 | B29: SPEEDSCRUB BATT 15" | C29: 9008637 | D29: SCRUBBER, 38CM, 11L, 12VDC [SS-15", AGM] | E29: 8611
A30: 306300 | B30: T2 | C30: MV-T2-0001 | D30: SCRUBBER, 43CM, PUSH [T2, NA] | E30: 11537
A31: 306300 | B31: T2 | C31: MV-T2-0008 | D31: SCRUBBER, 43CM, PUSH [T2, NA GEL W/BRSH] | E31: 10916
A32: 306304 | B32: WB-20 20" Autoscrub | C32: 9002791 | D32: SCRUBBER, 20INCH, 24VDC[WB-20B CTX CMPT] | E32: 9715
A33: 306307 | B33: T300 | C33: MV-T300-0001 | D33: SCRUBBER, 430D, PUSH, MEM [T300D NA] | E33: 11848
A34: 306307 | B34: T300 | C34: MV-T300-0003 | D34: SCRUBBER, 500D, PUSH, MEM [T300D NA] | E34: 13316
A35: 306307 | B35: T300 | C35: MV-T300-0011 | D35: SCRUBBER, 500O, DR, MEM, ECNC[T300 O NA] | E35: 19549
A36: 306307 | B36: T300 | C36: MV-T300-0007 | D36: SCRUBBER, 500D, DR, PRO, ECNC [T300D NA] | E36: 19379
A37: 306307 | B37: T300 | C37: MV-T300-0010 | D37: SCRUBBER, 500O, DR, MEM [T300 O NA] | E37: 16644
A38: 306307 | B38: T300 | C38: MV-T300-0008 | D38: SCRUBBER, 600D, DR, MEM [T300D NA] | E38: 17738
A39: 306307 | B39: T300 | C39: MV-T300-0004 | D39: SCRUBBER, 500D, DR, MEM [T300D NA] | E39: 15594
A40: 306307 | B40: T300 | C40: MV-T300-0006 | D40: SCRUBBER, 500D, DR, PRO [T300D NA] | E40: 16474
A41: 306307 | B41: T300 | C41: MV-T300-0135 | D41: SCRUBBER, 500D, DR, ECNC[T300D, ARMKCB]Y | E41: 21894
A42: 306307 | B42: T300 | C42: MV-T300-0134 | D42: SCRUBBER,500D, DR, ECNC [T300D,ARMK]PW Y | E42: 21484
A43: 306307 | B43: T300 | C43: MV-T300-0009 | D43: SCRUBBER, 600D, DR, PRO, ECNC [T300 NA] | E43: 21524
A44: 306307 | B44: T300 | C44: MV-T300-0005 | D44: SCRUBBER, 500D, DR, MEM, ECNC [T300D NA] | E44: 18499
A45: 306308 | B45: T300e | C45: MV-T300E-0007 | D45: SCRUBBER, 600D, DR [T300e D NA] | E45: 13973
A46: 306308 | B46: T300e | C46: MV-T300E-0002 | D46: SCRUBBER, 430D, PUSH [T300e D ECNC NA] | E46: 12507
A47: 306308 | B47: T300e | C47: MV-T300E-0004 | D47: SCRUBBER, 500D, PUSH, IC,ECN[T300e D NA] | E47: 14321
A48: 306308 | B48: T300e | C48: MV-T300E-0010 | D48: SCRUBBER, 500O, DR, ECNC [T300e O NA] | E48: 17225
A49: 306308 | B49: T300e | C49: MV-T300E-0008 | D49: SCRUBBER, 600D, DR, IC, ECNC[T300e D NA] | E49: 17914
A50: 306308 | B50: T300e | C50: MV-T300E-0085 | D50: SCRUBBER, EX, 500D, PUSH, CNV, 130AH[CA] | E50: 11272
A51: 306308 | B51: T300e | C51: MV-T300E-0003 | D51: SCRUBBER, 500D, PUSH [T300e D NA] | E51: 10752
A52: 306308 | B52: T300e | C52: MV-T300E-0086 | D52: SCRUBBER, EX, 500D, PUSH, CNV, AGM [CA] | E52: 12992
A53: 306308 | B53: T300e | C53: MV-T300E-0006 | D53: SCRUBBER, 500D, DR, IC, ECNC[T300e D NA] | E53: 16895
A54: 306308 | B54: T300e | C54: MV-T300E-0027 | D54: SCRUBBER, 500O, DR, ECNC [T300e O WM] | E54: 19207
A55: 306308 | B55: T300e | C55: MV-T300E-0005 | D55: SCRUBBER, 500D,DR,IC,130AH [T300e D NA] | E55: 13989
A56: 306308 | B56: T300e | C56: MV-T300E-0009 | D56: SCRUBBER, 500O, DR [T300e O NA] | E56: 14320
A57: 306309 | B57: SS300 | C57: MV-SS300-0006 | D57: SCRUBBER, 500D, DR, IC,ECN,130AH[SS300D] | E57: 16886
A58: 306309 | B58: SS300 | C58: MV-SS300-0003 | D58: SCRUBBER, 500D, PUSH, 130AH [SS300D] | E58: 10752
A59: 306309 | B59: SS300 | C59: MV-SS300-0005 | D59: SCRUBBER, 500D, DR, IC, 130AH [SS300D] | E59: 13981
A60: 306309 | B60: SS300 | C60: MV-SS300-0009 | D60: SCRUBBER, 500O, DR, 150AH [SS300 O] | E60: 14324
A61: 306309 | B61: SS300 | C61: MV-SS300-0010 | D61: SCRUBBER, 500O, DR, ECNC, 150AH[SS300 O] | E61: 17230
A62: 306309 | B62: SS300 | C62: MV-SS300-0012 | D62: SCRUBBER, 430D, P, IC,ECNC,130AH[SS300D] | E62: 13122
A63: 306309 | B63: SS300 | C63: MV-SS300-0001 | D63: SCRUBBER, 430D, PUSH, 130AH [SS300D] | E63: 9609
A64: 306309 | B64: SS300 | C64: MV-SS300-0007 | D64: SCRUBBER, 600D, DR, 150AH [SS300D] | E64: 13978
A65: 306309 | B65: SS300 | C65: MV-SS300-0002 | D65: SCRUBBER, 430D, PUSH, ECNC,130AH[SS300D] | E65: 12514
A66: 306309 | B66: SS300 | C66: MV-SS300-0004 | D66: SCRUBBER, 500D, P, IC,ECNC,130AH[SS300D] | E66: 14299
A67: 306309 | B67: SS300 | C67: MV-SS300-0008 | D67: SCRUBBER, 600D, DR, IC,ECNC,150A[SS300D] | E67: 17924
A68: 306327 | B68: T290 | C68: 9022001 | D68: SCRUBBER [T290 50CM, PA, 150AH WET, NA] | E68: 8676
A69: 306327 | B69: T290 | C69: 9022004 | D69: SCRUBBER [T290 50CM, 150AH WET, NA] | E69: 10585
A70: 306327 | B70: T290 | C70: 1255468 | D70: SCRUBBER [T290 50CM, W/O BATT, NA] | E70: 9836
A71: 306327 | B71: T290 | C71: 9022003 | D71: SCRUBBER [T290 50CM, 130AH WET, NA] | E71: 10403
A72: 306327 | B72: T290 | C72: 1255467 | D72: SCRUBBER [T290 50CM, PA, W/O BATT, NA] | E72: 7931
A73: 306327 | B73: T290 | C73: 9022002 | D73: SCRUBBER [T290 50CM, PA, 140AH AGM, NA] | E73: 10188
A74: 306327 | B74: T290 | C74: 9022000 | D74: SCRUBBER [T290 50CM, PA, 130AH WET, NA] | E74: 8497
A75: 306327 | B75: T290 | C75: 9022005 | D75: SCRUBBER [T290 50CM, 140AH AGM, NA] | E75: 12094
A76: 306407 | B76: T500 | C76: MV-T500-0019 | D76: SCRUBBER,T500,650D,MEM,ECNC,225AH,OBC,CA | E76: 27165
A77: 306407 | B77: T500 | C77: MV-T500-0017 | D77: SCRUBBER,T500, 700O, MEM, 225AH, OBC, CA | E77: 26040
A78: 306407 | B78: T500 | C78: MV-T500-0026 | D78: SCRUBBER,T500, 700O, PPAN, 225AH, OBC,CA | E78: 31409
A79: 306407 | B79: T500 | C79: MV-T500-0023 | D79: SCRUBBER,T500,700C,MEM,ECNC,225AH,OBC,CA | E79: 30674
A80: 306407 | B80: T500 | C80: MV-T500-0025 | D80: SCRUBBER,T500, 800D, PPAN, 225AH, OBC,CA | E80: 31593
A81: 306407 | B81: T500 | C81: MV-T500-0020 | D81: SCRUBBER,T500,700D,MEM,ECNC,225AH,OBC,CA | E81: 28671
A82: 306407 | B82: T500 | C82: MV-T500-0021 | D82: SCRUBBER,T500,800D,MEM,ECNC,225AH,OBC,CA | E82: 30386
A83: 306407 | B83: T500 | C83: MV-T500-0014 | D83: SCRUBBER,T500, 650D, MEM, 225AH, OBC, CA | E83: 23188
A84: 306407 | B84: T500 | C84: MV-T500-0016 | D84: SCRUBBER,T500, 800D, MEM, 225AH, OBC, CA | E84: 26411
A85: 306407 | B85: T500 | C85: MV-T500-0022 | D85: SCRUBBER,T500,700O,MEM,ECNC,225AH,OBC,CA | E85: 30015
A86: 306407 | B86: T500 | C86: MV-T500-0018 | D86: SCRUBBER,T500, 700C, MEM, 225AH, OBC, CA | E86: 26699
A87: 306407 | B87: T500 | C87: MV-T500-0015 | D87: SCRUBBER,T500, 700D, MEM, 225AH, OBC, CA | E87: 25119
A88: 306407 | B88: T500 | C88: MV-T500-0024 | D88: SCRUBBER,T500, 700D, PPAN, 225AH, OBC,CA | E88: 30463
A89: 306408 | B89: T500e | C89: MV-T500E-0023 | D89: SCRUBBER,T500E,650D,ECNC,225AH,OBC,SF,CA | E89: 25570
A90: 306408 | B90: T500e | C90: MV-T500E-0017 | D90: SCRUBBER, T500E, 800D, 225AH, OBC, CA | E90: 22534
A91: 306408 | B91: T500e | C91: MV-T500E-0050 | D91: SCRUBBER, T500E,800D,CNV,225AH,OBC,PW,WM | E91: 25920
A92: 306408 | B92: T500e | C92: MV-T500E-0024 | D92: SCRUBBER,T500E,700D,ECNC,225AH,OBC,SF,CA | E92: 26260
A93: 306408 | B93: T500e | C93: MV-T500E-0021 | D93: SCRUBBER, T500E, 800D, 225AH, OBC, SF,CA | E93: 23818
A94: 306408 | B94: T500e | C94: MV-T500E-0025 | D94: SCRUBBER,T500E,800D,ECNC,225AH,OBC,SF,CA | E94: 27792
A95: 306408 | B95: T500e | C95: MV-T500E-0018 | D95: SCRUBBER, T500E, 700O, 225AH, OBC, CA | E95: 22343
A96: 306408 | B96: T500e | C96: MV-T500E-0015 | D96: SCRUBBER, T500E, 650D, 225AH, OBC, CA | E96: 20312
A97: 306408 | B97: T500e | C97: MV-T500E-0016 | D97: SCRUBBER, T500E, 700D, 225AH, OBC, CA | E97: 20955
A98: 306408 | B98: T500e | C98: MV-T500E-0020 | D98: SCRUBBER, T500E, 700D, 225AH, OBC, SF,CA | E98: 22659
A99: 306408 | B99: T500e | C99: MV-T500E-0026 | D99: SCRUBBER,T500E,700O,ECNC,225AH,OBC,SF,CA | E99: 27601
A100: 306408 | B100: T500e | C100: MV-T500E-0022 | D100: SCRUBBER, T500E, 700O, 225AH, OBC, SF,CA | E100: 23626
A101: 306408 | B101: T500e | C101: MV-T500E-0051 | D101: SCRUBBER,T500E, 700D,CNV,225AH,OBC,PW,WM | E101: 24753
A102: 306408 | B102: T500e | C102: MV-T500E-0019 | D102: SCRUBBER, T500E, 650D, 225AH, OBC, SF,CA | E102: 21595
A103: 306408 | B103: T500e | C103: MV-T500E-0049 | D103: SCRUBBER, T500E 800D, CNV, 225AH,OBC,WM | E103: 26348
A104: 306409 | B104: SS500 | C104: MV-SS500-0015 | D104: SCRUBBER, SS500, 800D, 225AH, OBC, CA | E104: 22534
A105: 306409 | B105: SS500 | C105: MV-SS500-0016 | D105: SCRUBBER, SS500, 700O, 225AH, OBC, CA | E105: 22343
A106: 306409 | B106: SS500 | C106: MV-SS500-0020 | D106: SCRUBBER, SS500, 700O, 225AH, OBC, SF,CA | E106: 23626
A107: 306409 | B107: SS500 | C107: MV-SS500-0024 | D107: SCRUBBER,SS500,700O,ECNC,225AH,OBC,SF,CA | E107: 27601
A108: 306409 | B108: SS500 | C108: MV-SS500-0021 | D108: SCRUBBER,SS500,650D,ECNC,225AH,OBC,SF,CA | E108: 25570
A109: 306409 | B109: SS500 | C109: MV-SS500-0019 | D109: SCRUBBER, SS500, 800D, 225AH, OBC, SF,CA | E109: 23818
A110: 306409 | B110: SS500 | C110: MV-SS500-0010 | D110: SCRUBBER,SS500,700D,ECNC,225AH,OBC,SF,PW | E110: 26631
A111: 306409 | B111: SS500 | C111: MV-SS500-0022 | D111: SCRUBBER,SS500,700D,ECNC,225AH,OBC,SF,CA | E111: 26786
A112: 306409 | B112: SS500 | C112: MV-SS500-0023 | D112: SCRUBBER,SS500,800D,ECNC,225AH,OBC,SF,CA | E112: 27792
A113: 306409 | B113: SS500 | C113: MV-SS500-0014 | D113: SCRUBBER, SS500, 700D, 225AH, OBC, CA | E113: 21376
A114: 306409 | B114: SS500 | C114: MV-SS500-0013 | D114: SCRUBBER, SS500, 650D, 225AH, OBC, CA | E114: 20309
A115: 306409 | B115: SS500 | C115: MV-SS500-0018 | D115: SCRUBBER SS500, 700D, 225AH, OBC, SF, CA | E115: 22659
A116: 306409 | B116: SS500 | C116: MV-SS500-0017 | D116: SCRUBBER, SS500, 650D, 225AH, OBC, SF,CA | E116: 21595
A117: 306413 | B117: T390 | C117: 9022007 | D117: SCRUBBER [T390, 70CM, 140AH AGM, NA] | E117: 15919
A118: 306413 | B118: T390 | C118: 9022006 | D118: SCRUBBER [T390, 70CM, 150AH WET, NA] | E118: 14408
A119: 306413 | B119: T390 | C119: 1255469 | D119: SCRUBBER [T390, 70CM, W/O BATT, NA] | E119: 13842
A120: 306505 | B120: T600e | C120: MV-T600E-0001 | D120: SCRUBBER, T600E, 700D, CNV, 360AH [CA] | E120: 26975
A121: 306505 | B121: T600e | C121: MV-T600E-0012 | D121: SCRUBBER,T600E,800D, CNV, 360AH [CA] | E121: 28123
A122: 307200 | B122: 2180SR | C122: 9017766 | D122: SCRUBBER [2180SR 50CM NA AND EXPORT] | E122: 14295
A123: 307202 | B123: T581 | C123: 9022009 | D123: SCRUBBER [T581, 50CM, 140AH AGM, NA] | E123: 18320
A124: 307202 | B124: T581 | C124: 1255470 | D124: SCRUBBER [T581, 50CM, W/O BATT, NA] | E124: 16243
A125: 307202 | B125: T581 | C125: 9022008 | D125: SCRUBBER [T581, 50CM, 150AH WET, NA] | E125: 16810
A126: 307500 | B126: T7 | C126: MV-T7-0049 | D126: SCRUBBER, T7, 650D, CNV, 220AH AGM [CA] | E126: 36542
A127: 307500 | B127: T7 | C127: MV-T7-0073 | D127: MV T7 SCRUBBER, 800 DISK [WM] | E127: 41069
A128: 307500 | B128: T7 | C128: MV-T7-0001 | D128: SCRUBBER, 650MM, DISK [T7 RIDER] | E128: 32400
A129: 307500 | B129: T7 | C129: MV-T7-0048 | D129: SCRUBBER, T7, 650D, ECNC, 240AH [CA] | E129: 38675
A130: 307500 | B130: T7 | C130: MV-T7-0047 | D130: SCRUBBER, T7, 650D, CNV, 240AH [CA] | E130: 34211
A131: 307500 | B131: T7 | C131: MV-T7-0050 | D131: SCRUBBER, T7, 650D, ECNC, 220AH AGM [CA] | E131: 41006
A132: 307500 | B132: T7 | C132: MV-T7-0045 | D132: SCRUBBER, 800MM, DISK, 360AH[T7 WALMART | E132: 37550
A133: 307500 | B133: T7 | C133: MV-T7-0078 | D133: SCRUBBER, 650MM, DISK, CNV [T7], [MX] | E133: 34859
A134: 307500 | B134: T7 | C134: MV-T7-0074 | D134: MV T7 SCRUBBER, 800 DISK [WM] PW | E134: 40608
A135: 307600 | B135: T12 | C135: MV-T12-0011 | D135: SCRUBBER MODEL T12, DISK, GRAINGER [US] | E135: 38684
A136: 307600 | B136: T12 | C136: MV-T12-0012 | D136: SCRUBBER MODEL T12, CYL, GRAINGER [US] | E136: 39735
A137: 309100 | B137: T350 | C137: MV-T350-0013 | D137: SCRUBBER,T350,500D,MEM,CNV,210AH,OBC[CA] | E137: 20289
A138: 309100 | B138: T350 | C138: MV-T350-0017 | D138: SCRUBBER,T350,600D,MEM,ECNC,240AH,OBC[CA | E138: 27354
A139: 309100 | B139: T350 | C139: MV-T350-0033 | D139: SCRUBBER,T350,500D,MEM,CNV,210AH,OBC[CA] | E139: 21516
A140: 309100 | B140: T350 | C140: MV-T350-0016 | D140: SCRUBBER,T350,600D,MEM,CNV,210AH,OBC[CA] | E140: 22548
A141: 309100 | B141: T350 | C141: MV-T350-0015 | D141: SCRUBBER, T350,500D,PPAN,ECNC,240AH [CA] | E141: 26447
A142: 309100 | B142: T350 | C142: MV-T350-0018 | D142: SCRUBBER, T350,600D,PPAN,ECNC,240AH [CA] | E142: 28705
A143: 309100 | B143: T350 | C143: MV-T350-0032 | D143: SCRUBBER,T350,600D,MEM,CNV,210AH,SF [CA] | E143: 23426
A144: 309100 | B144: T350 | C144: MV-T350-0014 | D144: SCRUBBER,T350,500D,MEM,ECNC,240AH,OBC[CA | E144: 25095
A145: 309200 | B145: SS350 | C145: MV-SS350-0011 | D145: SCRUBBER,SS350,600D,MEM,CNV,210AH,OBC[CA | E145: 22548
A146: 309200 | B146: SS350 | C146: MV-SS350-0012 | D146: SCRUBBER, SS350,600D,MEM,ECNC,240AH [CA] | E146: 27354
A147: 309200 | B147: SS350 | C147: MV-SS350-0010 | D147: SCRUBBER, SS350,500D,MEM,ECNC,240AH [CA] | E147: 25092
A148: 309200 | B148: SS350 | C148: MV-SS350-0009 | D148: SCRUBBER, SS350,500D,MEM,CNV,210AH [CA] | E148: 20286
A149: 311302 | B149: M20 | C149: MM20-2032 | D149: MODEL M20 SCRUBBER/SWEEPER | E149: 32582
A150: 311302 | B150: M20 | C150: MV-M20-0032 | D150: M20, LP, MEM, CNV [BRAZIL] | E150: 110504
A151: 311302 | B151: M20 | C151: MM20-3250 | D151: MODEL M20 SCRUBBER/SWEEPER | E151: 50558
A152: 311302 | B152: M20 | C152: MM20-3461 | D152: MODEL M20 SCRUBBER/SWEEPER | E152: 44812
A153: 321020 | B153: V-BP-6 | C153: 1217839 | D153: VACUUM, V-BP-6, 120V [TENNANT MEX] | E153: 859
A154: 321020 | B154: V-BP-6 | C154: 9013473 | D154: VACUUM, BACKPACK, W/BASE TOOLS [V-BP-6] | E154: 1058
A155: 321020 | B155: V-BP-6 | C155: 9013475 | D155: VACUUM, BACKPACK, W/PREM TOOLS [V-BP-6] | E155: 1248
A156: 321020 | B156: V-BP-6 | C156: 1060830 | D156: VACUUM, V-BP-6, 120V | E156: 950
A157: 321020 | B157: V-BP-6 | C157: 1215364 | D157: VACUUM, BACKPACK, 120V [TENNANT V-BP-6] | E157: 800
A158: 321020 | B158: V-BP-6 | C158: 9013474 | D158: VACUUM, BACKPACK, W/STD TOOLS [V-BP-6] | E158: 1092
A159: 321023 | B159: Aspen 6 | C159: 1215365 | D159: VACUUM, BACKPACK, 120V [NOBLES ASPEN 6] | E159: 830
A160: 321023 | B160: Aspen 6 | C160: 9013476 | D160: VACUUM, BACKPACK, W/BASE TOOLS [ASPEN 6] | E160: 1058
A161: 321023 | B161: Aspen 6 | C161: 9013478 | D161: VACUUM, BACKPACK, W/PREM TOOLS [ASPEN 6] | E161: 1248
A162: 321023 | B162: Aspen 6 | C162: 9013477 | D162: VACUUM, BACKPACK, W/STD TOOLS [ASPEN 6] | E162: 1092
A163: 321025 | B163: V-BP-6B | C163: 9017571 | D163: VACUUM, BACKPACK, W/PREM TOOLS[V-BP-6B] | E163: 3001
A164: 321025 | B164: V-BP-6B | C164: 1236569 | D164: VACUUM, BATTERY [TENNANT, V-BP-6B] | E164: 1550
A165: 321025 | B165: V-BP-6B | C165: 9017567 | D165: VACUUM, BACKPACK, W/BASIC TOOLS[V-BP-6B] | E165: 2722
A166: 321025 | B166: V-BP-6B | C166: 9017570 | D166: VACUUM, BACKPACK, W/STD TOOLS [V-BP-6B] | E166: 2815
A167: 321026 | B167: Aspen 6B | C167: 9017569 | D167: VACUUM, BACKPACK, W/STD TOOLS [ASPEN 6B] | E167: 2815
A168: 321026 | B168: Aspen 6B | C168: 9017572 | D168: VACUUM, BACKPACK, W/PREM TOOLS[ASPEN 6B] | E168: 3001
A169: 321026 | B169: Aspen 6B | C169: 9017568 | D169: VACUUM, BACKPACK, W/BASIC TOOLS[ASPEN6B] | E169: 2722
A170: 322075 | B170: V-CAN-10 | C170: 1244292 | D170: VACUUM, CANISTER, 120V [V-CAN-10, NA] | E170: 449
A171: 322076 | B171: V-CAN-12 | C171: 1252616 | D171: VACUUM, CANISTER, 120V [V-CAN-12,NA,STD] | E171: 621
A172: 322077 | B172: V-CAN-16 | C172: 1252618 | D172: VACUUM, CANISTER, 120V [V-CAN-16,NA,STD] | E172: 764
A173: 322078 | B173: Denali-10 | C173: 1244294 | D173: VACUUM, CANISTER, 120V [DENALI-10, NA] | E173: 449
A174: 322079 | B174: Denali-12 | C174: 1252617 | D174: VACUUM, CANISTER,120V [DENALI-12,NA,STD] | E174: 621
A175: 322080 | B175: Denali-16 | C175: 1252619 | D175: VACUUM, CANISTER,120V [DENALI-16,NA,STD] | E175: 764
A176: 323123 | B176: V-SMU-14 | C176: 1060829 | D176: VACUUM, V-SMU-14, 120V | E176: 866
A177: 323126 | B177: V-DMU-14 | C177: 1068027 | D177: VACUUM, V-DMU-14, 120V | E177: 1131
A178: 323129 | B178: V-WA-30 | C178: 1068029 | D178: VACUUM, 120VAC [V-WA-30] | E178: 5646
A179: 323132 | B179: V-LWU-13B | C179: 1236914 | D179: VACUUM, BATTERY [TENNANT, V-LWU-13B] | E179: 1328
A180: 323133 | B180: Independence | C180: 1236915 | D180: VACUUM, BATTERY [NOBLES,INDEPENDENCE] | E180: 1328
A181: 324075 | B181: V-WD-9 | C181: 1244345 | D181: VACUUM, WET/DRY, 120V [V-WD-9, NA] | E181: 804
A182: 324076 | B182: V-WD-24P | C182: 9019349 | D182: VACUUM, WET/DRY, 120V [V-WD-24P, W/SQGE] | E182: 3128
A183: 324076 | B183: V-WD-24P | C183: 1244346 | D183: VACUUM, WET/DRY, 120V [V-WD-24P, NA] | E183: 2519
A184: 324077 | B184: V-WD-24 | C184: 9019348 | D184: VACUUM, WET/DRY, 120V [V-WD-24, W/SQGE] | E184: 1882
A185: 324077 | B185: V-WD-24 | C185: 1245656 | D185: VACUUM, WET/DRY, 120V [V-WD-24, NA] | E185: 1273
A186: 326025 | B186: EX-CAN-10 | C186: 9007483 | D186: CANISTER, 10GAL [EX-CAN-10]PAC120VCSA-SI | E186: 3844
A187: 326026 | B187: EX-CAN-15-HPH | C187: 9007628 | D187: CANISTER, 15G [EX-CAN-15-HP]120V CSA-SI | E187: 4358
A188: 326036 | B188: EH5 | C188: 1072858 | D188: EXTRACTOR, 120V, 500PSI, HEAT [EH5] | E188: 10023
A189: 326036 | B189: EH5 | C189: 9011454 | D189: EXTRACTOR, FLOOR TOOL [TCO EH5 PAC] | E189: 11983
A190: 326038 | B190: EC2 | C190: 1072862 | D190: EXTRACTOR, 120V, 200PSI, HEAT [EC2] | E190: 5810
A191: 326038 | B191: EC2 | C191: 9011638 | D191: EXTRACTOR, FLOOR TOOL [TCO EC2 PAC] | E191: 7216
A192: 326038 | B192: EC2 | C192: 9012278 | D192: EXTRACTOR, FLOOR TOOL, TI [TCO EC2 PAC] | E192: 7767
A193: 327002 | B193: R3 ReadySpace (15" Cord Electric) | C193: 9004192 | D193: READYSPACE, 5 GAL, 120VAC, TCO [R3] | E193: 8181
A194: 327002 | B194: R3 ReadySpace (15" Cord Electric) | C194: 9004192-H | D194: READYSPACE, 5 GAL, 120VAC, TCO [R3] | E194: 8181
A195: 327003 | B195: 1610 w/ ReadySpace (Tennant) | C195: MV-1610-0001 | D195: READYSPACE, 21GAL TCO [1610] | E195: 26221
A196: 327003 | B196: 1610 w/ ReadySpace (Tennant) | C196: MV-1610-0002 | D196: READYSPACE, 21GAL TCO [1610 AGM BAT] | E196: 26964
A197: 327004 | B197: Strive w/ ReadySpace (Nobles) | C197: 9000504 | D197: READYSPACE, 21GAL [STRIVE] W/O BAT | E197: 23192
A198: 327004 | B198: Strive w/ ReadySpace (Nobles) | C198: MV-STRV-0001 | D198: READYSPACE, 21GAL NOB [STRIVE] | E198: 26221
A199: 327004 | B199: Strive w/ ReadySpace (Nobles) | C199: MV-STRV-0002 | D199: READYSPACE, 21GAL NOB [STRIVE AGM BAT] | E199: 26964
A200: 327007 | B200: Nobles ReadySpace (15" Cord Electric) | C200: 9004202-H | D200: READYSPACE, 5 GAL, NOB [STRIVE COMPACT] | E200: 8181
A201: 327007 | B201: Nobles ReadySpace (15" Cord Electric) | C201: 9004202 | D201: READYSPACE, 5 GAL, NOB [STRIVE COMPACT] | E201: 8181
A202: 328033 | B202: EX-SC-1020 | C202: 9007486 | D202: EXTRACTOR, 10GAL 20W[120V UL EX-SC-1020] | E202: 6659
... 22 more rows

Sheet SpeedGleam7
A1: SpeedGleam7 | C1: =Start_Here!$C19 -> Company Name
A2: =SUM(G96) -> 0 | C2: =Start_Here!$C20 -> Address
C3: =Start_Here!$C21 -> City, State Zip
C4: =Start_Here!$C22 -> Contact Name
C5: =Start_Here!$C$41 -> Rep Name
C6: =Start_Here!$C$37 -> Tennant Sales and Service Company
C7: =Start_Here!$C$38 -> 10400 Clean Street
C8: =Start_Here!$C$39 -> Eden Prairie, MN 55344
C9: =Start_Here!$C$43 -> 800-553-8033 | E9: Quote Date : | G9: =Letter!$A$25 -> 2023-08-01
C11: =Help!C2 -> CAN Date Rev - 5/6/2025
B12: BUILT-IN “NOBLES" VALUE” INCLUDES:
B14: 610mm/690mm or 24"/27" Burnishing Path | D14: On Board Charger
B15: Transaxel drive | D15: 3m/15 ft power cord
B16: Passive Dust Control | D16: Battery Tray
B17: Tooless Felt Dust skirt | D17: Variable Bail
B18: Pad RPM - 1850 | D18: On-Board Trouble Shooting Guide
B19: Mechanical Set and Forget TM Down Pressure | D19: ETL Listed for the US and Canada
B20: True Free Floating Head | D20: 64 dBa
B21: Rugged DuramerTM Tank Construction | D21: Emergency Stop
B22: Two-Way Gas Assist Shock for Tank Open/Close | D22: Key Switch
B23: Anti-Static Straps | D23: Hour Meter
B24: Clamshell Tank Design | D24: Operators manual
B25: Unit shipped with 1 burnishing pad, paper bag and HEPA filter
B26: Jacking Points/Shipping Tie Downs
B28: NOBLES WARRANTY
B29: 3 YEARS OR 2000 HOURS - PARTS
B30: 1 YEAR - BATTERY CHARGERS
B31: 2 YEARS - LABOR
B32: 6 MONTHS - TRAVEL
B33: 10 YEARS ON DURAMERTM TANKS
G34: Fax (quote only)
G35: Mail (quote,lit, specs)
G36: Fax + Mail
E38: Primary Use
G39: Inside
G40: Outside
C43: Description | D43: Reference # | E43: Price Each | F43: Qty | G43: Extended Price
B44: Base Configuration | E44: CANADA | F44: =SUM(F45,F49,F53,F56,F59) -> 0
C45: Cleaning Type | F45: =SUM(F46:F47) -> 0
C46: Speed Gleam 7 Battery Walk-Behind Burnisher 610mm/24" | D46: SG7-610 | E46: 19941 | G46: =F46*E46 -> 0 | H46: =IFERROR(IFERROR(VLOOKUP(D46,Surcharge!A:B,2,FALSE)*F46, VLOOKUP(D46 & "",Surcharge!A:B,2,FALSE)*F46), "") -> 
C47: Speed Gleam 7 Battery Walk-Behind Burnisher 690mm/27" | D47: SG7-690 | E47: 22072 | G47: =F47*E47 -> 0 | H47: =IFERROR(IFERROR(VLOOKUP(D47,Surcharge!A:B,2,FALSE)*F47, VLOOKUP(D47 & "",Surcharge!A:B,2,FALSE)*F47), "") -> 
H48: =IFERROR(IFERROR(VLOOKUP(D48,Surcharge!A:B,2,FALSE)*F48, VLOOKUP(D48 & "",Surcharge!A:B,2,FALSE)*F48), "") -> 
C49: Battery Type | F49: =SUM(F50:F51) -> 0 | H49: =IFERROR(IFERROR(VLOOKUP(D49,Surcharge!A:B,2,FALSE)*F49, VLOOKUP(D49 & "",Surcharge!A:B,2,FALSE)*F49), "") -> 
C50: Wet 330AH C/20 (kit of 6 batteries) | D50: 9012674 | E50: 1273 | G50: =F50*E50 -> 0 | H50: =IFERROR(IFERROR(VLOOKUP(D50,Surcharge!A:B,2,FALSE)*F50, VLOOKUP(D50 & "",Surcharge!A:B,2,FALSE)*F50), "") -> 
C51: Sealed/MF AGM 312AH C/20 | D51: 9012676 | E51: 5097 | G51: =F51*E51 -> 0 | H51: =IFERROR(IFERROR(VLOOKUP(D51,Surcharge!A:B,2,FALSE)*F51, VLOOKUP(D51 & "",Surcharge!A:B,2,FALSE)*F51), "") -> 
H52: =IFERROR(IFERROR(VLOOKUP(D52,Surcharge!A:B,2,FALSE)*F52, VLOOKUP(D52 & "",Surcharge!A:B,2,FALSE)*F52), "") -> 
C53: Battery Watering System | F53: =SUM(F54) -> 0 | H53: =IFERROR(IFERROR(VLOOKUP(D53,Surcharge!A:B,2,FALSE)*F53, VLOOKUP(D53 & "",Surcharge!A:B,2,FALSE)*F53), "") -> 
C54: Manual Battery Watering Kit (Note 1) | D54: 9009620 | E54: 1194 | G54: =F54*E54 -> 0 | H54: =IFERROR(IFERROR(VLOOKUP(D54,Surcharge!A:B,2,FALSE)*F54, VLOOKUP(D54 & "",Surcharge!A:B,2,FALSE)*F54), "") -> 
H55: =IFERROR(IFERROR(VLOOKUP(D55,Surcharge!A:B,2,FALSE)*F55, VLOOKUP(D55 & "",Surcharge!A:B,2,FALSE)*F55), "") -> 
C56: Charger | F56: =SUM(F57:F57) -> 0 | H56: =IFERROR(IFERROR(VLOOKUP(D56,Surcharge!A:B,2,FALSE)*F56, VLOOKUP(D56 & "",Surcharge!A:B,2,FALSE)*F56), "") -> 
C57: 25A 85-265V AC 50/60Hz 1Ph (on board) | D57: 9012668 | E57: N/C | G57: =IF(F57=0," ","N/C") ->  | H57: =IFERROR(IFERROR(VLOOKUP(D57,Surcharge!A:B,2,FALSE)*F57, VLOOKUP(D57 & "",Surcharge!A:B,2,FALSE)*F57), "") -> 
H58: =IFERROR(IFERROR(VLOOKUP(D58,Surcharge!A:B,2,FALSE)*F58, VLOOKUP(D58 & "",Surcharge!A:B,2,FALSE)*F58), "") -> 
C59: Down Pressure | F59: =SUM(F60:F61) -> 0 | H59: =IFERROR(IFERROR(VLOOKUP(D59,Surcharge!A:B,2,FALSE)*F59, VLOOKUP(D59 & "",Surcharge!A:B,2,FALSE)*F59), "") -> 
C60: Mechanical Set and Forget TM Down Pressure | D60: 9012640 | E60: N/C | G60: =IF(F60=0," ","N/C") ->  | H60: =IFERROR(IFERROR(VLOOKUP(D60,Surcharge!A:B,2,FALSE)*F60, VLOOKUP(D60 & "",Surcharge!A:B,2,FALSE)*F60), "") -> 
C61: Automated Down Pressure | D61: 9012641 | E61: 926 | G61: =F61*E61 -> 0 | H61: =IFERROR(IFERROR(VLOOKUP(D61,Surcharge!A:B,2,FALSE)*F61, VLOOKUP(D61 & "",Surcharge!A:B,2,FALSE)*F61), "") -> 
H62: =IFERROR(IFERROR(VLOOKUP(D62,Surcharge!A:B,2,FALSE)*F62, VLOOKUP(D62 & "",Surcharge!A:B,2,FALSE)*F62), "") -> 
B63: Cleaning Performance | D63: Reference Number | F63: =SUM(F64:F66) -> 0 | H63: =IFERROR(IFERROR(VLOOKUP(D63,Surcharge!A:B,2,FALSE)*F63, VLOOKUP(D63 & "",Surcharge!A:B,2,FALSE)*F63), "") -> 
C64: Dust Control System, Passive - 95% @ .3 microns | D64: PASSIVE | E64: N/C | G64: =IF(F64=0," ","N/C") ->  | H64: =IFERROR(IFERROR(VLOOKUP(D64,Surcharge!A:B,2,FALSE)*F64, VLOOKUP(D64 & "",Surcharge!A:B,2,FALSE)*F64), "") -> 
C65: Dust Control System, Active - HEPA Filtration to 99.97% @ .3 microns | D65: 9012657 | E65: 816 | G65: =F65*E65 -> 0 | H65: =IFERROR(IFERROR(VLOOKUP(D65,Surcharge!A:B,2,FALSE)*F65, VLOOKUP(D65 & "",Surcharge!A:B,2,FALSE)*F65), "") -> 
C66: Dust Control Filter, Paper Filter Bag | D66: 1210869 | E66: N/C | G66: =IF(F66=0," ","N/C") ->  | H66: =IFERROR(IFERROR(VLOOKUP(D66,Surcharge!A:B,2,FALSE)*F66, VLOOKUP(D66 & "",Surcharge!A:B,2,FALSE)*F66), "") -> 
H67: =IFERROR(IFERROR(VLOOKUP(D67,Surcharge!A:B,2,FALSE)*F67, VLOOKUP(D67 & "",Surcharge!A:B,2,FALSE)*F67), "") -> 
B68: Support (Note 2) | F68: =SUM(F69:F73) -> 0 | H68: =IFERROR(IFERROR(VLOOKUP(D68,Surcharge!A:B,2,FALSE)*F68, VLOOKUP(D68 & "",Surcharge!A:B,2,FALSE)*F68), "") -> 
C69: Speed Gleam 7 Operator Manual - English | D69: 9011615 | E69: N/C | G69: =IF(F69=0," ","N/C") ->  | H69: =IFERROR(IFERROR(VLOOKUP(D69,Surcharge!A:B,2,FALSE)*F69, VLOOKUP(D69 & "",Surcharge!A:B,2,FALSE)*F69), "") -> 
C70: Speed Gleam 7 Operator Manual - French | D70: 9011618 | E70: N/C | G70: =IF(F70=0," ","N/C") ->  | H70: =IFERROR(IFERROR(VLOOKUP(D70,Surcharge!A:B,2,FALSE)*F70, VLOOKUP(D70 & "",Surcharge!A:B,2,FALSE)*F70), "") -> 
H71: =IFERROR(IFERROR(VLOOKUP(D71,Surcharge!A:B,2,FALSE)*F71, VLOOKUP(D71 & "",Surcharge!A:B,2,FALSE)*F71), "") -> 
C72: Packaging | F72: =SUM(F73:F73) -> 0 | H72: =IFERROR(IFERROR(VLOOKUP(D72,Surcharge!A:B,2,FALSE)*F72, VLOOKUP(D72 & "",Surcharge!A:B,2,FALSE)*F72), "") -> 
C73: Skid w/Carton, Stackable | D73: 9012681 | E73: N/C | G73: =IF(F73=0," ","N/C") ->  | H73: =IFERROR(IFERROR(VLOOKUP(D73,Surcharge!A:B,2,FALSE)*F73, VLOOKUP(D73 & "",Surcharge!A:B,2,FALSE)*F73), "") -> 
B75: Custom Solution--write in description, qty, price, and PN if applicable | F75: =SUM(F76) -> 0
E76: Insert Prices Here | F76: =SUM(F77:F80) -> 0
D77: Custom | F77: =IF(E77 <> "", 1, 0) -> 0 | G77: =F77*E77 -> 0
D78: Custom | F78: =IF(E78 <> "", 1, 0) -> 0 | G78: =F78*E78 -> 0
D79: Custom | F79: 0 | G79: =F79*E79 -> 0
D80: Custom | F80: 0 | G80: =F80*E80 -> 0
E81: =ROUND(SUM(G46:G80), 0) -> 0 | F81: =SUM(E82) -> 0
D82: Machine Subtotal | E82: =ROUND(SUM(G46:G80), 0) -> 0 | F82: =F81 -> 0
B83: Discounts | F83: =SUM(F84) -> 0
F84: =SUM(F86:F89) -> 0
D85: Applicable Currency Adj % | F85: =IF(E85 <> "", 1, 0) -> 0 | G85: =IF(F85*(E85*0.01)*E81 < 0, F85*(E85*0.01)*E81, -(F85*(E85*0.01)*E81)) -> 0
D86: Discount % | F86: =IF(E86 <> "", 1, 0) -> 0 | G86: =IF(F86*(E86*0.01)*(E81+G85) < 0, F86*(E86*0.01)*(E81+G85), -(F86*(E86*0.01)*(E81+G85))) -> 0
D87: Discount $ | F87: 0 | G87: =IF(F87*E87 < 0, F87*E87, -(F87*E87)) -> 0
D88: Discount $ | F88: 0 | G88: =IF(F88*E88 < 0, F88*E88, -(F88*E88)) -> 0
D89: Discount $ | F89: 0 | G89: =IF(F89*E89 < 0, F89*E89, -(F89*E89)) -> 0
D90: Discount Total | E90: =SUM(G85:G89) -> 0 | F90: =SUM(E90) -> 0
F91: =#REF! -> 
F92: =F91 -> 
C93: Prepaid and Add | D93: Freight | F93: =IF(E93 <> "", 1, 0) -> 0 | G93: =F93*E93 -> 0
C94: Subject to all applicable taxes | D94: Tax | F94: 0 | G94: 0
F95: =SUM(F96) -> 0
D96: MACHINE TOTAL* | F96: =SUM(G96) -> 0 | G96: =SUM(G46:G94) -> 0 | N96: This goes to "My Documents"
G97: =SUM(G96) -> 0
C102: Wells Fargo - Leasing Calculation Option: | D102: Option 1 | F102: Option 2 | J102: =Financing!A38 -> Rates 2025 - Rev.2/4/2025
D103: Monthly Payment | E103: Cost Per Day | F103: Monthly Payment | G103: Cost Per Day | J103: =Financing!A39 -> “Blank Payment Amounts Indicate The Financing Option Or Purchase Options Selected Are Not
C104: Purchase Option: | D104: $1 Buyout Lease | F104: None | J104: =Financing!A40 -> Applicable Or The Machine Total Is Below The Minimum Amount For The Selected Vendor”
C105: 24 Months | D105: 0 | E105: 0 | F105: 0 | G105: 0 | J105: =Financing!A41 -> "Quoted monthly payments are estimates only and are based on a certain level of credit rating.
C106: 36 Months | D106: 0 | E106: 0 | F106: 0 | G106: 0 | J106: =Financing!A42 -> Actual monthly payments may be higher depending on your credit rating."
C107: 48 Months | D107: 0 | E107: 0 | F107: 0 | G107: 0 | J107: =Financing!A43 -> “Financing rates do not include Pre-Paid Service”
C108: 60 Months | D108: 0 | E108: 0 | F108: 0 | G108: 0
D110: Benefits of Equipment Financing:
D111: • Spreads out investment over time. | F111: • Keep current with latest technology.
D112: • Preserve capital. | F112: • Service and parts bundling available.
D113: • Low monthly payment. | F113: • Pay for labor savings as you go.
B115: TennantTrue | D115: 0 | E115: 0
C117: Is customer interested in service program? | D117: Yes | E117: *State/County selection required for TennantTrue service options
C119: If not, why?
C121: Term: | D121: 36 | G121: AB Brushes | H121: No
C122: Monthly machine usage (hrs): | D122: < 30/mo. (Avg. 1hr./day)
C124: TennantTrue: | D124: Gold Contract | F124: Silver Contract
C125: Per Visit | F125: 336
C126: Monthly | D126: 112 | F126: 56
C127: Annually | F127: 659
C128: Pre-Pay Full Term | D128: 3882 | F128: 1936
C129: Hourly Labor Rate
C130: Site Visit
C132: * Verify customer current pricing prior to quote.
C133: **All rates and fees above reflect service for one (1) unit with the exception of Block of Time service.
C134: *Block of Time is available in 1 Year Term only and is priced as such no matter the term selection on this template.
B138: Quote Special Instructions:
B142: =Start_Here!E36 -> Terms and Conditions
B143: =Start_Here!E37 -> Ask your local sales rep for estimated lead times. Verify when placing order
B144: =Start_Here!E38 -> All orders subject to acceptance by Tennant Sales and Service Company, Minneapolis, Minnesota
B145: =Start_Here!E39 -> Prices subject to change without notice. Subject to any applicable taxes.
B146: =Start_Here!E40 -> Terms: Net 30 days. Payable in Canadian Funds
B147: =Start_Here!E41 -> Freight: Accessories, parts, supplies, detergents, and floor coatings orders delivered DDP
B148: =Start_Here!E42 -> shipping point Frt PPD. Machine orders delivered DDP shipping point Frt PPD and add.
B149: =Start_Here!E43 -> Returned Merchandise is subject to a restocking fee.
B150: =Start_Here!E44 -> All orders are subject to Tennant’s General Terms and Conditions available at http://www.tennantco.com/terms.
B151: =Start_Here!E45 -> Printed General Terms and Conditions are also available upon request.
B152: =Start_Here!E46 -> 0
B153: =Start_Here!E47 -> 0
B154: =Start_Here!E48 -> 0
E155: Quote Date : | G155: =Letter!$A$25 -> 2023-08-01
B156: Order Placement Information: To place your order, fill in PO# and customer signatures,
B157: call or fax to the numbers listed below. Customer Purchase Order is required.
B158: If information is missing, orders will be entered and held until all information is received.
C160: Customer Number | E160: Cust Grp 3
C161: =Start_Here!$C$25 -> 0 | E161: =Start_Here!$C$29 -> 0
C162: =Start_Here!$B$18 -> Who Owns the Machine? (Sold-To Info) (Please Verify)
A163: Company | C163: =Start_Here!$C$19 -> Company Name
A164: Address | C164: =Start_Here!$C$20 -> Address
C165: =Start_Here!$C$21 -> City, State Zip
A166: Name | C166: =Start_Here!$C$22 -> Contact Name
A167: Phone | C167: =Start_Here!$C$23 -> Contact Phone
C169: =Start_Here!$B$11 -> Where is the Machine Being Shipped? (Ship-To Info) (Please Verify)
A170: Company | C170: =Start_Here!$C$12 -> Company Name
A171: Address | C171: =Start_Here!$C$13 -> Address
C172: =Start_Here!$C$14 -> City, State Zip
A173: Name | C173: =Start_Here!$C$15 -> Contact Name
A174: Phone | C174: =Start_Here!$C$16 -> Contact Phone
C176: =Start_Here!$B$31 -> Shipping / Carrier Instructions: | E176: Order Special Instructions:
C177: =Start_Here!$C$32 -> 0
C179: Customer Purchase Order No.
C180: (please attach copy)
C183: Tax Exempt | E183: Yes
E184: No
C185: If Yes, attach a copy of your exemption certificate.
C187: Requested Delivery Date
C188: =Start_Here!$C$28 -> 0
C190: =Start_Here!$C$26 -> 0 | E190: =Start_Here!$C$27 -> 0
C191: Authorized Buyer (please print) | E191: Phone Number
C194: Authorized Buyer Signature
C196: =Start_Here!$C$41 -> Rep Name
C197: Tennant Representative
D199: Specialized Maintenance Equipment
C200: =Start_Here!$C$51 -> 0
B201: Notes
B202: 1 | C202: Factory installed pricing. Only available on wet batteries, not sealed.
B204: 2 | C204: Additional hard copy Operator and Parts Manuals can be ordered or digital copies can be downloaded from www.nobles.com.
C205: and service manuals on My Account at no charge.
C206: A French and English manual will be supplied for all units shipping into Quebec, Canada at no charge.
B208: 3 | C208: Machine Weights and Dimensions | D208: Skid w/Carton
C209: SG7-610
C210: Weight | D210: 712 lbs / 323 Kg
C211: Length | D211: 73" / 1855 mm
C212: Width | D212: 43" / 1092 mm
C213: Height | D213: 51" / 1296 mm
C215: SG7-690
C216: Weight | D216: 892 lbs / 405 Kg
C217: Length | D217: 73" / 1855 mm
C218: Width | D218: 43" / 1092 mm
C219: Height | D219: 51" / 1296 mm

Sheet SpeedGleam_Rider
A1: SpeedGleam_Rider | C1: =Start_Here!$C19 -> Company Name
A2: =SUM(G91) -> 0 | C2: =Start_Here!$C20 -> Address
C3: =Start_Here!$C21 -> City, State Zip
C4: =Start_Here!$C22 -> Contact Name
C5: =Start_Here!$C$41 -> Rep Name
C6: =Start_Here!$C$37 -> Tennant Sales and Service Company
C7: =Start_Here!$C$38 -> 10400 Clean Street
C8: =Start_Here!$C$39 -> Eden Prairie, MN 55344
C9: =Start_Here!$C$43 -> 800-553-8033 | E9: Quote Date : | G9: =Letter!$A$25 -> 2023-08-01
C11: =Help!C2 -> CAN Date Rev - 5/6/2025
C13: BUILT-IN “NOBLES VALUE” INCLUDES:
B15: 610mm/690mm or 24"/27" burnishing path | D15: Standard (6) 6V 435AH battery pack
B16: Passive Dust Control | D16: Battery Tray
B17: Automated Head Lift | D17: On Board Charger
B18: True free floating Head | D18: Rugged DuramerTM Tank Construction
B19: Supervisor lock-out | D19: 69 dBa
B20: Back up Alarm | D20: Emergency Stop
B21: Adjustable Seat | D21: Anti-Static Straps
B22: Operators manual | D22: Hour Meter
C24: NOBLES WARRANTY
C25: 3 YEARS OR 2000 HOURS ON ALL COMPONENTS, 2 YEARS LABOR
C26: 180 DAYS TRAVEL, 10 YEARS ON DURAMERTM TANKS
E29: Quote Request Information
G30: Fax (quote only)
G31: Mail (quote,lit, specs)
G32: Fax + Mail
E34: Primary Use
G35: Inside
G36: Outside
C39: Description | D39: Reference # | E39: Price Each | F39: Qty | G39: Extended Price
F40: *
B41: Base Configuration (SSR) | E41: CANADA | F41: =SUM(F42,F46,F52) -> 0
C42: Cleaning Type | F42: =SUM(F43:F44) -> 0
C43: Speed Gleam Battery Rider Burnisher 610mm/24" | D43: SGR-610 | E43: 43436 | G43: =F43*E43 -> 0 | H43: =IFERROR(IFERROR(VLOOKUP(D43,Surcharge!A:B,2,FALSE)*F43, VLOOKUP(D43 & "",Surcharge!A:B,2,FALSE)*F43), "") -> 0
C44: Speed Gleam Battery Rider Burnisher 690mm/27" | D44: SGR-690 | E44: 44689 | G44: =F44*E44 -> 0 | H44: =IFERROR(IFERROR(VLOOKUP(D44,Surcharge!A:B,2,FALSE)*F44, VLOOKUP(D44 & "",Surcharge!A:B,2,FALSE)*F44), "") -> 0
H45: =IFERROR(IFERROR(VLOOKUP(D45,Surcharge!A:B,2,FALSE)*F45, VLOOKUP(D45 & "",Surcharge!A:B,2,FALSE)*F45), "") -> 
C46: Battery Type | F46: =SUM(F47:F50) -> 0 | H46: =IFERROR(IFERROR(VLOOKUP(D46,Surcharge!A:B,2,FALSE)*F46, VLOOKUP(D46 & "",Surcharge!A:B,2,FALSE)*F46), "") -> 
C47: Wet 435AH C/20 (kit of 6 batteries) | D47: 9010885 | E47: N/C | G47: =IF(F47=0," ","N/C") ->  | H47: =IFERROR(IFERROR(VLOOKUP(D47,Surcharge!A:B,2,FALSE)*F47, VLOOKUP(D47 & "",Surcharge!A:B,2,FALSE)*F47), "") -> 
C48: Sealed/MF AGM 390AH C/20 (kit of 6 batteries) | D48: 9010886 | E48: 1809 | G48: =F48*E48 -> 0 | H48: =IFERROR(IFERROR(VLOOKUP(D48,Surcharge!A:B,2,FALSE)*F48, VLOOKUP(D48 & "",Surcharge!A:B,2,FALSE)*F48), "") -> 
H49: =IFERROR(IFERROR(VLOOKUP(D49,Surcharge!A:B,2,FALSE)*F49, VLOOKUP(D49 & "",Surcharge!A:B,2,FALSE)*F49), "") -> 
C50: Manual Battery Watering Kit (Note 1) | D50: 9009620 | E50: 1194 | G50: =F50*E50 -> 0 | H50: =IFERROR(IFERROR(VLOOKUP(D50,Surcharge!A:B,2,FALSE)*F50, VLOOKUP(D50 & "",Surcharge!A:B,2,FALSE)*F50), "") -> 
H51: =IFERROR(IFERROR(VLOOKUP(D51,Surcharge!A:B,2,FALSE)*F51, VLOOKUP(D51 & "",Surcharge!A:B,2,FALSE)*F51), "") -> 
C52: Charger | F52: =SUM(F53:F53) -> 0 | H52: =IFERROR(IFERROR(VLOOKUP(D52,Surcharge!A:B,2,FALSE)*F52, VLOOKUP(D52 & "",Surcharge!A:B,2,FALSE)*F52), "") -> 
C53: 25A 120V AC 50/60Hz 1Ph (on board) | D53: 9010881 | E53: N/C | G53: =IF(F53=0," ","N/C") ->  | H53: =IFERROR(IFERROR(VLOOKUP(D53,Surcharge!A:B,2,FALSE)*F53, VLOOKUP(D53 & "",Surcharge!A:B,2,FALSE)*F53), "") -> 
H54: =IFERROR(IFERROR(VLOOKUP(D54,Surcharge!A:B,2,FALSE)*F54, VLOOKUP(D54 & "",Surcharge!A:B,2,FALSE)*F54), "") -> 
B55: Cleaning Performance | D55: Reference Number | F55: =SUM(F56:F57) -> 0 | H55: =IFERROR(IFERROR(VLOOKUP(D55,Surcharge!A:B,2,FALSE)*F55, VLOOKUP(D55 & "",Surcharge!A:B,2,FALSE)*F55), "") -> 
C56: Dust Control, Passive | D56: PASSIVE | E56: N/C | G56: =IF(F56=0," ","N/C") ->  | H56: =IFERROR(IFERROR(VLOOKUP(D56,Surcharge!A:B,2,FALSE)*F56, VLOOKUP(D56 & "",Surcharge!A:B,2,FALSE)*F56), "") -> 
C57: Dust Control, Active (HEPA 99.97@.3 microns) | D57: 9010877 | E57: 1319 | G57: =F57*E57 -> 0 | H57: =IFERROR(IFERROR(VLOOKUP(D57,Surcharge!A:B,2,FALSE)*F57, VLOOKUP(D57 & "",Surcharge!A:B,2,FALSE)*F57), "") -> 
H58: =IFERROR(IFERROR(VLOOKUP(D58,Surcharge!A:B,2,FALSE)*F58, VLOOKUP(D58 & "",Surcharge!A:B,2,FALSE)*F58), "") -> 
B59: Machine Protection & Safety | D59: Reference Number | F59: =SUM(F60:F60) -> 0 | H59: =IFERROR(IFERROR(VLOOKUP(D59,Surcharge!A:B,2,FALSE)*F59, VLOOKUP(D59 & "",Surcharge!A:B,2,FALSE)*F59), "") -> 
C60: Strobe Light on Tank | D60: 9010878 | E60: 1115 | G60: =F60*E60 -> 0 | H60: =IFERROR(IFERROR(VLOOKUP(D60,Surcharge!A:B,2,FALSE)*F60, VLOOKUP(D60 & "",Surcharge!A:B,2,FALSE)*F60), "") -> 
H61: =IFERROR(IFERROR(VLOOKUP(D61,Surcharge!A:B,2,FALSE)*F61, VLOOKUP(D61 & "",Surcharge!A:B,2,FALSE)*F61), "") -> 
B62: Support (Note 2) | D62: Reference Number | F62: =SUM(F63:F66) -> 0 | H62: =IFERROR(IFERROR(VLOOKUP(D62,Surcharge!A:B,2,FALSE)*F62, VLOOKUP(D62 & "",Surcharge!A:B,2,FALSE)*F62), "") -> 
C63: SpeedGleam Operator Manual - English | D63: 9010727 | E63: N/C | G63: =IF(F63=0," ","N/C") ->  | H63: =IFERROR(IFERROR(VLOOKUP(D63,Surcharge!A:B,2,FALSE)*F63, VLOOKUP(D63 & "",Surcharge!A:B,2,FALSE)*F63), "") -> 
C64: SpeedGleam Operator Manual - French | D64: 9010725 | E64: N/C | G64: =IF(F64=0," ","N/C") ->  | H64: =IFERROR(IFERROR(VLOOKUP(D64,Surcharge!A:B,2,FALSE)*F64, VLOOKUP(D64 & "",Surcharge!A:B,2,FALSE)*F64), "") -> 
H65: =IFERROR(IFERROR(VLOOKUP(D65,Surcharge!A:B,2,FALSE)*F65, VLOOKUP(D65 & "",Surcharge!A:B,2,FALSE)*F65), "") -> 
C66: Packaging | F66: =SUM(F67:F67) -> 0 | H66: =IFERROR(IFERROR(VLOOKUP(D66,Surcharge!A:B,2,FALSE)*F66, VLOOKUP(D66 & "",Surcharge!A:B,2,FALSE)*F66), "") -> 
C67: Skid w/Carton, Non-Stackable | D67: 9010888 | E67: N/C | G67: =IF(F67=0," ","N/C") ->  | H67: =IFERROR(IFERROR(VLOOKUP(D67,Surcharge!A:B,2,FALSE)*F67, VLOOKUP(D67 & "",Surcharge!A:B,2,FALSE)*F67), "") -> 
H68: =IFERROR(IFERROR(VLOOKUP(D68,Surcharge!A:B,2,FALSE)*F68, VLOOKUP(D68 & "",Surcharge!A:B,2,FALSE)*F68), "") -> 
B70: Custom Solution--write in description, qty, price, and PN if applicable | F70: =SUM(F71) -> 0
E71: Insert Prices Here | F71: =SUM(F72:F75) -> 0
D72: Custom | F72: =IF(E72 <> "", 1, 0) -> 0 | G72: =F72*E72 -> 0
D73: Custom | F73: =IF(E73 <> "", 1, 0) -> 0 | G73: =F73*E73 -> 0
D74: Custom | F74: 0 | G74: =F74*E74 -> 0
D75: Custom | F75: 0 | G75: =F75*E75 -> 0
E76: =ROUND(SUM(G43:G75), 0) -> 0 | F76: =SUM(E77) -> 0
D77: Machine Subtotal | E77: =ROUND(SUM(G43:G75), 0) -> 0 | F77: =F76 -> 0
B78: Discounts | F78: =SUM(F79) -> 0
F79: =SUM(F81:F84) -> 0
D80: Applicable Currency Adj % | F80: =IF(E80 <> "", 1, 0) -> 0 | G80: =IF(F80*(E80*0.01)*E76 < 0, F80*(E80*0.01)*E76, -(F80*(E80*0.01)*E76)) -> 0
D81: Discount % | F81: =IF(E81 <> "", 1, 0) -> 0 | G81: =IF(F81*(E81*0.01)*(E76+G80) < 0, F81*(E81*0.01)*(E76+G80), -(F81*(E81*0.01)*(E76+G80))) -> 0
D82: Discount $ | F82: 0 | G82: =IF(F82*E82 < 0, F82*E82, -(F82*E82)) -> 0
D83: Discount $ | F83: 0 | G83: =IF(F83*E83 < 0, F83*E83, -(F83*E83)) -> 0
D84: Discount $ | F84: 0 | G84: =IF(F84*E84 < 0, F84*E84, -(F84*E84)) -> 0
D85: Discount Total | E85: =SUM(G80:G84) -> 0 | F85: =SUM(E85) -> 0
F86: =#REF! -> 
F87: =F86 -> 
C88: Prepaid and Add | D88: Freight | F88: =IF(E88 <> "", 1, 0) -> 0 | G88: =F88*E88 -> 0
C89: Subject to all applicable taxes | D89: Tax | F89: 0 | G89: 0
F90: =SUM(F91) -> 0
D91: MACHINE TOTAL* | F91: =SUM(G91) -> 0 | G91: =SUM(G43:G89) -> 0 | N91: This goes to "My Documents"
G92: =SUM(G91) -> 0
C97: Wells Fargo - Leasing Calculation Option: | D97: Option 1 | F97: Option 2 | J97: =Financing!A38 -> Rates 2025 - Rev.2/4/2025
D98: Monthly Payment | E98: Cost Per Day | F98: Monthly Payment | G98: Cost Per Day | J98: =Financing!A39 -> “Blank Payment Amounts Indicate The Financing Option Or Purchase Options Selected Are Not
C99: Purchase Option: | D99: $1 Buyout Lease | F99: None | J99: =Financing!A40 -> Applicable Or The Machine Total Is Below The Minimum Amount For The Selected Vendor”
C100: 24 Months | D100: 0 | E100: 0 | F100: 0 | G100: 0 | J100: =Financing!A41 -> "Quoted monthly payments are estimates only and are based on a certain level of credit rating.
C101: 36 Months | D101: 0 | E101: 0 | F101: 0 | G101: 0 | J101: =Financing!A42 -> Actual monthly payments may be higher depending on your credit rating."
C102: 48 Months | D102: 0 | E102: 0 | F102: 0 | G102: 0 | J102: =Financing!A43 -> “Financing rates do not include Pre-Paid Service”
C103: 60 Months | D103: 0 | E103: 0 | F103: 0 | G103: 0
D105: Benefits of Equipment Financing:
D106: • Spreads out investment over time. | F106: • Keep current with latest technology.
D107: • Preserve capital. | F107: • Service and parts bundling available.
D108: • Low monthly payment. | F108: • Pay for labor savings as you go.
B110: TennantTrue | D110: 0 | E110: 0
C112: Is customer interested in service program? | D112: Yes | E112: *State/County selection required for TennantTrue service options
C114: If not, why?
C116: Term: | D116: 36 | G116: AB Brushes | H116: No
C117: Monthly machine usage (hrs): | D117: < 30/mo. (Avg. 1hr./day)
C119: TennantTrue: | D119: Gold Contract | F119: Silver Contract
C120: Per Visit | F120: 501
C121: Monthly | D121: 148 | F121: 88
C122: Annually | F122: 1035
C123: Pre-Pay Full Term | D123: 5119 | F123: 3042
C124: Hourly Labor Rate
C125: Site Visit
C127: * Verify customer current pricing prior to quote.
C128: **All rates and fees above reflect service for one (1) unit with the exception of Block of Time service.
C129: *Block of Time is available in 1 Year Term only and is priced as such no matter the term selection on this template.
B133: Quote Special Instructions:
B137: =Start_Here!E36 -> Terms and Conditions
B138: =Start_Here!E37 -> Ask your local sales rep for estimated lead times. Verify when placing order
B139: =Start_Here!E38 -> All orders subject to acceptance by Tennant Sales and Service Company, Minneapolis, Minnesota
B140: =Start_Here!E39 -> Prices subject to change without notice. Subject to any applicable taxes.
B141: =Start_Here!E40 -> Terms: Net 30 days. Payable in Canadian Funds
B142: =Start_Here!E41 -> Freight: Accessories, parts, supplies, detergents, and floor coatings orders delivered DDP
B143: =Start_Here!E42 -> shipping point Frt PPD. Machine orders delivered DDP shipping point Frt PPD and add.
B144: =Start_Here!E43 -> Returned Merchandise is subject to a restocking fee.
B145: =Start_Here!E44 -> All orders are subject to Tennant’s General Terms and Conditions available at http://www.tennantco.com/terms.
B146: =Start_Here!E45 -> Printed General Terms and Conditions are also available upon request.
B147: =Start_Here!E46 -> 0
B148: =Start_Here!E47 -> 0
B149: =Start_Here!E48 -> 0
E150: Quote Date : | G150: =Letter!$A$25 -> 2023-08-01
B151: Order Placement Information: To place your order, fill in PO# and customer signatures,
B152: call or fax to the numbers listed below. Customer Purchase Order is required.
B153: If information is missing, orders will be entered and held until all information is received.
C155: Customer Number | E155: Cust Grp 3
C156: =Start_Here!$C$25 -> 0 | E156: =Start_Here!$C$29 -> 0
C157: =Start_Here!$B$18 -> Who Owns the Machine? (Sold-To Info) (Please Verify)
A158: Company | C158: =Start_Here!$C$19 -> Company Name
A159: Address | C159: =Start_Here!$C$20 -> Address
C160: =Start_Here!$C$21 -> City, State Zip
A161: Name | C161: =Start_Here!$C$22 -> Contact Name
A162: Phone | C162: =Start_Here!$C$23 -> Contact Phone
C164: =Start_Here!$B$11 -> Where is the Machine Being Shipped? (Ship-To Info) (Please Verify)
A165: Company | C165: =Start_Here!$C$12 -> Company Name
A166: Address | C166: =Start_Here!$C$13 -> Address
C167: =Start_Here!$C$14 -> City, State Zip
A168: Name | C168: =Start_Here!$C$15 -> Contact Name
A169: Phone | C169: =Start_Here!$C$16 -> Contact Phone
C171: =Start_Here!$B$31 -> Shipping / Carrier Instructions: | E171: Order Special Instructions:
C172: =Start_Here!$C$32 -> 0
C174: Customer Purchase Order No.
C175: (please attach copy)
C178: Tax Exempt | E178: Yes
E179: No
C180: If Yes, attach a copy of your exemption certificate.
C182: Requested Delivery Date
C183: =Start_Here!$C$28 -> 0
C185: =Start_Here!$C$26 -> 0 | E185: =Start_Here!$C$27 -> 0
C186: Authorized Buyer (please print) | E186: Phone Number
C189: Authorized Buyer Signature
C191: =Start_Here!$C$41 -> Rep Name
C192: Tennant Representative
D194: Specialized Maintenance Equipment
C195: =Start_Here!$C$51 -> 0
D196: =Start_Here!$C$52 -> 0
B198: Notes
B199: 1 | C199: Only available on wet batteries, not sealed.
B201: 2 | C201: A French and English manual will be supplied for all units shipping into Quebec, Canada at no charge. An additional manual
C202: can be ordered at no charge at Nobles.com and Service Manuals on My Account.
B204: 3 | C204: Shipping Weights and dimensions | D204: Skid w/ Carton
C206: 24" / 610mm Cleaning Path
C207: Weight (w/ 435AH Battery) | D207: 1,346 lbs / 610 Kg
C208: Length | D208: 85" / 2,159mm
C209: Width | D209: 46" / 1,169mm
C210: Height | D210: 63" / 1,600mm
C212: 27" / 690mm Cleaning Path
C213: Weight (w/ 435AH Battery) | D213: 1,350 lbs / 612 Kg
C214: Length | D214: 85" / 2,159mm
C215: Width | D215: 46" / 1,169mm
C216: Height | D216: 63" / 1,600mm

Sheet T260
A1: T260 | C1: =Start_Here!$C19 -> Company Name
A2: =SUM(G54) -> 0 | C2: =Start_Here!$C20 -> Address
C3: =Start_Here!$C21 -> City, State Zip
C4: =Start_Here!$C22 -> Contact Name
C5: =Start_Here!$C$41 -> Rep Name
C6: =Start_Here!$C$37 -> Tennant Sales and Service Company
C7: =Start_Here!$C$38 -> 10400 Clean Street
C8: =Start_Here!$C$39 -> Eden Prairie, MN 55344
C9: =Start_Here!$C$43 -> 800-553-8033 | E9: Quote Date : | G9: =Letter!$A$25 -> 2023-08-01
C11: =Help!C2 -> CAN Date Rev - 5/6/2025
C13: TENNANT COMPANY WARRANTY
C14: 3 YEARS OR 1000 HOURS - PARTS
C15: 1 YEAR - BATTERY CHARGERS
C16: 1 YEAR - LABOR
C17: 3 MONTHS - TRAVEL | E17: Quote Request Information
C18: 10 YEARS ON DURAMERTM ROTOMOLD TANKS | G18: Fax (quote only)
G19: Mail (quote,lit, specs)
G20: Fax + Mail
E22: Primary Use
G23: Inside
G24: Outside
C25: Description | D25: Reference # | E25: List Price | F25: Qty. | G25: Extended Price
C28: T260 Walk Behind Scrubber - Pad Assist - 135AH Sealed Gel Batteries | D28: TN8001004 | E28: 6878 | G28: =F28*E28 -> 0 | Q28: =VLOOKUP(D28,'MPF SAP Canada Pre-Configured'!C:E,3,FALSE) -> 
C29: 20in (50cm) single disk cleaning path, Linatex squeegee blades. Includes off-board charger, 2-12V sealed gel batteries, nylon brush, pad driver, and 1 red pad. | F29: =SUM(F28) -> 0
F30: =SUM(F31) -> 0
C31: Shipped on skid. | F31: =SUM(F28) -> 0 | Q31: =VLOOKUP(D31,'MPF SAP Canada Pre-Configured'!C:E,3,FALSE) -> 
C32: T260 - Pad Assist - Shipping Weight and Dimensions | D32: Skid w/Carton | F32: =SUM(F29) -> 0
C33: Weight (w/ batteries) | D33: 364 lb | F33: 0 | Q33: =VLOOKUP(D33,'MPF SAP Canada Pre-Configured'!C:E,3,FALSE) -> 
C34: Length | D34: 54.3 in / 138 cm | F34: 0
C35: Width | D35: 24 in / 61cm | F35: 0
C36: Height | D36: 47.24 in / 120 cm | F36: 0
E38: 0 | F38: =SUM(E40) -> 0
E39: =ROUND(SUM(G28:G38), 0) -> 0 | F39: =SUM(E40) -> 0
D40: Machine Subtotal | E40: =ROUND(SUM(G28:G38), 0) -> 0 | F40: =F38 -> 0
B41: Discounts | F41: =SUM(F42) -> 0
F42: =SUM(F44:F47) -> 0
D43: Applicable Currency Adj % | F43: =IF(E43 <> "", 1, 0) -> 0 | G43: =IF(F43*(E43*0.01)*E39 < 0, F43*(E43*0.01)*E39, -(F43*(E43*0.01)*E39)) -> 0
D44: Discount % | F44: 0 | G44: =IF(F44*(E44*0.01)*(E39+G43) < 0, F44*(E44*0.01)*(E39+G43), -(F44*(E44*0.01)*(E39+G43))) -> 0
D45: Discount $ | F45: 0 | G45: =IF(F45*E45 < 0, F45*E45, -(F45*E45)) -> 0
D46: Discount $ | F46: 0 | G46: =IF(F46*E46 < 0, F46*E46, -(F46*E46)) -> 0
D47: Discount $ | F47: 0 | G47: =IF(F47*E47 < 0, F47*E47, -(F47*E47)) -> 0
D48: Discount Total | E48: =SUM(G43:G47) -> 0 | F48: =SUM(E48) -> 0
F49: =#REF! -> 
F50: =F49 -> 
C51: Prepaid and Add | D51: Freight | F51: =IF(E51 <> "", 1, 0) -> 0 | G51: =F51*E51 -> 0
C52: Subject to all applicable taxes | D52: Tax | F52: 0 | G52: 0
F53: =SUM(F54) -> 0
D54: MACHINE TOTAL* | F54: =SUM(G54) -> 0 | G54: =SUM(G28:G52) -> 0 | N54: This goes to "My Documents"
G55: =G54 -> 0
C60: Wells Fargo - Leasing Calculation Option: | D60: Option 1 | F60: Option 2 | J60: =Financing!A38 -> Rates 2025 - Rev.2/4/2025
D61: Monthly Payment | E61: Cost Per Day | F61: Monthly Payment | G61: Cost Per Day | J61: =Financing!A39 -> “Blank Payment Amounts Indicate The Financing Option Or Purchase Options Selected Are Not
C62: Purchase Option: | D62: $1 Buyout Lease | F62: None | J62: =Financing!A40 -> Applicable Or The Machine Total Is Below The Minimum Amount For The Selected Vendor”
C63: 24 Months | D63: 0 | E63: 0 | F63: 0 | G63: 0 | J63: =Financing!A41 -> "Quoted monthly payments are estimates only and are based on a certain level of credit rating.
C64: 36 Months | D64: 0 | E64: 0 | F64: 0 | G64: 0 | J64: =Financing!A42 -> Actual monthly payments may be higher depending on your credit rating."
C65: 48 Months | D65: 0 | E65: 0 | F65: 0 | G65: 0 | J65: =Financing!A43 -> “Financing rates do not include Pre-Paid Service”
C66: 60 Months | D66: 0 | E66: 0 | F66: 0 | G66: 0 | I66: =Financing!A44 -> 0
D68: Benefits of Equipment Financing:
D69: • Spreads out investment over time. | F69: • Keep current with latest technology.
D70: • Preserve capital. | F70: • Service and parts bundling available.
D71: • Low monthly payment. | F71: • Pay for labor savings as you go.
B74: TennantTrue
C76: Is customer interested in service program? | D76: Yes | E76: *State/County selection required for TennantTrue service options
C78: If not, why?
C80: Term: | D80: 36 | F80: AB Brushes | G80: No
C81: Monthly machine usage (hrs): | D81: < 30/mo. (Avg. 1hr./day)
C83: TennantTrue: | D83: Gold Contract | F83: Silver Contract
C84: Per Visit | F84: 425
C85: Monthly | F85: 69
C86: Annually | F86: 816
C87: Pre-Pay Full Term | F87: 2397
C88: Hourly Labor Rate
C89: Site Visit
C91: * Verify customer current pricing prior to quote.
C92: **All rates and fees above reflect service for one (1) unit with the exception of Block of Time service.
C93: *Block of Time is available in 1 Year Term only and is priced as such no matter the term selection on this template.
B96: Servicing
C98: Is customer interested in a service plan? | D98: No
C100: If not, why?
B103: Quote Special Instructions:
C106: =Start_Here!E36 -> Terms and Conditions
C107: =Start_Here!E37 -> Ask your local sales rep for estimated lead times. Verify when placing order
C108: =Start_Here!E38 -> All orders subject to acceptance by Tennant Sales and Service Company, Minneapolis, Minnesota
C109: =Start_Here!E39 -> Prices subject to change without notice. Subject to any applicable taxes.
C110: =Start_Here!E40 -> Terms: Net 30 days. Payable in Canadian Funds
C111: =Start_Here!E41 -> Freight: Accessories, parts, supplies, detergents, and floor coatings orders delivered DDP
C112: =Start_Here!E42 -> shipping point Frt PPD. Machine orders delivered DDP shipping point Frt PPD and add.
C113: =Start_Here!E43 -> Returned Merchandise is subject to a restocking fee.
C114: =Start_Here!E44 -> All orders are subject to Tennant’s General Terms and Conditions available at http://www.tennantco.com/terms.
C115: =Start_Here!E45 -> Printed General Terms and Conditions are also available upon request.
C116: =Start_Here!E46 -> 0
E118: Quote Date : | G118: =Letter!$A$25 -> 2023-08-01
A119: Order Placement Information: To place your order, fill in PO# and customer signatures,
A120: call or fax to the numbers listed below. Customer Purchase Order is required.
A121: If information is missing, orders will be entered and held until all information is received.
C122: Customer Number | E122: Cust Grp 3
C123: =Start_Here!$C$25 -> 0 | E123: =Start_Here!$C$29 -> 0
C124: =Start_Here!$B$18 -> Who Owns the Machine? (Sold-To Info) (Please Verify)
A125: Company | C125: =Start_Here!$C$19 -> Company Name
A126: Address | C126: =Start_Here!$C$20 -> Address
C127: =Start_Here!$C$21 -> City, State Zip
A128: Name | C128: =Start_Here!$C$22 -> Contact Name
A129: Phone | C129: =Start_Here!$C$23 -> Contact Phone
C130: =Start_Here!$B$11 -> Where is the Machine Being Shipped? (Ship-To Info) (Please Verify)
A131: Company | C131: =Start_Here!$C$12 -> Company Name
A132: Address | C132: =Start_Here!$C$13 -> Address
C133: =Start_Here!$C$14 -> City, State Zip
A134: Name | C134: =Start_Here!$C$15 -> Contact Name
A135: Phone | C135: =Start_Here!$C$16 -> Contact Phone
C136: =Start_Here!$B$31 -> Shipping / Carrier Instructions: | E136: Order Special Instructions:
C137: =Start_Here!$C$32 -> 0
C139: Customer Purchase Order No.
C140: (please attach copy)
C143: Tax Exempt | E143: Yes
E144: No
C145: If Yes, attach a copy of your exemption certificate.
C147: Requested Delivery Date
C148: =Start_Here!$C$28 -> 0
C150: =Start_Here!$C$26 -> 0 | E150: =Start_Here!$C$27 -> 0
B151: 0 | C151: Authorized Buyer (please print) | E151: Phone Number
B154: 0 | C154: Authorized Buyer Signature
C156: =Start_Here!$C$41 -> Rep Name
C157: Tennant Representative
A159: Specialized Maintenance Equipment
A160: =Start_Here!$C$48 -> TENNANT · 10400 Clean Street · Eden Prairie, MN 55344 ·
A161: =Start_Here!$C$49 -> PHONE:800-553-8033 · FAX:763-513-2116
C164: Special Information
B165: Notes
B167: 1 | C167: Pre-Configured Machines cannot add or change options. All units will be packaged and shipped as stated above.
C168: When ordering, provide the reference number listed above. Price does not include freight or tax. Availability of units
C169: and lead time may vary.
B171: 2 | C171: Customer MUST order Skid w/Carton, Stackable if WITHOUT BATTERY is selected. Continental USA orders ONLY.
B173: 3 | C173: One pad driver comes standard with a T2.
B175: 4 | C175: Pad wrap available only in the Continental US and is the default packaging method.
C176: Customer MUST order Skid w/Carton, Stackable if WITHOUT BATTERY is selected.
C177: Skid w/Carton, Stackable is mandatory when shipping to AK and HI. Packaging is added at No Charge when shipping
C178: to these locations.
B180: 5 | C180: Machine Weights and dimensions | D180: Pad Wrap | E180: Skid w/Carton
C182: Weight (w/105AH battery) | D182: 300 lbs / 136 Kg | E182: 331 lbs / 150 Kg
C183: Length | D183: 44" / 1120mm | E183: 47" / 1200mm
C184: Width | D184: 19" / 478mm | E184: 30" / 750mm
C185: Height | D185: 37" / 930mm | E185: 45" / 1150mm

Sheet T391_T291
A1: T391_T291 | C1: =Start_Here!$C19 -> Company Name
A2: =SUM(G135) -> 0 | C2: =Start_Here!$C20 -> Address
C3: =Start_Here!$C21 -> City, State Zip
C4: =Start_Here!$C22 -> Contact Name
C5: =Start_Here!$C$41 -> Rep Name
C6: =Start_Here!$C$37 -> Tennant Sales and Service Company
C7: =Start_Here!$C$38 -> 10400 Clean Street
C8: =Start_Here!$C$39 -> Eden Prairie, MN 55344
C9: =Start_Here!$C$43 -> 800-553-8033 | E9: Quote Date : | G9: =Letter!$A$25 -> 2023-08-01
C11: =Help!C2 -> CAN Date Rev - 5/6/2025
C13: TENNANT COMPANY WARRANTY
C14: 3 YEARS OR 1500 HOURS - PARTS
C15: 1 YEAR - BATTERY CHARGERS
C16: 2 YEARS - LABOR
C17: 6 MONTHS - TRAVEL | E17: Quote Request Information
C18: 10 YEARS ON DURAMERTM ROTOMOLD TANKS | G18: Fax (quote only)
G19: Mail (quote,lit, specs)
G20: Fax + Mail
E22: Primary Use
G23: Inside
G24: Outside
C25: Description | D25: Reference # | E25: List Price | F25: Qty. | G25: Extended Price
C28: T391 - Walk Behind Scrubber 130AH Wet Batteries | D28: 9022790 | E28: 15067 | G28: =F28*E28 -> 0 | Q28: =VLOOKUP(D28,'MPF SAP Canada Pre-Configured'!C:E,3,FALSE) -> 
C29: 28in (70cm) dual disk cleaning path, conventional, pad driver, red pads, Linatex squeegee blades. Includes onboard charger, 2-12V batteries | F29: =SUM(F28) -> 0
F30: =SUM(F31) -> 0
C31: T391 - Walk Behind Scrubber 140AH Sealed AGM Batteries | D31: 9022789 | E31: 16576 | G31: =F31*E31 -> 0 | Q31: =VLOOKUP(D31,'MPF SAP Canada Pre-Configured'!C:E,3,FALSE) -> 
C32: 28in (70cm) dual disk cleaning path, conventional, pad driver, red pads, Linatex squeegee blades. Includes onboard charger, 2-12V batteries | F32: =SUM(F33) -> 0
F33: =SUM(F34) -> 0 | Q33: =VLOOKUP(D33,'MPF SAP Canada Pre-Configured'!C:E,3,FALSE) -> 
C34: T391 - Walk Behind Scrubber 90 AH Li-Ion Battery | D34: 9300496 | E34: 18567 | G34: =F34*E34 -> 0
C35: 28in (70cm) dual disk cleaning path, conventional, pad driver, red pads, Linatex squeegee blades. Includes onboard charger, 1-24V battery | F35: =SUM(F36) -> 0
C37: T391 - Walk Behind Scrubber 130AH Wet Batteries w/ EcH2O nanoclean | D37: 9022792 | E37: 19044 | G37: =F37*E37 -> 0
C38: 28in (70cm) dual disk cleaning path, ecH2O nanoclean with severe environment, pad driver, red pads, Linatex squeegee blades. Includes onboard charger, 2-12V batteries | F38: =SUM(F37) -> 0
F39: =SUM(F28:F33) -> 0
C40: T391 - Walk Behind Scrubber 140AH Sealed AGM Batteries w/ EcH2O nanoclean | D40: 9022791 | E40: 20553 | G40: =F40*E40 -> 0
C41: 28in (70cm) dual disk cleaning path, ecH2O nanoclean with severe environment, pad driver, red pads, Linatex squeegee blades. Includes onboard charger, 2-12V batteries | F41: =SUM(F40) -> 0
F42: =SUM(F31:F36) -> 0
C43: T391 - Walk Behind Scrubber 90AH Li-Ion Battery w/ EcH2O nanoclean | D43: 9300497 | E43: 22545 | G43: =F43*E43 -> 0
C44: 28in (70cm) dual disk cleaning path, ecH2O nanoclean with severe environment, pad driver, red pads, Linatex squeegee blades. Includes onboard charger, 1-24V battery | F44: =SUM(F43) -> 0
C46: T391 - Walk Behind Scrubber 130AH Wet Batteries | D46: 9022794 | E46: 16229 | G46: =F46*E46 -> 0
C47: 32in (80cm) dual disk cleaning path, conventional, pad driver, red pads, Linatex squeegee blades. Includes onboard charger, 2-12V batteries | F47: =SUM(F46) -> 0
C49: T391 - Walk Behind Scrubber 140AH Sealed AGM Batteries | D49: 9022793 | E49: 17738 | G49: =F49*E49 -> 0
C50: 32in (80cm) dual disk cleaning path, conventional, pad driver, red pads, Linatex squeegee blades. Includes onboard charger, 2-12V batteries | F50: =SUM(F49) -> 0 | Q50: =VLOOKUP(D50,'MPF SAP Canada Pre-Configured'!C:E,3,FALSE) -> 
C52: T391 - Walk Behind Scrubber 90AH Li-Ion Battery | D52: 9300498 | E52: 19729 | G52: =F52*E52 -> 0
C53: 32in (80cm) dual disk cleaning path, conventional, pad driver, red pads, Linatex squeegee blades. Includes onboard charger, 1-24V battery | F53: =SUM(F52) -> 0
C55: T391 - Walk Behind Scrubber 130AH Wet Batteries w/ EcH2O nanoclean | D55: 9022796 | E55: 20206 | G55: =F55*E55 -> 0
C56: 32in (80cm) dual disk cleaning path, ecH2O nanoclean with severe environment, pad driver, red pads, Linatex squeegee blades. Includes onboard charger, 2-12V batteries | F56: =SUM(F55) -> 0 | Q56: =VLOOKUP(D56,'MPF SAP Canada Pre-Configured'!C:E,3,FALSE) -> 
F57: =SUM(F58) -> 0
C58: T391 - Walk Behind Scrubber 140AH Sealed AGM Batteries w/ EcH2O nanoclean | D58: 9022795 | E58: 21715 | G58: =F58*E58 -> 0 | Q58: =VLOOKUP(D58,'MPF SAP Canada Pre-Configured'!C:E,3,FALSE) -> 
C59: 32in (80cm) dual disk cleaning path, ecH2O nanoclean with severe environment, pad driver, red pads, Linatex squeegee blades. Includes onboard charger, 2-12V batteries | F59: =SUM(F58) -> 0
F60: =SUM(F61) -> 0
C61: T391 - Walk Behind Scrubber 90AH Battery w/ EcH2O nanoclean | D61: 9300499 | E61: 23707 | G61: =F61*E61 -> 0
C62: 32in (80cm) dual disk cleaning path, ecH2O nanoclean with severe environment, pad driver, red pads, Linatex squeegee blades. Includes onboard charger, 1-24V battery | F62: =SUM(F61) -> 0
C65: T391 - Shipping Weight and Dimensions | D65: Skid w/Carton | F65: =SUM(F50:F58) -> 0
C66: Weight (w/ heaviest batteries) | D66: 438 lb / 199 kg | F66: =SUM(F65) -> 0
C67: Length | D67: 50 in / 127 cm | F67: =SUM(F66) -> 0
C68: Width | D68: 33 in / 84cm | F68: 0
C69: Height | D69: 45 in / 114.5 cm | F69: 0
C72: T291 - Walk Behind Scrubber - Pad Assist - 130AH Wet Batteries | D72: 9300480 | E72: 8809 | G72: =F72*E72 -> 0
C73: 20in (50cm) single disk cleaning path, conventional cleaning, Linatex squeegee blades. Includes on-board charger, splash guard, 2-12V batteries, pad driver, and 1 red pad. | F73: =SUM(F72) -> 0
F74: =SUM(F75) -> 0
C75: T291 - Walk Behind Scrubber - Pad Assist - 140AH Sealed AGM Batteries | D75: 9300484 | E75: 10318 | G75: =F75*E75 -> 0
F76: =SUM(F75) -> 0
C77: T291 - Walk Behind Scrubber - Pad Assist - 90AH Li-Ion Battery | D77: 9300488 | E77: 12309 | G77: =F77*E77 -> 0
F78: =SUM(F77) -> 0
C79: T291 - Walk Behind Scrubber - Pad Assist - No Battery | D79: 9300492 | E79: 8179 | G79: =F79*E79 -> 0
F80: =SUM(F79) -> 0
C82: T291 - Walk Behind Scrubber - Self Propel - 130AH Wet Batteries | D82: 9300482 | E82: 10629 | G82: =F82*E82 -> 0
C83: 20in (50cm) single disk cleaning path, conventional cleaning, self-propel, Linatex squeegee blades. Includes on-board charger, splash guard, 2-12V batteries, pad driver, and 1 red pad. | F83: =SUM(F82) -> 0
C85: T291 - Walk Behind Scrubber - Self Propel - 140AH Sealed AGM Batteries | D85: 9300486 | E85: 12138 | G85: =F85*E85 -> 0
C87: T291 - Walk Behind Scrubber - Self Propel - 90AH Li-Ion Battery | D87: 9300490 | E87: 14129 | G87: =F87*E87 -> 0
F88: =SUM(F85) -> 0
C89: T291 - Walk Behind Scrubber - Self Propel - No Battery | D89: 9300494 | E89: 9999 | G89: =F89*E89 -> 0
F90: =SUM(F89) -> 0
C92: T291 - Walk Behind Scrubber - Pad Assist - ec-H20 NanoClean w/ severe environment - 130AH Wet Batteries | D92: 9300481 | E92: 11715 | G92: =F92*E92 -> 0
C93: 20in (50cm) single disk cleaning path, ec-H20 NanoClean w/ severe environment, pad-assist, Linatex squeegee blades. Includes on-board charger, splash guard, 2-12V batteries, pad driver, and 1 red pad. | F93: =SUM(F92) -> 0
C95: T291 - Walk Behind Scrubber - Pad Assist - ec-H20 NanoClean w/ severe environment - 140AH AGM Batteries | D95: 9300485 | E95: 13224 | G95: =F95*E95 -> 0
C97: T291 - Walk Behind Scrubber - Pad Assist - ec-H20 NanoClean w/ severe environment - 90AH Li-Ion Battery | D97: 9300489 | E97: 15216 | G97: =F97*E97 -> 0
F98: =SUM(F95) -> 0
C99: T291 - Walk Behind Scrubber - Pad Assist - ec-H20 NanoClean w/ severe environment - No Battery | D99: 9300493 | E99: 11085 | G99: =F99*E99 -> 0
F100: =SUM(F99) -> 0
C102: T291 - Walk Behind Scrubber - Self Propel - ec-H20 NanoClean w/ severe environment - 130AH Wet Batteries | D102: 9300483 | E102: 13535 | G102: =F102*E102 -> 0
C103: 20in (50cm) single disk cleaning path, ec-H20 NanoClean w/ severe environment, self-propel, Linatex squeegee blades. Includes on-board charger, splash guard, 2-12V batteries, pad driver, and 1 red pad. | F103: =SUM(F102) -> 0
C105: T291 - Walk Behind Scrubber - Self Propel - ec-H20 NanoClean w/ severe environment - 140AH AGM Batteries | D105: 9300487 | E105: 15044 | G105: =F105*E105 -> 0
C107: T291 - Walk Behind Scrubber - Self Propel - ec-H20 NanoClean w/ severe environment - 90AH Li-Ion Battery | D107: 9300491 | E107: 17036 | G107: =F107*E107 -> 0
F108: =SUM(F105) -> 0
C109: T291 - Walk Behind Scrubber - Self Propel - ec-H20 NanoClean w/ severe environment - No Battery | D109: 9300495 | E109: 12905 | G109: =F109*E109 -> 0
F110: =SUM(F109) -> 0
C112: T291 - Shipping Weight and Dimensions | F112: =SUM(F72:F109) -> 0
C113: Weight (w/ heaviest batteries) | D113: 390.22 lbs | F113: =SUM(F112) -> 0
C114: Length | D114: 53.74 in / 137 cm | F114: =SUM(F113) -> 0
C115: Width | D115: 27.36 in / 70 cm | F115: 0
C116: Height | D116: 45.11 in / 115 cm | F116: 0
E119: 0 | F119: =SUM(E121) -> 0
E120: =ROUND(SUM(G28:G119), 0) -> 0 | F120: =SUM(E121) -> 0
D121: Machine Subtotal | E121: =ROUND(SUM(G28:G119), 0) -> 0 | F121: =F119 -> 0
B122: Discounts | F122: =SUM(F123) -> 0
F123: =SUM(F125:F128) -> 0
D124: Applicable Currency Adj % | F124: =IF(E124 <> "", 1, 0) -> 0 | G124: =IF(F124*(E124*0.01)*E120 < 0, F124*(E124*0.01)*E120, -(F124*(E124*0.01)*E120)) -> 0
D125: Discount % | F125: 0 | G125: =IF(F125*(E125*0.01)*(E120+G124) < 0, F125*(E125*0.01)*(E120+G124), -(F125*(E125*0.01)*(E120+G124))) -> 0
D126: Discount $ | F126: 0 | G126: =IF(F126*E126 < 0, F126*E126, -(F126*E126)) -> 0
D127: Discount $ | F127: 0 | G127: =IF(F127*E127 < 0, F127*E127, -(F127*E127)) -> 0
D128: Discount $ | F128: 0 | G128: =IF(F128*E128 < 0, F128*E128, -(F128*E128)) -> 0
D129: Discount Total | E129: =SUM(G124:G128) -> 0 | F129: =SUM(E129) -> 0
F130: =#REF! -> 
F131: =F130 -> 
C132: Prepaid and Add | D132: Freight | F132: =IF(E132 <> "", 1, 0) -> 0 | G132: =F132*E132 -> 0
C133: Subject to all applicable taxes | D133: Tax | F133: 0 | G133: 0
F134: =SUM(F135) -> 0
D135: MACHINE TOTAL* | F135: =SUM(G135) -> 0 | G135: =SUM(G28:G133) -> 0 | N135: This goes to "My Documents"
G136: =G135 -> 0
C141: Wells Fargo - Leasing Calculation Option: | D141: Option 1 | F141: Option 2 | J141: =Financing!A38 -> Rates 2025 - Rev.2/4/2025
D142: Monthly Payment | E142: Cost Per Day | F142: Monthly Payment | G142: Cost Per Day | J142: =Financing!A39 -> “Blank Payment Amounts Indicate The Financing Option Or Purchase Options Selected Are Not
C143: Purchase Option: | D143: $1 Buyout Lease | F143: None | J143: =Financing!A40 -> Applicable Or The Machine Total Is Below The Minimum Amount For The Selected Vendor”
C144: 24 Months | D144: 0 | E144: 0 | F144: 0 | G144: 0 | J144: =Financing!A41 -> "Quoted monthly payments are estimates only and are based on a certain level of credit rating.
C145: 36 Months | D145: 0 | E145: 0 | F145: 0 | G145: 0 | J145: =Financing!A42 -> Actual monthly payments may be higher depending on your credit rating."
C146: 48 Months | D146: 0 | E146: 0 | F146: 0 | G146: 0 | J146: =Financing!A43 -> “Financing rates do not include Pre-Paid Service”
C147: 60 Months | D147: 0 | E147: 0 | F147: 0 | G147: 0 | I147: =Financing!A44 -> 0
D149: Benefits of Equipment Financing:
D150: • Spreads out investment over time. | F150: • Keep current with latest technology.
D151: • Preserve capital. | F151: • Service and parts bundling available.
D152: • Low monthly payment. | F152: • Pay for labor savings as you go.
B155: TennantTrue
C157: Is customer interested in service program? | D157: Yes | E157: *State/County selection required for TennantTrue service options
C159: If not, why?
C161: Term: | D161: 36 | F161: AB Brushes | G161: No
C162: Monthly machine usage (hrs): | D162: < 30/mo. (Avg. 1hr./day)
C164: TennantTrue: | D164: Gold Contract | F164: Silver Contract
C165: Per Visit | F165: 425
C166: Monthly | D166: 129 | F166: 69
C167: Annually | F167: 816
C168: Pre-Pay Full Term | D168: 4444 | F168: 2397
C169: Hourly Labor Rate
C170: Site Visit
C172: * Verify customer current pricing prior to quote.
C173: **All rates and fees above reflect service for one (1) unit with the exception of Block of Time service.
C174: *Block of Time is available in 1 Year Term only and is priced as such no matter the term selection on this template.
B177: Servicing
C179: Is customer interested in a service plan? | D179: No
C181: If not, why?
B184: Quote Special Instructions:
C187: =Start_Here!E36 -> Terms and Conditions
C188: =Start_Here!E37 -> Ask your local sales rep for estimated lead times. Verify when placing order
C189: =Start_Here!E38 -> All orders subject to acceptance by Tennant Sales and Service Company, Minneapolis, Minnesota
C190: =Start_Here!E39 -> Prices subject to change without notice. Subject to any applicable taxes.
C191: =Start_Here!E40 -> Terms: Net 30 days. Payable in Canadian Funds
C192: =Start_Here!E41 -> Freight: Accessories, parts, supplies, detergents, and floor coatings orders delivered DDP
C193: =Start_Here!E42 -> shipping point Frt PPD. Machine orders delivered DDP shipping point Frt PPD and add.
C194: =Start_Here!E43 -> Returned Merchandise is subject to a restocking fee.
C195: =Start_Here!E44 -> All orders are subject to Tennant’s General Terms and Conditions available at http://www.tennantco.com/terms.
C196: =Start_Here!E45 -> Printed General Terms and Conditions are also available upon request.
C197: =Start_Here!E46 -> 0
E199: Quote Date : | G199: =Letter!$A$25 -> 2023-08-01
A200: Order Placement Information: To place your order, fill in PO# and customer signatures,
A201: call or fax to the numbers listed below. Customer Purchase Order is required.
A202: If information is missing, orders will be entered and held until all information is received.
C203: Customer Number | E203: Cust Grp 3
C204: =Start_Here!$C$25 -> 0 | E204: =Start_Here!$C$29 -> 0
C205: =Start_Here!$B$18 -> Who Owns the Machine? (Sold-To Info) (Please Verify)
A206: Company | C206: =Start_Here!$C$19 -> Company Name
A207: Address | C207: =Start_Here!$C$20 -> Address
C208: =Start_Here!$C$21 -> City, State Zip
A209: Name | C209: =Start_Here!$C$22 -> Contact Name
A210: Phone | C210: =Start_Here!$C$23 -> Contact Phone
C211: =Start_Here!$B$11 -> Where is the Machine Being Shipped? (Ship-To Info) (Please Verify)
A212: Company | C212: =Start_Here!$C$12 -> Company Name
A213: Address | C213: =Start_Here!$C$13 -> Address
C214: =Start_Here!$C$14 -> City, State Zip
A215: Name | C215: =Start_Here!$C$15 -> Contact Name
A216: Phone | C216: =Start_Here!$C$16 -> Contact Phone
C217: =Start_Here!$B$31 -> Shipping / Carrier Instructions: | E217: Order Special Instructions:
C218: =Start_Here!$C$32 -> 0
C220: Customer Purchase Order No.
C221: (please attach copy)
C224: Tax Exempt | E224: Yes
E225: No
C226: If Yes, attach a copy of your exemption certificate.
C228: Requested Delivery Date
C229: =Start_Here!$C$28 -> 0
C231: =Start_Here!$C$26 -> 0 | E231: =Start_Here!$C$27 -> 0
B232: 0 | C232: Authorized Buyer (please print) | E232: Phone Number
B235: 0 | C235: Authorized Buyer Signature
C237: =Start_Here!$C$41 -> Rep Name
C238: Tennant Representative
A240: Specialized Maintenance Equipment
A241: =Start_Here!$C$48 -> TENNANT · 10400 Clean Street · Eden Prairie, MN 55344 ·
A242: =Start_Here!$C$49 -> PHONE:800-553-8033 · FAX:763-513-2116
C245: Special Information
B246: Notes
B248: 1 | C248: Pre-Configured Machines cannot add or change options. All units will be packaged and shipped as stated above.
C249: When ordering, provide the reference number listed above. Price does not include freight or tax. Availability of units
C250: and lead time may vary.
B252: 2 | C252: Customer MUST order Skid w/Carton, Stackable if WITHOUT BATTERY is selected. Continental USA orders ONLY.
B254: 3 | C254: One pad driver comes standard with a T2.
B256: 4 | C256: Pad wrap available only in the Continental US and is the default packaging method.
C257: Customer MUST order Skid w/Carton, Stackable if WITHOUT BATTERY is selected.
C258: Skid w/Carton, Stackable is mandatory when shipping to AK and HI. Packaging is added at No Charge when shipping
C259: to these locations.
B261: 5 | C261: Machine Weights and dimensions | D261: Pad Wrap | E261: Skid w/Carton
C263: Weight (w/105AH battery) | D263: 300 lbs / 136 Kg | E263: 331 lbs / 150 Kg
C264: Length | D264: 44" / 1120mm | E264: 47" / 1200mm
... 2 more rows

Sheet T581_T390_T290
A1: T581_T390_T290 | C1: =Start_Here!$C19 -> Company Name
A2: =SUM(G114) -> 0 | C2: =Start_Here!$C20 -> Address
C3: =Start_Here!$C21 -> City, State Zip
C4: =Start_Here!$C22 -> Contact Name
C5: =Start_Here!$C$41 -> Rep Name
C6: =Start_Here!$C$37 -> Tennant Sales and Service Company
C7: =Start_Here!$C$38 -> 10400 Clean Street
C8: =Start_Here!$C$39 -> Eden Prairie, MN 55344
C9: =Start_Here!$C$43 -> 800-553-8033 | E9: Quote Date : | G9: =Letter!$A$25 -> 2023-08-01
C11: =Help!C2 -> CAN Date Rev - 5/6/2025
C13: TENNANT COMPANY WARRANTY
C14: 3 YEARS OR 2000 HOURS - PARTS
C15: 1 YEAR - BATTERY CHARGERS
C16: 2 YEARS - LABOR
C17: 6 MONTHS - TRAVEL | E17: Quote Request Information
C18: 10 YEARS ON DURAMERTM ROTOMOLD TANKS | G18: Fax (quote only)
G19: Mail (quote,lit, specs)
G20: Fax + Mail
E22: Primary Use
G23: Inside
G24: Outside
C25: Description | D25: Reference # | E25: List Price | F25: Qty. | G25: Extended Price
F26: =SUM(F65,F66) -> 0
C28: T581 - Ride-On Micro-Scrubber - 150AH Wet Batteries | D28: 9022008 | E28: 17483 | G28: =F28*E28 -> 0 | Q28: =VLOOKUP(D28,'MPF SAP Canada Pre-Configured'!C:E,3,FALSE) -> 16810
C29: 20in (50cm) single disk cleaning path, Linatex squeegee blades. Includes onboard charger, 2-12V batteries, pad driver, and 1 red pad. | F29: =SUM(F28) -> 0
F30: =SUM(F31) -> 0
C31: T581 - Ride-On Micro-Scrubber - 140AH Sealed AGM Batteries | D31: 9022009 | E31: 19053 | G31: =F31*E31 -> 0 | Q31: =VLOOKUP(D31,'MPF SAP Canada Pre-Configured'!C:E,3,FALSE) -> 18320
F32: =SUM(F39) -> 0
C33: T581 - Ride-On Micro-Scrubber - 90AH Li-Ion Battery | D33: 9300510 | E33: 20984 | G33: =F33*E33 -> 0
C34: 20in (50cm) single disk cleaning path, Linatex squeegee blades. Includes onboard charger, 1-24V battery, pad driver, and 1 red pad. | F34: =SUM(F41) -> 0
C36: T581 - Ride-On Micro-Scrubber - 180AH Li-Ion Batteries | D36: 9300511 | E36: 24064 | G36: =F36*E36 -> 0
C37: 20in (50cm) single disk cleaning path, Linatex squeegee blades. Includes onboard charger, 2-24V batteries, pad driver, and 1 red pad. | F37: =SUM(F36) -> 0
F38: =SUM(F39) -> 0
C39: T581 - Ride-On Micro Scrubber - NO Batteries | D39: 1255470 | E39: 16893 | G39: =F39*E39 -> 0 | Q39: =VLOOKUP(D39,'MPF SAP Canada Pre-Configured'!C:E,3,FALSE) -> 16243
F40: =SUM(F39) -> 0
C41: Shipped on skid.
C42: T581 - Self-Propel - Shipping Weight and Dimensions | D42: Skid w/Carton | F42: =SUM(F28:F39) -> 0
C43: Weight (w/ heaviest batteries) | D43: 520 lb / 236 kg | F43: =SUM(F42) -> 0
C44: Length | D44: 57 in / 145 cm | F44: =SUM(F43) -> 0
C45: Width | D45: 32 in / 82cm | F45: 0
C46: Height | D46: 45 in / 114.5 cm | F46: 0
C50: T390 - Walk Behind Scrubber -Self-Propel - 150AH Wet Batteries | D50: 9022006 | E50: 15128 | G50: =F50*E50 -> 0 | Q50: =VLOOKUP(D50,'MPF SAP Canada Pre-Configured'!C:E,3,FALSE) -> 14408
C51: 28in (70cm), dual disk cleaning path, Linatex squeegee blades. Includes onboard charger, 2-12V batteries, pad driver, and 1 red pad. | F51: =SUM(F50) -> 0
F52: =SUM(F53) -> 0
C53: T390 - Walk Behind Scrubber -Self-Propel - 140AH Sealed AGM Batteries | D53: 9022007 | E53: 16715 | G53: =F53*E53 -> 0 | Q53: =VLOOKUP(D53,'MPF SAP Canada Pre-Configured'!C:E,3,FALSE) -> 15919
F54: =SUM(F55) -> 0
C55: T390 - Walk Behind Scrubber - Self-Propel - NO Batteries | D55: 1255469 | E55: 14534 | G55: =F55*E55 -> 0 | Q55: =VLOOKUP(D55,'MPF SAP Canada Pre-Configured'!C:E,3,FALSE) -> 13842
F56: =SUM(F53) -> 0
C57: Shipped on skid.
C58: T390 - Self-Propel - Shipping Weight and Dimensions | D58: Skid w/Carton | F58: =SUM(F50:F55) -> 0
C59: Weight (w/ heaviest batteries) | D59: 438 lb / 199 kg | F59: =SUM(F58) -> 0
C60: Length | D60: 50 in / 127 cm | F60: =SUM(F59) -> 0
C61: Width | D61: 33 in / 84cm | F61: 0
C62: Height | D62: 45 in / 114.5 cm | F62: 0
C65: T290 - Walk Behind Scrubber - Pad Assist - 130AH Wet Batteries | D65: 9022000 | E65: 8752 | G65: =F65*E65 -> 0 | Q65: =VLOOKUP(D65,'MPF SAP Canada Pre-Configured'!C:E,3,FALSE) -> 8497
C66: 20in (50cm) single disk cleaning path, Linatex squeegee blades. Includes on-board charger, 2-12V batteries, pad driver, and 1 red pad. | F66: =SUM(F65) -> 0
F67: =SUM(F68) -> 0
C68: T290 - Walk Behind Scrubber - Pad Assist - 150AH Wet Batteries | D68: 9022001 | E68: 8937 | G68: =F68*E68 -> 0 | Q68: =VLOOKUP(D68,'MPF SAP Canada Pre-Configured'!C:E,3,FALSE) -> 8676
F69: =SUM(F70) -> 0
C70: T290 - Walk Behind Scrubber -Pad Assist - 140AH Sealed AGM Batteries | D70: 9022002 | E70: 10494 | G70: =F70*E70 -> 0 | Q70: =VLOOKUP(D70,'MPF SAP Canada Pre-Configured'!C:E,3,FALSE) -> 10188
F71: =SUM(F72) -> 0
C72: T290 - Walk Behind Scrubber - Pad Assist - NO Batteries | D72: 1255467 | E72: 8169 | G72: =F72*E72 -> 0 | Q72: =VLOOKUP(D72,'MPF SAP Canada Pre-Configured'!C:E,3,FALSE) -> 7931
F74: =SUM(F75) -> 0
C75: T290 - Walk Behind Scrubber - Self-Propel - 130AH Wet Batteries | D75: 9022003 | E75: 10716 | G75: =F75*E75 -> 0 | Q75: =VLOOKUP(D75,'MPF SAP Canada Pre-Configured'!C:E,3,FALSE) -> 10403
C76: 20in (50cm) single disk cleaning path, Linatex squeegee blades. Includes on-board charger, 2-12V batteries, pad driver, and 1 red pad. | F76: =SUM(F75) -> 0
F77: =SUM(F78) -> 0
C78: T290 - Walk Behind Scrubber - Self Propel - 150AH Wet Batteries | D78: 9022004 | E78: 10903 | G78: =F78*E78 -> 0 | Q78: =VLOOKUP(D78,'MPF SAP Canada Pre-Configured'!C:E,3,FALSE) -> 10585
F79: =SUM(F80) -> 0
C80: T290 - Walk Behind Scrubber - Self Propel - 140AH Sealed AGM Batteries | D80: 9022005 | E80: 12457 | G80: =F80*E80 -> 0 | Q80: =VLOOKUP(D80,'MPF SAP Canada Pre-Configured'!C:E,3,FALSE) -> 12094
F81: =SUM(F82) -> 0
C82: T290 - Walk Behind Scrubber - Self Propel - NO Batteries | D82: 1255468 | E82: 10132 | G82: =F82*E82 -> 0 | Q82: =VLOOKUP(D82,'MPF SAP Canada Pre-Configured'!C:E,3,FALSE) -> 9836
C84: Shipped on skid. | F84: =SUM(F65:F72) -> 0 | G84: =IFERROR(IFERROR(VLOOKUP(#REF!,Surcharge!A:B,2,FALSE)*E84, VLOOKUP(#REF! & "",Surcharge!A:B,2,FALSE)*E84), "") ->  | L84: =SUM(E84) -> 0 | M84: Surcharge Qty
C85: T290 - Pad Assist - Shipping Weight and Dimensions | D85: Skid w/Carton | F85: =SUM(F84) -> 0
C86: Weight | D86: 390 lb / 177 kg | F86: =SUM(F85) -> 0
C87: Length | D87: 50 in / 127 cm | F87: 0
C88: Width | D88: 27 in / 69cm | F88: 0
C89: Height | D89: 45 in / 114.5 cm | F89: 0
C91: T290 - Self-Propel - Shipping Weight and Dimensions | F91: =SUM(F75:F82) -> 0
C92: Weight | D92: 401 lb / 182 kg | F92: =SUM(F91) -> 0
C93: Length | D93: 50 in / 127 cm | F93: =SUM(F92) -> 0
C94: Width | D94: 27 in / 69cm | F94: 0
C95: Height | D95: 45 in / 114.5 cm | F95: 0
E98: 0 | F98: =SUM(E100) -> 0
E99: =ROUND(SUM(G28:G98), 0) -> 0 | F99: =SUM(E100) -> 0
D100: Machine Subtotal | E100: =ROUND(SUM(G28:G98), 0) -> 0 | F100: =F98 -> 0
B101: Discounts | F101: =SUM(F102) -> 0
F102: =SUM(F104:F107) -> 0
D103: Applicable Currency Adj % | F103: =IF(E103 <> "", 1, 0) -> 0 | G103: =IF(F103*(E103*0.01)*E99 < 0, F103*(E103*0.01)*E99, -(F103*(E103*0.01)*E99)) -> 0
D104: Discount % | F104: =IF(E104 <> "", 1, 0) -> 0 | G104: =IF(F104*(E104*0.01)*(E99+G103) < 0, F104*(E104*0.01)*(E99+G103), -(F104*(E104*0.01)*(E99+G103))) -> 0
D105: Discount $ | F105: 0 | G105: =IF(F105*E105 < 0, F105*E105, -(F105*E105)) -> 0
D106: Discount $ | F106: 0 | G106: =IF(F106*E106 < 0, F106*E106, -(F106*E106)) -> 0
D107: Discount $ | F107: 0 | G107: =IF(F107*E107 < 0, F107*E107, -(F107*E107)) -> 0
D108: Discount Total | E108: =SUM(G103:G107) -> 0 | F108: =SUM(E108) -> 0
F109: =#REF! -> 
F110: =F109 -> 
C111: Prepaid and Add | D111: Freight | F111: =IF(E111 <> "", 1, 0) -> 0 | G111: =F111*E111 -> 0
C112: Subject to all applicable taxes | D112: Tax | F112: 0 | G112: 0
F113: =SUM(F114) -> 0
D114: MACHINE TOTAL* | F114: =SUM(G114) -> 0 | G114: =SUM(G28:G112) -> 0 | N114: This goes to "My Documents"
G115: =G114 -> 0
C120: Wells Fargo - Leasing Calculation Option: | D120: Option 1 | F120: Option 2 | J120: =Financing!A38 -> Rates 2025 - Rev.2/4/2025
D121: Monthly Payment | E121: Cost Per Day | F121: Monthly Payment | G121: Cost Per Day | J121: =Financing!A39 -> “Blank Payment Amounts Indicate The Financing Option Or Purchase Options Selected Are Not
C122: Purchase Option: | D122: $1 Buyout Lease | F122: None | J122: =Financing!A40 -> Applicable Or The Machine Total Is Below The Minimum Amount For The Selected Vendor”
C123: 24 Months | D123: 0 | E123: 0 | F123: 0 | G123: 0 | J123: =Financing!A41 -> "Quoted monthly payments are estimates only and are based on a certain level of credit rating.
C124: 36 Months | D124: 0 | E124: 0 | F124: 0 | G124: 0 | J124: =Financing!A42 -> Actual monthly payments may be higher depending on your credit rating."
C125: 48 Months | D125: 0 | E125: 0 | F125: 0 | G125: 0 | J125: =Financing!A43 -> “Financing rates do not include Pre-Paid Service”
C126: 60 Months | D126: 0 | E126: 0 | F126: 0 | G126: 0 | I126: =Financing!A44 -> 0
D128: Benefits of Equipment Financing:
D129: • Spreads out investment over time. | F129: • Keep current with latest technology.
D130: • Preserve capital. | F130: • Service and parts bundling available.
D131: • Low monthly payment. | F131: • Pay for labor savings as you go.
B134: TennantTrue
C136: Is customer interested in service program? | D136: Yes | E136: *State/County selection required for TennantTrue service options
C138: If not, why?
C140: Term: | D140: 36 | F140: AB Brushes | G140: No
C141: Monthly machine usage (hrs): | D141: < 30/mo. (Avg. 1hr./day)
C143: TennantTrue: | D143: Gold Contract | F143: Silver Contract
C144: Per Visit | F144: 425
C145: Monthly | D145: 129 | F145: 69
C146: Annually | F146: 816
C147: Pre-Pay Full Term | D147: 4444 | F147: 2397
C148: Hourly Labor Rate
C149: Site Visit
C151: * Verify customer current pricing prior to quote.
C152: **All rates and fees above reflect service for one (1) unit with the exception of Block of Time service.
C153: *Block of Time is available in 1 Year Term only and is priced as such no matter the term selection on this template.
B156: Servicing
C158: Is customer interested in a service plan? | D158: No
C160: If not, why?
B163: Quote Special Instructions:
C166: =Start_Here!E36 -> Terms and Conditions
C167: =Start_Here!E37 -> Ask your local sales rep for estimated lead times. Verify when placing order
C168: =Start_Here!E38 -> All orders subject to acceptance by Tennant Sales and Service Company, Minneapolis, Minnesota
C169: =Start_Here!E39 -> Prices subject to change without notice. Subject to any applicable taxes.
C170: =Start_Here!E40 -> Terms: Net 30 days. Payable in Canadian Funds
C171: =Start_Here!E41 -> Freight: Accessories, parts, supplies, detergents, and floor coatings orders delivered DDP
C172: =Start_Here!E42 -> shipping point Frt PPD. Machine orders delivered DDP shipping point Frt PPD and add.
C173: =Start_Here!E43 -> Returned Merchandise is subject to a restocking fee.
C174: =Start_Here!E44 -> All orders are subject to Tennant’s General Terms and Conditions available at http://www.tennantco.com/terms.
C175: =Start_Here!E45 -> Printed General Terms and Conditions are also available upon request.
C176: =Start_Here!E46 -> 0
E178: Quote Date : | G178: =Letter!$A$25 -> 2023-08-01
A179: Order Placement Information: To place your order, fill in PO# and customer signatures,
A180: call or fax to the numbers listed below. Customer Purchase Order is required.
A181: If information is missing, orders will be entered and held until all information is received.
C182: Customer Number | E182: Cust Grp 3
C183: =Start_Here!$C$25 -> 0 | E183: =Start_Here!$C$29 -> 0
C184: =Start_Here!$B$18 -> Who Owns the Machine? (Sold-To Info) (Please Verify)
A185: Company | C185: =Start_Here!$C$19 -> Company Name
A186: Address | C186: =Start_Here!$C$20 -> Address
C187: =Start_Here!$C$21 -> City, State Zip
A188: Name | C188: =Start_Here!$C$22 -> Contact Name
A189: Phone | C189: =Start_Here!$C$23 -> Contact Phone
C190: =Start_Here!$B$11 -> Where is the Machine Being Shipped? (Ship-To Info) (Please Verify)
A191: Company | C191: =Start_Here!$C$12 -> Company Name
A192: Address | C192: =Start_Here!$C$13 -> Address
C193: =Start_Here!$C$14 -> City, State Zip
A194: Name | C194: =Start_Here!$C$15 -> Contact Name
A195: Phone | C195: =Start_Here!$C$16 -> Contact Phone
C196: =Start_Here!$B$31 -> Shipping / Carrier Instructions: | E196: Order Special Instructions:
C197: =Start_Here!$C$32 -> 0
C199: Customer Purchase Order No.
C200: (please attach copy)
C203: Tax Exempt | E203: Yes
E204: No
C205: If Yes, attach a copy of your exemption certificate.
C207: Requested Delivery Date
C208: =Start_Here!$C$28 -> 0
C210: =Start_Here!$C$26 -> 0 | E210: =Start_Here!$C$27 -> 0
B211: 0 | C211: Authorized Buyer (please print) | E211: Phone Number
B214: 0 | C214: Authorized Buyer Signature
C216: =Start_Here!$C$41 -> Rep Name
C217: Tennant Representative
A219: Specialized Maintenance Equipment
A220: =Start_Here!$C$48 -> TENNANT · 10400 Clean Street · Eden Prairie, MN 55344 ·
A221: =Start_Here!$C$49 -> PHONE:800-553-8033 · FAX:763-513-2116
C224: Special Information
B225: Notes
B227: 1 | C227: Pre-Configured Machines cannot add or change options. All units will be packaged and shipped as stated above.
C228: When ordering, provide the reference number listed above. Price does not include freight or tax. Availability of units
C229: and lead time may vary.
B231: 2 | C231: Customer MUST order Skid w/Carton, Stackable if WITHOUT BATTERY is selected. Continental USA orders ONLY.
B233: 3 | C233: One pad driver comes standard with a T2.
B235: 4 | C235: Pad wrap available only in the Continental US and is the default packaging method.
C236: Customer MUST order Skid w/Carton, Stackable if WITHOUT BATTERY is selected.
C237: Skid w/Carton, Stackable is mandatory when shipping to AK and HI. Packaging is added at No Charge when shipping
C238: to these locations.
B240: 5 | C240: Machine Weights and dimensions | D240: Pad Wrap | E240: Skid w/Carton
C242: Weight (w/105AH battery) | D242: 300 lbs / 136 Kg | E242: 331 lbs / 150 Kg
C243: Length | D243: 44" / 1120mm | E243: 47" / 1200mm
C244: Width | D244: 19" / 478mm | E244: 30" / 750mm
C245: Height | D245: 37" / 930mm | E245: 45" / 1150mm

Sheet T681
A1: T681 | C1: =Start_Here!$C19 -> Company Name
A2: =SUM(G81) -> 0 | C2: =Start_Here!$C20 -> Address
C3: =Start_Here!$C21 -> City, State Zip
C4: =Start_Here!$C22 -> Contact Name
C5: =Start_Here!$C$41 -> Rep Name
C6: =Start_Here!$C$37 -> Tennant Sales and Service Company
C7: =Start_Here!$C$38 -> 10400 Clean Street
C8: =Start_Here!$C$39 -> Eden Prairie, MN 55344
C9: =Start_Here!$C$43 -> 800-553-8033 | E9: Quote Date : | G9: =Letter!$A$25 -> 2023-08-01
C11: =Help!C2 -> CAN Date Rev - 5/6/2025
C13: NOBLES WARRANTY
C14: 3 YEARS OR 2000 HOURS - PARTS
C15: 1 YEAR - BATTERY CHARGERS
C16: 2 YEARS - LABOR
C17: 6 MONTHS - TRAVEL | E17: Quote Request Information
C18: 10 YEARS ON DURAMERTM ROTOMOLD TANKS | G18: Fax (quote only)
G19: Mail (quote,lit, specs)
G20: Fax + Mail
E22: Primary Use
G23: Inside
G24: Outside
C25: Description | D25: Reference # | E25: List Price | F25: Qty. | G25: Extended Price
C28: T681 - Small Ride-On Scrubber - 240AH Wet Batteries | D28: 9052040 | E28: 32778 | G28: =F28*E28 -> 0 | Q28: =VLOOKUP(D28,'MPF SAP Canada Pre-Configured'!C:E,3,FALSE) -> 
C29: 32in (80cm) dual disk cleaning path, pad driver, Linatex squeegee blades. Includes onboard charger, 4-6V batteries | F29: =SUM(F28) -> 0
C31: T681 - Small Ride-On Scrubber - 240AH Wet Batteries | D31: 9052043 | E31: 32778 | G31: =F31*E31 -> 0 | Q31: =VLOOKUP(D31,'MPF SAP Canada Pre-Configured'!C:E,3,FALSE) -> 
C32: 32in (80cm) dual disk cleaning path, brush driver, Linatex squeegee blades. Includes onboard charger, 4-6V batteries | F32: =SUM(F31) -> 0
Q33: =VLOOKUP(D33,'MPF SAP Canada Pre-Configured'!C:E,3,FALSE) -> 
C34: T681 - Small Ride-On Scrubber - 210AH Sealed AGM Batteries | D34: 9052041 | E34: 34831 | G34: =F34*E34 -> 0
C35: 32in (80cm) dual disk cleaning path, pad driver, Linatex squeegee blades. Includes onboard charger, 4-6V batteries | F35: =SUM(F34) -> 0
F36: =SUM(F35) -> 0
C37: T681 - Small Ride-On Scrubber - 210AH Sealed AGM Batteries | D37: 9052044 | E37: 34831 | G37: =F37*E37 -> 0
C38: 32in (80cm) dual disk cleaning path, brush driver, Linatex squeegee blades. Includes onboard charger, 4-6V batteries | F38: =SUM(F37) -> 0
F39: =SUM(F38) -> 0
C40: T681 - Small Ride-On Scrubber - 90AH Li-Ion Battery | D40: 9023481 | E40: 36279 | G40: =F40*E40 -> 0
C41: 32in (80cm) dual disk cleaning path, pad driver, Linatex squeegee blades. Includes onboard charger, 1-24V battery | F41: =SUM(F40) -> 0
F42: =SUM(F41) -> 0
C43: T681 - Small Ride-On Scrubber - 90AH Li-Ion Battery | D43: 9023483 | E43: 36279 | G43: =F43*E43 -> 0
C44: 32in (80cm) dual disk cleaning path, brush driver, Linatex squeegee blades. Includes onboard charger, 1-24V battery | F44: =SUM(F43) -> 0
F45: =SUM(F44) -> 0
C46: T681 - Small Ride-On Scrubber - 180 AH Li-Ion Batteries | D46: 9023482 | E46: 39359 | G46: =F46*E46 -> 0
C47: 32in (80cm) dual disk cleaning path, pad driver, Linatex squeegee blades. Includes onboard charger, 2-24V batteries | F47: =SUM(F46) -> 0
F48: =SUM(F47) -> 0
C49: T681 - Small Ride-On Scrubber - 180 AH Li-Ion Batteries | D49: 9023484 | E49: 39359 | G49: =F49*E49 -> 0
C50: 32in (80cm) dual disk cleaning path, brush driver, Linatex squeegee blades. Includes onboard charger, 2-24V batteries | F50: =SUM(F49) -> 0
C52: T681 - Small Ride-On Scrubber - NO Batteries | D52: 9052042 | E52: 29621 | G52: =F52*E52 -> 0
C53: 32in (80cm) dual disk cleaning path, pad driver, Linatex squeegee blades. Includes onboard charger | F53: =SUM(F52) -> 0
C55: T681 - Small Ride-On Scrubber - NO Batteries | D55: 9052045 | E55: 29621 | G55: =F55*E55 -> 0
C56: 32in (80cm) dual disk cleaning path, brush driver, Linatex squeegee blades. Includes onboard charger | F56: =SUM(F55) -> 0 | Q56: =VLOOKUP(D56,'MPF SAP Canada Pre-Configured'!C:E,3,FALSE) -> 
C59: Shipping Weight and Dimensions | D59: Pallet w/ ramp | F59: =SUM(F28:F55) -> 0 | Q59: =VLOOKUP(D59,'MPF SAP Canada Pre-Configured'!C:E,3,FALSE) -> 
C60: Weight (w/ heaviest batteries) | D60: 950 lb / 431 kg | F60: =SUM(F29:F56) -> 0
C61: Length | D61: 59.6 in / 151.5 cm | F61: =SUM(F30:F57) -> 0 | Q61: =VLOOKUP(D61,'MPF SAP Canada Pre-Configured'!C:E,3,FALSE) -> 
C62: Width | D62: 48.8 in / 124 cm | F62: =SUM(F31:F58) -> 0
C63: Height | D63: 42.9 in / 109 cm | F63: =SUM(F32:F59) -> 0
E65: 0 | F65: =SUM(E67) -> 0
E66: =ROUND(SUM(G28:G65), 0) -> 0 | F66: =SUM(E67) -> 0
D67: Machine Subtotal | E67: =ROUND(SUM(G28:G65), 0) -> 0 | F67: =F65 -> 0
B68: Discounts | F68: =SUM(F69) -> 0
F69: =SUM(F71:F74) -> 0
D70: Applicable Currency Adj % | F70: =IF(E70 <> "", 1, 0) -> 0 | G70: =IF(F70*(E70*0.01)*E66 < 0, F70*(E70*0.01)*E66, -(F70*(E70*0.01)*E66)) -> 0
D71: Discount % | F71: 0 | G71: =IF(F71*(E71*0.01)*(E66+G70) < 0, F71*(E71*0.01)*(E66+G70), -(F71*(E71*0.01)*(E66+G70))) -> 0
D72: Discount $ | F72: 0 | G72: =IF(F72*E72 < 0, F72*E72, -(F72*E72)) -> 0
D73: Discount $ | F73: 0 | G73: =IF(F73*E73 < 0, F73*E73, -(F73*E73)) -> 0
D74: Discount $ | F74: 0 | G74: =IF(F74*E74 < 0, F74*E74, -(F74*E74)) -> 0
D75: Discount Total | E75: =SUM(G70:G74) -> 0 | F75: =SUM(E75) -> 0
F76: =#REF! -> 
F77: =F76 -> 
C78: Prepaid and Add | D78: Freight | F78: =IF(E78 <> "", 1, 0) -> 0 | G78: =F78*E78 -> 0
C79: Subject to all applicable taxes | D79: Tax | F79: 0 | G79: 0
F80: =SUM(F81) -> 0
D81: MACHINE TOTAL* | F81: =SUM(G81) -> 0 | G81: =SUM(G28:G79) -> 0 | N81: This goes to "My Documents"
G82: =G81 -> 0
C87: Wells Fargo - Leasing Calculation Option: | D87: Option 1 | F87: Option 2 | J87: =Financing!A38 -> Rates 2025 - Rev.2/4/2025
D88: Monthly Payment | E88: Cost Per Day | F88: Monthly Payment | G88: Cost Per Day | J88: =Financing!A39 -> “Blank Payment Amounts Indicate The Financing Option Or Purchase Options Selected Are Not
C89: Purchase Option: | D89: $1 Buyout Lease | F89: None | J89: =Financing!A40 -> Applicable Or The Machine Total Is Below The Minimum Amount For The Selected Vendor”
C90: 24 Months | D90: 0 | E90: 0 | F90: 0 | G90: 0 | J90: =Financing!A41 -> "Quoted monthly payments are estimates only and are based on a certain level of credit rating.
C91: 36 Months | D91: 0 | E91: 0 | F91: 0 | G91: 0 | J91: =Financing!A42 -> Actual monthly payments may be higher depending on your credit rating."
C92: 48 Months | D92: 0 | E92: 0 | F92: 0 | G92: 0 | J92: =Financing!A43 -> “Financing rates do not include Pre-Paid Service”
C93: 60 Months | D93: 0 | E93: 0 | F93: 0 | G93: 0 | I93: =Financing!A44 -> 0
D95: Benefits of Equipment Financing:
D96: • Spreads out investment over time. | F96: • Keep current with latest technology.
D97: • Preserve capital. | F97: • Service and parts bundling available.
D98: • Low monthly payment. | F98: • Pay for labor savings as you go.
B101: TennantTrue
C103: Is customer interested in service program? | D103: Yes | E103: *State/County selection required for TennantTrue service options
C105: If not, why?
C107: Term: | D107: 36 | F107: AB Brushes | G107: No
C108: Monthly machine usage (hrs): | D108: < 30/mo. (Avg. 1hr./day)
C110: TennantTrue: | D110: Gold Contract | F110: Silver Contract
C111: Per Visit | F111: 501
C112: Monthly | D112: 173 | F112: 88
C113: Annually | F113: 1035
C114: Pre-Pay Full Term | D114: 5964 | F114: 3042
C115: Hourly Labor Rate
C116: Site Visit
C118: * Verify customer current pricing prior to quote.
C119: **All rates and fees above reflect service for one (1) unit with the exception of Block of Time service.
C120: *Block of Time is available in 1 Year Term only and is priced as such no matter the term selection on this template.
B123: Servicing
C125: Is customer interested in a service plan? | D125: No
C127: If not, why?
B130: Quote Special Instructions:
C133: =Start_Here!E36 -> Terms and Conditions
C134: =Start_Here!E37 -> Ask your local sales rep for estimated lead times. Verify when placing order
C135: =Start_Here!E38 -> All orders subject to acceptance by Tennant Sales and Service Company, Minneapolis, Minnesota
C136: =Start_Here!E39 -> Prices subject to change without notice. Subject to any applicable taxes.
C137: =Start_Here!E40 -> Terms: Net 30 days. Payable in Canadian Funds
C138: =Start_Here!E41 -> Freight: Accessories, parts, supplies, detergents, and floor coatings orders delivered DDP
C139: =Start_Here!E42 -> shipping point Frt PPD. Machine orders delivered DDP shipping point Frt PPD and add.
C140: =Start_Here!E43 -> Returned Merchandise is subject to a restocking fee.
C141: =Start_Here!E44 -> All orders are subject to Tennant’s General Terms and Conditions available at http://www.tennantco.com/terms.
C142: =Start_Here!E45 -> Printed General Terms and Conditions are also available upon request.
C143: =Start_Here!E46 -> 0
E145: Quote Date : | G145: =Letter!$A$25 -> 2023-08-01
A146: Order Placement Information: To place your order, fill in PO# and customer signatures,
A147: call or fax to the numbers listed below. Customer Purchase Order is required.
A148: If information is missing, orders will be entered and held until all information is received.
C149: Customer Number | E149: Cust Grp 3
C150: =Start_Here!$C$25 -> 0 | E150: =Start_Here!$C$29 -> 0
C151: =Start_Here!$B$18 -> Who Owns the Machine? (Sold-To Info) (Please Verify)
A152: Company | C152: =Start_Here!$C$19 -> Company Name
A153: Address | C153: =Start_Here!$C$20 -> Address
C154: =Start_Here!$C$21 -> City, State Zip
A155: Name | C155: =Start_Here!$C$22 -> Contact Name
A156: Phone | C156: =Start_Here!$C$23 -> Contact Phone
C157: =Start_Here!$B$11 -> Where is the Machine Being Shipped? (Ship-To Info) (Please Verify)
A158: Company | C158: =Start_Here!$C$12 -> Company Name
A159: Address | C159: =Start_Here!$C$13 -> Address
C160: =Start_Here!$C$14 -> City, State Zip
A161: Name | C161: =Start_Here!$C$15 -> Contact Name
A162: Phone | C162: =Start_Here!$C$16 -> Contact Phone
C163: =Start_Here!$B$31 -> Shipping / Carrier Instructions: | E163: Order Special Instructions:
C164: =Start_Here!$C$32 -> 0
C166: Customer Purchase Order No.
C167: (please attach copy)
C170: Tax Exempt | E170: Yes
E171: No
C172: If Yes, attach a copy of your exemption certificate.
C174: Requested Delivery Date
C175: =Start_Here!$C$28 -> 0
C177: =Start_Here!$C$26 -> 0 | E177: =Start_Here!$C$27 -> 0
B178: 0 | C178: Authorized Buyer (please print) | E178: Phone Number
B181: 0 | C181: Authorized Buyer Signature
C183: =Start_Here!$C$41 -> Rep Name
C184: Tennant Representative
A186: Specialized Maintenance Equipment
A187: =Start_Here!$C$48 -> TENNANT · 10400 Clean Street · Eden Prairie, MN 55344 ·
A188: =Start_Here!$C$49 -> PHONE:800-553-8033 · FAX:763-513-2116
C191: Special Information
B192: Notes
B194: 1 | C194: Pre-Configured Machines cannot add or change options. All units will be packaged and shipped as stated above.
C195: When ordering, provide the reference number listed above. Price does not include freight or tax. Availability of units
C196: and lead time may vary.
B198: 2 | C198: Customer MUST order Skid w/Carton, Stackable if WITHOUT BATTERY is selected. Continental USA orders ONLY.
B200: 3 | C200: One pad driver comes standard with a T2.
B202: 4 | C202: Pad wrap available only in the Continental US and is the default packaging method.
C203: Customer MUST order Skid w/Carton, Stackable if WITHOUT BATTERY is selected.
C204: Skid w/Carton, Stackable is mandatory when shipping to AK and HI. Packaging is added at No Charge when shipping
C205: to these locations.
B207: 5 | C207: Machine Weights and dimensions | D207: Pad Wrap | E207: Skid w/Carton
C209: Weight (w/105AH battery) | D209: 300 lbs / 136 Kg | E209: 331 lbs / 150 Kg
C210: Length | D210: 44" / 1120mm | E210: 47" / 1200mm
C211: Width | D211: 19" / 478mm | E211: 30" / 750mm
C212: Height | D212: 37" / 930mm | E212: 45" / 1150mm

Sheet T981
A1: T981 | C1: =Start_Here!$C19 -> Company Name
A2: =SUM(G99) -> 0 | C2: =Start_Here!$C20 -> Address
C3: =Start_Here!$C21 -> City, State Zip
C4: =Start_Here!$C22 -> Contact Name
C5: =Start_Here!$C$41 -> Rep Name
C6: =Start_Here!$C$37 -> Tennant Sales and Service Company
C7: =Start_Here!$C$38 -> 10400 Clean Street
C8: =Start_Here!$C$39 -> Eden Prairie, MN 55344
C9: =Start_Here!$C$43 -> 800-553-8033 | E9: Quote Date : | G9: =Letter!$A$25 -> 2023-08-01
C11: =Help!C2 -> CAN Date Rev - 5/6/2025
C13: BUILT-IN “NOBLES VALUE” INCLUDES:
C15: Wet, 360 AH C/20 Battery Pack | E15: No Tool Squeegee and Brush Change
C16: 36VDC, 21A 85-265 VAC 45/65 Hz Charger | E16: In-Line Vacuum Fan Air Filter
C17: DC Propel Motor | E17: High Visibility Maintenance Touch Points
C18: Disk Scrubbing - 36 in (900 mm) path | E18: Cup Holder
C19: Cylindrical Scrubbing - 30 in (750 mm) path | E19: Multi-Language Operator Manual and Video
C20: Standard Sweeping Side Brushes (Cylindrical model only)
C21: Standard Cylindrical or Disk Scrubbing Brushes (Select One) | E21: T981 Controls:
C22: Non-Corrosive Solution and Recovery Tanks | E22: 3 Preset Scrub Operation Programs
C23: 33 gal (125 L) Solution Tank | E23: On Board Diagnostics
C24: 35.6 gal (135 L) Recovery Tank | E24: Spin on/spin off brush attachment (Disk model only)
C25: Parabolic Rear Squeegee Breakaway System
C26: Automatic Functions:
C27: Parking Brake
C28: Squeegee Lift
C31: NOBLES WARRANTY
C32: 3 YEARS OR 2000 HOURS - PARTS
C33: 2 YEARS - LABOR
C34: 6 MONTHS - TRAVEL
C35: 10 YEARS ON DURAMERTM ROTOMOLD TANKS
E39: Quote Request Information
G40: Fax (quote only)
G41: Mail (quote,lit, specs)
G42: Fax + Mail
E44: Primary Use
G45: Inside
G46: Outside
C49: Description | D49: Reference # | E49: Price Each | F49: Qty | G49: Extended Price
F50: *
B51: Base Configuration | E51: Price | F51: =SUM(F52,F56,F61) -> 0
C52: Cleaning Type | F52: =SUM(F53:F54) -> 0
C53: T981 Ride-On Scrubber 750 mm/30" - Cylindrical | D53: T981-750-C | E53: 35961 | G53: =F53*E53 -> 0 | H53: =IFERROR(IFERROR(VLOOKUP(D53,Surcharge!A:B,2,FALSE)*F53, VLOOKUP(D53 & "",Surcharge!A:B,2,FALSE)*F53), "") -> 
C54: T981 Ride-On Scrubber 900 mm/36" - Disk | D54: T981-900-D | E54: 35889 | G54: =F54*E54 -> 0 | H54: =IFERROR(IFERROR(VLOOKUP(D54,Surcharge!A:B,2,FALSE)*F54, VLOOKUP(D54 & "",Surcharge!A:B,2,FALSE)*F54), "") -> 
H55: =IFERROR(IFERROR(VLOOKUP(D55,Surcharge!A:B,2,FALSE)*F55, VLOOKUP(D55 & "",Surcharge!A:B,2,FALSE)*F55), "") -> 
C56: Battery Type (Note 1) | F56: =SUM(F57:F59) -> 0 | H56: =IFERROR(IFERROR(VLOOKUP(D56,Surcharge!A:B,2,FALSE)*F56, VLOOKUP(D56 & "",Surcharge!A:B,2,FALSE)*F56), "") -> 
C57: Wet 360AH C/20 (Kit of 6 batteries) | D57: 9022562 | E57: N/C | G57: =IF(F57=0," ","N/C") ->  | H57: =IFERROR(IFERROR(VLOOKUP(D57,Surcharge!A:B,2,FALSE)*F57, VLOOKUP(D57 & "",Surcharge!A:B,2,FALSE)*F57), "") -> 
C58: Sealed/MF AGM 350AH C/20 (Kit of 6 batteries) | D58: 9022563 | E58: 1492 | G58: =F58*E58 -> 0 | H58: =IFERROR(IFERROR(VLOOKUP(D58,Surcharge!A:B,2,FALSE)*F58, VLOOKUP(D58 & "",Surcharge!A:B,2,FALSE)*F58), "") -> 
C59: Less Battery, DEDUCT (Note 1) | E59: -982 | G59: =F59*E59 -> 0 | H59: =IFERROR(IFERROR(VLOOKUP(D59,Surcharge!A:B,2,FALSE)*F59, VLOOKUP(D59 & "",Surcharge!A:B,2,FALSE)*F59), "") -> 
H60: =IFERROR(IFERROR(VLOOKUP(D60,Surcharge!A:B,2,FALSE)*F60, VLOOKUP(D60 & "",Surcharge!A:B,2,FALSE)*F60), "") -> 
C61: Charger | F61: =SUM(F62:F64) -> 0 | H61: =IFERROR(IFERROR(VLOOKUP(D61,Surcharge!A:B,2,FALSE)*F61, VLOOKUP(D61 & "",Surcharge!A:B,2,FALSE)*F61), "") -> 
C62: 21A 85-265V AC 50/60Hz 1Ph - Off-Board | D62: 9022564 | E62: N/C | G62: =IF(F62=0," ","N/C") ->  | H62: =IFERROR(IFERROR(VLOOKUP(D62,Surcharge!A:B,2,FALSE)*F62, VLOOKUP(D62 & "",Surcharge!A:B,2,FALSE)*F62), "") -> 
C63: Without Charger (Note 1) | E63: -417 | G63: =F63*E63 -> 0 | H63: =IFERROR(IFERROR(VLOOKUP(D63,Surcharge!A:B,2,FALSE)*F63, VLOOKUP(D63 & "",Surcharge!A:B,2,FALSE)*F63), "") -> 
C64: Charger Power Cord | D64: 1017079 | E64: N/C | G64: =IF(F64=0," ","N/C") ->  | H64: =IFERROR(IFERROR(VLOOKUP(D64,Surcharge!A:B,2,FALSE)*F64, VLOOKUP(D64 & "",Surcharge!A:B,2,FALSE)*F64), "") -> 
H65: =IFERROR(IFERROR(VLOOKUP(D65,Surcharge!A:B,2,FALSE)*F65, VLOOKUP(D65 & "",Surcharge!A:B,2,FALSE)*F65), "") -> 
B66: Brushes and Pads (Note 2) | F66: =SUM(F67:F71) -> 0 | H66: =IFERROR(IFERROR(VLOOKUP(D66,Surcharge!A:B,2,FALSE)*F66, VLOOKUP(D66 & "",Surcharge!A:B,2,FALSE)*F66), "") -> 
C67: 750mm/30" Cylindrical Scrubbing Brush | F67: =SUM(F68) -> 0 | H67: =IFERROR(IFERROR(VLOOKUP(D67,Surcharge!A:B,2,FALSE)*F67, VLOOKUP(D67 & "",Surcharge!A:B,2,FALSE)*F67), "") -> 
C68: Polypropylene | E68: N/C | G68: =IF(F68=0," ","N/C") ->  | H68: =IFERROR(IFERROR(VLOOKUP(D68,Surcharge!A:B,2,FALSE)*F68, VLOOKUP(D68 & "",Surcharge!A:B,2,FALSE)*F68), "") -> 
H69: =IFERROR(IFERROR(VLOOKUP(D69,Surcharge!A:B,2,FALSE)*F69, VLOOKUP(D69 & "",Surcharge!A:B,2,FALSE)*F69), "") -> 
C70: 900mm/36" Disk Scrubbing Brush/Pads (2 Required) | F70: =SUM(F71) -> 0 | H70: =IFERROR(IFERROR(VLOOKUP(D70,Surcharge!A:B,2,FALSE)*F70, VLOOKUP(D70 & "",Surcharge!A:B,2,FALSE)*F70), "") -> 
C71: Polypropylene | E71: N/C | G71: =IF(F71=0," ","N/C") ->  | H71: =IFERROR(IFERROR(VLOOKUP(D71,Surcharge!A:B,2,FALSE)*F71, VLOOKUP(D71 & "",Surcharge!A:B,2,FALSE)*F71), "") -> 
H72: =IFERROR(IFERROR(VLOOKUP(D72,Surcharge!A:B,2,FALSE)*F72, VLOOKUP(D72 & "",Surcharge!A:B,2,FALSE)*F72), "") -> 
B73: Support | H73: =IFERROR(IFERROR(VLOOKUP(D73,Surcharge!A:B,2,FALSE)*F73, VLOOKUP(D73 & "",Surcharge!A:B,2,FALSE)*F73), "") -> 
C74: Packaging (Note 3) | F74: =SUM(F75:F75) -> 0 | H74: =IFERROR(IFERROR(VLOOKUP(D74,Surcharge!A:B,2,FALSE)*F74, VLOOKUP(D74 & "",Surcharge!A:B,2,FALSE)*F74), "") -> 
C75: Skid w/Carton, Non-Stackable | D75: T981-SKD | E75: N/C | G75: =IF(F75=0," ","N/C") ->  | H75: =IFERROR(IFERROR(VLOOKUP(D75,Surcharge!A:B,2,FALSE)*F75, VLOOKUP(D75 & "",Surcharge!A:B,2,FALSE)*F75), "") -> 
H76: =IFERROR(IFERROR(VLOOKUP(D76,Surcharge!A:B,2,FALSE)*F76, VLOOKUP(D76 & "",Surcharge!A:B,2,FALSE)*F76), "") -> 
B78: Custom Solution--write in description, qty, price, and PN if applicable | F78: =SUM(F79) -> 0
E79: Insert Prices Here | F79: =SUM(F80:F83) -> 0
D80: Custom | F80: =IF(E80 <> "", 1, 0) -> 0 | G80: =F80*E80 -> 0
D81: Custom | F81: =IF(E81 <> "", 1, 0) -> 0 | G81: =F81*E81 -> 0
D82: Custom | F82: 0 | G82: =F82*E82 -> 0
D83: Custom | F83: 0 | G83: =F83*E83 -> 0
E84: =ROUND(SUM(G53:G83), 0) -> 0 | F84: =SUM(E85) -> 0
D85: Machine Subtotal | E85: =ROUND(SUM(G53:G83), 0) -> 0 | F85: =F84 -> 0
B86: Discounts | F86: =SUM(F87) -> 0
F87: =SUM(F89:F92) -> 0
D88: Applicable Currency Adj % | F88: =IF(E88 <> "", 1, 0) -> 0 | G88: =IF(F88*(E88*0.01)*E84 < 0, F88*(E88*0.01)*E84, -(F88*(E88*0.01)*E84)) -> 0
D89: Discount % | F89: 0 | G89: =IF(F89*(E89*0.01)*(E84+G88) < 0, F89*(E89*0.01)*(E84+G88), -(F89*(E89*0.01)*(E84+G88))) -> 0
D90: Discount $ | F90: 0 | G90: =IF(F90*E90 < 0, F90*E90, -(F90*E90)) -> 0
D91: Discount $ | F91: 0 | G91: =IF(F91*E91 < 0, F91*E91, -(F91*E91)) -> 0
D92: Discount $ | F92: 0 | G92: =IF(F92*E92 < 0, F92*E92, -(F92*E92)) -> 0
D93: Discount Total | E93: =SUM(G88:G92) -> 0 | F93: =SUM(E93) -> 0
F94: =#REF! -> 
F95: =F94 -> 
C96: Prepaid and Add | D96: Freight | F96: =IF(E96 <> "", 1, 0) -> 0 | G96: =F96*E96 -> 0
C97: Subject to all applicable taxes | D97: Tax | F97: 0 | G97: 0
F98: =SUM(F99) -> 0
D99: MACHINE TOTAL* | F99: =SUM(G99) -> 0 | G99: =SUM(G53:G97) -> 0 | N99: This goes to "My Documents"
G100: =SUM(G99) -> 0
C105: Wells Fargo - Leasing Calculation Option: | D105: Option 1 | F105: Option 2 | J105: =Financing!A38 -> Rates 2025 - Rev.2/4/2025
D106: Monthly Payment | E106: Cost Per Day | F106: Monthly Payment | G106: Cost Per Day | J106: =Financing!A39 -> “Blank Payment Amounts Indicate The Financing Option Or Purchase Options Selected Are Not
C107: Purchase Option: | D107: $1 Buyout Lease | F107: None | J107: =Financing!A40 -> Applicable Or The Machine Total Is Below The Minimum Amount For The Selected Vendor”
C108: 24 Months | D108: 0 | E108: 0 | F108: 0 | G108: 0 | J108: =Financing!A41 -> "Quoted monthly payments are estimates only and are based on a certain level of credit rating.
C109: 36 Months | D109: 0 | E109: 0 | F109: 0 | G109: 0 | J109: =Financing!A42 -> Actual monthly payments may be higher depending on your credit rating."
C110: 48 Months | D110: 0 | E110: 0 | F110: 0 | G110: 0 | J110: =Financing!A43 -> “Financing rates do not include Pre-Paid Service”
C111: 60 Months | D111: 0 | E111: 0 | F111: 0 | G111: 0
D113: Benefits of Equipment Financing:
D114: • Spreads out investment over time. | F114: • Keep current with latest technology.
D115: • Preserve capital. | F115: • Service and parts bundling available.
D116: • Low monthly payment. | F116: • Pay for labor savings as you go.
B118: TennantTrue | D118: 0 | E118: 0
C120: Is customer interested in service program? | D120: Yes | E120: *State/County selection required for TennantTrue service options
C122: If not, why?
C124: Term: | D124: 36 | G124: AB Brushes | H124: No
C125: Monthly machine usage (hrs): | D125: < 30/mo. (Avg. 1hr./day)
C127: TennantTrue: | D127: Gold Contract | F127: Silver Contract
C128: Per Visit | F128: 501
C129: Monthly | D129: 189 | F129: 88
C130: Annually | F130: 1035
C131: Pre-Pay Full Term | D131: 6526 | F131: 3042
C132: Hourly Labor Rate
C133: Site Visit
C135: * Verify customer current pricing prior to quote.
C136: **All rates and fees above reflect service for one (1) unit with the exception of Block of Time service.
C137: *Block of Time is available in 1 Year Term only and is priced as such no matter the term selection on this template.
B141: Quote Special Instructions:
B145: =Start_Here!E36 -> Terms and Conditions
B146: =Start_Here!E37 -> Ask your local sales rep for estimated lead times. Verify when placing order
B147: =Start_Here!E38 -> All orders subject to acceptance by Tennant Sales and Service Company, Minneapolis, Minnesota
B148: =Start_Here!E39 -> Prices subject to change without notice. Subject to any applicable taxes.
B149: =Start_Here!E40 -> Terms: Net 30 days. Payable in Canadian Funds
B150: =Start_Here!E41 -> Freight: Accessories, parts, supplies, detergents, and floor coatings orders delivered DDP
B151: =Start_Here!E42 -> shipping point Frt PPD. Machine orders delivered DDP shipping point Frt PPD and add.
B152: =Start_Here!E43 -> Returned Merchandise is subject to a restocking fee.
B153: =Start_Here!E44 -> All orders are subject to Tennant’s General Terms and Conditions available at http://www.tennantco.com/terms.
B154: =Start_Here!E45 -> Printed General Terms and Conditions are also available upon request.
B155: =Start_Here!E46 -> 0
B156: =Start_Here!E47 -> 0
B157: =Start_Here!E48 -> 0
E158: Quote Date : | G158: =Letter!$A$25 -> 2023-08-01
B159: Order Placement Information: To place your order, fill in PO# and customer signatures,
B160: call or fax to the numbers listed below. Customer Purchase Order is required.
B161: If information is missing, orders will be entered and held until all information is received.
C163: Customer Number | E163: Cust Grp 3
C164: =Start_Here!$C$25 -> 0 | E164: =Start_Here!$C$29 -> 0
C165: =Start_Here!$B$18 -> Who Owns the Machine? (Sold-To Info) (Please Verify)
A166: Company | C166: =Start_Here!$C$19 -> Company Name
A167: Address | C167: =Start_Here!$C$20 -> Address
C168: =Start_Here!$C$21 -> City, State Zip
A169: Name | C169: =Start_Here!$C$22 -> Contact Name
A170: Phone | C170: =Start_Here!$C$23 -> Contact Phone
C172: =Start_Here!$B$11 -> Where is the Machine Being Shipped? (Ship-To Info) (Please Verify)
A173: Company | C173: =Start_Here!$C$12 -> Company Name
A174: Address | C174: =Start_Here!$C$13 -> Address
C175: =Start_Here!$C$14 -> City, State Zip
A176: Name | C176: =Start_Here!$C$15 -> Contact Name
A177: Phone | C177: =Start_Here!$C$16 -> Contact Phone
C179: =Start_Here!$B$31 -> Shipping / Carrier Instructions: | E179: Order Special Instructions:
C180: =Start_Here!$C$32 -> 0
C182: Customer Purchase Order No.
C183: (please attach copy)
C186: Tax Exempt | E186: Yes
E187: No
C188: If Yes, attach a copy of your exemption certificate.
C190: Requested Delivery Date
C191: =Start_Here!$C$28 -> 0
C193: =Start_Here!$C$26 -> 0 | E193: =Start_Here!$C$27 -> 0
C194: Authorized Buyer (please print) | E194: Phone Number
C197: Authorized Buyer Signature
C199: =Start_Here!$C$41 -> Rep Name
C200: Tennant Representative
D202: Specialized Maintenance Equipment
C203: =Start_Here!$C$51 -> 0
D204: =Start_Here!$C$52 -> 0
B206: 1 | C206: Customer MUST order Skid w/Carton, Non-Stackable if WITHOUT BATTERY is selected.
C207: Continental USA orders ONLY.
B209: 2 | C209: A Polypropylene Brush comes standard with a T981.
B211: 3 | C211: Customer MUST order Skid w/Carton, Non-Stackable if WITHOUT BATTERY is selected.
C212: Skid w/Carton, Non-Stackable is mandatory when shipping to AK and HI.
B214: 4 | C214: Shipping Weights and Dimensions | D214: Pad Wrap | E214: Skid w/Carton
C216: Weight - 750 mm / 30" Cylindrical | E216: 836 lbs / 379 Kg
C217: Weight - 900 mm / 36" Disk | E217: 748 lbs / 339 Kg
C218: Length | E218: 79 in / 2,000 mm
C219: Width | E219: 51 in / 1,280 mm
C220: Height | E220: 66 in / 1,670 mm

Sheet SS_15
A1: SS_15 | C1: =Start_Here!$C19 -> Company Name
A2: =SUM(G56) -> 0 | C2: =Start_Here!$C20 -> Address
C3: =Start_Here!$C21 -> City, State Zip
C4: =Start_Here!$C22 -> Contact Name
C5: =Start_Here!$C$41 -> Rep Name
C6: =Start_Here!$C$37 -> Tennant Sales and Service Company
C7: =Start_Here!$C$38 -> 10400 Clean Street
C8: =Start_Here!$C$39 -> Eden Prairie, MN 55344
C9: =Start_Here!$C$43 -> 800-553-8033 | E9: Quote Date : | G9: =Letter!$A$25 -> 2023-08-01
C11: =Help!C2 -> CAN Date Rev - 5/6/2025
C13: New Machine Warranty | G13: Fax (quote only)
C14: 36 MONTHS OR 2500 HOURS ON PARTS | G14: Mail (quote,lit, specs)
C15: 36 MONTHS – LABOR | G15: Fax + Mail
C16: 90 DAYS – TRAVEL ON BATTERY UNITS ONLY
C17: 10 YEARS ON ROTOMOLDED PARTS
C18: BATTERIES ARE AGM PRORATED 6 MONTHS | G18: Inside
C19: LITHUM ION 2 YEARS (Full Replacement) | G19: Outside
C22: Description | D22: Reference# | E22: CAD price Each | F22: Qty | G22: Extended Price
F23: =SUM(F24) -> 0
C24: Speed Scrub® 15 Cord-Electric Cylindrical Scrubber | D24: 9004200 | E24: 6663 | G24: =F24*E24 -> 0 | H24: =IFERROR(IFERROR(VLOOKUP(D24,Surcharge!A:B,2,FALSE)*F24, VLOOKUP(D24 & "",Surcharge!A:B,2,FALSE)*F24), "") ->  | Q24: =VLOOKUP(D24,'MPF SAP Canada Pre-Configured'!C:E,3,FALSE) -> 6663
C25: 15" (380 mm) cleaning path. Complete package includes removable, Hygenic® fully cleanable 3 gallon (11.4 liter) solution/ 4.5 gallon (17 liters) recovery tanks, Insta-AdjustTM handle, nylon brush, 50-ft (15-m) "safety yellow" power cord and multi-language operator manual. | F25: =SUM(F24) -> 0 | H25: =IFERROR(IFERROR(VLOOKUP(D25,Surcharge!A:B,2,FALSE)*F25, VLOOKUP(D25 & "",Surcharge!A:B,2,FALSE)*F25), "") -> 
C26: Boxed Dimensions: 34" L x 22" W x 32" H (864 mm x 559 mm x 813 mm). * | F26: =SUM(F25) -> 0 | H26: =IFERROR(IFERROR(VLOOKUP(D26,Surcharge!A:B,2,FALSE)*F26, VLOOKUP(D26 & "",Surcharge!A:B,2,FALSE)*F26), "") -> 
C27: Shipping Weight / Volume: 125 lb (57 kg) / 13.9 ft3 (.39 m3) | F27: =SUM(F26) -> 0 | H27: =IFERROR(IFERROR(VLOOKUP(D27,Surcharge!A:B,2,FALSE)*F27, VLOOKUP(D27 & "",Surcharge!A:B,2,FALSE)*F27), "") -> 
H28: =IFERROR(IFERROR(VLOOKUP(D28,Surcharge!A:B,2,FALSE)*F28, VLOOKUP(D28 & "",Surcharge!A:B,2,FALSE)*F28), "") -> 
H29: =IFERROR(IFERROR(VLOOKUP(D29,Surcharge!A:B,2,FALSE)*F29, VLOOKUP(D29 & "",Surcharge!A:B,2,FALSE)*F29), "") -> 
C30: SS-15 Battery Cylindrical Scrubber - 15" cleaning path. Complete package includes removable, Hygenic® fully cleanable 2.5 gallon (9.5liter) solution/ 3.4 gallon (12.9 liters) recovery tanks, Insta-AdjustTM handle, nylon brush, appropriate off board world charger with power cord and multi-language operator manual. | F30: =SUM(F34:F37) -> 0 | H30: =IFERROR(IFERROR(VLOOKUP(D30,Surcharge!A:B,2,FALSE)*F30, VLOOKUP(D30 & "",Surcharge!A:B,2,FALSE)*F30), "") -> 
C31: Boxed Dimensions: 32" L x 24" W x 37" H (813 mm x 610 mm x 940 mm). * | F31: =SUM(F30) -> 0 | H31: =IFERROR(IFERROR(VLOOKUP(D31,Surcharge!A:B,2,FALSE)*F31, VLOOKUP(D31 & "",Surcharge!A:B,2,FALSE)*F31), "") -> 
C32: Shipping Weight (see battery options below) | F32: =SUM(F31) -> 0 | H32: =IFERROR(IFERROR(VLOOKUP(D32,Surcharge!A:B,2,FALSE)*F32, VLOOKUP(D32 & "",Surcharge!A:B,2,FALSE)*F32), "") -> 
F33: =SUM(F34) -> 0 | H33: =IFERROR(IFERROR(VLOOKUP(D33,Surcharge!A:B,2,FALSE)*F33, VLOOKUP(D33 & "",Surcharge!A:B,2,FALSE)*F33), "") -> 
C34: Speed Scrub® 15" - Battery Cylindrical Scrubber (with AGM batteries) | D34: 9008637 | E34: 9214 | G34: =F34*E34 -> 0 | H34: =IFERROR(IFERROR(VLOOKUP(D34,Surcharge!A:B,2,FALSE)*F34, VLOOKUP(D34 & "",Surcharge!A:B,2,FALSE)*F34), "") -> 0 | Q34: =VLOOKUP(D34,'MPF SAP Canada Pre-Configured'!C:E,3,FALSE) -> 8611
C35: Shipping Weight: 158 lbs/ 72 kg | F35: =SUM(F34) -> 0 | H35: =IFERROR(IFERROR(VLOOKUP(D35,Surcharge!A:B,2,FALSE)*F35, VLOOKUP(D35 & "",Surcharge!A:B,2,FALSE)*F35), "") -> 
F36: =SUM(F37) -> 0
C37: Speed Scrub® 15" - Battery Cylindrical Scrubber (with Lithium Ion batteries) | D37: 9008640 | E37: 11887 | G37: =F37*E37 -> 0 | H37: =IFERROR(IFERROR(VLOOKUP(D37,Surcharge!A:B,2,FALSE)*F37, VLOOKUP(D37 & "",Surcharge!A:B,2,FALSE)*F37), "") ->  | Q37: =VLOOKUP(D37,'MPF SAP Canada Pre-Configured'!C:E,3,FALSE) -> 11109
C38: Shipping Weight: 143 lbs/ 65 kg | F38: =SUM(F37) -> 0 | H38: =IFERROR(IFERROR(VLOOKUP(D38,Surcharge!A:B,2,FALSE)*F38, VLOOKUP(D38 & "",Surcharge!A:B,2,FALSE)*F38), "") -> 
E41: =ROUND(SUM(G24:G40), 0) -> 0 | F41: =SUM(E42) -> 0
D42: Machine Subtotal | E42: =ROUND(SUM(G24:G40), 0) -> 0 | F42: =F41 -> 0
B43: Discounts | F43: =SUM(F44) -> 0
F44: =SUM(F46:F49) -> 0
D45: Applicable Currency Adj % | F45: =IF(E45 <> "", 1, 0) -> 0 | G45: =IF(F45*(E45*0.01)*E41 < 0, F45*(E45*0.01)*E41, -(F45*(E45*0.01)*E41)) -> 0
D46: Discount % | F46: =IF(E46 <> "", 1, 0) -> 0 | G46: =IF(F46*(E46*0.01)*(E41+G45) < 0, F46*(E46*0.01)*(E41+G45), -(F46*(E46*0.01)*(E41+G45))) -> 0
D47: Discount $ | F47: 0 | G47: =IF(F47*E47 < 0, F47*E47, -(F47*E47)) -> 0
D48: Discount $ | F48: 0 | G48: =IF(F48*E48 < 0, F48*E48, -(F48*E48)) -> 0
D49: Discount $ | F49: 0 | G49: =IF(F49*E49 < 0, F49*E49, -(F49*E49)) -> 0
D50: Discount Total | E50: =SUM(G45:G49) -> 0 | F50: =SUM(E50) -> 0
F51: =#REF! -> 
F52: =F51 -> 
C53: Prepaid and Add | D53: Freight | F53: =IF(E53 <> "", 1, 0) -> 0 | G53: =F53*E53 -> 0
C54: Subject to all applicable taxes | D54: Tax | F54: 0 | G54: 0
F55: =SUM(F56) -> 0
D56: MACHINE TOTAL* | F56: =SUM(G56) -> 0 | G56: =SUM(G24:G54) -> 0 | N56: This goes to "My Documents"
G57: =SUM(G56) -> 0
C62: Wells Fargo - Leasing Calculation Option: | D62: Option 1 | F62: Option 2 | J62: =Financing!A38 -> Rates 2025 - Rev.2/4/2025
D63: Monthly Payment | E63: Cost Per Day | F63: Monthly Payment | G63: Cost Per Day | J63: =Financing!A39 -> “Blank Payment Amounts Indicate The Financing Option Or Purchase Options Selected Are Not
C64: Purchase Option: | D64: $1 Buyout Lease | F64: None | J64: =Financing!A40 -> Applicable Or The Machine Total Is Below The Minimum Amount For The Selected Vendor”
C65: 24 Months | D65: 0 | E65: 0 | F65: 0 | G65: 0 | J65: =Financing!A41 -> "Quoted monthly payments are estimates only and are based on a certain level of credit rating.
C66: 36 Months | D66: 0 | E66: 0 | F66: 0 | G66: 0 | J66: =Financing!A42 -> Actual monthly payments may be higher depending on your credit rating."
C67: 48 Months | D67: 0 | E67: 0 | F67: 0 | G67: 0 | J67: =Financing!A43 -> “Financing rates do not include Pre-Paid Service”
C68: 60 Months | D68: 0 | E68: 0 | F68: 0 | G68: 0
D70: Benefits of Equipment Financing:
D71: • Spreads out investment over time. | F71: • Keep current with latest technology.
D72: • Preserve capital. | F72: • Service and parts bundling available.
D73: • Low monthly payment. | F73: • Pay for labor savings as you go.
B75: TennantTrue | D75: 0 | E75: 0
C77: Is customer interested in service program? | D77: Yes | E77: *State/County selection required for TennantTrue service options
C79: If not, why?
C81: Term: | D81: 36 | G81: AB Brushes | H81: No
C82: Monthly machine usage (hrs): | D82: < 30/mo. (Avg. 1hr./day)
C84: TennantTrue: | D84: Gold Contract | F84: Silver Contract
C85: Per Visit
C86: Monthly
C87: Annually
C88: Pre-Pay Full Term
C89: Hourly Labor Rate
C90: Site Visit
C92: * Verify customer current pricing prior to quote.
C93: **All rates and fees above reflect service for one (1) unit with the exception of Block of Time service.
C94: *Block of Time is available in 1 Year Term only and is priced as such no matter the term selection on this template.
B98: Quote Special Instructions:
B102: =Start_Here!E36 -> Terms and Conditions
B103: =Start_Here!E37 -> Ask your local sales rep for estimated lead times. Verify when placing order
B104: =Start_Here!E38 -> All orders subject to acceptance by Tennant Sales and Service Company, Minneapolis, Minnesota
B105: =Start_Here!E39 -> Prices subject to change without notice. Subject to any applicable taxes.
B106: =Start_Here!E40 -> Terms: Net 30 days. Payable in Canadian Funds
B107: =Start_Here!E41 -> Freight: Accessories, parts, supplies, detergents, and floor coatings orders delivered DDP
B108: =Start_Here!E42 -> shipping point Frt PPD. Machine orders delivered DDP shipping point Frt PPD and add.
B109: =Start_Here!E43 -> Returned Merchandise is subject to a restocking fee.
B110: =Start_Here!E44 -> All orders are subject to Tennant’s General Terms and Conditions available at http://www.tennantco.com/terms.
B111: =Start_Here!E45 -> Printed General Terms and Conditions are also available upon request.
B112: =Start_Here!E46 -> 0
B113: =Start_Here!E47 -> 0
B114: =Start_Here!E48 -> 0
E115: Quote Date : | G115: =Letter!$A$25 -> 2023-08-01
B116: Order Placement Information: To place your order, fill in PO# and customer signatures,
B117: call or fax to the numbers listed below. Customer Purchase Order is required.
B118: If information is missing, orders will be entered and held until all information is received.
C120: Customer Number | E120: Cust Grp 3
C121: =Start_Here!$C$25 -> 0 | E121: =Start_Here!$C$29 -> 0
C122: =Start_Here!$B$18 -> Who Owns the Machine? (Sold-To Info) (Please Verify)
A123: Company | C123: =Start_Here!$C$19 -> Company Name
A124: Address | C124: =Start_Here!$C$20 -> Address
C125: =Start_Here!$C$21 -> City, State Zip
A126: Name | C126: =Start_Here!$C$22 -> Contact Name
A127: Phone | C127: =Start_Here!$C$23 -> Contact Phone
C129: =Start_Here!$B$11 -> Where is the Machine Being Shipped? (Ship-To Info) (Please Verify)
A130: Company | C130: =Start_Here!$C$12 -> Company Name
A131: Address | C131: =Start_Here!$C$13 -> Address
C132: =Start_Here!$C$14 -> City, State Zip
A133: Name | C133: =Start_Here!$C$15 -> Contact Name
A134: Phone | C134: =Start_Here!$C$16 -> Contact Phone
C136: =Start_Here!$B$31 -> Shipping / Carrier Instructions: | E136: Order Special Instructions:
C137: =Start_Here!$C$32 -> 0
C139: Customer Purchase Order No.
C140: (please attach copy)
C143: Tax Exempt | E143: Yes
E144: No
C145: If Yes, attach a copy of your exemption certificate.
C147: Requested Delivery Date
C148: =Start_Here!$C$28 -> 0
C150: =Start_Here!$C$26 -> 0 | E150: =Start_Here!$C$27 -> 0
C151: Authorized Buyer (please print) | E151: Phone Number
C154: Authorized Buyer Signature
C156: =Start_Here!$C$41 -> Rep Name
C157: Tennant Representative
D159: Specialized Maintenance Equipment
C160: =Start_Here!$C$51 -> 0
D161: =Start_Here!$C$52 -> 0
B164: Notes
B166: 1 | C166: Only available as factory-installed when batteries are ordered with machine.
B168: 2 | C168: A French and English manual will be supplied for all units shipping into Quebec, Canada at no charge. An additional manual
C169: can be ordered (for a total of 3 manuals) for an additional charge as stated under 'Additional Operator Manual'.
B171: 3 | C171: Skid w/Carton, Non-Stackable is the default packaging method and will be added to the configuration unless otherwise specified.
B173: 4 | C173: Shipping Weights and Dimensions | D173: Skid w/Carton
C175: Weight (w/360AH Battery) | D175: 650 lbs / 295 Kg
C176: Length | D176: 68" / 1,727mm
C177: Width | D177: 33" / 838mm
C178: Height | D178: 48" / 1,219mm

Sheet i_mop_Lite
A1: i_mop_Lite | C1: =Start_Here!$C19 -> Company Name
A2: =SUM(G53) -> 0 | C2: =Start_Here!$C20 -> Address
C3: =Start_Here!$C21 -> City, State Zip
C4: =Start_Here!$C22 -> Contact Name
C5: =Start_Here!$C$41 -> Rep Name
C6: =Start_Here!$C$37 -> Tennant Sales and Service Company
C7: =Start_Here!$C$38 -> 10400 Clean Street
C8: =Start_Here!$C$39 -> Eden Prairie, MN 55344
C9: =Start_Here!$C$43 -> 800-553-8033 | E9: Quote Date : | G9: =Letter!$A$25 -> 2023-08-01
C11: =Help!C2 -> CAN Date Rev - 5/6/2025
C13: New Machine Warranty | G13: Fax (quote only)
C14: 12 MONTHS ON PARTS | G14: Mail (quote,lit, specs)
C15: 12 MONTHS – LABOR | G15: Fax + Mail
C16: 12 MONTHS – BATTERY
C17: 90 DAYS – TRAVEL
G18: Inside
G19: Outside
C22: Description | D22: Reference# | E22: CAD price Each | F22: Qty | G22: Extended Price
C24: i-mop® Lite - Lithium-Ion Auto Disk Scrubber | D24: 1263271 | E24: 6489 | G24: =F24*E24 -> 0 | P24: =VLOOKUP(D24,'MPF SAP Canada Pre-Configured'!C:E,3,FALSE) -> 
C25: 14.1" (37 cm) cleaning path. Includes battery pack, removable .79 gal (3 L) solution and 1.0 gal (4 L) recovery tank with ball float, battery safe guard switch, angle switch, charger w/ power cord, 2 medium blue brushes, squeegee, and multi-language operator manual. | F25: =SUM(F24) -> 0
F26: =SUM(F25) -> 0
C27: Boxed Dimensions: 48" H x 15.7" W x 15" L (1220 mm x 400 mm x 380 mm) | F27: 0
C28: Shipping Weight with Batteries: 46.4 lbs (21.0 kg) | F28: 0
C31: i-mop® Lite - Lithium-Ion Auto Disk Scrubber + Extra Battery Pack | D31: 9022310 | E31: 7859 | G31: =F31*E31 -> 0 | P31: =VLOOKUP(D31,'MPF SAP Canada Pre-Configured'!C:E,3,FALSE) -> 
C32: 14.1" (37 cm) cleaning path. Includes TWO battery packs, removable .79 gal (3 L) solution and 1.0 gal (4 L) recovery tank with ball float, battery safe guard switch, angle switch, charger w/ power cord, 2 medium blue brushes, squeegee, and multi-language operator manual. | F32: =SUM(F31) -> 0
F33: =SUM(F32) -> 0
C34: Note: Batteries do not ship in machine box, but separately. | F34: 0
E38: =ROUND(SUM(G24:G37), 0) -> 0 | F38: =SUM(E39) -> 0
D39: Machine Subtotal | E39: =ROUND(SUM(G24:G37), 0) -> 0 | F39: =F38 -> 0
B40: Discounts | F40: =SUM(F41) -> 0
F41: =SUM(F43:F46) -> 0
D42: Applicable Currency Adj % | F42: =IF(E42 <> "", 1, 0) -> 0 | G42: =IF(F42*(E42*0.01)*E38 < 0, F42*(E42*0.01)*E38, -(F42*(E42*0.01)*E38)) -> 0
D43: Discount % | F43: 0 | G43: =IF(F43*(E43*0.01)*(E38+G42) < 0, F43*(E43*0.01)*(E38+G42), -(F43*(E43*0.01)*(E38+G42))) -> 0
D44: Discount $ | F44: 0 | G44: =IF(F44*E44 < 0, F44*E44, -(F44*E44)) -> 0
D45: Discount $ | F45: 0 | G45: =IF(F45*E45 < 0, F45*E45, -(F45*E45)) -> 0
D46: Discount $ | F46: 0 | G46: =IF(F46*E46 < 0, F46*E46, -(F46*E46)) -> 0
D47: Discount Total | E47: =SUM(G42:G46) -> 0 | F47: =SUM(E47) -> 0
F48: =#REF! -> 
F49: =F48 -> 
C50: Prepaid and Add | D50: Freight | F50: =IF(E50 <> "", 1, 0) -> 0 | G50: =F50*E50 -> 0
C51: Subject to all applicable taxes | D51: Tax | F51: 0 | G51: 0
F52: =SUM(F53) -> 0
D53: MACHINE TOTAL* | F53: =SUM(G53) -> 0 | G53: =SUM(G24:G51) -> 0 | N53: This goes to "My Documents"
G54: =SUM(G53) -> 0
C59: Wells Fargo - Leasing Calculation Option: | D59: Option 1 | F59: Option 2 | J59: =Financing!A38 -> Rates 2025 - Rev.2/4/2025
D60: Monthly Payment | E60: Cost Per Day | F60: Monthly Payment | G60: Cost Per Day | J60: =Financing!A39 -> “Blank Payment Amounts Indicate The Financing Option Or Purchase Options Selected Are Not
C61: Purchase Option: | D61: $1 Buyout Lease | F61: None | J61: =Financing!A40 -> Applicable Or The Machine Total Is Below The Minimum Amount For The Selected Vendor”
C62: 24 Months | D62: 0 | E62: 0 | F62: 0 | G62: 0 | J62: =Financing!A41 -> "Quoted monthly payments are estimates only and are based on a certain level of credit rating.
C63: 36 Months | D63: 0 | E63: 0 | F63: 0 | G63: 0 | J63: =Financing!A42 -> Actual monthly payments may be higher depending on your credit rating."
C64: 48 Months | D64: 0 | E64: 0 | F64: 0 | G64: 0 | J64: =Financing!A43 -> “Financing rates do not include Pre-Paid Service”
C65: 60 Months | D65: 0 | E65: 0 | F65: 0 | G65: 0
D67: Benefits of Equipment Financing:
D68: • Spreads out investment over time. | F68: • Keep current with latest technology.
D69: • Preserve capital. | F69: • Service and parts bundling available.
D70: • Low monthly payment. | F70: • Pay for labor savings as you go.
B72: TennantTrue | D72: 0 | E72: 0
C74: Is customer interested in service program? | D74: Yes | E74: *State/County selection required for TennantTrue service options
C76: If not, why?
C78: Term: | D78: 36 | G78: AB Brushes | H78: No
C79: Monthly machine usage (hrs): | D79: < 30/mo. (Avg. 1hr./day)
C81: TennantTrue: | D81: Gold Contract | F81: Silver Contract
C82: Per Visit
C83: Monthly
C84: Annually
C85: Pre-Pay Full Term
C86: Hourly Labor Rate
C87: Site Visit
C89: * Verify customer current pricing prior to quote.
C90: **All rates and fees above reflect service for one (1) unit with the exception of Block of Time service.
C91: *Block of Time is available in 1 Year Term only and is priced as such no matter the term selection on this template.
B95: Quote Special Instructions:
B99: =Start_Here!E36 -> Terms and Conditions
B100: =Start_Here!E37 -> Ask your local sales rep for estimated lead times. Verify when placing order
B101: =Start_Here!E38 -> All orders subject to acceptance by Tennant Sales and Service Company, Minneapolis, Minnesota
B102: =Start_Here!E39 -> Prices subject to change without notice. Subject to any applicable taxes.
B103: =Start_Here!E40 -> Terms: Net 30 days. Payable in Canadian Funds
B104: =Start_Here!E41 -> Freight: Accessories, parts, supplies, detergents, and floor coatings orders delivered DDP
B105: =Start_Here!E42 -> shipping point Frt PPD. Machine orders delivered DDP shipping point Frt PPD and add.
B106: =Start_Here!E43 -> Returned Merchandise is subject to a restocking fee.
B107: =Start_Here!E44 -> All orders are subject to Tennant’s General Terms and Conditions available at http://www.tennantco.com/terms.
B108: =Start_Here!E45 -> Printed General Terms and Conditions are also available upon request.
B109: =Start_Here!E46 -> 0
B110: =Start_Here!E47 -> 0
B111: =Start_Here!E48 -> 0
E112: Quote Date : | G112: =Letter!$A$25 -> 2023-08-01
B113: Order Placement Information: To place your order, fill in PO# and customer signatures,
B114: call or fax to the numbers listed below. Customer Purchase Order is required.
B115: If information is missing, orders will be entered and held until all information is received.
C117: Customer Number | E117: Cust Grp 3
C118: =Start_Here!$C$25 -> 0 | E118: =Start_Here!$C$29 -> 0
C119: =Start_Here!$B$18 -> Who Owns the Machine? (Sold-To Info) (Please Verify)
A120: Company | C120: =Start_Here!$C$19 -> Company Name
A121: Address | C121: =Start_Here!$C$20 -> Address
C122: =Start_Here!$C$21 -> City, State Zip
A123: Name | C123: =Start_Here!$C$22 -> Contact Name
A124: Phone | C124: =Start_Here!$C$23 -> Contact Phone
C126: =Start_Here!$B$11 -> Where is the Machine Being Shipped? (Ship-To Info) (Please Verify)
A127: Company | C127: =Start_Here!$C$12 -> Company Name
A128: Address | C128: =Start_Here!$C$13 -> Address
C129: =Start_Here!$C$14 -> City, State Zip
A130: Name | C130: =Start_Here!$C$15 -> Contact Name
A131: Phone | C131: =Start_Here!$C$16 -> Contact Phone
C133: =Start_Here!$B$31 -> Shipping / Carrier Instructions: | E133: Order Special Instructions:
C134: =Start_Here!$C$32 -> 0
C136: Customer Purchase Order No.
C137: (please attach copy)
C140: Tax Exempt | E140: Yes
E141: No
C142: If Yes, attach a copy of your exemption certificate.
C144: Requested Delivery Date
C145: =Start_Here!$C$28 -> 0
C147: =Start_Here!$C$26 -> 0 | E147: =Start_Here!$C$27 -> 0
C148: Authorized Buyer (please print) | E148: Phone Number
C151: Authorized Buyer Signature
C153: =Start_Here!$C$41 -> Rep Name
C154: Tennant Representative
D156: Specialized Maintenance Equipment
C157: =Start_Here!$C$51 -> 0
D158: =Start_Here!$C$52 -> 0
B161: Notes
B163: 1 | C163: Only available as factory-installed when batteries are ordered with machine.
B165: 2 | C165: A French and English manual will be supplied for all units shipping into Quebec, Canada at no charge. An additional manual
C166: can be ordered (for a total of 3 manuals) for an additional charge as stated under 'Additional Operator Manual'.
B168: 3 | C168: Skid w/Carton, Non-Stackable is the default packaging method and will be added to the configuration unless otherwise specified.
B170: 4 | C170: Shipping Weights and Dimensions | D170: Skid w/Carton
C172: Weight (w/360AH Battery) | D172: 650 lbs / 295 Kg
C173: Length | D173: 68" / 1,727mm
C174: Width | D174: 33" / 838mm
C175: Height | D175: 48" / 1,219mm

Sheet i_mop_XL
A1: i_mop_XL | C1: =Start_Here!$C19 -> Company Name
A2: =SUM(G64) -> 0 | C2: =Start_Here!$C20 -> Address
C3: =Start_Here!$C21 -> City, State Zip
C4: =Start_Here!$C22 -> Contact Name
C5: =Start_Here!$C$41 -> Rep Name
C6: =Start_Here!$C$37 -> Tennant Sales and Service Company
C7: =Start_Here!$C$38 -> 10400 Clean Street
C8: =Start_Here!$C$39 -> Eden Prairie, MN 55344
C9: =Start_Here!$C$43 -> 800-553-8033 | E9: Quote Date : | G9: =Letter!$A$25 -> 2023-08-01
C11: =Help!C2 -> CAN Date Rev - 5/6/2025
C13: New Machine Warranty | G13: Fax (quote only)
C14: 12 MONTHS ON PARTS | G14: Mail (quote,lit, specs)
C15: 12 MONTHS – LABOR | G15: Fax + Mail
C16: 12 MONTHS – BATTERY
C17: 90 DAYS – TRAVEL
G18: Inside
G19: Outside
C22: Description | D22: Reference# | E22: CAD price Each | F22: Qty | G22: Extended Price
C24: i-mop XL Plus Lithium-Ion Auto Disk Scrubber | D24: 1264254 | E24: 8732 | G24: =F24*E24 -> 0 | H24: =IFERROR(IFERROR(VLOOKUP(D24,Surcharge!A:B,2,FALSE)*F24, VLOOKUP(D24 & "",Surcharge!A:B,2,FALSE)*F24), "") -> 
C25: 18.1" (46 cm) cleaning path. Includes white batteries, removable 1 gal (4 L) solution and 1.5 gal (6 L) recovery tank with ball float, battery safe guard switch, angle switch & i-Balance lever, removable splash guards, XL Plus charger w/ power cord, 2 medium blue brushes, quick change squeegee assembly with Linatex blades, and multi-language operator manual. | F25: =SUM(F24) -> 0 | H25: =IFERROR(IFERROR(VLOOKUP(D25,Surcharge!A:B,2,FALSE)*F25, VLOOKUP(D25 & "",Surcharge!A:B,2,FALSE)*F25), "") -> 
F26: =SUM(F25) -> 0 | H26: =IFERROR(IFERROR(VLOOKUP(D26,Surcharge!A:B,2,FALSE)*F26, VLOOKUP(D26 & "",Surcharge!A:B,2,FALSE)*F26), "") -> 
C27: Boxed Dimensions: 49.6" H x 22.4" W x 14.6" L (1260 mm x 570 mm x 370 mm) | F27: 0 | H27: =IFERROR(IFERROR(VLOOKUP(D27,Surcharge!A:B,2,FALSE)*F27, VLOOKUP(D27 & "",Surcharge!A:B,2,FALSE)*F27), "") -> 
C28: Shipping Weight with Batteries: 77.2 lbs (35 kg) | F28: 0 | H28: =IFERROR(IFERROR(VLOOKUP(D28,Surcharge!A:B,2,FALSE)*F28, VLOOKUP(D28 & "",Surcharge!A:B,2,FALSE)*F28), "") -> 
H29: =IFERROR(IFERROR(VLOOKUP(D29,Surcharge!A:B,2,FALSE)*F29, VLOOKUP(D29 & "",Surcharge!A:B,2,FALSE)*F29), "") -> 
C30: i-mop XL Plus Lithium-Ion Auto Disk Scrubber + 2 Sets of Batteries | D30: 9022386 | E30: 10445 | G30: =F30*E30 -> 0 | H30: =IFERROR(IFERROR(VLOOKUP(D30,Surcharge!A:B,2,FALSE)*F30, VLOOKUP(D30 & "",Surcharge!A:B,2,FALSE)*F30), "") -> 
C31: 18.1" (46 cm) cleaning path. Includes i-mop XL Plus (1264254) with white battery and charger, as well as a second set of spare white batteries (two sets in total). | F31: =SUM(F30) -> 0 | H31: =IFERROR(IFERROR(VLOOKUP(D31,Surcharge!A:B,2,FALSE)*F31, VLOOKUP(D31 & "",Surcharge!A:B,2,FALSE)*F31), "") -> 
F32: =SUM(F31) -> 0 | H32: =IFERROR(IFERROR(VLOOKUP(D32,Surcharge!A:B,2,FALSE)*F32, VLOOKUP(D32 & "",Surcharge!A:B,2,FALSE)*F32), "") -> 
C33: Note: Batteries do not ship in the machine box, but separately. | F33: 0 | H33: =IFERROR(IFERROR(VLOOKUP(D33,Surcharge!A:B,2,FALSE)*F33, VLOOKUP(D33 & "",Surcharge!A:B,2,FALSE)*F33), "") -> 
H34: =IFERROR(IFERROR(VLOOKUP(D34,Surcharge!A:B,2,FALSE)*F34, VLOOKUP(D34 & "",Surcharge!A:B,2,FALSE)*F34), "") -> 
H35: =IFERROR(IFERROR(VLOOKUP(D35,Surcharge!A:B,2,FALSE)*F35, VLOOKUP(D35 & "",Surcharge!A:B,2,FALSE)*F35), "") -> 
C36: iCart L Integrated Work Cart | D36: 1232057 | E36: 3008.6 | G36: =F36*E36 -> 0 | H36: =IFERROR(IFERROR(VLOOKUP(D36,Surcharge!A:B,2,FALSE)*F36, VLOOKUP(D36 & "",Surcharge!A:B,2,FALSE)*F36), "") -> 
C37: Transports the i-mop XL, includes ramp, and has storage. i-mop XL only. | F37: =SUM(F36) -> 0 | H37: =IFERROR(IFERROR(VLOOKUP(D37,Surcharge!A:B,2,FALSE)*F37, VLOOKUP(D37 & "",Surcharge!A:B,2,FALSE)*F37), "") -> 
F38: =SUM(F37) -> 0 | H38: =IFERROR(IFERROR(VLOOKUP(D38,Surcharge!A:B,2,FALSE)*F38, VLOOKUP(D38 & "",Surcharge!A:B,2,FALSE)*F38), "") -> 
C39: Boxed Dimensions: 42.5" x 34.6" x 25.2" (1080 mm x 880 mm x 640 mm) | F39: 0 | H39: =IFERROR(IFERROR(VLOOKUP(D39,Surcharge!A:B,2,FALSE)*F39, VLOOKUP(D39 & "",Surcharge!A:B,2,FALSE)*F39), "") -> 
C40: Shipping Weight: 132.2 lbs (60 kg) | F40: 0 | H40: =IFERROR(IFERROR(VLOOKUP(D40,Surcharge!A:B,2,FALSE)*F40, VLOOKUP(D40 & "",Surcharge!A:B,2,FALSE)*F40), "") -> 
H41: =IFERROR(IFERROR(VLOOKUP(D41,Surcharge!A:B,2,FALSE)*F41, VLOOKUP(D41 & "",Surcharge!A:B,2,FALSE)*F41), "") -> 
H42: =IFERROR(IFERROR(VLOOKUP(D42,Surcharge!A:B,2,FALSE)*F42, VLOOKUP(D42 & "",Surcharge!A:B,2,FALSE)*F42), "") -> 
C43: Cabinet Assy, Storage (iMop) | D43: 1233400 | E43: 1929 | G43: =F43*E43 -> 0 | H43: =IFERROR(IFERROR(VLOOKUP(D43,Surcharge!A:B,2,FALSE)*F43, VLOOKUP(D43 & "",Surcharge!A:B,2,FALSE)*F43), "") -> 
C44: iMop Storage Cabinet | F44: =SUM(F43) -> 0 | H44: =IFERROR(IFERROR(VLOOKUP(D44,Surcharge!A:B,2,FALSE)*F44, VLOOKUP(D44 & "",Surcharge!A:B,2,FALSE)*F44), "") -> 
H46: =IFERROR(IFERROR(VLOOKUP(D46,Surcharge!A:B,2,FALSE)*F46, VLOOKUP(D46 & "",Surcharge!A:B,2,FALSE)*F46), "") -> 
E49: =ROUND(SUM(G23:G48), 0) -> 0 | F49: =SUM(E50) -> 0
D50: Machine Subtotal | E50: =ROUND(SUM(G23:G48), 0) -> 0 | F50: =F49 -> 0
B51: Discounts | F51: =SUM(F52) -> 0
F52: =SUM(F54:F57) -> 0
D53: Applicable Currency Adj % | F53: =IF(E53 <> "", 1, 0) -> 0 | G53: =IF(F53*(E53*0.01)*E49 < 0, F53*(E53*0.01)*E49, -(F53*(E53*0.01)*E49)) -> 0
D54: Discount % | F54: =IF(E54 <> "", 1, 0) -> 0 | G54: =IF(F54*(E54*0.01)*(E49+G53) < 0, F54*(E54*0.01)*(E49+G53), -(F54*(E54*0.01)*(E49+G53))) -> 0
D55: Discount $ | F55: 0 | G55: =IF(F55*E55 < 0, F55*E55, -(F55*E55)) -> 0
D56: Discount $ | F56: 0 | G56: =IF(F56*E56 < 0, F56*E56, -(F56*E56)) -> 0
D57: Discount $ | F57: 0 | G57: =IF(F57*E57 < 0, F57*E57, -(F57*E57)) -> 0
D58: Discount Total | E58: =SUM(G53:G57) -> 0 | F58: =SUM(E58) -> 0
F59: =#REF! -> 
F60: =F59 -> 
C61: Prepaid and Add | D61: Freight | F61: =IF(E61 <> "", 1, 0) -> 0 | G61: =F61*E61 -> 0
C62: Subject to all applicable taxes | D62: Tax | F62: 0 | G62: 0
F63: =SUM(F64) -> 0
D64: MACHINE TOTAL* | F64: =SUM(G64) -> 0 | G64: =SUM(G23:G62) -> 0 | N64: This goes to "My Documents"
G65: =SUM(G64) -> 0
C70: Wells Fargo - Leasing Calculation Option: | D70: Option 1 | F70: Option 2 | J70: =Financing!A38 -> Rates 2025 - Rev.2/4/2025
D71: Monthly Payment | E71: Cost Per Day | F71: Monthly Payment | G71: Cost Per Day | J71: =Financing!A39 -> “Blank Payment Amounts Indicate The Financing Option Or Purchase Options Selected Are Not
C72: Purchase Option: | D72: $1 Buyout Lease | F72: None | J72: =Financing!A40 -> Applicable Or The Machine Total Is Below The Minimum Amount For The Selected Vendor”
C73: 24 Months | D73: 0 | E73: 0 | F73: 0 | G73: 0 | J73: =Financing!A41 -> "Quoted monthly payments are estimates only and are based on a certain level of credit rating.
C74: 36 Months | D74: 0 | E74: 0 | F74: 0 | G74: 0 | J74: =Financing!A42 -> Actual monthly payments may be higher depending on your credit rating."
C75: 48 Months | D75: 0 | E75: 0 | F75: 0 | G75: 0 | J75: =Financing!A43 -> “Financing rates do not include Pre-Paid Service”
C76: 60 Months | D76: 0 | E76: 0 | F76: 0 | G76: 0
D78: Benefits of Equipment Financing:
D79: • Spreads out investment over time. | F79: • Keep current with latest technology.
D80: • Preserve capital. | F80: • Service and parts bundling available.
D81: • Low monthly payment. | F81: • Pay for labor savings as you go.
B83: TennantTrue | D83: 0 | E83: 0
C85: Is customer interested in service program? | D85: Yes | E85: *State/County selection required for TennantTrue service options
C87: If not, why?
C89: Term: | D89: 36 | G89: AB Brushes | H89: No
C90: Monthly machine usage (hrs): | D90: < 30/mo. (Avg. 1hr./day)
C92: TennantTrue: | D92: Gold Contract | F92: Silver Contract
C93: Per Visit
C94: Monthly
C95: Annually
C96: Pre-Pay Full Term
C97: Hourly Labor Rate
C98: Site Visit
C100: * Verify customer current pricing prior to quote.
C101: **All rates and fees above reflect service for one (1) unit with the exception of Block of Time service.
C102: *Block of Time is available in 1 Year Term only and is priced as such no matter the term selection on this template.
B106: Quote Special Instructions:
B110: =Start_Here!E36 -> Terms and Conditions
B111: =Start_Here!E37 -> Ask your local sales rep for estimated lead times. Verify when placing order
B112: =Start_Here!E38 -> All orders subject to acceptance by Tennant Sales and Service Company, Minneapolis, Minnesota
B113: =Start_Here!E39 -> Prices subject to change without notice. Subject to any applicable taxes.
B114: =Start_Here!E40 -> Terms: Net 30 days. Payable in Canadian Funds
B115: =Start_Here!E41 -> Freight: Accessories, parts, supplies, detergents, and floor coatings orders delivered DDP
B116: =Start_Here!E42 -> shipping point Frt PPD. Machine orders delivered DDP shipping point Frt PPD and add.
B117: =Start_Here!E43 -> Returned Merchandise is subject to a restocking fee.
B118: =Start_Here!E44 -> All orders are subject to Tennant’s General Terms and Conditions available at http://www.tennantco.com/terms.
B119: =Start_Here!E45 -> Printed General Terms and Conditions are also available upon request.
B120: =Start_Here!E46 -> 0
B121: =Start_Here!E47 -> 0
B122: =Start_Here!E48 -> 0
E123: Quote Date : | G123: =Letter!$A$25 -> 2023-08-01
B124: Order Placement Information: To place your order, fill in PO# and customer signatures,
B125: call or fax to the numbers listed below. Customer Purchase Order is required.
B126: If information is missing, orders will be entered and held until all information is received.
C128: Customer Number | E128: Cust Grp 3
C129: =Start_Here!$C$25 -> 0 | E129: =Start_Here!$C$29 -> 0
C130: =Start_Here!$B$18 -> Who Owns the Machine? (Sold-To Info) (Please Verify)
A131: Company | C131: =Start_Here!$C$19 -> Company Name
A132: Address | C132: =Start_Here!$C$20 -> Address
C133: =Start_Here!$C$21 -> City, State Zip
A134: Name | C134: =Start_Here!$C$22 -> Contact Name
A135: Phone | C135: =Start_Here!$C$23 -> Contact Phone
C137: =Start_Here!$B$11 -> Where is the Machine Being Shipped? (Ship-To Info) (Please Verify)
A138: Company | C138: =Start_Here!$C$12 -> Company Name
A139: Address | C139: =Start_Here!$C$13 -> Address
C140: =Start_Here!$C$14 -> City, State Zip
A141: Name | C141: =Start_Here!$C$15 -> Contact Name
A142: Phone | C142: =Start_Here!$C$16 -> Contact Phone
C144: =Start_Here!$B$31 -> Shipping / Carrier Instructions: | E144: Order Special Instructions:
C145: =Start_Here!$C$32 -> 0
C147: Customer Purchase Order No.
C148: (please attach copy)
C151: Tax Exempt | E151: Yes
E152: No
C153: If Yes, attach a copy of your exemption certificate.
C155: Requested Delivery Date
C156: =Start_Here!$C$28 -> 0
C158: =Start_Here!$C$26 -> 0 | E158: =Start_Here!$C$27 -> 0
C159: Authorized Buyer (please print) | E159: Phone Number
C162: Authorized Buyer Signature
C164: =Start_Here!$C$41 -> Rep Name
C165: Tennant Representative
D167: Specialized Maintenance Equipment
C168: =Start_Here!$C$51 -> 0
D169: =Start_Here!$C$52 -> 0
B172: Notes
B174: 1 | C174: Only available as factory-installed when batteries are ordered with machine.
B176: 2 | C176: A French and English manual will be supplied for all units shipping into Quebec, Canada at no charge. An additional manual
C177: can be ordered (for a total of 3 manuals) for an additional charge as stated under 'Additional Operator Manual'.
B179: 3 | C179: Skid w/Carton, Non-Stackable is the default packaging method and will be added to the configuration unless otherwise specified.
B181: 4 | C181: Shipping Weights and Dimensions | D181: Skid w/Carton
C183: Weight (w/360AH Battery) | D183: 650 lbs / 295 Kg
C184: Length | D184: 68" / 1,727mm
C185: Width | D185: 33" / 838mm
C186: Height | D186: 48" / 1,219mm

Sheet i_mop_XXL
A1: i_mop_XXL | C1: =Start_Here!$C19 -> Company Name
A2: =SUM(G59) -> 0 | C2: =Start_Here!$C20 -> Address
C3: =Start_Here!$C21 -> City, State Zip
C4: =Start_Here!$C22 -> Contact Name
C5: =Start_Here!$C$41 -> Rep Name
C6: =Start_Here!$C$37 -> Tennant Sales and Service Company
C7: =Start_Here!$C$38 -> 10400 Clean Street
C8: =Start_Here!$C$39 -> Eden Prairie, MN 55344
C9: =Start_Here!$C$43 -> 800-553-8033 | E9: Quote Date : | G9: =Letter!$A$25 -> 2023-08-01
C11: =Help!C2 -> CAN Date Rev - 5/6/2025
C13: EXCLUSIVE FACTORY-DIRECT WARRANTY
C14: 12 MONTHS - PARTS
C15: 12 MONTHS LABOR
C16: 12 MONTHS BATTERY | E16: Quote Request Information
C17: 90 DAYS – TRAVEL | G17: Fax (quote only)
G18: Mail (quote,lit, specs)
G19: Fax + Mail
G21: Inside
G22: Outside
C24: Description | D24: Reference No. | E24: Canada Price | F24: Qty. | G24: Extended Price
F25: *
C26: i-mop XXL Plus Lithium-Ion Auto Disk Scrubber | D26: 1264255 | E26: 11721 | G26: =F26*E26 -> 0 | H26: =IFERROR(IFERROR(VLOOKUP(D26,Surcharge!A:B,2,FALSE)*F26, VLOOKUP(D26 & "",Surcharge!A:B,2,FALSE)*F26), "") -> 
C27: 24.4" (62 cm) cleaning path. Includes gray batteries, removable 1.25 gal (5 L) solution and 2 gal (8 L) recovery tank with ball float, battery safe guard switch, angle switch & i-Balance lever, removable splash guards, XXL Plus charger w/ power cord, 2 medium blue brushes, quick change squeegee assembly with Linatex blades, and multi-language operator manual. | F27: =SUM(F26) -> 0 | H27: =IFERROR(IFERROR(VLOOKUP(D27,Surcharge!A:B,2,FALSE)*F27, VLOOKUP(D27 & "",Surcharge!A:B,2,FALSE)*F27), "") -> 
F28: =SUM(F27) -> 0 | H28: =IFERROR(IFERROR(VLOOKUP(D28,Surcharge!A:B,2,FALSE)*F28, VLOOKUP(D28 & "",Surcharge!A:B,2,FALSE)*F28), "") -> 
C29: Boxed Dimensions: 49" H x 25" W x 13" L (1240 mm x 640 mm x 330 mm) | F29: 0 | H29: =IFERROR(IFERROR(VLOOKUP(D29,Surcharge!A:B,2,FALSE)*F29, VLOOKUP(D29 & "",Surcharge!A:B,2,FALSE)*F29), "") -> 
C30: Shipping Weight with Batteries: 90.2 lbs (40.9 kg) | F30: 0 | H30: =IFERROR(IFERROR(VLOOKUP(D30,Surcharge!A:B,2,FALSE)*F30, VLOOKUP(D30 & "",Surcharge!A:B,2,FALSE)*F30), "") -> 
H31: =IFERROR(IFERROR(VLOOKUP(D31,Surcharge!A:B,2,FALSE)*F31, VLOOKUP(D31 & "",Surcharge!A:B,2,FALSE)*F31), "") -> 
H32: =IFERROR(IFERROR(VLOOKUP(D32,Surcharge!A:B,2,FALSE)*F32, VLOOKUP(D32 & "",Surcharge!A:B,2,FALSE)*F32), "") -> 
C33: i-mop XXL Plus Lithium-Ion Auto Disk Scrubber + 2 Sets of Batteries | D33: 9022387 | E33: 13901 | G33: =F33*E33 -> 0 | H33: =IFERROR(IFERROR(VLOOKUP(D33,Surcharge!A:B,2,FALSE)*F33, VLOOKUP(D33 & "",Surcharge!A:B,2,FALSE)*F33), "") -> 
C34: 24.4" (62 cm) cleaning path. Includes i-mop XXL Plus (1264255) with grey battery and charger, as well as a second set of spare grey batteries (two sets in total). | F34: =SUM(F33) -> 0 | H34: =IFERROR(IFERROR(VLOOKUP(D34,Surcharge!A:B,2,FALSE)*F34, VLOOKUP(D34 & "",Surcharge!A:B,2,FALSE)*F34), "") -> 
C35: Note: Extra batteries do not ship in machine box, but separately. | F35: =SUM(F34) -> 0 | H35: =IFERROR(IFERROR(VLOOKUP(D35,Surcharge!A:B,2,FALSE)*F35, VLOOKUP(D35 & "",Surcharge!A:B,2,FALSE)*F35), "") -> 
H36: =IFERROR(IFERROR(VLOOKUP(D36,Surcharge!A:B,2,FALSE)*F36, VLOOKUP(D36 & "",Surcharge!A:B,2,FALSE)*F36), "") -> 
B38: Custom Solution--write in description, qty, price, and PN if applicable | F38: =SUM(F39) -> 0
E39: Insert Prices Here | F39: =SUM(F40:F43) -> 0
D40: Custom | F40: =IF(E40 <> "", 1, 0) -> 0 | G40: =F40*E40 -> 0
D41: Custom | F41: =IF(E41 <> "", 1, 0) -> 0 | G41: =F41*E41 -> 0
D42: Custom | F42: =IF(E42 <> "", 1, 0) -> 0 | G42: =F42*E42 -> 0
D43: Custom | F43: =IF(E43 <> "", 1, 0) -> 0 | G43: =F43*E43 -> 0
E44: =ROUND(SUM(G26:G43), 0) -> 0 | F44: =SUM(E45) -> 0
D45: Machine Subtotal | E45: =ROUND(SUM(G26:G43), 0) -> 0 | F45: =F44 -> 0
B46: Discounts | F46: =SUM(F47) -> 0
F47: =SUM(F49:F52) -> 0
D48: Applicable Currency Adj % | F48: =IF(E48 <> "", 1, 0) -> 0 | G48: =IF(F48*(E48*0.01)*E44 < 0, F48*(E48*0.01)*E44, -(F48*(E48*0.01)*E44)) -> 0
D49: Discount % | F49: =IF(E49 <> "", 1, 0) -> 0 | G49: =IF(F49*(E49*0.01)*(E44+G48) < 0, F49*(E49*0.01)*(E44+G48), -(F49*(E49*0.01)*(E44+G48))) -> 0
D50: Discount $ | F50: 0 | G50: =IF(F50*E50 < 0, F50*E50, -(F50*E50)) -> 0
D51: Discount $ | F51: 0 | G51: =IF(F51*E51 < 0, F51*E51, -(F51*E51)) -> 0
D52: Discount $ | F52: 0 | G52: =IF(F52*E52 < 0, F52*E52, -(F52*E52)) -> 0
D53: Discount Total | E53: =SUM(G48:G52) -> 0 | F53: =SUM(E53) -> 0
F54: =#REF! -> 
F55: =F54 -> 
C56: Prepaid and Add | D56: Freight | F56: =IF(E56 <> "", 1, 0) -> 0 | G56: =F56*E56 -> 0
C57: Subject to all applicable taxes | D57: Tax | F57: =IF(E57 <> "", 1, 0) -> 0 | G57: =F57*E57 -> 0
F58: =SUM(F59) -> 0
D59: MACHINE TOTAL* | F59: =SUM(G59) -> 0 | G59: =SUM(G26:G57) -> 0 | N59: This goes to "My Documents"
G60: =SUM(G59) -> 0
C65: Wells Fargo - Leasing Calculation Option: | D65: Option 1 | F65: Option 2 | J65: =Financing!A38 -> Rates 2025 - Rev.2/4/2025
D66: Monthly Payment | E66: Cost Per Day | F66: Monthly Payment | G66: Cost Per Day | J66: =Financing!A39 -> “Blank Payment Amounts Indicate The Financing Option Or Purchase Options Selected Are Not
C67: Purchase Option: | D67: $1 Buyout Lease | F67: None | J67: =Financing!A40 -> Applicable Or The Machine Total Is Below The Minimum Amount For The Selected Vendor”
C68: 24 Months | D68: 0 | E68: 0 | F68: 0 | G68: 0 | J68: =Financing!A41 -> "Quoted monthly payments are estimates only and are based on a certain level of credit rating.
C69: 36 Months | D69: 0 | E69: 0 | F69: 0 | G69: 0 | J69: =Financing!A42 -> Actual monthly payments may be higher depending on your credit rating."
C70: 48 Months | D70: 0 | E70: 0 | F70: 0 | G70: 0 | J70: =Financing!A43 -> “Financing rates do not include Pre-Paid Service”
C71: 60 Months | D71: 0 | E71: 0 | F71: 0 | G71: 0 | I71: =Financing!A44 -> 0
D73: Benefits of Equipment Financing:
D74: • Spreads out investment over time. | F74: • Keep current with latest technology.
D75: • Preserve capital. | F75: • Service and parts bundling available.
D76: • Low monthly payment. | F76: • Pay for labor savings as you go.
B78: TennantTrue | E78: 0 | F78: 0
C80: Is customer interested in service program? | D80: Yes | E80: *State/County selection required for TennantTrue service options
C82: If not, why?
C84: Term: | D84: 36 | G84: AB Brushes | H84: No
C85: Monthly machine usage (hrs): | D85: < 30/mo. (Avg. 1hr./day)
C87: TennantTrue: | D87: Gold Contract | F87: Silver Contract
C88: Per Visit
C89: Monthly
C90: Annually
C91: Pre-Pay Full Term
C92: Hourly Labor Rate
C93: Site Visit
C95: * Verify customer current pricing prior to quote.
C96: **All rates and fees above reflect service for one (1) unit with the exception of Block of Time service.
C97: *Block of Time is available in 1 Year Term only and is priced as such no matter the term selection on this template.
C101: Quote Special Instructions:
C104: =Start_Here!E36 -> Terms and Conditions
C105: =Start_Here!E37 -> Ask your local sales rep for estimated lead times. Verify when placing order
C106: =Start_Here!E38 -> All orders subject to acceptance by Tennant Sales and Service Company, Minneapolis, Minnesota
C107: =Start_Here!E39 -> Prices subject to change without notice. Subject to any applicable taxes.
C108: =Start_Here!E40 -> Terms: Net 30 days. Payable in Canadian Funds
C109: =Start_Here!E41 -> Freight: Accessories, parts, supplies, detergents, and floor coatings orders delivered DDP
C110: =Start_Here!E42 -> shipping point Frt PPD. Machine orders delivered DDP shipping point Frt PPD and add.
C111: =Start_Here!E43 -> Returned Merchandise is subject to a restocking fee.
C112: =Start_Here!E45 -> Printed General Terms and Conditions are also available upon request.
C113: =Start_Here!E46 -> 0
E116: Quote Date : | G116: =Letter!$A$25 -> 2023-08-01
A117: Order Placement Information: To place your order, fill in PO# and customer signatures,
A118: call or fax to the numbers listed below. Customer Purchase Order is required.
A119: If information is missing, orders will be entered and held until all information is received.
C120: Customer Number | E120: Cust Grp 3
C121: =Start_Here!$C$25 -> 0 | E121: =Start_Here!$C$29 -> 0
C122: =Start_Here!$B$18 -> Who Owns the Machine? (Sold-To Info) (Please Verify)
A123: Company | C123: =Start_Here!$C$19 -> Company Name
A124: Address | C124: =Start_Here!$C$20 -> Address
C125: =Start_Here!$C$21 -> City, State Zip
A126: Name | C126: =Start_Here!$C$22 -> Contact Name
A127: Phone | C127: =Start_Here!$C$23 -> Contact Phone
C128: =Start_Here!$B$11 -> Where is the Machine Being Shipped? (Ship-To Info) (Please Verify)
A129: Company | C129: =Start_Here!$C$12 -> Company Name
A130: Address | C130: =Start_Here!$C$13 -> Address
C131: =Start_Here!$C$14 -> City, State Zip
A132: Name | C132: =Start_Here!$C$15 -> Contact Name
A133: Phone | C133: =Start_Here!$C$16 -> Contact Phone
C134: =Start_Here!$B$31 -> Shipping / Carrier Instructions: | E134: Order Special Instructions:
C135: =Start_Here!$C$32 -> 0
C137: Customer Purchase Order No.
C138: (please attach copy)
C141: Tax Exempt | E141: Yes
E142: No
C143: If Yes, attach a copy of your exemption certificate.
C145: Requested Delivery Date
C146: =Start_Here!$C$28 -> 0
C148: =Start_Here!$C$26 -> 0 | E148: =Start_Here!$C$27 -> 0
C149: Authorized Buyer (please print) | E149: Phone Number
C152: Authorized Buyer Signature
C154: =Start_Here!$C$41 -> Rep Name
C155: Tennant Representative
A157: Specialized Maintenance Equipment
A158: =Start_Here!$C$48 -> TENNANT · 10400 Clean Street · Eden Prairie, MN 55344 ·
A159: =Start_Here!$C$49 -> PHONE:800-553-8033 · FAX:763-513-2116
B161: Special Information
B164: 1 | C164: Pre-Configured Machines cannot add or change options. All units are packaged on a Skid w/Carton and will ship via LTL Carrier.
C165: When ordering, provide the reference number listed above. Price does not include freight or tax. Availability of units
C166: and lead time may vary.
B168: 2 | C168: One pad driver comes standard with a T2.
B170: 3 | C170: Skid w/Carton, Stackable is the default packaging method and will be added to the configuration unless otherwise specified.
B172: 4 | C172: Machine Weights and dimensions | D172: Skid w/Carton
C174: Weight (w/105AH battery) | D174: 331 lbs / 150 Kg
C175: Length | D175: 47" / 1200mm
C176: Width | D176: 30" / 750mm
C177: Height | D177: 45" / 1150mm

Sheet CS5_CS16
A1: CS5_CS16 | C1: =Start_Here!$C19 -> Company Name
A2: =SUM(G56) -> 0 | C2: =Start_Here!$C20 -> Address
C3: =Start_Here!$C21 -> City, State Zip
C4: =Start_Here!$C22 -> Contact Name
C5: =Start_Here!$C$41 -> Rep Name
C6: =Start_Here!$C$37 -> Tennant Sales and Service Company
C7: =Start_Here!$C$38 -> 10400 Clean Street
C8: =Start_Here!$C$39 -> Eden Prairie, MN 55344
C9: =Start_Here!$C$43 -> 800-553-8033 | E9: Quote Date : | G9: =Letter!$A$25 -> 2023-08-01
C11: =Help!C2 -> CAN Date Rev - 5/6/2025
C14: EXCLUSIVE FACTORY-DIRECT WARRANTY-CS5
C15: 12 MONTHS - PARTS
C16: 12 MONTHS BATTERY | E16: Quote Request Information
G17: Fax (quote only)
C18: EXCLUSIVE FACTORY-DIRECT WARRANTY -CS16 | G18: Mail (quote,lit, specs)
C19: 12 MONTHS PARTS AND LABOR | G19: Fax + Mail
C20: 12 MONTHS BATTERY
C21: 3 MONTHS TRAVEL | E21: Primary Use
C22: 1 YEAR ON Rotationally Molded Components | G22: Inside
G23: Outside
C24: Description | D24: Reference # | E24: Price | F24: Qty. | G24: Extended Price
C26: CS5 Li-ON Battery Micro-scrubber | D26: 1251580 | E26: 3802 | G26: =F26*E26 -> 0 | Q26: =VLOOKUP(D26,'MPF SAP Canada Pre-Configured'!C:E,3,FALSE) -> 4224
C27: 11" cleaning path. Includes 5.5 AH Lithium ion battery, removable, fill and dump nearly anywhere 1.3 gallon (5 liter) solution & recovery tanks, forward and reverse dry system, foldable handle, medium polyproplylene brush, Linatex squeegees, charger with power cord and multi-language operator manual. | F27: =SUM(F26) -> 0
F28: =SUM(F27) -> 0
C29: Boxed Dimensions: 31.5" L x 15.74" W x 18.5" H (800 mm x 400 mm x 470 mm) | F29: 0
C30: Shipping Weight 48.62 lbs/ 22 kg | F30: 0
C33: CS16 Sealed AGM Battery Micro-Scrubber | D33: LPTB03328 | E33: 6123 | G33: =F33*E33 -> 0 | Q33: =VLOOKUP(D33,'MPF SAP Canada Pre-Configured'!C:E,3,FALSE) -> 5944
C34: 14" cleaning path. Includes 2 x12V Sealed AGM battery, foldable handle, removeable 3.9 gal (15 L) solution and 4.4 gal (16.5 L) recovery tank. Plus charger w/ power cord, medium bristle polypropylene brush, squeegee, and multi-language operator manual. | F34: =SUM(F33) -> 0
C35: CS16 Li-Ion Battery Micro-Scrubber | D35: LPTB03794 | E35: 6544 | G35: =F35*E35 -> 0
C36: 14" cleaning path. Includes 1 x 24V Li-Ion battery, foldable handle, removeable 3.9 gal (15 L) solution and 4.4 gal (16.5 L) recovery tank. Plus onboard charger, medium bristle polypropylene brush, squeegee, and multi-language operator manual. | F36: =SUM(F35) -> 0
C38: Boxed Dimensions: 31.9" L x 18.1" W x 27.6" H (810 mm x 460 mm x 700 mm) | F38: =SUM(F37) -> 0
C39: Shipping Weight: 125.7 lbs/ 57 kg | F39: =SUM(F38) -> 0
E42: =ROUND(SUM(G26:G41), 0) -> 0 | F42: =SUM(E43) -> 0
D43: Machine Subtotal | E43: =ROUND(SUM(G26:G41), 0) -> 0 | F43: =F42 -> 0
B44: Discounts | F44: =SUM(F45) -> 0
F45: =SUM(F47:F50) -> 0
D46: Applicable Currency Adj % | F46: =IF(E46 <> "", 1, 0) -> 0 | G46: =IF(F46*(E46*0.01)*E42 < 0, F46*(E46*0.01)*E42, -(F46*(E46*0.01)*E42)) -> 0
D47: Discount % | F47: =IF(E47 <> "", 1, 0) -> 0 | G47: =IF(F47*(E47*0.01)*(E42+G46) < 0, F47*(E47*0.01)*(E42+G46), -(F47*(E47*0.01)*(E42+G46))) -> 0
D48: Discount $ | F48: 0 | G48: =IF(F48*E48 < 0, F48*E48, -(F48*E48)) -> 0
D49: Discount $ | F49: 0 | G49: =IF(F49*E49 < 0, F49*E49, -(F49*E49)) -> 0
D50: Discount $ | F50: 0 | G50: =IF(F50*E50 < 0, F50*E50, -(F50*E50)) -> 0
D51: Discount Total | E51: =SUM(G46:G50) -> 0 | F51: =SUM(E51) -> 0
F52: =#REF! -> 
C53: Prepaid and Add | D53: Freight | F53: =IF(E53 <> "", 1, 0) -> 0 | G53: =F53*E53 -> 0
C54: Subject to all applicable taxes | D54: Tax | F54: 0 | G54: 0
F55: =SUM(F56) -> 0
D56: MACHINE TOTAL* | F56: =SUM(G56) -> 0 | G56: =SUM(G26:G54) -> 0 | N56: This goes to "My Documents"
G57: =G56 -> 0
C61: Wells Fargo - Leasing Calculation Option: | D61: Option 1 | F61: Option 2 | J61: =Financing!A38 -> Rates 2025 - Rev.2/4/2025
D62: Monthly Payment | E62: Cost Per Day | F62: Monthly Payment | G62: Cost Per Day | J62: =Financing!A39 -> “Blank Payment Amounts Indicate The Financing Option Or Purchase Options Selected Are Not
C63: Purchase Option: | D63: $1 Buyout Lease | F63: None | J63: =Financing!A40 -> Applicable Or The Machine Total Is Below The Minimum Amount For The Selected Vendor”
C64: 24 Months | D64: 0 | E64: 0 | F64: 0 | G64: 0 | J64: =Financing!A41 -> "Quoted monthly payments are estimates only and are based on a certain level of credit rating.
C65: 36 Months | D65: 0 | E65: 0 | F65: 0 | G65: 0 | J65: =Financing!A42 -> Actual monthly payments may be higher depending on your credit rating."
C66: 48 Months | D66: 0 | E66: 0 | F66: 0 | G66: 0 | J66: =Financing!A43 -> “Financing rates do not include Pre-Paid Service”
